Workbook

Sheet Fuel
A1: Fuel Values from Table 1 Provided by Resource Planning
C2: REDUCED KWH | D2: REPLACE. | E2: Carbon
B3: UTIL AVG | C3: PROGRAM | D3: FUEL COST
B4: SYS. FUEL | C4: MARGINAL | D4: OF AVOIDED
B5: ADJ. COST | C5: FUEL COST | D5: GENERATOR | K5: System average $/MWh | N5: Total marginal $/MWh | Q5: Replacement fuel average system $/MWh (Future Total $/MWh
B6: (C/KWH) | C6: (C/KWH) | D6: (C/KWH) | E6: (C/KWH) | K6: Conversion to cents per kWh and copy and paste | N6: Conversion to cents per kWh and copy and paste | Q6: Conversion to cents per kWh and copy and paste
A7: 2020 | B7: =L7 -> 2.434612542 | C7: =O7 -> 2.900709624 | D7: =R7 -> 2.878920848 | E7: 0 | G7: Change first year to base year | J7: =A7 -> 2020 | K7: 24.34612542 | L7: =K7*100/1000 -> 2.434612542 | N7: 29.00709624 | O7: =N7*100/1000 -> 2.900709624 | Q7: 28.78920848 | R7: =Q7*100/1000 -> 2.878920848
A8: =+A7+1 -> 2021 | B8: =L8 -> 2.550484234 | C8: =O8 -> 2.877115677 | D8: =R8 -> 3.037777796 | E8: 0 | K8: 25.50484234 | L8: 2.550484234 | N8: 28.77115677 | O8: 2.877115677 | Q8: 30.37777796 | R8: 3.037777796
A9: =+A8+1 -> 2022 | B9: 2.644432311 | C9: 2.969375951 | D9: 3.15623423 | E9: 0 | K9: 26.44432311 | L9: 2.644432311 | N9: 29.69375951 | O9: 2.969375951 | Q9: 31.5623423 | R9: 3.15623423
A10: 2023 | B10: 2.622754872 | C10: 3.09119102 | D10: 3.172627578 | E10: 0 | K10: 26.22754872 | L10: 2.622754872 | N10: 30.9119102 | O10: 3.09119102 | Q10: 31.72627578 | R10: 3.172627578
A11: 2024 | B11: 2.771516829 | C11: 3.212663175 | D11: 3.314553178 | E11: 0 | K11: 27.71516829 | L11: 2.771516829 | N11: 32.12663175 | O11: 3.212663175 | Q11: 33.14553178 | R11: 3.314553178
A12: 2025 | B12: 2.930598228 | C12: 3.449433029 | D12: 3.44590333 | E12: 0 | K12: 29.30598228 | L12: 2.930598228 | N12: 34.49433029 | O12: 3.449433029 | Q12: 34.4590333 | R12: 3.44590333
A13: 2026 | B13: 3.063102784 | C13: 3.560072298 | D13: 3.557551829 | E13: 0 | K13: 30.63102784 | L13: 3.063102784 | N13: 35.60072298 | O13: 3.560072298 | Q13: 35.57551829 | R13: 3.557551829
A14: 2027 | B14: 3.243461241 | C14: 3.782560883 | D14: 3.716786671 | E14: 0 | K14: 32.43461241 | L14: 3.243461241 | N14: 37.82560883 | O14: 3.782560883 | Q14: 37.16786671 | R14: 3.716786671
A15: 2028 | B15: 3.550601165 | C15: 4.191514876 | D15: 4.00024514 | E15: 0 | K15: 35.50601165 | L15: 3.550601165 | N15: 41.91514876 | O15: 4.191514876 | Q15: 40.0024514 | R15: 4.00024514
A16: 2029 | B16: 3.731496299 | C16: 4.490639269 | D16: 4.175798512 | E16: 0 | K16: 37.31496299 | L16: 3.731496299 | N16: 44.90639269 | O16: 4.490639269 | Q16: 41.75798512 | R16: 4.175798512
A17: 2030 | B17: 4.065659208 | C17: 5.015795282 | D17: 4.486281269 | E17: 0 | K17: 40.65659208 | L17: 4.065659208 | N17: 50.15795282 | O17: 5.015795282 | Q17: 44.86281269 | R17: 4.486281269
A18: 2031 | B18: 4.205810946 | C18: 4.997142314 | D18: 4.59784188 | E18: 0 | K18: 42.05810946 | L18: 4.205810946 | N18: 49.97142314 | O18: 4.997142314 | Q18: 45.9784188 | R18: 4.59784188
A19: 2032 | B19: 4.505899964 | C19: 5.461414693 | D19: 4.873757964 | E19: 0 | K19: 45.05899964 | L19: 4.505899964 | N19: 54.61414693 | O19: 5.461414693 | Q19: 48.73757964 | R19: 4.873757964
A20: 2033 | B20: 4.600412945 | C20: 5.824101979 | D20: 4.984915998 | E20: 0 | K20: 46.00412945 | L20: 4.600412945 | N20: 58.24101979 | O20: 5.824101979 | Q20: 49.84915998 | R20: 4.984915998
A21: 2034 | B21: 4.904246138 | C21: 6.095285388 | D21: 5.306578162 | E21: 0 | K21: 49.04246138 | L21: 4.904246138 | N21: 60.95285388 | O21: 6.095285388 | Q21: 53.06578162 | R21: 5.306578162
A22: 2035 | B22: 5.112907005 | C22: 6.713025114 | D22: 5.510049459 | E22: 0 | K22: 51.12907005 | L22: 5.112907005 | N22: 67.13025114 | O22: 6.713025114 | Q22: 55.10049459 | R22: 5.510049459
A23: 2036 | B23: 5.2847745 | C23: 6.63047207 | D23: 5.621141176 | E23: 0 | K23: 52.847745 | L23: 5.2847745 | N23: 66.3047207 | O23: 6.63047207 | Q23: 56.21141176 | R23: 5.621141176
A24: 2037 | B24: 5.580777056 | C24: 7.076799848 | D24: 5.925802405 | E24: 0 | K24: 55.80777056 | L24: 5.580777056 | N24: 70.76799848 | O24: 7.076799848 | Q24: 59.25802405 | R24: 5.925802405
A25: 2038 | B25: 5.712201315 | C25: 7.103603501 | D25: 6.048558103 | E25: 0 | K25: 57.12201315 | L25: 5.712201315 | N25: 71.03603501 | O25: 7.103603501 | Q25: 60.48558103 | R25: 6.048558103
A26: 2039 | B26: 5.931144007 | C26: 7.110955099 | D26: 6.29999485 | E26: 0 | K26: 59.31144007 | L26: 5.931144007 | N26: 71.10955099 | O26: 7.110955099 | Q26: 62.9999485 | R26: 6.29999485
A27: 2040 | B27: 5.999355829 | C27: 7.651719035 | D27: 6.29279382 | E27: 0 | K27: 59.99355829 | L27: 5.999355829 | N27: 76.51719035 | O27: 7.651719035 | Q27: 62.9279382 | R27: 6.29279382
A28: 2041 | B28: 6.297281238 | C28: 7.880669711 | D28: 6.691088221 | E28: 0 | K28: 62.97281238 | L28: 6.297281238 | N28: 78.80669711 | O28: 7.880669711 | Q28: 66.91088221 | R28: 6.691088221
A29: 2042 | B29: 6.592646796 | C29: 8.425266362 | D29: 7.045234289 | E29: 0 | K29: 65.92646796 | L29: 6.592646796 | N29: 84.25266362 | O29: 8.425266362 | Q29: 70.45234289 | R29: 7.045234289
A30: 2043 | B30: 6.782797747 | C30: 8.625266362 | D30: 7.341587519 | E30: 0 | K30: 67.82797747 | L30: 6.782797747 | N30: 86.25266362 | O30: 8.625266362 | Q30: 73.41587519 | R30: 7.341587519
A31: 2044 | B31: 6.682976687 | C31: 8.293294627 | D31: 7.266923507 | E31: 0 | K31: 66.82976687 | L31: 6.682976687 | N31: 82.93294627 | O31: 8.293294627 | Q31: 72.66923507 | R31: 7.266923507
A32: 2045 | B32: 6.942588118 | C32: 8.679459665 | D32: 7.464471195 | E32: 0 | K32: 69.42588118 | L32: 6.942588118 | N32: 86.79459665 | O32: 8.679459665 | Q32: 74.64471195 | R32: 7.464471195
A33: 2046 | B33: 7.185012159 | C33: 8.825038052 | D33: 7.686994949 | E33: 0 | K33: 71.85012159 | L33: 7.185012159 | N33: 88.25038052 | O33: 8.825038052 | Q33: 76.86994949 | R33: 7.686994949
A34: 2047 | B34: 7.173671929 | C34: 8.950521309 | D34: 7.673810816 | E34: 0 | K34: 71.73671929 | L34: 7.173671929 | N34: 89.50521309 | O34: 8.950521309 | Q34: 76.73810816 | R34: 7.673810816
A35: 2048 | B35: 7.174 | C35: 8.951 | D35: 7.674 | E35: 0 | K35: 71.74 | L35: 7.174 | N35: 89.51 | O35: 8.951 | Q35: 76.74 | R35: 7.674
A36: 2049 | B36: 7.174 | C36: 8.951 | D36: 7.674 | E36: 0 | K36: 71.74 | L36: 7.174 | N36: 89.51 | O36: 8.951 | Q36: 76.74 | R36: 7.674
A37: 2050 | B37: 0 | C37: 0 | D37: 0 | E37: 0
A38: 2051 | B38: 0 | C38: 0 | D38: 0 | E38: 0
A39: 2052 | B39: 0 | C39: 0 | D39: 0 | E39: 0
A40: 2053 | B40: 0 | C40: 0 | D40: 0 | E40: 0
A41: 2054 | B41: 0 | C41: 0 | D41: 0 | E41: 0
A42: 2055 | B42: 0 | C42: 0 | D42: 0 | E42: 0
A43: 2056 | B43: 0 | C43: 0 | D43: 0 | E43: 0
A44: 2057 | B44: 0 | C44: 0 | D44: 0 | E44: 0
A45: 2058 | B45: 0 | C45: 0 | D45: 0 | E45: 0

Sheet Spending Curve
K2: ACCUM. | L2: BOOK
F3: Spending Curve | H3: CONSTR. | J3: ACCUM. | K3: CONSTR. | L3: VALUE
G4: YEAR | H4: EXPEND. | I4: AFUDC | J4: AFUDC | K4: EXPEND. | L4: NOT CLOSED
F6: =+H6/K11 -> 0.195102183 | G6: 2020 | H6: =+F34 -> 25757 | I6: =+F23 -> 832 | J6: =+I6 -> 832 | K6: =+H6 -> 25757 | L6: =+J6+H6 -> 26589
F7: =H7/K11 -> 0.5594009908 | G7: 2021 | H7: =G35 -> 73851 | I7: =G24 -> 4049 | J7: =J6+I7 -> 4881 | K7: =K6+H7 -> 99608 | L7: =+I7+H7 -> 77900
F8: =H8/K11 -> 0.2454968262 | G8: 2022 | H8: =H36 -> 32410 | I8: =H25 -> 7482 | J8: =J7+I8 -> 12363 | K8: =K7+H8 -> 132018 | L8: =+I8+H8 -> 39892
G9: 2023 | H9: 0 | I9: 0 | J9: 0 | K9: 0 | L9: 0
E11: Check | F11: =SUM(F6:F10) -> 1 | J11: =+I31 -> 12363 | K11: =+I42 -> 132018 | L11: =SUM(L6:L8) -> 144381
F13: Year 1 | G13: =+H13/H17 -> 0.195102183 | H13: =+H6*1000/M24 -> 109.2942008 | I13: =+I6*1000/M23 -> 3.633187773 | L13: =+L6*1000/M24 -> 112.824611
F14: Year 2 | G14: =H14/H17 -> 0.5594009908 | H14: =H7*1000/M24 -> 313.3705799 | I14: =I7*1000/M23 -> 17.68122271 | L14: =L7*1000/M24 -> 330.5516266
F15: Year 3 | G15: =H15/H17 -> 0.2454968262 | H15: =H8*1000/M24 -> 137.5247525 | I15: =I8*1000/M23 -> 32.67248908 | L15: =L8*1000/M24 -> 169.2729844
F16: Year 4 | H16: 0 | I16: =I9*1000/M24 -> 0 | L16: 0
H17: =SUM(H13:H15) -> 560.1895332 | L17: =SUM(L13:L15) -> 612.6492221
B18: Spending for Avoided Unit Tab on replacement fuel (from Resource Planning)
E20: 7FA.05 CT
F21: Three years construction for 2023 unit
E22: =E20 -> 7FA.05 CT | F22: 2020 | G22: =F22+1 -> 2021 | H22: =G22+1 -> 2022 | K22: Winter Capacity | M22: 245000
E23: 1st year | F23: 832 | G23: 0 | H23: 0 | J23: Check | K23: Summer Capacity | M23: 229000
E24: 2nd year | F24: 0 | G24: 4049 | H24: 0 | K24: Average Capacity | M24: =+M22*(5/12)+M23*(7/12) -> 235666.6667 | O24: uses 7 by 5 for summer winter methodology
E25: 3rd year | F25: 0 | G25: 0 | H25: 7482 | O25: Check formula if 7x5 changes
E26: 4th year | F26: 0 | G26: 0 | H26: 0
E27: 5th year | F27: 0 | G27: 0 | H27: 0
E28: 6th year | F28: 0 | G28: 0 | H28: 0
E29: 7th year | F29: 0 | G29: 0 | H29: 0 | O29: Feed F11B
E30: 8th year | F30: 0 | G30: 0 | H30: 0 | I30: Cummulative AFUDC
E31: Total AFUDC | F31: =SUM(F23:F30) -> 832 | G31: =SUM(G23:G30) -> 4049 | H31: =SUM(H23:H30) -> 7482 | I31: =SUM(F31:H31) -> 12363 | L31: Check
E33: =E20 -> 7FA.05 CT | F33: =F22 -> 2020 | G33: =G22 -> 2021 | H33: =H22 -> 2022
E34: 1st year | F34: 25757 | G34: 0 | H34: 0
E35: 2nd year | F35: 0 | G35: 73851 | H35: 0
E36: 3rd year | F36: 0 | G36: 0 | H36: 32410
E37: 4th year | F37: 0 | G37: 0 | H37: 0 | I37: Check
E38: 5th year | F38: 0 | G38: 0 | H38: 0
E39: 6th year | F39: 0 | G39: 0 | H39: 0
E40: 7th year | F40: 0 | G40: 0 | H40: 0
E41: 8th year | F41: 0 | G41: 0 | H41: 0 | I41: Cummulative Cap Ex
E42: Total Cap Ex | F42: =SUM(F34:F41) -> 25757 | G42: =SUM(G34:G41) -> 73851 | H42: =SUM(H34:H41) -> 32410 | I42: =SUM(F42:H42) -> 132018
I43: =I31+I42 -> 144381
H44: Total

Sheet T&D Costs
B2: Inflation Rate | C2: 0.028
C3: Data Provided | D3: Base Year
C4: 2020 | D4: ='Title Results Update'!C18 -> 2020
B6: Avoided Transmission Cost | D6: 34.9
B7: Avoided Distribution Cost | D7: 82.37
B10: O&M Escalation rate | C10: 0.024 | D10: ='Title Results Update'!C18 -> 2020
B11: Transmission Fixed O&M Costs | D11: 2.78
B12: Distribution Fixed O&M Costs | D12: 11.34

Sheet EUE_Line Losses
B2: EUE
B3: Summer | C3: 0.8148
B4: Winter | C4: 0.1852
B7: Line Losses
D8: Gen KW
C9: Residential | D9: Commercial
B10: kW | C10: 7.3 | D10: 7
B11: kWh | C11: 5.6 | D11: 5.2
B14: Residential
B15: Forced Outage Rate | C15: 0.034 | D15: =1-C15 -> 0.966
B16: Line Loss | C16: =+C10/100 -> 0.073 | D16: =1-C16 -> 0.927
B17: Multiplier | C17: =+D15*D16 -> 0.895482
B19: Commercial
B20: Forced Outage Rate | C20: 0.034 | D20: =1-C20 -> 0.966
B21: Line Loss | C21: =+D10/100 -> 0.07 | D21: =1-C21 -> 0.93
B22: Multiplier | C22: =+D20*D21 -> 0.89838
B25: =+((Input!$C$6*'EUE_Line Losses'!C4)+(Input!$C$7*'EUE_Line Losses'!C3))/'EUE_Line Losses'!C17 -> 2.047157754 | C25: Residential
B26: =+((Input!$C$6*'EUE_Line Losses'!C4)+(Input!$C$7*'EUE_Line Losses'!C3))/'EUE_Line Losses'!C22 -> 2.040554019 | C26: Commercial

Sheet Revenue Requirements
C2: Generation
C3: Comb. Cycle | D3: Tran & Dist
C4: Rev Reqm't | D4: Rev Reqm't | E4: See Column N (K Factor Test)
C5: K FACTORS | D5: K FACTORS
B9: 2023 | C9: 0.1375906623 | D9: =+C9 -> 0.1375906623
B10: =+B9+1 -> 2024 | C10: 0.133527626 | D10: 0.133527626
B11: 2025 | C11: 0.1290420635 | D11: 0.1290420635
B12: 2026 | C12: 0.1247713348 | D12: 0.1247713348
B13: 2027 | C13: 0.1206938968 | D13: 0.1206938968
B14: 2028 | C14: 0.1167905873 | D14: 0.1167905873
B15: 2029 | C15: 0.1130087987 | D15: 0.1130087987
B16: 2030 | C16: 0.1092659301 | D16: 0.1092659301
B17: 2031 | C17: 0.1055230615 | D17: 0.1055230615
B18: 2032 | C18: 0.1017801928 | D18: 0.1017801928
B19: 2033 | C19: 0.09803732423 | D19: 0.09803732423
B20: 2034 | C20: 0.09429445562 | D20: 0.09429445562
B21: 2035 | C21: 0.090551587 | D21: 0.090551587
B22: 2036 | C22: 0.08680871839 | D22: 0.08680871839
B23: 2037 | C23: 0.08306584978 | D23: 0.08306584978
B24: 2038 | C24: 0.0796744515 | D24: 0.0796744515
B25: 2039 | C25: 0.07698587488 | D25: 0.07698587488
B26: 2040 | C26: 0.07464864958 | D26: 0.07464864958
B27: 2041 | C27: 0.07231142428 | D27: 0.07231142428
B28: 2042 | C28: 0.06997419898 | D28: 0.06997419898
B29: 2043 | C29: 0.06763697368 | D29: 0.06763697368
B30: 2044 | C30: 0.06529974838 | D30: 0.06529974838
B31: 2045 | C31: 0.06296252308 | D31: 0.06296252308
B32: 2046 | C32: 0.06062529778 | D32: 0.06062529778
B33: 2047 | C33: 0.05828807248 | D33: 0.05828807248
B34: 2048 | C34: 0.05595084718 | D34: 0.05595084718
B35: 2049 | C35: 0 | D35: 0
B36: 2050 | C36: 0 | D36: 0
B37: 2051 | C37: 0 | D37: 0
B38: 2052 | C38: 0 | D38: 0
B39: 2053 | C39: 0 | D39: 0

Sheet Title Results Update
B3: ECONOMIC LIFE & K FACTORS
A4: II. | B4: (2) GENERATOR ECONOMIC LIFE | C4: 25 | D4: YEARS
A5: II. | B5: (3) T & D ECONOMIC LIFE | C5: 25 | D5: YEARS
A6: II. | B6: (4) K FACTOR FOR GENERATION | C6: 1.5213
A7: II. | B7: (5) K FACTOR FOR T & D | C7: 1.5213
B9: UTILITY & CUSTOMER COSTS
A10: III. | B10: (3) UTILITY COST ESCALATION RATE | C10: 2.4 | D10: %
A11: III. | B11: (5) CUSTOMER EQUIPMENT ESCALATION RATE | C11: 2.3 | D11: %
A12: III. | B12: (7) CUSTOMER O & M ESCALATION RATE | C12: 2.3 | D12: %
A13: III. | B13: (12)* UTILITY DISCOUNT RATE | C13: 0.0708
A14: III. | B14: (13)* UTILITY AFUDC RATE | C14: 0.0646
A15: III. | B15: (16)* UTILITY REBATE/INCENTIVE ESCAL RATE | C15: 0 | D15: %
B17: AVOIDED GENERATOR, TRANS. & DIST COSTS
A18: IV. | B18: (1) BASE YEAR | C18: 2020
A19: IV. | B19: (2) IN-SERVICE YEAR FOR AVOIDED GENERATING UNIT | C19: 2023
A20: IV. | B20: (3) IN-SERVICE YEAR FOR AVOIDED T & D | C20: 2021
A21: IV. | B21: (4) BASE YEAR AVOIDED GENERATING UNIT COST | C21: 526.3 | D21: $/KW
A22: IV. | B22: (5) BASE YEAR AVOIDED TRANSMISSION COST | C22: ='T&D Costs'!D6 -> 34.9 | D22: $/KW
A23: IV. | B23: (6) BASE YEAR AVOIDED DISTRIBUTION COST | C23: ='T&D Costs'!D7 -> 82.37 | D23: $/KW
A24: IV. | B24: (7) GEN, TRAN, & DIST COST ESCALATION RATE | C24: 2.4 | D24: %
A25: IV. | B25: (8) GENERATOR FIXED O & M COST | C25: 5.83 | D25: $/KW/YR
A26: IV. | B26: (9) GENERATOR FIXED O&M ESCALATION RATE | C26: 2.4 | D26: %
A27: IV. | B27: (10) TRANSMISSION FIXED O & M COST | C27: ='T&D Costs'!D11 -> 2.78 | D27: $/KW/YR
A28: IV. | B28: (11) DISTRIBUTION FIXED O & M COST | C28: ='T&D Costs'!D12 -> 11.34 | D28: $/KW/YR
A29: IV. | B29: (12) T&D FIXED O&M ESCALATION RATE | C29: 2.4 | D29: %
A30: IV. | B30: (13) AVOIDED GEN UNIT VARIABLE O & M COSTS | C30: 0.21 | D30: CENTS/KWH | F30: =2/1000*100 -> 0.2
A31: IV. | B31: (14) GENERATOR VARIABLE O&M COST ESCALATION RATE | C31: 2.4 | D31: %
A32: IV. | B32: (15) GENERATOR CAPACITY FACTOR | C32: 9.1 | D32: % | F32: See Table1 - column j
A33: IV. | B33: (16) AVOIDED GENERATING UNIT FUEL COST | C33: 3.75 | D33: CENTS/KWH
A34: IV. | B34: (17) AVOIDED GEN UNIT FUEL ESCALATION RATE | C34: 4.54 | D34: % | F34: See Table1
A35: IV. | B35: (18)* AVOIDED PURCHASE CAPACITY COST PER KW | C35: 0 | D35: $/KW/YR
A36: IV. | B36: (19)* CAPACITY COST ESCALATION RATE | C36: 0 | D36: %

Sheet Rates
D2: Energy | E2: Demand
C3: Residential | D3: Commercial GSD Secondary kWh | E3: Commercial GSD Secondary kW
B4: Base Rate | C4: 5.3583 | D4: 1.596 | E4: 0
B5: Demand Charge | C5: 0 | D5: 0 | E5: 10.59
B6: Fuel | C6: 0 | D6: 0 | E6: 0
B7: ECCR | C7: 0.271 | D7: 0 | E7: 0.96
B8: Capacity | C8: 0.085 | D8: 0 | E8: 0.32
B9: ECRC | C9: 0.222 | D9: 0.222 | E9: 0
A10: Energy | B10: =D10 -> 1.818 | C10: =SUM(C4:C9) -> 5.9363 | D10: =SUM(D4:D9) -> 1.818 | E10: 10.0895
G11: Commercial EE Demand | H11: =11.87*0.85 -> 10.0895
F19: average monthly usage of res customer | H19: 1101 kWh
G21: 2019 res
F22: tier 1 | G22: 5.141 | H22: =G22*1.024 -> 5.264384 | I22: =H22*1000 -> 5264.384
F23: tier 2 | G23: 6.141 | H23: =G23*1.024 -> 6.288384 | I23: =H23*101 -> 635.126784
I24: =SUM(I22:I23) -> 5899.510784
I25: =I24/1101 -> 5.358320421

Sheet Input
A1: Answer questions 1 thru 16 to complete evaluation. Press RUN for results. (See Title & Results). | E1: Do Not Print this page
A3: 1 | B3: Program Title | C3: Retro-Commissioning
A5: 2 | B5: Demand & Energy Savings
B6: Winter kW | C6: =Input2!N7 -> 4.091900403
B7: Summer kW | C7: =Input2!N6 -> 1.319799908
B8: kWh | C8: =Input2!N9 -> 7894.4
A9: 3 | B9: Switch (1=Conservation, 0=Load Management) | C9: 1
A10: 4 | B10: Switch (1=Residential, 0=Commercial) | C10: 0 | F10: avoided unit comes online in 2020
L11: ADJUSTED
A12: 5 | B12: Participation | C12: Annual | K12: Cumulative | L12: CUMULATIVE
C13: Total Partic. | K13: Total Partic. | L13: PARTICIPATING
B14: YEAR | C14: Customers | J14: YEAR | K14: Customers | L14: CUSTOMERS
B15: ='Title Results Update'!C18 -> 2020 | C15: =Input2!N16 -> 1000 | J15: =+Title_RESULTS!H7 -> 2020 | K15: =+C15 -> 1000 | L15: =ROUND(+K15*(1-$C$32),0) -> 1000
B16: =+B15+1 -> 2021 | C16: =Input2!N17 -> 1000 | J16: =+J15+1 -> 2021 | K16: =+K15+C16 -> 2000 | L16: 2000
B17: =+B16+1 -> 2022 | C17: =Input2!N18 -> 1000 | J17: 2022 | K17: 3000 | L17: 3000
B18: 2023 | C18: =Input2!N19 -> 0 | J18: 2023 | K18: 3000 | L18: 3000
B19: 2024 | C19: =Input2!N20 -> 0 | J19: 2024 | K19: 3000 | L19: 3000
B20: 2025 | C20: =Input2!N21 -> 0 | J20: 2025 | K20: 3000 | L20: 3000
B21: 2026 | C21: =Input2!N22 -> 0 | J21: 2026 | K21: 3000 | L21: 3000
B22: 2027 | C22: =Input2!N23 -> 0 | J22: 2027 | K22: 3000 | L22: 3000
B23: 2028 | C23: =Input2!N24 -> 0 | J23: 2028 | K23: 3000 | L23: 3000
B24: 2029 | C24: =Input2!N25 -> 0 | J24: 2029 | K24: 3000 | L24: 3000
B25: 2030 | C25: =Input2!N26 -> 0 | J25: 2030 | K25: 3000 | L25: 3000
B26: 2031 | C26: =Input2!N27 -> 0 | J26: 2031 | K26: 3000 | L26: 3000
B27: 2032 | C27: =Input2!N28 -> 0 | J27: 2032 | K27: 3000 | L27: 3000
B28: 2033 | C28: =Input2!N29 -> 0 | J28: 2033 | K28: 3000 | L28: 3000
B29: 2034 | C29: =Input2!N30 -> 0 | J29: 2034 | K29: 3000 | L29: 3000
J30: 2035 | K30: =+K29 -> 3000 | L30: 3000
J31: 2036 | K31: =+K30 -> 3000 | L31: 3000
A32: 6 | B32: Free Riders | C32: 0 | J32: 2037 | K32: =+K31 -> 3000 | L32: 3000
A33: 7 | B33: Study Period for Conservation Program | C33: =Input2!N10 -> 5 | D33: Years | J33: 2038 | K33: 3000 | L33: 3000
A34: 8 | B34: Utility Non Recurring Cost Per Customer | C34: =Input2!N11 -> 0 | D34: $/CUST | J34: 2039 | K34: 3000 | L34: 3000
A35: 9 | B35: Utility Recurring Cost Per Customer (Load Management) | C35: 0 | D35: $/CUST/YR | J35: 2040 | K35: 3000 | L35: 3000
A36: 10 | B36: Customer Equipment Cost | C36: =Input2!N12 -> 4819.197737 | D36: $/CUST | J36: 2041 | K36: 3000 | L36: 3000
A37: 11 | B37: Customer O & M Cost | D37: $/CUST/YR | J37: 2042 | K37: 3000 | L37: 3000
A38: 12 | B38: Customer Tax Credit Per Installation | C38: 0 | D38: $/CUST | J38: 2043 | K38: 3000 | L38: 3000
A39: 13 | B39: Increased Supply Costs | C39: 0 | D39: $/CUST/YR | J39: 2044 | K39: 3000 | L39: 3000
A40: 14 | B40: Utility Non Recurring Rebate/Incentive | C40: =+Input2!N14 -> 0 | D40: $/CUST | J40: 2045 | K40: 3000 | L40: 3000
A41: 15 | B41: Utility Recurring Rebate/Incentive (Load Management) | C41: 0 | D41: $/CUST/YR
A42: 16 | B42: Diversity and Annual Demand | C42: =Input2!N15 -> 1
B43: Adjustment Factor for Customer Bill: | C43: 1
B46: See Participation C,D,E,F 73
B47: See Participation F_22 F5,6

Sheet Input2
A2: = Input Tab cell C36 / (Input Tab cell C8 * Rates Tab C10)
A4: Residential Simple Payback
A5: Customer Equipment Cost | E5: =+Customer_Equipment_Cost -> 4819.197737 | N5: Retro-Commissioning
A6: kWh | E6: =+kWh -> 7894.4 | N6: 1.319799908 | O6: B | P6: sKw
A7: Energy | E7: =+Rates!C10 -> 5.9363 | N7: 4.091900403 | O7: C | P7: wKw
A8: kWh*Energy | E8: =+E6*E7 -> 46863.52672 | O8: D | P8: Blended (do not use)
A9: ResidentialSimplePayback | E9: =IF(E8=0,0,+E5/E8) -> 0.1028347219 | L9: ADJUSTED | N9: 7894.4 | O9: E | P9: kWh
K10: Cumulative | L10: CUMULATIVE | N10: 5 | O10: F | P10: Years in study period
K11: Total Partic. | L11: PARTICIPATING | O11: G | P11: Utility Non Recurring Cost Per Customer
J12: YEAR | K12: Customers | L12: CUSTOMERS | N12: 4819.197737 | O12: H | P12: Customer Equipment Costs
J13: =+'Title Results Update'!C18 -> 2020 | K13: =+N16 -> 1000 | L13: =ROUND(+K13*(1-Input!$C$32),0) -> 1000 | O13: I | P13: Customer O & M Cost
A14: Input Tab cell C36 ÷ (Input Tab cell C8 * Rates Tab D10 + ( 5 * Input Tab cell C6 + 7 * Input Tab cell C7) * Rates Tab E10) | J14: =J13+1 -> 2021 | K14: =+K13+N17 -> 2000 | L14: =ROUND(+K14*(1-Input!$C$32),0) -> 2000 | O14: J | P14: Utility Non Recurring Rebate/Incentive
J15: =J14+1 -> 2022 | K15: 3000 | L15: =ROUND(+K15*(1-Input!$C$32),0) -> 3000 | N15: 1 | O15: K | P15: Adjustment Factor
A16: Commercial and Industrial Simple Payback | J16: 2023 | K16: 3000 | L16: =ROUND(+K16*(1-Input!$C$32),0) -> 3000 | N16: 1000 | O16: L | P16: 2020 participation
J17: 2024 | K17: 3000 | L17: =ROUND(+K17*(1-Input!$C$32),0) -> 3000 | N17: 1000 | O17: N | P17: 2021
J18: 2025 | K18: 3000 | L18: =ROUND(+K18*(1-Input!$C$32),0) -> 3000 | N18: 1000 | O18: O | P18: =P17+1 -> 2022
A19: Customer Equipment Cost | E19: =+Customer_Equipment_Cost -> 4819.197737 | J19: 2026 | K19: 3000 | L19: =ROUND(+K19*(1-Input!$C$32),0) -> 3000 | N19: 0 | O19: P | P19: =P18+1 -> 2023
A20: kWh | E20: =+kWh -> 7894.4 | J20: 2027 | K20: 3000 | L20: =ROUND(+K20*(1-Input!$C$32),0) -> 3000 | N20: 0 | O20: Q | P20: 2024
A21: Energy | E21: =+Rates!D10 -> 1.818 | J21: 2028 | K21: 3000 | L21: =ROUND(+K21*(1-Input!$C$32),0) -> 3000 | N21: 0 | O21: R | P21: 2025
A22: kWh*Energy | E22: =+E20*E21 -> 14352.0192 | J22: 2029 | K22: 3000 | L22: =ROUND(+K22*(1-Input!$C$32),0) -> 3000 | N22: 0 | O22: S | P22: 2026
E23: 5 | J23: 2030 | K23: 3000 | L23: =ROUND(+K23*(1-Input!$C$32),0) -> 3000 | N23: 0 | O23: T | P23: 2027
A24: Winter kW | E24: =+Winter_kW -> 4.091900403 | J24: 2031 | K24: 3000 | L24: =ROUND(+K24*(1-Input!$C$32),0) -> 3000 | N24: 0 | O24: U | P24: 2028
E25: =+E23*E24 -> 20.45950201 | J25: 2032 | K25: 3000 | L25: =ROUND(+K25*(1-Input!$C$32),0) -> 3000 | N25: 0 | O25: V | P25: 2029
E26: 7 | J26: 2033 | K26: 3000 | L26: =ROUND(+K26*(1-Input!$C$32),0) -> 3000 | N26: 0 | O26: W | P26: 2030
A27: Summer kW | E27: =+Summer_kW -> 1.319799908 | J27: 2034 | K27: 3000 | L27: =ROUND(+K27*(1-Input!$C$32),0) -> 3000 | N27: 0 | O27: X | P27: 2031
E28: =+E26*E27 -> 9.238599357 | J28: 2035 | K28: 3000 | L28: =ROUND(+K28*(1-Input!$C$32),0) -> 3000 | N28: 0 | O28: Y
A29: Sum | E29: =+E25+E28 -> 29.69810137 | J29: 2036 | K29: 3000 | L29: =ROUND(+K29*(1-Input!$C$32),0) -> 3000 | N29: 0 | O29: Z
A30: Demand | E30: =+Rates!E10 -> 10.0895 | J30: 2037 | K30: 3000 | L30: =ROUND(+K30*(1-Input!$C$32),0) -> 3000 | N30: 0 | O30: AB
E31: =+E29*E30 -> 299.6389938 | J31: 2038 | K31: 3000 | L31: =ROUND(+K31*(1-Input!$C$32),0) -> 3000 | N31: 0 | O31: AA
A32: CISimplePayback | E32: =IF(E31=0,0,+E19/E31) -> 16.08334642 | J32: 2039 | K32: 3000 | L32: =ROUND(+K32*(1-Input!$C$32),0) -> 3000 | N32: 0 | O32: AB
J33: 2040 | K33: 3000 | L33: =ROUND(+K33*(1-Input!$C$32),0) -> 3000 | N33: 0 | O33: AC
J34: 2041 | K34: 3000 | L34: =ROUND(+K34*(1-Input!$C$32),0) -> 3000 | N34: 0 | O34: AD
J35: 2042 | K35: 3000 | L35: =ROUND(+K35*(1-Input!$C$32),0) -> 3000 | N35: 0 | O35: AE
J36: 2043 | K36: 3000 | L36: =ROUND(+K36*(1-Input!$C$32),0) -> 3000 | N36: 0 | O36: AF
J37: 2044 | K37: 3000 | L37: =ROUND(+K37*(1-Input!$C$32),0) -> 3000 | N37: 0 | O37: AG
J38: 2045 | K38: 3000 | L38: =ROUND(+K38*(1-Input!$C$32),0) -> 3000 | N38: 0 | O38: AH
J39: 2046 | K39: 3000 | L39: =ROUND(+K39*(1-Input!$C$32),0) -> 3000 | N39: 0 | O39: AI
J40: 2047 | K40: 3000 | L40: =ROUND(+K40*(1-Input!$C$32),0) -> 3000 | N40: 0 | O40: AJ
J41: 2048 | K41: 3000 | L41: =ROUND(+K41*(1-Input!$C$32),0) -> 3000 | N41: 0 | O41: AK
J42: 2049 | K42: 3000 | L42: =ROUND(+K42*(1-Input!$C$32),0) -> 3000 | N42: 0 | O42: AL
N43: 0 | O43: AM
N44: 0 | O44: AN
N45: 0 | O45: AO

Sheet Title_RESULTS
C2: INPUT DATA - PART 1 | H2: PSC FORM CE 1.1
C3: PROGRAM TITLE: | D3: =+Input!C3 -> Retro-Commissioning | H3: PAGE 1 OF 1
H4: RUN DATE: | I4: =NOW() -> 2019-05-14T07:54:57.350
B6: PROGRAM DEMAND SAVINGS & LINE LOSSES | G6: AVOIDED GENERATOR, TRANS. & DIST COSTS
A7: I. | B7: (1) CUSTOMER KW REDUCTION AT THE METER | C7: =IF(Input!$C$7>Input!$C$6,+Input!$C$7,+Input!$C$6) -> 4.091900403 | D7: KW /CUST | F7: IV. | G7: (1) BASE YEAR | H7: =+'Title Results Update'!C18 -> 2020
A8: I. | B8: (2) GENERATOR KW REDUCTION PER CUSTOMER | C8: =IF(Input!$C$10>0,+'EUE_Line Losses'!B25,+'EUE_Line Losses'!B26) -> 2.040554019 | D8: KW GEN/CUST | F8: IV. | G8: (2) IN-SERVICE YEAR FOR AVOIDED GENERATING UNIT | H8: =+'Title Results Update'!C19 -> 2023
A9: I. | B9: (3) KW LINE LOSS PERCENTAGE | C9: =IF(Input!$C$10>0,'EUE_Line Losses'!C10,'EUE_Line Losses'!D10) -> 7 | D9: % | F9: IV. | G9: (3) IN-SERVICE YEAR FOR AVOIDED T & D | H9: =+'Title Results Update'!C20 -> 2021
A10: I. | B10: (4) GENERATION KWH REDUCTION PER CUSTOMER | C10: =+($C$14/(1-C11/100)) -> 8327.42616 | D10: KWH/CUST/YR | F10: IV. | G10: (4) BASE YEAR AVOIDED GENERATING UNIT COST | H10: =+'Title Results Update'!C21 -> 526.3 | I10: $/KW
A11: I. | B11: (5) KWH LINE LOSS PERCENTAGE | C11: =IF(Input!$C$10>0,'EUE_Line Losses'!C11,'EUE_Line Losses'!D11) -> 5.2 | D11: % | F11: IV. | G11: (5) BASE YEAR AVOIDED TRANSMISSION COST | H11: =+'T&D Costs'!D6 -> 34.9 | I11: $/KW
A12: I. | B12: (6) GROUP LINE LOSS MULTIPLIER | C12: 1 | F12: IV. | G12: (6) BASE YEAR DISTRIBUTION COST | H12: =+'T&D Costs'!D7 -> 82.37 | I12: $/KW
A13: I. | B13: (7) CUSTOMER KWH PROGRAM INCREASE AT METER | C13: 0 | D13: KWH/CUST/YR | F13: IV. | G13: (7) GEN, TRAN, & DIST COST ESCALATION RATE | H13: =+'Title Results Update'!C24 -> 2.4 | I13: %
A14: I. | B14: (8)* CUSTOMER KWH REDUCTION AT METER | C14: =+Input!C8 -> 7894.4 | D14: KWH/CUST/YR | F14: IV. | G14: (8) GENERATOR FIXED O & M COST | H14: =+'Title Results Update'!C25 -> 5.83 | I14: $/KW/YR
F15: IV. | G15: (9) GENERATOR FIXED O&M ESCALATION RATE | H15: =+'Title Results Update'!C26 -> 2.4 | I15: %
B16: ECONOMIC LIFE & K FACTORS | F16: IV. | G16: (10) TRANSMISSION FIXED O & M COST | H16: =+'T&D Costs'!D11 -> 2.78 | I16: $/KW/YR
A17: II. | B17: (1) STUDY PERIOD FOR CONSERVATION PROGRAM | C17: =+Input!C33 -> 5 | D17: YEARS | F17: IV. | G17: (11) DISTRIBUTION FIXED O & M COST | H17: =+'T&D Costs'!D12 -> 11.34 | I17: $/KW/YR
A18: II. | B18: (2) GENERATOR ECONOMIC LIFE | C18: =+'Title Results Update'!C4 -> 25 | D18: YEARS | F18: IV. | G18: (12) T&D FIXED O&M ESCALATION RATE | H18: =+'Title Results Update'!C31 -> 2.4 | I18: %
A19: II. | B19: (3) T & D ECONOMIC LIFE | C19: =+'Title Results Update'!C5 -> 25 | D19: YEARS | F19: IV. | G19: (13) AVOIDED GEN UNIT VARIABLE O & M COSTS | H19: =+'Title Results Update'!C30 -> 0.21 | I19: CENTS/KWH
A20: II. | B20: (4) K FACTOR FOR GENERATION | C20: =+'Title Results Update'!C6 -> 1.5213 | F20: IV. | G20: (14) GENERATOR VARIABLE O&M COST ESCALATION RATE | H20: =+'Title Results Update'!C31 -> 2.4 | I20: %
A21: II. | B21: (5) K FACTOR FOR T & D | C21: =+'Title Results Update'!C7 -> 1.5213 | F21: IV. | G21: (15) GENERATOR CAPACITY FACTOR | H21: =+'Title Results Update'!C32 -> 9.1 | I21: %
B22: (6)* SWITCH REV REQ(0) OR VAL-OF-DEF (1) | C22: =IF($C$17<25,1,0) -> 1 | F22: IV. | G22: (16) AVOIDED GENERATING UNIT FUEL COST | H22: =+'Title Results Update'!C33 -> 3.75 | I22: CENTS/KWH
F23: IV. | G23: (17) AVOIDED GEN UNIT FUEL ESCALATION RATE | H23: =+'Title Results Update'!C34 -> 4.54 | I23: %
F24: IV. | G24: (18)* AVOIDED PURCHASE CAPACITY COST PER KW | H24: 0 | I24: $/KW/YR
B25: UTILITY & CUSTOMER COSTS | F25: IV. | G25: (19)* CAPACITY COST ESCALATION RATE | H25: 0 | I25: %
A26: III. | B26: (1) UTILITY NONRECURRING COST PER CUSTOMER | C26: =+Input!C34 -> 0 | D26: $/CUST
A27: III. | B27: (2) UTILITY RECURRING COST PER CUSTOMER | C27: =+Input!C35 -> 0 | D27: $/CUST/YR
A28: III. | B28: (3) UTILITY COST ESCALATION RATE | C28: =+'Title Results Update'!C10 -> 2.4 | D28: %
A29: III. | B29: (4) CUSTOMER EQUIPMENT COST | C29: =+Input!C36 -> 4819.197737 | D29: $/CUST | G29: NON-FUEL ENERGY AND DEMAND CHARGES
A30: III. | B30: (5) CUSTOMER EQUIPMENT ESCALATION RATE | C30: =+'Title Results Update'!C11 -> 2.3 | D30: % | F30: V. | G30: (1) NON-FUEL COST IN CUSTOMER BILL | H30: =IF(Input!$C$10=1,Rates!C10,Rates!D10) -> 1.818 | I30: CENTS/KWH
A31: III. | B31: (6) CUSTOMER O & M COST | C31: =+Input!C37 -> 0 | D31: $/CUST/YR | F31: V. | G31: (2) NON-FUEL ESCALATION RATE | H31: 1 | I31: %
A32: III. | B32: (7) CUSTOMER O & M ESCALATION RATE | C32: =+'Title Results Update'!C12 -> 2.3 | D32: % | F32: V. | G32: (3) CUSTOMER DEMAND CHARGE PER KW | H32: =IF(Input!$C$10=1,0,Rates!E10) -> 10.0895 | I32: $/KW/MO
A33: III. | B33: (8)* CUSTOMER TAX CREDIT PER INSTALLATION | C33: =+Input!C38 -> 0 | D33: $/CUST | F33: V. | G33: (4) DEMAND CHARGE ESCALATION RATE | H33: 1 | I33: %
A34: III. | B34: (9)* CUSTOMER TAX CREDIT ESCALATION RATE | C34: 0 | D34: % | F34: V. | G34: (5)* DIVERSITY and ANNUAL DEMAND ADJUSTMENT
A35: III. | B35: (10)* INCREASED SUPPLY COSTS | C35: 0 | D35: $/CUST/YR | G35: FACTOR FOR CUSTOMER BILL | H35: =IF(Input!$C$9=0,0,Input!C42) -> 1
A36: III. | B36: (11)* SUPPLY COSTS ESCALATION RATE | C36: 0 | D36: %
A37: III. | B37: (12)* UTILITY DISCOUNT RATE | C37: =+'Title Results Update'!C13 -> 0.0708
A38: III. | B38: (13)* UTILITY AFUDC RATE | C38: =+'Title Results Update'!C14 -> 0.0646 | G38: CALCULATED BENEFITS AND COSTS
A39: III. | B39: (14)* UTILITY NON RECURRING REBATE/INCENTIVE | C39: =+Input!C40 -> 0 | D39: $/CUST | G39: (1)* TRC TEST - BENEFIT/COST RATIO | H39: =+'Sheet7(F_23)'!H46 -> 0.2882969585
A40: III. | B40: (15)* UTILITY RECURRING REBATE/INCENTIVE | C40: =+Input!C41 -> 0 | D40: $/CUST/YR | G40: (2)* PARTICIPANT NET BENEFITS (NPV) | H40: =+'Sheet8(F_24)'!K44 -> -6213.072657
A41: III. | B41: (16)* UTILITY REBATE/INCENTIVE ESCAL RATE | C41: =+'Title Results Update'!C15 -> 0 | D41: % | G41: (3)* RIM TEST - BENEFIT/COST RATIO | H41: =+'Sheet9(F_25)'!J46 -> 0.6905736495
B82: END OF EDITING AREA
B91: YEARLY INPUT DATA: GO TO H5..Q76 & INPUT (Page 2)
B92: PLEASE NOTE: UTILITY NON-LEVELIZED REVENUE REQUIREMENT
B93: FACTORS AT RANGE NAMES GEN_RRTBL AND TRAN_RRTBL.

Sheet Partcipation
G2: See N16 for Rev Requirements | I2: Do Not Print
F5: =+Title_RESULTS!C3 -> PROGRAM TITLE:
J6: =Title_RESULTS!I4 -> 2019-05-14T07:54:57.350
A7: VI. YEARLY INPUT DATA
B9: (1) | C9: (2) | D9: (3) | E9: (4) | F9: (5) | G9: (6) | H9: (7) | I9: (8) | J9: (9) | K9: (10) | L9: (11)
C11: ADJUSTED | E11: REDUCED KWH | F11: USED KWH | G11: REPLACE. | H11: PROGRAM | I11: PROGRAM | L11: BLANK
B12: CUMULATIVE | C12: CUMULATIVE | D12: UTIL AVG | E12: PROGRAM | F12: PROGRAM | G12: FUEL COST | H12: KW | I12: KWH | J12: OTHER | K12: OTHER
B13: TOTAL PARTIC. | C13: PARTICIPATING | D13: SYS. FUEL | E13: MARGINAL | F13: MARGINAL | G13: OF AVOIDED | H13: EFFECTIVENESS | I13: EFFECTIVENESS | J13: COSTS | K13: BENEFITS
A14: YEAR | B14: CUSTOMERS | C14: CUSTOMERS | D14: ADJ. COST | E14: FUEL COST | F14: FUEL COST | G14: GENERATOR | H14: FACTOR | I14: FACTOR
D15: (C/KWH) | E15: (C/KWH) | F15: (C/KWH) | G15: (C/KWH) | H15: P.U./KW | I15: P.U./KWH | J15: ($000) | K15: ($000) | L15: (C/KWH)
A16: =Title_RESULTS!H7 -> 2020 | B16: =Input!K15 -> 1000 | C16: =Input!L15 -> 1000 | D16: =+Fuel!B7 -> 2.434612542 | E16: =+Fuel!C7 -> 2.900709624 | F16: 0 | G16: =+Fuel!D7 -> 2.878920848 | H16: 1 | I16: 1 | J16: 0 | K16: 0 | L16: 0 | M16: 0 | V16: =+G16-D16 -> 0.444308306
A17: =A16+1 -> 2021 | B17: =Input!K16 -> 2000 | C17: =Input!L16 -> 2000 | D17: =+Fuel!B8 -> 2.550484234 | E17: =+Fuel!C8 -> 2.877115677 | F17: 0 | G17: =+Fuel!D8 -> 3.037777796 | H17: 1 | I17: 1 | J17: 0 | K17: 0 | L17: 0 | M17: 0 | V17: =+G17-D17 -> 0.4872935615
A18: 2022 | B18: =Input!K17 -> 3000 | C18: =Input!L17 -> 3000 | D18: =+Fuel!B9 -> 2.644432311 | E18: =+Fuel!C9 -> 2.969375951 | F18: 0 | G18: =+Fuel!D9 -> 3.15623423 | H18: 1 | I18: 1 | J18: 0 | K18: 0 | L18: 0 | M18: 3.123809524 | V18: 0.5118019194
A19: 2023 | B19: =Input!K18 -> 3000 | C19: =Input!L18 -> 3000 | D19: =+Fuel!B10 -> 2.622754872 | E19: =+Fuel!C10 -> 3.09119102 | F19: 0 | G19: =+Fuel!D10 -> 3.172627578 | H19: 1 | I19: 1 | J19: 0 | K19: 0 | L19: 0 | M19: 3.28 | V19: 0.5498727062
A20: 2024 | B20: =Input!K19 -> 3000 | C20: =Input!L19 -> 3000 | D20: =+Fuel!B11 -> 2.771516829 | E20: =+Fuel!C11 -> 3.212663175 | F20: 0 | G20: =+Fuel!D11 -> 3.314553178 | H20: 1 | I20: 1 | J20: 0 | K20: 0 | L20: 0 | M20: 3.444 | V20: 0.5430363485
A21: 2025 | B21: =Input!K20 -> 3000 | C21: =Input!L20 -> 3000 | D21: =+Fuel!B12 -> 2.930598228 | E21: =+Fuel!C12 -> 3.449433029 | F21: 0 | G21: =+Fuel!D12 -> 3.44590333 | H21: 1 | I21: 1 | J21: 0 | K21: 0 | L21: 0 | M21: 3.6162 | V21: 0.5153051012
A22: 2026 | B22: =Input!K21 -> 3000 | C22: =Input!L21 -> 3000 | D22: =+Fuel!B13 -> 3.063102784 | E22: =+Fuel!C13 -> 3.560072298 | F22: 0 | G22: =+Fuel!D13 -> 3.557551829 | H22: 1 | I22: 1 | J22: 0 | K22: 0 | L22: 0 | M22: 3.79701 | V22: 0.4944490447
A23: 2027 | B23: =Input!K22 -> 3000 | C23: =Input!L22 -> 3000 | D23: =+Fuel!B14 -> 3.243461241 | E23: =+Fuel!C14 -> 3.782560883 | F23: 0 | G23: =+Fuel!D14 -> 3.716786671 | H23: 1 | I23: 1 | J23: 0 | K23: 0 | L23: 0 | M23: 3.9868605 | V23: 0.4733254299
A24: 2028 | B24: =Input!K23 -> 3000 | C24: =Input!L23 -> 3000 | D24: =+Fuel!B15 -> 3.550601165 | E24: =+Fuel!C15 -> 4.191514876 | F24: 0 | G24: =+Fuel!D15 -> 4.00024514 | H24: 1 | I24: 1 | J24: 0 | K24: 0 | L24: 0 | M24: 4.186203525 | V24: 0.4496439748
A25: 2029 | B25: =Input!K24 -> 3000 | C25: =Input!L24 -> 3000 | D25: =+Fuel!B16 -> 3.731496299 | E25: =+Fuel!C16 -> 4.490639269 | F25: 0 | G25: =+Fuel!D16 -> 4.175798512 | H25: 1 | I25: 1 | J25: 0 | K25: 0 | L25: 0 | M25: 4.395513701 | V25: 0.4443022127
A26: 2030 | B26: =Input!K25 -> 3000 | C26: =Input!L25 -> 3000 | D26: =+Fuel!B17 -> 4.065659208 | E26: =+Fuel!C17 -> 5.015795282 | F26: 0 | G26: =+Fuel!D17 -> 4.486281269 | H26: 1 | I26: 1 | J26: 0 | K26: 0 | L26: 0 | M26: 4.615289386 | V26: 0.4206220609
A27: 2031 | B27: =Input!K26 -> 3000 | C27: =Input!L26 -> 3000 | D27: =+Fuel!B18 -> 4.205810946 | E27: =+Fuel!C18 -> 4.997142314 | F27: 0 | G27: =+Fuel!D18 -> 4.59784188 | H27: 1 | I27: 1 | J27: 0 | K27: 0 | L27: 0 | M27: 4.846053856 | V27: 0.3920309336
A28: 2032 | B28: =Input!K27 -> 3000 | C28: =Input!L27 -> 3000 | D28: =+Fuel!B19 -> 4.505899964 | E28: =+Fuel!C19 -> 5.461414693 | F28: 0 | G28: =+Fuel!D19 -> 4.873757964 | H28: 1 | I28: 1 | J28: 0 | K28: 0 | L28: 0 | M28: 5.088356548 | V28: 0.3678579997
A29: 2033 | B29: =Input!K28 -> 3000 | C29: =Input!L28 -> 3000 | D29: =+Fuel!B20 -> 4.600412945 | E29: =+Fuel!C20 -> 5.824101979 | F29: 0 | G29: =+Fuel!D20 -> 4.984915998 | H29: 1 | I29: 1 | J29: 0 | K29: 0 | L29: 0 | M29: 5.342774376 | V29: 0.3845030527
A30: 2034 | B30: =Input!K29 -> 3000 | C30: =Input!L29 -> 3000 | D30: =+Fuel!B21 -> 4.904246138 | E30: =+Fuel!C21 -> 6.095285388 | F30: 0 | G30: =+Fuel!D21 -> 5.306578162 | H30: 1 | I30: 1 | J30: 0 | K30: 0 | L30: 0 | M30: 5.609913095 | V30: 0.4023320233
A31: 2035 | B31: =Input!K30 -> 3000 | C31: =Input!L30 -> 3000 | D31: =+Fuel!B22 -> 5.112907005 | E31: =+Fuel!C22 -> 6.713025114 | F31: 0 | G31: =+Fuel!D22 -> 5.510049459 | H31: 1 | I31: 1 | J31: 0 | K31: 0 | L31: 0 | M31: 5.890408749 | P31: 2010 Carbon, not used in 2015 | V31: 0.3971424543
A32: 2036 | B32: =Input!K31 -> 3000 | C32: =Input!L31 -> 3000 | D32: =+Fuel!B23 -> 5.2847745 | E32: =+Fuel!C23 -> 6.63047207 | F32: 0 | G32: =+Fuel!D23 -> 5.621141176 | H32: 1 | I32: 1 | J32: 0 | K32: 0 | L32: 0 | M32: 6.184929187 | V32: 0.3363666765
A33: 2037 | B33: =Input!K32 -> 3000 | C33: =Input!L32 -> 3000 | D33: =+Fuel!B24 -> 5.580777056 | E33: =+Fuel!C24 -> 7.076799848 | F33: 0 | G33: =+Fuel!D24 -> 5.925802405 | H33: 1 | I33: 1 | J33: 0 | K33: 0 | L33: 0 | M33: 6.494175646 | V33: 0.3450253487
A34: 2038 | B34: =Input!K33 -> 3000 | C34: =Input!L33 -> 3000 | D34: =+Fuel!B25 -> 5.712201315 | E34: =+Fuel!C25 -> 7.103603501 | F34: 0 | G34: =+Fuel!D25 -> 6.048558103 | H34: 1 | I34: 1 | J34: 0 | K34: 0 | L34: 0 | M34: 6.818884428 | V34: 0.3363567882
A35: 2039 | B35: =Input!K34 -> 3000 | C35: =Input!L34 -> 3000 | D35: =+Fuel!B26 -> 5.931144007 | E35: =+Fuel!C26 -> 7.110955099 | F35: 0 | G35: =+Fuel!D26 -> 6.29999485 | H35: 1 | I35: 1 | J35: 0 | K35: 0 | L35: 0 | M35: 7.15982865 | V35: 0.3688508421
A36: 2040 | B36: =Input!K35 -> 3000 | C36: =Input!L35 -> 3000 | D36: =+Fuel!B27 -> 5.999355829 | E36: =+Fuel!C27 -> 7.651719035 | F36: 0 | G36: =+Fuel!D27 -> 6.29279382 | H36: 1 | I36: 1 | J36: 0 | K36: 0 | L36: 0 | M36: 7.517820082 | V36: 0.2934379908
A37: 2041 | B37: =Input!K36 -> 3000 | C37: =Input!L36 -> 3000 | D37: =+Fuel!B28 -> 6.297281238 | E37: =+Fuel!C28 -> 7.880669711 | F37: 0 | G37: =+Fuel!D28 -> 6.691088221 | H37: 1 | I37: 1 | J37: 0 | K37: 0 | L37: 0 | M37: 7.893711087 | V37: 0.3938069826
A38: 2042 | B38: =Input!K37 -> 3000 | C38: =Input!L37 -> 3000 | D38: =+Fuel!B29 -> 6.592646796 | E38: =+Fuel!C29 -> 8.425266362 | F38: 0 | G38: =+Fuel!D29 -> 7.045234289 | H38: 1 | I38: 1 | J38: 0 | K38: 0 | L38: 0 | M38: 8.288396641 | V38: 0.4525874934
A39: 2043 | B39: =Input!K38 -> 3000 | C39: =Input!L38 -> 3000 | D39: =+Fuel!B30 -> 6.782797747 | E39: =+Fuel!C30 -> 8.625266362 | F39: 0 | G39: =+Fuel!D30 -> 7.341587519 | H39: 1 | I39: 1 | J39: 0 | K39: 0 | L39: 0 | M39: 8.702816473 | V39: 0.5587897715
A40: 2044 | B40: =Input!K39 -> 3000 | C40: =Input!L39 -> 3000 | D40: =+Fuel!B31 -> 6.682976687 | E40: =+Fuel!C31 -> 8.293294627 | F40: 0 | G40: =+Fuel!D31 -> 7.266923507 | H40: 1 | I40: 1 | J40: 0 | K40: 0 | L40: 0 | M40: 9.137957297 | V40: 0.5839468203
A41: 2045 | B41: =Input!K40 -> 3000 | C41: =Input!L40 -> 3000 | D41: =+Fuel!B32 -> 6.942588118 | E41: =+Fuel!C32 -> 8.679459665 | F41: 0 | G41: =+Fuel!D32 -> 7.464471195 | H41: 1 | I41: 1 | J41: 0 | K41: 0 | L41: 0 | M41: 9.594855161 | V41: 0.521883077
A42: 2046 | B42: 0 | C42: 0 | D42: =+Fuel!B33 -> 7.185012159 | E42: =+Fuel!C33 -> 8.825038052 | F42: 0 | G42: =+Fuel!D33 -> 7.686994949 | H42: 1 | I42: 1 | J42: 0 | K42: 0 | L42: 0 | M42: 10.07459792 | V42: 0.5019827895
A43: 2047 | B43: 0 | C43: 0 | D43: =+Fuel!B34 -> 7.173671929 | E43: =+Fuel!C34 -> 8.950521309 | F43: 0 | G43: =+Fuel!D34 -> 7.673810816 | H43: 1 | I43: 1 | J43: 0 | K43: 0 | L43: 0 | M43: 10.57832782 | V43: 0.5001388873
A44: 2048 | B44: 0 | C44: 0 | D44: =+Fuel!B35 -> 7.174 | E44: =+Fuel!C35 -> 8.951 | F44: 0 | G44: =+Fuel!D35 -> 7.674 | H44: 1 | I44: 1 | J44: 0 | K44: 0 | L44: 0 | M44: =+M43*1.05 -> 11.10724421 | V44: 0.5
A45: 2049 | B45: 0 | C45: 0 | D45: =+Fuel!B36 -> 7.174 | E45: =+Fuel!C36 -> 8.951 | F45: 0 | G45: =+Fuel!D36 -> 7.674 | H45: 1 | I45: 1 | J45: 0 | K45: 0 | L45: 0 | M45: =+M44*1.05 -> 11.66260642 | V45: 0.5
A46: 2050 | B46: 0 | C46: =ROUND(+B46*(1-$B$1),0) -> 0 | D46: =+Fuel!B37 -> 0 | E46: =+Fuel!C37 -> 0 | F46: 0 | G46: =+Fuel!D37 -> 0 | H46: 1 | I46: 1 | J46: 0 | K46: 0 | L46: 0
A47: 2051 | B47: 0 | C47: 0 | D47: =+Fuel!B38 -> 0 | E47: =+Fuel!C38 -> 0 | F47: 0 | G47: =+Fuel!D38 -> 0 | H47: 1 | I47: 1 | J47: 0 | K47: 0 | L47: 0
A48: 2052 | B48: 0 | C48: 0 | D48: =+Fuel!B39 -> 0 | E48: =+Fuel!C39 -> 0 | F48: 0 | G48: =+Fuel!D39 -> 0 | H48: 1 | I48: 1 | J48: 0 | K48: 0 | L48: 0
A49: 2053 | B49: 0 | C49: 0 | D49: =+Fuel!B40 -> 0 | E49: =+Fuel!C40 -> 0 | F49: 0 | G49: =+Fuel!D40 -> 0 | H49: 1 | I49: 1 | J49: 0 | K49: 0 | L49: 0
A50: 2054 | B50: 0 | C50: 0 | D50: =+Fuel!B41 -> 0 | E50: =+Fuel!C41 -> 0 | F50: 0 | G50: =+Fuel!D41 -> 0 | H50: 1 | I50: 1 | J50: 0 | K50: 0 | L50: 0
A51: 2055 | B51: 0 | C51: 0 | D51: =+Fuel!B42 -> 0 | E51: =+Fuel!C42 -> 0 | F51: 0 | G51: =+Fuel!D42 -> 0 | H51: 1 | I51: 1 | J51: 0 | K51: 0 | L51: 0
A52: 2056 | B52: 0 | C52: 0 | D52: =+Fuel!B43 -> 0 | E52: =+Fuel!C43 -> 0 | F52: 0 | G52: =+Fuel!D43 -> 0 | H52: 1 | I52: 1 | J52: 0 | K52: 0 | L52: 0
A53: 2057 | B53: 0 | C53: 0 | D53: =+Fuel!B44 -> 0 | E53: =+Fuel!C44 -> 0 | F53: 0 | G53: =+Fuel!D44 -> 0 | H53: 1 | I53: 1 | J53: 0 | K53: 0 | L53: 0
A54: 2058 | B54: 0 | C54: 0 | D54: =+Fuel!B45 -> 0 | E54: =+Fuel!C45 -> 0 | F54: 0 | G54: =+Fuel!D45 -> 0 | H54: 1 | I54: 1 | J54: 0 | K54: 0 | L54: 0
A57: =IF(Title_RESULTS!C22=1,4,2) -> 4
A58: =IF(Title_RESULTS!C22=1,3,1) -> 3
A60: Unit Size of Avoided Generation Unit | C60: =ROUND(+Title_RESULTS!C8*Partcipation!C26,0) -> 6122
C67: (1) | D67: (2) | E67: (3) | F67: (4) | G67: (5) | H67: (6) | I67: (7) | J67: (8) | K67: (9) | L67: (10) | M67: (11)
D68: ADJUSTED | F68: REDUCED KWH | G68: USED KWH | H68: REPLACE. | I68: PROGRAM | J68: PROGRAM | M68: BLANK
C69: CUMULATIVE | D69: CUMULATIVE | E69: UTIL AVG | F69: PROGRAM | G69: PROGRAM | H69: FUEL COST | I69: KW | J69: KWH | K69: OTHER | L69: OTHER
C70: TOTAL PARTIC. | D70: PARTICIPATING | E70: SYS. FUEL | F70: MARGINAL | G70: MARGINAL | H70: OF AVOIDED | I70: EFFECTIVENESS | J70: EFFECTIVENESS | K70: COSTS | L70: BENEFITS
B71: YEAR | C71: CUSTOMERS | D71: CUSTOMERS | E71: ADJ. COST | F71: FUEL COST | G71: FUEL COST | H71: GENERATOR | I71: FACTOR | J71: FACTOR
D72: 0 | E72: (C/KWH) | F72: (C/KWH) | G72: (C/KWH) | H72: (C/KWH) | I72: P.U./KW | J72: P.U./KWH | K72: ($000) | L72: ($000) | M72: (C/KWH)
B73: =A16 -> 2020 | C73: 1000 | D73: 1000 | E73: 2.434612542 | F73: 2.900709624 | G73: 0 | H73: 0 | I73: 1 | J73: 1 | K73: 0 | L73: 0 | M73: 2.02
B74: 2021 | C74: 2000 | D74: 2000 | E74: 2.550484234 | F74: 2.877115677 | G74: 0 | H74: 0 | I74: 1 | J74: 1 | K74: 0 | L74: 0 | M74: 2.1
B75: 2022 | C75: 3000 | D75: 3000 | E75: 2.644432311 | F75: 2.969375951 | G75: 0 | H75: 0 | I75: 1 | J75: 1 | K75: 0 | L75: 0 | M75: 2.4
B76: 2023 | C76: 3000 | D76: 3000 | E76: 2.622754872 | F76: 3.09119102 | G76: 0 | H76: 0 | I76: 1 | J76: 1 | K76: 0 | L76: 0 | M76: 2.41
B77: 2024 | C77: 3000 | D77: 3000 | E77: 2.771516829 | F77: 3.212663175 | G77: 0 | H77: 0 | I77: 1 | J77: 1 | K77: 0 | L77: 0 | M77: 2.79
B78: 2025 | C78: 3000 | D78: 3000 | E78: 2.930598228 | F78: 3.449433029 | G78: 0 | H78: 0 | I78: 1 | J78: 1 | K78: 0 | L78: 0 | M78: 3.05
B79: 2026 | C79: 3000 | D79: 3000 | E79: 3.063102784 | F79: 3.560072298 | G79: 0 | H79: 0 | I79: 1 | J79: 1 | K79: 0 | L79: 0 | M79: 3.18
B80: 2027 | C80: 3000 | D80: 3000 | E80: 3.243461241 | F80: 3.782560883 | G80: 0 | H80: 0 | I80: 1 | J80: 1 | K80: 0 | L80: 0 | M80: 3.07
B81: 2028 | C81: 3000 | D81: 3000 | E81: 3.550601165 | F81: 4.191514876 | G81: 0 | H81: 0 | I81: 1 | J81: 1 | K81: 0 | L81: 0 | M81: 3.49
B82: 2029 | C82: 3000 | D82: 3000 | E82: 3.731496299 | F82: 4.490639269 | G82: 0 | H82: 0 | I82: 1 | J82: 1 | K82: 0 | L82: 0 | M82: 3.53
B83: =A26 -> 2030 | C83: 3000 | D83: 3000 | E83: 4.065659208 | F83: 5.015795282 | G83: 0 | H83: 0 | I83: 1 | J83: 1 | K83: 0 | L83: 0 | M83: 3.81
B84: 2031 | C84: 3000 | D84: 3000 | E84: 4.205810946 | F84: 4.997142314 | G84: 0 | H84: 0 | I84: 1 | J84: 1 | K84: 0 | L84: 0 | M84: 4.29
B85: 2032 | C85: 3000 | D85: 3000 | E85: 4.505899964 | F85: 5.461414693 | G85: 0 | H85: 0 | I85: 1 | J85: 1 | K85: 0 | L85: 0 | M85: 4.43
B86: 2033 | C86: 3000 | D86: 3000 | E86: 4.600412945 | F86: 5.824101979 | G86: 0 | H86: 0 | I86: 1 | J86: 1 | K86: 0 | L86: 0 | M86: 4.61
B87: 2034 | C87: 3000 | D87: 3000 | E87: 4.904246138 | F87: 6.095285388 | G87: 0 | H87: 0 | I87: 1 | J87: 1 | K87: 0 | L87: 0 | M87: 5.23
B88: 2035 | C88: 3000 | D88: 3000 | E88: 5.112907005 | F88: 6.713025114 | G88: 0 | H88: 0 | I88: 1 | J88: 1 | K88: 0 | L88: 0 | M88: 5.38
B89: 2036 | C89: 3000 | D89: 3000 | E89: 5.2847745 | F89: 6.63047207 | G89: 0 | H89: 0 | I89: 1 | J89: 1 | K89: 0 | L89: 0 | M89: 5.63
B90: 2037 | C90: 3000 | D90: 3000 | E90: 5.580777056 | F90: 7.076799848 | G90: 0 | H90: 0 | I90: 1 | J90: 1 | K90: 0 | L90: 0 | M90: 6.18
B91: 2038 | C91: 3000 | D91: 3000 | E91: 5.712201315 | F91: 7.103603501 | G91: 0 | H91: 0 | I91: 1 | J91: 1 | K91: 0 | L91: 0 | M91: 6.57
B92: 2039 | C92: 3000 | D92: 3000 | E92: 5.931144007 | F92: 7.110955099 | G92: 0 | H92: 0 | I92: 1 | J92: 1 | K92: 0 | L92: 0 | M92: 6.76
B93: =A36 -> 2040 | C93: 3000 | D93: 3000 | E93: 5.999355829 | F93: 7.651719035 | G93: 0 | H93: 0 | I93: 1 | J93: 1 | K93: 0 | L93: 0 | M93: 7.26
B94: 2041 | C94: 3000 | D94: 3000 | E94: 6.297281238 | F94: 7.880669711 | G94: 0 | H94: 0 | I94: 1 | J94: 1 | K94: 0 | L94: 0 | M94: 7.3
B95: 2042 | C95: 3000 | D95: 3000 | E95: 6.592646796 | F95: 8.425266362 | G95: 0 | H95: 0 | I95: 1 | J95: 1 | K95: 0 | L95: 0 | M95: 7.35
B96: 2043 | C96: 3000 | D96: 3000 | E96: 6.782797747 | F96: 8.625266362 | G96: 0 | H96: 0 | I96: 1 | J96: 1 | K96: 0 | L96: 0 | M96: 8.21
B97: 2044 | C97: 3000 | D97: 3000 | E97: 6.682976687 | F97: 8.293294627 | G97: 0 | H97: 0 | I97: 1 | J97: 1 | K97: 0 | L97: 0 | M97: 8.04
B98: 2045 | C98: 3000 | D98: 3000 | E98: 6.942588118 | F98: 8.679459665 | G98: 0 | H98: 0 | I98: 1 | J98: 1 | K98: 0 | L98: 0 | M98: 8.31
B99: 2046 | C99: 0 | D99: 0 | E99: 7.185012159 | F99: 8.825038052 | G99: 0 | H99: 0 | I99: 1 | J99: 1 | K99: 0 | L99: 0 | M99: 9.05
B100: 2047 | C100: 0 | D100: 0 | E100: 7.173671929 | F100: 8.950521309 | G100: 0 | H100: 0 | I100: 1 | J100: 1 | K100: 0 | L100: 0 | M100: 8.99
B101: 2048 | C101: 0 | D101: 0 | E101: 7.174 | F101: 8.951 | G101: 0 | H101: 0 | I101: 1 | J101: 1 | K101: 0 | L101: 0 | M101: 9.37
B102: 2049 | C102: 0 | D102: 0 | E102: 7.174 | F102: 8.951 | G102: 0 | H102: 0 | I102: 1 | J102: 1 | K102: 0 | L102: 0 | M102: 9.75
B103: =A46 -> 2050 | C103: 0 | D103: 0 | E103: 0 | F103: 0 | G103: 0 | H103: 0 | I103: 1 | J103: 1 | K103: 0 | L103: 0 | M103: 0
B104: 2051 | C104: 0 | D104: 0 | E104: 0 | F104: 0 | G104: 0 | H104: 0 | I104: 1 | J104: 1 | K104: 0 | L104: 0 | M104: 0
B105: =A48 -> 2052 | C105: 0 | D105: =C48 -> 0 | E105: 0 | F105: 0 | G105: 0 | H105: 0 | I105: 1 | J105: 1 | K105: 0 | L105: 0 | M105: 0
B106: 2053 | C106: 0 | D106: 0 | E106: 0 | F106: 0 | G106: 0 | H106: 0 | I106: 1 | J106: 1 | K106: 0 | L106: 0 | M106: 0
B107: 2054 | C107: 0 | D107: 0 | E107: 0 | F107: 0 | G107: 0 | H107: 0 | I107: 1 | J107: 1 | K107: 0 | L107: 0 | M107: 0
B108: 2055 | C108: 0 | D108: 0 | E108: 0 | F108: 0 | G108: 0 | H108: 0 | I108: 1 | J108: 1 | K108: 0 | L108: 0 | M108: 0
B109: 2056 | C109: 0 | D109: 0 | E109: 0 | F109: 0 | G109: 0 | H109: 0 | I109: 1 | J109: 1 | K109: 0 | L109: 0 | M109: 0
B110: 2057 | C110: 0 | D110: 0 | E110: 0 | F110: 0 | G110: 0 | H110: 0 | I110: 1 | J110: 1 | K110: 0 | L110: 0 | M110: 0
B111: 2058 | C111: 0 | D111: 0 | E111: 0 | F111: 0 | G111: 0 | H111: 0 | I111: 1 | J111: 1 | K111: 0 | L111: 0 | M111: 0

Sheet f-11B
C3: CALCULATION OF AFUDC AND IN-SERVICE COST OF PLANT | K3: PSC FORM CE 1.1B
E4: PLANT: | F4: =+Title_RESULTS!H8 -> 2023 | G4: Avoided Unit | K4: PAGE 1 OF 1
K5: =+Title_RESULTS!I4 -> 2019-05-14T07:54:57.350
A8: (1) | B8: (2) | C8: (3) | D8: (4) | E8: (5) | F8: (6) | G8: (7) | H8: (8) | I8: (9) | J8: (10) | K8: (11)
B10: NO. YEARS | C10: PLANT | D10: CUMULATIVE | G10: CUMULATIVE | H10: CUMULATIVE | I10: YEARLY | J10: INCREMENTAL | K10: CUMULATIVE | M10: <-- INPUTS FOR OTHER COSTS & BENEFITS - EXTERNALLY CALC., FORMS 2.3, 2.4, & 2.5 -->
B11: BEFORE | C11: ESCALATION | D11: ESCALATION | E11: YEARLY | F11: ANNUAL | G11: AVERAGE | H11: SPENDING | I11: TOTAL | J11: YEAR-END | K11: YEAR-END | N11: (1) | O11: (2) | P11: (3) | Q11: (4) | R11: (5) | S11: (6)
B12: INSERVICE | C12: RATE | D12: FACTOR | E12: EXPENDITURE | F12: SPENDING | G12: SPENDING | H12: WITH AFUDC | I12: AFUDC | J12: BOOK VALUE | K12: BOOK VALUE | N12: <-- FORM 2.3 ---> | P12: <---- FORM 2.4 ---> | R12: <---- FORM 2.5 ---->
A13: YEAR | C13: (%) | E13: (%) | F13: ($/KW) | G13: ($/KW) | H13: ($/KW) | I13: ($/KW) | J13: ($/KW) | K13: ($/KW) | M13: YEAR | N13: OTHER COST | O13: OTHER BEN | P13: OTH COST | Q13: OTHER BENEFITS | R13: COSTS | S13: BENEFITS
A14: =A15-1 -> 2011 | C14: 0 | D14: 1 | E14: 0 | F14: 0 | G14: 0 | H14: =+F14 -> 0 | I14: =+H14-G14 -> 0 | J14: =H14 -> 0 | K14: =+J14 -> 0 | N14: ($000) | O14: ($000) | P14: ($000) | Q14: ($000) | R14: ($000) | S14: ($000)
A15: 2012 | C15: 0 | D15: 1 | E15: 0 | F15: 0 | G15: 0 | H15: 0 | I15: 0 | J15: 0 | K15: =K14+J15 -> 0 | M15: =+Title_RESULTS!H7 -> 2020 | N15: 0 | O15: =(+Title_RESULTS!$C$10*(Partcipation!$C16)*(Partcipation!$L16/100))/1000 -> 0 | P15: 0 | Q15: 0 | R15: 0 | S15: =(+Title_RESULTS!$C$10*(Partcipation!$C16)*(Partcipation!$L16/100))/1000 -> 0
A16: 2013 | C16: 0 | D16: 1 | E16: 0 | F16: 0 | G16: 0 | H16: 0 | I16: 0 | J16: 0 | K16: =K15+J16 -> 0 | M16: =+M15+1 -> 2021 | N16: 0 | O16: =(+Title_RESULTS!$C$10*(Partcipation!$C17)*(Partcipation!$L17/100))/1000 -> 0 | P16: 0 | Q16: 0 | R16: 0 | S16: =(+Title_RESULTS!$C$10*(Partcipation!$C17)*(Partcipation!$L17/100))/1000 -> 0
A17: 2014 | C17: 0 | D17: 1 | E17: 0 | F17: 0 | G17: 0 | H17: 0 | I17: 0 | J17: 0 | K17: 0 | M17: 2022 | N17: 0 | O17: =(+Title_RESULTS!$C$10*(Partcipation!$C18)*(Partcipation!$L18/100))/1000 -> 0 | P17: 0 | Q17: 0 | R17: 0 | S17: =(+Title_RESULTS!$C$10*(Partcipation!$C18)*(Partcipation!$L18/100))/1000 -> 0
A18: 2015 | C18: 0 | D18: 1 | E18: 0 | F18: 0 | G18: 0 | H18: 0 | I18: 0 | J18: 0 | K18: 0 | M18: 2023 | N18: 0 | O18: =(+Title_RESULTS!$C$10*(Partcipation!$C19)*(Partcipation!$L19/100))/1000 -> 0 | P18: 0 | Q18: 0 | R18: 0 | S18: =(+Title_RESULTS!$C$10*(Partcipation!$C19)*(Partcipation!$L19/100))/1000 -> 0
A19: 2016 | C19: 0 | D19: 1 | E19: 0 | F19: 0 | G19: 0 | H19: 0 | I19: 0 | J19: 0 | K19: 0 | M19: 2024 | N19: 0 | O19: =(+Title_RESULTS!$C$10*(Partcipation!$C20)*(Partcipation!$L20/100))/1000 -> 0 | P19: 0 | Q19: 0 | R19: 0 | S19: =(+Title_RESULTS!$C$10*(Partcipation!$C20)*(Partcipation!$L20/100))/1000 -> 0
A20: 2017 | C20: 0 | D20: 1 | E20: 0 | F20: 0 | G20: 0 | H20: 0 | I20: 0 | J20: 0 | K20: 0 | M20: 2025 | N20: 0 | O20: =(+Title_RESULTS!$C$10*(Partcipation!$C21)*(Partcipation!$L21/100))/1000 -> 0 | P20: 0 | Q20: 0 | R20: 0 | S20: =(+Title_RESULTS!$C$10*(Partcipation!$C21)*(Partcipation!$L21/100))/1000 -> 0
A21: 2018 | B21: -5 | C21: 0.024 | D21: 1 | E21: 0 | F21: 0 | G21: 0 | H21: 0 | I21: 0 | J21: 0 | K21: 0 | M21: 2026 | N21: 0 | O21: =(+Title_RESULTS!$C$10*(Partcipation!$C22)*(Partcipation!$L22/100))/1000 -> 0 | P21: 0 | Q21: 0 | R21: 0 | S21: =(+Title_RESULTS!$C$10*(Partcipation!$C22)*(Partcipation!$L22/100))/1000 -> 0
A22: 2019 | B22: -4 | C22: 0.024 | D22: =+D21*1.024 -> 1.024 | E22: 0 | F22: 0 | G22: 0 | H22: 0 | I22: 0 | J22: =H22 -> 0 | K22: 0 | M22: 2027 | N22: 0 | O22: =(+Title_RESULTS!$C$10*(Partcipation!$C23)*(Partcipation!$L23/100))/1000 -> 0 | P22: 0 | Q22: 0 | R22: 0 | S22: =(+Title_RESULTS!$C$10*(Partcipation!$C23)*(Partcipation!$L23/100))/1000 -> 0
A23: 2020 | B23: -3 | C23: 0.024 | D23: =+D22*1.024 -> 1.048576 | E23: ='Spending Curve'!F6 -> 0.195102183 | F23: ='Spending Curve'!L13 -> 112.824611 | G23: ='Spending Curve'!H13 -> 109.2942008 | H23: 112.824611 | I23: 3.530410184 | J23: =H23 -> 112.824611 | K23: 112.824611 | M23: 2028 | N23: 0 | O23: =(+Title_RESULTS!$C$10*(Partcipation!$C24)*(Partcipation!$L24/100))/1000 -> 0 | P23: 0 | Q23: 0 | R23: 0 | S23: =(+Title_RESULTS!$C$10*(Partcipation!$C24)*(Partcipation!$L24/100))/1000 -> 0
A24: 2021 | B24: -2 | C24: 0.024 | D24: =+D23*1.024 -> 1.073741824 | E24: ='Spending Curve'!F7 -> 0.5594009908 | F24: ='Spending Curve'!L14 -> 330.5516266 | G24: ='Spending Curve'!H14 -> 313.3705799 | H24: 330.5516266 | I24: 17.18104668 | J24: =H24 -> 330.5516266 | K24: 443.3762376 | M24: 2029 | N24: 0 | O24: =(+Title_RESULTS!$C$10*(Partcipation!$C25)*(Partcipation!$L25/100))/1000 -> 0 | P24: 0 | Q24: 0 | R24: 0 | S24: =(+Title_RESULTS!$C$10*(Partcipation!$C25)*(Partcipation!$L25/100))/1000 -> 0
A25: =A26-1 -> 2022 | B25: -1 | C25: 0.024 | D25: =+D24*1.024 -> 1.099511628 | E25: ='Spending Curve'!F8 -> 0.2454968262 | F25: ='Spending Curve'!L15 -> 169.2729844 | G25: ='Spending Curve'!H15 -> 137.5247525 | H25: 169.2729844 | I25: 31.74823197 | J25: =H25 -> 169.2729844 | K25: 612.6492221 | M25: 2030 | N25: 0 | O25: =(+Title_RESULTS!$C$10*(Partcipation!$C26)*(Partcipation!$L26/100))/1000 -> 0 | P25: 0 | Q25: 0 | R25: 0 | S25: =(+Title_RESULTS!$C$10*(Partcipation!$C26)*(Partcipation!$L26/100))/1000 -> 0
A26: =C29 -> 2023 | B26: 0 | C26: 0.024 | D26: =+D25*1.024 -> 1.125899907 | E26: ='Spending Curve'!F9 -> 0 | F26: ='Spending Curve'!L16 -> 0 | G26: ='Spending Curve'!H16 -> 0 | H26: =+F26 -> 0 | I26: =+H26-G26 -> 0 | J26: =H26 -> 0 | K26: 0 | M26: 2031 | N26: 0 | O26: =(+Title_RESULTS!$C$10*(Partcipation!$C27)*(Partcipation!$L27/100))/1000 -> 0 | P26: 0 | Q26: 0 | R26: 0 | S26: =(+Title_RESULTS!$C$10*(Partcipation!$C27)*(Partcipation!$L27/100))/1000 -> 0
M27: 2032 | N27: 0 | O27: =(+Title_RESULTS!$C$10*(Partcipation!$C28)*(Partcipation!$L28/100))/1000 -> 0 | P27: 0 | Q27: 0 | R27: 0 | S27: =(+Title_RESULTS!$C$10*(Partcipation!$C28)*(Partcipation!$L28/100))/1000 -> 0
M28: 2033 | N28: 0 | O28: =(+Title_RESULTS!$C$10*(Partcipation!$C29)*(Partcipation!$L29/100))/1000 -> 0 | P28: 0 | Q28: 0 | R28: 0 | S28: =(+Title_RESULTS!$C$10*(Partcipation!$C29)*(Partcipation!$L29/100))/1000 -> 0
A29: IN-SERVICE YEAR = | C29: =+Title_RESULTS!H8 -> 2023 | J29: =SUM(J16:J28) -> 612.6492221 | M29: 2034 | N29: 0 | O29: =(+Title_RESULTS!$C$10*(Partcipation!$C30)*(Partcipation!$L30/100))/1000 -> 0 | P29: 0 | Q29: 0 | R29: 0 | S29: =(+Title_RESULTS!$C$10*(Partcipation!$C30)*(Partcipation!$L30/100))/1000 -> 0
M30: 2035 | N30: 0 | O30: =(+Title_RESULTS!$C$10*(Partcipation!$C31)*(Partcipation!$L31/100))/1000 -> 0 | P30: 0 | Q30: 0 | R30: 0 | S30: =(+Title_RESULTS!$C$10*(Partcipation!$C31)*(Partcipation!$L31/100))/1000 -> 0
A31: PLANT COSTS (2023$) | C31: =+Title_RESULTS!H10 -> 526.3 | M31: 2036 | N31: 0 | O31: =(+Title_RESULTS!$C$10*(Partcipation!$C32)*(Partcipation!$L32/100))/1000 -> 0 | P31: 0 | Q31: 0 | R31: 0 | S31: =(+Title_RESULTS!$C$10*(Partcipation!$C32)*(Partcipation!$L32/100))/1000 -> 0
A32: AFUDC RATE: | C32: =+Title_RESULTS!C38 -> 0.0646 | M32: 2037 | N32: 0 | O32: =(+Title_RESULTS!$C$10*(Partcipation!$C33)*(Partcipation!$L33/100))/1000 -> 0 | P32: 0 | Q32: 0 | R32: 0 | S32: =(+Title_RESULTS!$C$10*(Partcipation!$C33)*(Partcipation!$L33/100))/1000 -> 0
M33: 2038 | N33: 0 | O33: =(+Title_RESULTS!$C$10*(Partcipation!$C34)*(Partcipation!$L34/100))/1000 -> 0 | P33: 0 | Q33: 0 | R33: 0 | S33: =(+Title_RESULTS!$C$10*(Partcipation!$C34)*(Partcipation!$L34/100))/1000 -> 0
M34: 2039 | N34: 0 | O34: =(+Title_RESULTS!$C$10*(Partcipation!$C35)*(Partcipation!$L35/100))/1000 -> 0 | P34: 0 | Q34: 0 | R34: 0 | S34: =(+Title_RESULTS!$C$10*(Partcipation!$C35)*(Partcipation!$L35/100))/1000 -> 0
M35: 2040 | N35: 0 | O35: =(+Title_RESULTS!$C$10*(Partcipation!$C36)*(Partcipation!$L36/100))/1000 -> 0 | P35: 0 | Q35: 0 | R35: 0 | S35: =(+Title_RESULTS!$C$10*(Partcipation!$C36)*(Partcipation!$L36/100))/1000 -> 0
M36: 2041 | N36: 0 | O36: =(+Title_RESULTS!$C$10*(Partcipation!$C37)*(Partcipation!$L37/100))/1000 -> 0 | P36: 0 | Q36: 0 | R36: 0 | S36: =(+Title_RESULTS!$C$10*(Partcipation!$C37)*(Partcipation!$L37/100))/1000 -> 0
M37: 2042 | N37: 0 | O37: =(+Title_RESULTS!$C$10*(Partcipation!$C38)*(Partcipation!$L38/100))/1000 -> 0 | P37: 0 | Q37: 0 | R37: 0 | S37: =(+Title_RESULTS!$C$10*(Partcipation!$C38)*(Partcipation!$L38/100))/1000 -> 0
M38: 2043 | N38: 0 | O38: =(+Title_RESULTS!$C$10*(Partcipation!$C39)*(Partcipation!$L39/100))/1000 -> 0 | P38: 0 | Q38: 0 | R38: 0 | S38: =(+Title_RESULTS!$C$10*(Partcipation!$C39)*(Partcipation!$L39/100))/1000 -> 0
M39: 2044 | N39: 0 | O39: =(+Title_RESULTS!$C$10*(Partcipation!$C40)*(Partcipation!$L40/100))/1000 -> 0 | P39: 0 | Q39: 0 | R39: 0 | S39: =(+Title_RESULTS!$C$10*(Partcipation!$C40)*(Partcipation!$L40/100))/1000 -> 0
M40: 2045 | N40: 0 | O40: =(+Title_RESULTS!$C$10*(Partcipation!$C41)*(Partcipation!$L41/100))/1000 -> 0 | P40: 0 | Q40: 0 | R40: 0 | S40: =(+Title_RESULTS!$C$10*(Partcipation!$C41)*(Partcipation!$L41/100))/1000 -> 0
M41: 2046 | N41: 0 | O41: =(+Title_RESULTS!$C$10*(Partcipation!$C42)*(Partcipation!$L42/100))/1000 -> 0 | P41: 0 | Q41: 0 | R41: 0 | S41: =(+Title_RESULTS!$C$10*(Partcipation!$C42)*(Partcipation!$L42/100))/1000 -> 0
M42: 2047 | N42: 0 | O42: =(+Title_RESULTS!$C$10*(Partcipation!$C43)*(Partcipation!$L43/100))/1000 -> 0 | P42: 0 | Q42: 0 | R42: 0 | S42: =(+Title_RESULTS!$C$10*(Partcipation!$C43)*(Partcipation!$L43/100))/1000 -> 0
M43: 2048 | N43: 0 | O43: =(+Title_RESULTS!$C$10*(Partcipation!$C44)*(Partcipation!$L44/100))/1000 -> 0 | P43: 0 | Q43: 0 | R43: 0 | S43: =(+Title_RESULTS!$C$10*(Partcipation!$C44)*(Partcipation!$L44/100))/1000 -> 0
M44: 2049 | N44: 0 | O44: =(+Title_RESULTS!$C$10*(Partcipation!$C45)*(Partcipation!$L45/100))/1000 -> 0 | P44: 0 | Q44: 0 | R44: 0 | S44: =(+Title_RESULTS!$C$10*(Partcipation!$C45)*(Partcipation!$L45/100))/1000 -> 0
M45: 2050 | N45: 0 | O45: =(+Title_RESULTS!$C$10*(Partcipation!$C46)*(Partcipation!$L46/100))/1000 -> 0 | P45: 0 | Q45: 0 | R45: 0 | S45: =(+Title_RESULTS!$C$10*(Partcipation!$C46)*(Partcipation!$L46/100))/1000 -> 0
M46: 2051 | N46: 0 | O46: =(+Title_RESULTS!$C$10*(Partcipation!$C47)*(Partcipation!$L47/100))/1000 -> 0 | P46: 0 | Q46: 0 | R46: 0 | S46: =(+Title_RESULTS!$C$10*(Partcipation!$C47)*(Partcipation!$L47/100))/1000 -> 0
M47: 2052 | N47: 0 | O47: =(+Title_RESULTS!$C$10*(Partcipation!$C48)*(Partcipation!$L48/100))/1000 -> 0 | P47: 0 | Q47: 0 | R47: 0 | S47: =(+Title_RESULTS!$C$10*(Partcipation!$C48)*(Partcipation!$L48/100))/1000 -> 0
M48: 2053 | N48: 0 | O48: =(+Title_RESULTS!$C$10*(Partcipation!$C49)*(Partcipation!$L49/100))/1000 -> 0 | P48: 0 | Q48: 0 | R48: 0 | S48: =(+Title_RESULTS!$C$10*(Partcipation!$C49)*(Partcipation!$L49/100))/1000 -> 0
M49: 2054 | N49: 0 | O49: =(+Title_RESULTS!$C$10*(Partcipation!$C50)*(Partcipation!$L50/100))/1000 -> 0 | P49: 0 | Q49: 0 | R49: 0 | S49: =(+Title_RESULTS!$C$10*(Partcipation!$C50)*(Partcipation!$L50/100))/1000 -> 0
M50: 2055 | N50: 0 | O50: =(+Title_RESULTS!$C$10*(Partcipation!$C51)*(Partcipation!$L51/100))/1000 -> 0 | P50: 0 | Q50: 0 | R50: 0 | S50: =(+Title_RESULTS!$C$10*(Partcipation!$C51)*(Partcipation!$L51/100))/1000 -> 0
M51: 2056 | N51: 0 | O51: =(+Title_RESULTS!$C$10*(Partcipation!$C52)*(Partcipation!$L52/100))/1000 -> 0 | P51: 0 | Q51: 0 | R51: 0 | S51: =(+Title_RESULTS!$C$10*(Partcipation!$C52)*(Partcipation!$L52/100))/1000 -> 0
M52: 2057 | N52: 0 | O52: =(+Title_RESULTS!$C$10*(Partcipation!$C53)*(Partcipation!$L53/100))/1000 -> 0 | P52: 0 | Q52: 0 | R52: 0 | S52: =(+Title_RESULTS!$C$10*(Partcipation!$C53)*(Partcipation!$L53/100))/1000 -> 0
M53: PSC FORM CE 1.1
M54: PAGE 1 OF 1 | O54: *
M55: Run date: | N55: 37062
N56: 37062.55522 | O56: *
O58: *
M60: 2001 | O60: *
M61: 2004
H63: =2885*1000/177000 -> 16.29943503

Sheet Sheet3(F_21)
D1: AVOIDED GENERATION UNIT BENEFITS | J1: PSC FORM CE 2.1
D2: PROGRAM: | E2: =+Input!C3 -> Retro-Commissioning | J2: Page 1 of 1
J3: =+Title_RESULTS!I4 -> 2019-05-14T07:54:57.350
C5: * UNIT SIZE OF AVOIDED GENERATION UNIT = | G5: =ROUND(+Title_RESULTS!C8*Partcipation!C26,0) -> 6122 | H5: KW
C6: * INSERVICE COSTS OF AVOIDED GEN. UNIT (000) = | G6: =+'Value of Defferal'!E3 -> 3750.638537
A9: (1) | B9: (1A)* | C9: (2) | D9: (2A)* | E9: (3) | F9: (4) | G9: (5) | H9: (6) | I9: (6A)* | J9: (7)
C11: AVOIDED | D11: AVOIDED | E11: AVOIDED | F11: AVOIDED | G11: AVOIDED | I11: AVOIDED
B12: REVENUE | C12: GEN UNIT | D12: ANNUAL | E12: UNIT | F12: GEN UNIT | G12: GEN UNIT | I12: PURCHASED | J12: AVOIDED
B13: REQUIREMENT | C13: CAPACITY | D13: UNIT | E13: FIXED | F13: VARIABLE | G13: FUEL | H13: REPLACEMENT | I13: CAPACITY | J13: GEN UNIT
B14: FACTOR | C14: COST | D14: KWH GEN | E14: O&M COST | F14: O&M COST | G14: COST | H14: FUEL COST | I14: COSTS | J14: BENEFITS
A15: YEAR | C15: $(000) | D15: (000) | E15: $(000) | F15: $(000) | G15: $(000) | H15: $(000) | I15: $(000) | J15: $(000)
A16: =Title_RESULTS!H7 -> 2020 | B16: =VLOOKUP(A16,'Value of Defferal'!$B23:$F$61,'Value of Defferal'!$C$10) -> 0 | C16: =VLOOKUP(A16,'Value of Defferal'!$B23:$F$61,'Value of Defferal'!$C$9) -> 0 | D16: =IF((Title_RESULTS!$H$8-Title_RESULTS!$H$7)<=('Sheet3(F_21)'!A16-Title_RESULTS!$H$7),((Title_RESULTS!$C$8*Partcipation!$C$26*8760*Title_RESULTS!$H$21/100000)),0) -> 0 | E16: =IF($G16=0,0,((Title_RESULTS!$H$14*((1+Title_RESULTS!$H$15/100)^($A16-Title_RESULTS!$H$7))*'EUE_Line Losses'!$B$25*Partcipation!$C$26))/1000) -> 0 | F16: =IF($G16=0,0,(Title_RESULTS!$H$19/100*((1+Title_RESULTS!$H$20/100)^($A16-Title_RESULTS!$H$7))*+Partcipation!C26*1000)/1000) -> 0 | G16: =(+Title_RESULTS!$H$22/100*((1+Title_RESULTS!$H$23/100)^(+'Sheet4(F_22)'!A16-Title_RESULTS!$H$7)))*'Sheet3(F_21)'!D16 -> 0 | H16: =IF($G16=0,0,(($D16))*(Partcipation!$G16/100)) -> 0 | I16: =IF($A16>=+Title_RESULTS!$H$8,+Partcipation!$C$60*Title_RESULTS!$H$24/1000*(1+Title_RESULTS!$H$25/100)^($A16-Title_RESULTS!$H$7),0) -> 0 | J16: =(+C16+G16+E16+F16-H16+I16)*Partcipation!H16 -> 0
A17: =+Title_RESULTS!$H$7+1 -> 2021 | B17: =VLOOKUP(A17,'Value of Defferal'!$B24:$F$61,'Value of Defferal'!$C$10) -> 0 | C17: =VLOOKUP(A17,'Value of Defferal'!$B24:$F$61,'Value of Defferal'!$C$9) -> 0 | D17: =IF((Title_RESULTS!$H$8-Title_RESULTS!$H$7)<=('Sheet3(F_21)'!A17-Title_RESULTS!$H$7),((Title_RESULTS!$C$8*Partcipation!$C$26*8760*Title_RESULTS!$H$21/100000)),0) -> 0 | E17: =IF($G17=0,0,((Title_RESULTS!$H$14*((1+Title_RESULTS!$H$15/100)^($A17-Title_RESULTS!$H$7))*'EUE_Line Losses'!$B$25*Partcipation!$C$26))/1000) -> 0 | F17: =IF($G17=0,0,(Title_RESULTS!$H$19/100*((1+Title_RESULTS!$H$20/100)^($A17-Title_RESULTS!$H$7))*$D17*1000)/1000) -> 0 | G17: =(+Title_RESULTS!$H$22/100*((1+Title_RESULTS!$H$23/100)^(+'Sheet4(F_22)'!A17-Title_RESULTS!$H$7)))*'Sheet3(F_21)'!D17 -> 0 | H17: =IF($G17=0,0,(($D17))*(Partcipation!$G17/100)) -> 0 | I17: =IF($A17>=+Title_RESULTS!$H$8,+Partcipation!$C$60*Title_RESULTS!$H$24/1000*(1+Title_RESULTS!$H$25/100)^($A17-Title_RESULTS!$H$7),0) -> 0 | J17: =(+C17+G17+E17+F17-H17+I17)*Partcipation!H17 -> 0
A18: =+A17+1 -> 2022 | B18: =VLOOKUP(A18,'Value of Defferal'!$B25:$F$61,'Value of Defferal'!$C$10) -> 0 | C18: =VLOOKUP(A18,'Value of Defferal'!$B25:$F$61,'Value of Defferal'!$C$9) -> 0 | D18: =IF((Title_RESULTS!$H$8-Title_RESULTS!$H$7)<=('Sheet3(F_21)'!A18-Title_RESULTS!$H$7),((Title_RESULTS!$C$8*Partcipation!$C$26*8760*Title_RESULTS!$H$21/100000)),0) -> 0 | E18: =IF($G18=0,0,((Title_RESULTS!$H$14*((1+Title_RESULTS!$H$15/100)^($A18-Title_RESULTS!$H$7))*'EUE_Line Losses'!$B$25*Partcipation!$C$26))/1000) -> 0 | F18: =IF($G18=0,0,(Title_RESULTS!$H$19/100*((1+Title_RESULTS!$H$20/100)^($A18-Title_RESULTS!$H$7))*$D18*1000)/1000) -> 0 | G18: =(+Title_RESULTS!$H$22/100*((1+Title_RESULTS!$H$23/100)^(+'Sheet4(F_22)'!A18-Title_RESULTS!$H$7)))*'Sheet3(F_21)'!D18 -> 0 | H18: =IF($G18=0,0,(($D18))*(Partcipation!$G18/100)) -> 0 | I18: =IF($A18>=+Title_RESULTS!$H$8,+Partcipation!$C$60*Title_RESULTS!$H$24/1000*(1+Title_RESULTS!$H$25/100)^($A18-Title_RESULTS!$H$7),0) -> 0 | J18: =(+C18+G18+E18+F18-H18+I18)*Partcipation!H18 -> 0
A19: =+A18+1 -> 2023 | B19: =VLOOKUP(A19,'Value of Defferal'!$B26:$F$61,'Value of Defferal'!$C$10) -> 0.09882230355 | C19: =VLOOKUP(A19,'Value of Defferal'!$B26:$F$61,'Value of Defferal'!$C$9) -> 370.6467401 | D19: =IF((Title_RESULTS!$H$8-Title_RESULTS!$H$7)<=('Sheet3(F_21)'!A19-Title_RESULTS!$H$7),((Title_RESULTS!$C$8*Partcipation!$C$26*8760*Title_RESULTS!$H$21/100000)),0) -> 4879.944126 | E19: =IF($G19=0,0,((Title_RESULTS!$H$14*((1+Title_RESULTS!$H$15/100)^($A19-Title_RESULTS!$H$7))*'EUE_Line Losses'!$B$25*Partcipation!$C$26))/1000) -> 38.44509957 | F19: =IF($G19=0,0,(Title_RESULTS!$H$19/100*((1+Title_RESULTS!$H$20/100)^($A19-Title_RESULTS!$H$7))*$D19*1000)/1000) -> 11.00358022 | G19: =(+Title_RESULTS!$H$22/100*((1+Title_RESULTS!$H$23/100)^(+'Sheet4(F_22)'!A19-Title_RESULTS!$H$7)))*'Sheet3(F_21)'!D19 -> 209.0709076 | H19: =IF($G19=0,0,(($D19))*(Partcipation!$G19/100)) -> 154.8224531 | I19: =IF($A19>=+Title_RESULTS!$H$8,+Partcipation!$C$60*Title_RESULTS!$H$24/1000*(1+Title_RESULTS!$H$25/100)^($A19-Title_RESULTS!$H$7),0) -> 0 | J19: =(+C19+G19+E19+F19-H19+I19)*Partcipation!H19 -> 474.3438743
A20: 2024 | B20: =VLOOKUP(A20,'Value of Defferal'!$B27:$F$61,'Value of Defferal'!$C$10) -> 0.1011940388 | C20: =VLOOKUP(A20,'Value of Defferal'!$B27:$F$61,'Value of Defferal'!$C$9) -> 379.5422618 | D20: =IF((Title_RESULTS!$H$8-Title_RESULTS!$H$7)<=('Sheet3(F_21)'!A20-Title_RESULTS!$H$7),((Title_RESULTS!$C$8*Partcipation!$C$26*8760*Title_RESULTS!$H$21/100000)),0) -> 4879.944126 | E20: =IF($G20=0,0,((Title_RESULTS!$H$14*((1+Title_RESULTS!$H$15/100)^($A20-Title_RESULTS!$H$7))*'EUE_Line Losses'!$B$25*Partcipation!$C$26))/1000) -> 39.36778196 | F20: =IF($G20=0,0,(Title_RESULTS!$H$19/100*((1+Title_RESULTS!$H$20/100)^($A20-Title_RESULTS!$H$7))*$D20*1000)/1000) -> 11.26766615 | G20: =(+Title_RESULTS!$H$22/100*((1+Title_RESULTS!$H$23/100)^(+'Sheet4(F_22)'!A20-Title_RESULTS!$H$7)))*'Sheet3(F_21)'!D20 -> 218.5627268 | H20: =IF($G20=0,0,(($D20))*(Partcipation!$G20/100)) -> 161.7483431 | I20: =IF($A20>=+Title_RESULTS!$H$8,+Partcipation!$C$60*Title_RESULTS!$H$24/1000*(1+Title_RESULTS!$H$25/100)^($A20-Title_RESULTS!$H$7),0) -> 0 | J20: =(+C20+G20+E20+F20-H20+I20)*Partcipation!H20 -> 486.9920936
A21: 2025 | B21: =VLOOKUP(A21,'Value of Defferal'!$B28:$F$61,'Value of Defferal'!$C$10) -> 0.1036226958 | C21: =VLOOKUP(A21,'Value of Defferal'!$B28:$F$61,'Value of Defferal'!$C$9) -> 388.6512761 | D21: =IF((Title_RESULTS!$H$8-Title_RESULTS!$H$7)<=('Sheet3(F_21)'!A21-Title_RESULTS!$H$7),((Title_RESULTS!$C$8*Partcipation!$C$26*8760*Title_RESULTS!$H$21/100000)),0) -> 4879.944126 | E21: =IF($G21=0,0,((Title_RESULTS!$H$14*((1+Title_RESULTS!$H$15/100)^($A21-Title_RESULTS!$H$7))*'EUE_Line Losses'!$B$25*Partcipation!$C$26))/1000) -> 40.31260873 | F21: =IF($G21=0,0,(Title_RESULTS!$H$19/100*((1+Title_RESULTS!$H$20/100)^($A21-Title_RESULTS!$H$7))*$D21*1000)/1000) -> 11.53809014 | G21: =(+Title_RESULTS!$H$22/100*((1+Title_RESULTS!$H$23/100)^(+'Sheet4(F_22)'!A21-Title_RESULTS!$H$7)))*'Sheet3(F_21)'!D21 -> 228.4854746 | H21: =IF($G21=0,0,(($D21))*(Partcipation!$G21/100)) -> 168.1581571 | I21: =IF($A21>=+Title_RESULTS!$H$8,+Partcipation!$C$60*Title_RESULTS!$H$24/1000*(1+Title_RESULTS!$H$25/100)^($A21-Title_RESULTS!$H$7),0) -> 0 | J21: =(+C21+G21+E21+F21-H21+I21)*Partcipation!H21 -> 500.8292924
A22: 2026 | B22: =VLOOKUP(A22,'Value of Defferal'!$B29:$F$61,'Value of Defferal'!$C$10) -> 0.1061096405 | C22: =VLOOKUP(A22,'Value of Defferal'!$B29:$F$61,'Value of Defferal'!$C$9) -> 397.9789067 | D22: =IF((Title_RESULTS!$H$8-Title_RESULTS!$H$7)<=('Sheet3(F_21)'!A22-Title_RESULTS!$H$7),((Title_RESULTS!$C$8*Partcipation!$C$26*8760*Title_RESULTS!$H$21/100000)),0) -> 4879.944126 | E22: =IF($G22=0,0,((Title_RESULTS!$H$14*((1+Title_RESULTS!$H$15/100)^($A22-Title_RESULTS!$H$7))*'EUE_Line Losses'!$B$25*Partcipation!$C$26))/1000) -> 41.28011134 | F22: =IF($G22=0,0,(Title_RESULTS!$H$19/100*((1+Title_RESULTS!$H$20/100)^($A22-Title_RESULTS!$H$7))*$D22*1000)/1000) -> 11.8150043 | G22: =(+Title_RESULTS!$H$22/100*((1+Title_RESULTS!$H$23/100)^(+'Sheet4(F_22)'!A22-Title_RESULTS!$H$7)))*'Sheet3(F_21)'!D22 -> 238.8587151 | H22: =IF($G22=0,0,(($D22))*(Partcipation!$G22/100)) -> 173.6065415 | I22: =IF($A22>=+Title_RESULTS!$H$8,+Partcipation!$C$60*Title_RESULTS!$H$24/1000*(1+Title_RESULTS!$H$25/100)^($A22-Title_RESULTS!$H$7),0) -> 0 | J22: =(+C22+G22+E22+F22-H22+I22)*Partcipation!H22 -> 516.326196
A23: 2027 | B23: =VLOOKUP(A23,'Value of Defferal'!$B30:$F$61,'Value of Defferal'!$C$10) -> 0.1086562718 | C23: =VLOOKUP(A23,'Value of Defferal'!$B30:$F$61,'Value of Defferal'!$C$9) -> 407.5304005 | D23: =IF((Title_RESULTS!$H$8-Title_RESULTS!$H$7)<=('Sheet3(F_21)'!A23-Title_RESULTS!$H$7),((Title_RESULTS!$C$8*Partcipation!$C$26*8760*Title_RESULTS!$H$21/100000)),0) -> 4879.944126 | E23: =IF($G23=0,0,((Title_RESULTS!$H$14*((1+Title_RESULTS!$H$15/100)^($A23-Title_RESULTS!$H$7))*'EUE_Line Losses'!$B$25*Partcipation!$C$26))/1000) -> 42.27083401 | F23: =IF($G23=0,0,(Title_RESULTS!$H$19/100*((1+Title_RESULTS!$H$20/100)^($A23-Title_RESULTS!$H$7))*$D23*1000)/1000) -> 12.0985644 | G23: =(+Title_RESULTS!$H$22/100*((1+Title_RESULTS!$H$23/100)^(+'Sheet4(F_22)'!A23-Title_RESULTS!$H$7)))*'Sheet3(F_21)'!D23 -> 249.7029008 | H23: =IF($G23=0,0,(($D23))*(Partcipation!$G23/100)) -> 181.3771128 | I23: =IF($A23>=+Title_RESULTS!$H$8,+Partcipation!$C$60*Title_RESULTS!$H$24/1000*(1+Title_RESULTS!$H$25/100)^($A23-Title_RESULTS!$H$7),0) -> 0 | J23: =(+C23+G23+E23+F23-H23+I23)*Partcipation!H23 -> 530.2255869
A24: 2028 | B24: =VLOOKUP(A24,'Value of Defferal'!$B31:$F$61,'Value of Defferal'!$C$10) -> 0.1112640224 | C24: =VLOOKUP(A24,'Value of Defferal'!$B31:$F$61,'Value of Defferal'!$C$9) -> 417.3111301 | D24: =IF((Title_RESULTS!$H$8-Title_RESULTS!$H$7)<=('Sheet3(F_21)'!A24-Title_RESULTS!$H$7),((Title_RESULTS!$C$8*Partcipation!$C$26*8760*Title_RESULTS!$H$21/100000)),0) -> 4879.944126 | E24: =IF($G24=0,0,((Title_RESULTS!$H$14*((1+Title_RESULTS!$H$15/100)^($A24-Title_RESULTS!$H$7))*'EUE_Line Losses'!$B$25*Partcipation!$C$26))/1000) -> 43.28533403 | F24: =IF($G24=0,0,(Title_RESULTS!$H$19/100*((1+Title_RESULTS!$H$20/100)^($A24-Title_RESULTS!$H$7))*$D24*1000)/1000) -> 12.38892995 | G24: =(+Title_RESULTS!$H$22/100*((1+Title_RESULTS!$H$23/100)^(+'Sheet4(F_22)'!A24-Title_RESULTS!$H$7)))*'Sheet3(F_21)'!D24 -> 261.0394125 | H24: =IF($G24=0,0,(($D24))*(Partcipation!$G24/100)) -> 195.2097277 | I24: =IF($A24>=+Title_RESULTS!$H$8,+Partcipation!$C$60*Title_RESULTS!$H$24/1000*(1+Title_RESULTS!$H$25/100)^($A24-Title_RESULTS!$H$7),0) -> 0 | J24: =(+C24+G24+E24+F24-H24+I24)*Partcipation!H24 -> 538.8150789
A25: 2029 | B25: =VLOOKUP(A25,'Value of Defferal'!$B32:$F$61,'Value of Defferal'!$C$10) -> 0.1139343589 | C25: =VLOOKUP(A25,'Value of Defferal'!$B32:$F$61,'Value of Defferal'!$C$9) -> 427.3265972 | D25: =IF((Title_RESULTS!$H$8-Title_RESULTS!$H$7)<=('Sheet3(F_21)'!A25-Title_RESULTS!$H$7),((Title_RESULTS!$C$8*Partcipation!$C$26*8760*Title_RESULTS!$H$21/100000)),0) -> 4879.944126 | E25: =IF($G25=0,0,((Title_RESULTS!$H$14*((1+Title_RESULTS!$H$15/100)^($A25-Title_RESULTS!$H$7))*'EUE_Line Losses'!$B$25*Partcipation!$C$26))/1000) -> 44.32418205 | F25: =IF($G25=0,0,(Title_RESULTS!$H$19/100*((1+Title_RESULTS!$H$20/100)^($A25-Title_RESULTS!$H$7))*$D25*1000)/1000) -> 12.68626427 | G25: =(+Title_RESULTS!$H$22/100*((1+Title_RESULTS!$H$23/100)^(+'Sheet4(F_22)'!A25-Title_RESULTS!$H$7)))*'Sheet3(F_21)'!D25 -> 272.8906018 | H25: =IF($G25=0,0,(($D25))*(Partcipation!$G25/100)) -> 203.7766342 | I25: =IF($A25>=+Title_RESULTS!$H$8,+Partcipation!$C$60*Title_RESULTS!$H$24/1000*(1+Title_RESULTS!$H$25/100)^($A25-Title_RESULTS!$H$7),0) -> 0 | J25: =(+C25+G25+E25+F25-H25+I25)*Partcipation!H25 -> 553.4510112
A26: 2030 | B26: =VLOOKUP(A26,'Value of Defferal'!$B33:$F$61,'Value of Defferal'!$C$10) -> 0.1166687835 | C26: =VLOOKUP(A26,'Value of Defferal'!$B33:$F$61,'Value of Defferal'!$C$9) -> 437.5824356 | D26: =IF((Title_RESULTS!$H$8-Title_RESULTS!$H$7)<=('Sheet3(F_21)'!A26-Title_RESULTS!$H$7),((Title_RESULTS!$C$8*Partcipation!$C$26*8760*Title_RESULTS!$H$21/100000)),0) -> 4879.944126 | E26: =IF($G26=0,0,((Title_RESULTS!$H$14*((1+Title_RESULTS!$H$15/100)^($A26-Title_RESULTS!$H$7))*'EUE_Line Losses'!$B$25*Partcipation!$C$26))/1000) -> 45.38796241 | F26: =IF($G26=0,0,(Title_RESULTS!$H$19/100*((1+Title_RESULTS!$H$20/100)^($A26-Title_RESULTS!$H$7))*$D26*1000)/1000) -> 12.99073461 | G26: =(+Title_RESULTS!$H$22/100*((1+Title_RESULTS!$H$23/100)^(+'Sheet4(F_22)'!A26-Title_RESULTS!$H$7)))*'Sheet3(F_21)'!D26 -> 285.2798351 | H26: =IF($G26=0,0,(($D26))*(Partcipation!$G26/100)) -> 218.9280193 | I26: =IF($A26>=+Title_RESULTS!$H$8,+Partcipation!$C$60*Title_RESULTS!$H$24/1000*(1+Title_RESULTS!$H$25/100)^($A26-Title_RESULTS!$H$7),0) -> 0 | J26: =(+C26+G26+E26+F26-H26+I26)*Partcipation!H26 -> 562.3129485
A27: 2031 | B27: =VLOOKUP(A27,'Value of Defferal'!$B34:$F$61,'Value of Defferal'!$C$10) -> 0.1194688343 | C27: =VLOOKUP(A27,'Value of Defferal'!$B34:$F$61,'Value of Defferal'!$C$9) -> 448.084414 | D27: =IF((Title_RESULTS!$H$8-Title_RESULTS!$H$7)<=('Sheet3(F_21)'!A27-Title_RESULTS!$H$7),((Title_RESULTS!$C$8*Partcipation!$C$26*8760*Title_RESULTS!$H$21/100000)),0) -> 4879.944126 | E27: =IF($G27=0,0,((Title_RESULTS!$H$14*((1+Title_RESULTS!$H$15/100)^($A27-Title_RESULTS!$H$7))*'EUE_Line Losses'!$B$25*Partcipation!$C$26))/1000) -> 46.47727351 | F27: =IF($G27=0,0,(Title_RESULTS!$H$19/100*((1+Title_RESULTS!$H$20/100)^($A27-Title_RESULTS!$H$7))*$D27*1000)/1000) -> 13.30251224 | G27: =(+Title_RESULTS!$H$22/100*((1+Title_RESULTS!$H$23/100)^(+'Sheet4(F_22)'!A27-Title_RESULTS!$H$7)))*'Sheet3(F_21)'!D27 -> 298.2315396 | H27: =IF($G27=0,0,(($D27))*(Partcipation!$G27/100)) -> 224.3721147 | I27: =IF($A27>=+Title_RESULTS!$H$8,+Partcipation!$C$60*Title_RESULTS!$H$24/1000*(1+Title_RESULTS!$H$25/100)^($A27-Title_RESULTS!$H$7),0) -> 0 | J27: =(+C27+G27+E27+F27-H27+I27)*Partcipation!H27 -> 581.7236247
A28: 2032 | B28: =VLOOKUP(A28,'Value of Defferal'!$B35:$F$61,'Value of Defferal'!$C$10) -> 0.1223360863 | C28: =VLOOKUP(A28,'Value of Defferal'!$B35:$F$61,'Value of Defferal'!$C$9) -> 458.83844 | D28: =IF((Title_RESULTS!$H$8-Title_RESULTS!$H$7)<=('Sheet3(F_21)'!A28-Title_RESULTS!$H$7),((Title_RESULTS!$C$8*Partcipation!$C$26*8760*Title_RESULTS!$H$21/100000)),0) -> 4879.944126 | E28: =IF($G28=0,0,((Title_RESULTS!$H$14*((1+Title_RESULTS!$H$15/100)^($A28-Title_RESULTS!$H$7))*'EUE_Line Losses'!$B$25*Partcipation!$C$26))/1000) -> 47.59272808 | F28: =IF($G28=0,0,(Title_RESULTS!$H$19/100*((1+Title_RESULTS!$H$20/100)^($A28-Title_RESULTS!$H$7))*$D28*1000)/1000) -> 13.62177254 | G28: =(+Title_RESULTS!$H$22/100*((1+Title_RESULTS!$H$23/100)^(+'Sheet4(F_22)'!A28-Title_RESULTS!$H$7)))*'Sheet3(F_21)'!D28 -> 311.7712515 | H28: =IF($G28=0,0,(($D28))*(Partcipation!$G28/100)) -> 237.8366655 | I28: =IF($A28>=+Title_RESULTS!$H$8,+Partcipation!$C$60*Title_RESULTS!$H$24/1000*(1+Title_RESULTS!$H$25/100)^($A28-Title_RESULTS!$H$7),0) -> 0 | J28: =(+C28+G28+E28+F28-H28+I28)*Partcipation!H28 -> 593.9875266
A29: 2033 | B29: =VLOOKUP(A29,'Value of Defferal'!$B36:$F$61,'Value of Defferal'!$C$10) -> 0.1252721524 | C29: =VLOOKUP(A29,'Value of Defferal'!$B36:$F$61,'Value of Defferal'!$C$9) -> 469.8505625 | D29: =IF((Title_RESULTS!$H$8-Title_RESULTS!$H$7)<=('Sheet3(F_21)'!A29-Title_RESULTS!$H$7),((Title_RESULTS!$C$8*Partcipation!$C$26*8760*Title_RESULTS!$H$21/100000)),0) -> 4879.944126 | E29: =IF($G29=0,0,((Title_RESULTS!$H$14*((1+Title_RESULTS!$H$15/100)^($A29-Title_RESULTS!$H$7))*'EUE_Line Losses'!$B$25*Partcipation!$C$26))/1000) -> 48.73495355 | F29: =IF($G29=0,0,(Title_RESULTS!$H$19/100*((1+Title_RESULTS!$H$20/100)^($A29-Title_RESULTS!$H$7))*$D29*1000)/1000) -> 13.94869508 | G29: =(+Title_RESULTS!$H$22/100*((1+Title_RESULTS!$H$23/100)^(+'Sheet4(F_22)'!A29-Title_RESULTS!$H$7)))*'Sheet3(F_21)'!D29 -> 325.9256663 | H29: =IF($G29=0,0,(($D29))*(Partcipation!$G29/100)) -> 243.2611154 | I29: =IF($A29>=+Title_RESULTS!$H$8,+Partcipation!$C$60*Title_RESULTS!$H$24/1000*(1+Title_RESULTS!$H$25/100)^($A29-Title_RESULTS!$H$7),0) -> 0 | J29: =(+C29+G29+E29+F29-H29+I29)*Partcipation!H29 -> 615.1987621
A30: 2034 | B30: =VLOOKUP(A30,'Value of Defferal'!$B37:$F$61,'Value of Defferal'!$C$10) -> 0.1282786841 | C30: =VLOOKUP(A30,'Value of Defferal'!$B37:$F$61,'Value of Defferal'!$C$9) -> 481.126976 | D30: =IF((Title_RESULTS!$H$8-Title_RESULTS!$H$7)<=('Sheet3(F_21)'!A30-Title_RESULTS!$H$7),((Title_RESULTS!$C$8*Partcipation!$C$26*8760*Title_RESULTS!$H$21/100000)),0) -> 4879.944126 | E30: =IF($G30=0,0,((Title_RESULTS!$H$14*((1+Title_RESULTS!$H$15/100)^($A30-Title_RESULTS!$H$7))*'EUE_Line Losses'!$B$25*Partcipation!$C$26))/1000) -> 49.90459244 | F30: =IF($G30=0,0,(Title_RESULTS!$H$19/100*((1+Title_RESULTS!$H$20/100)^($A30-Title_RESULTS!$H$7))*$D30*1000)/1000) -> 14.28346376 | G30: =(+Title_RESULTS!$H$22/100*((1+Title_RESULTS!$H$23/100)^(+'Sheet4(F_22)'!A30-Title_RESULTS!$H$7)))*'Sheet3(F_21)'!D30 -> 340.7226916 | H30: =IF($G30=0,0,(($D30))*(Partcipation!$G30/100)) -> 258.9580493 | I30: =IF($A30>=+Title_RESULTS!$H$8,+Partcipation!$C$60*Title_RESULTS!$H$24/1000*(1+Title_RESULTS!$H$25/100)^($A30-Title_RESULTS!$H$7),0) -> 0 | J30: =(+C30+G30+E30+F30-H30+I30)*Partcipation!H30 -> 627.0796745
A31: 2035 | B31: =VLOOKUP(A31,'Value of Defferal'!$B38:$F$61,'Value of Defferal'!$C$10) -> 0.1313573725 | C31: =VLOOKUP(A31,'Value of Defferal'!$B38:$F$61,'Value of Defferal'!$C$9) -> 492.6740235 | D31: =IF((Title_RESULTS!$H$8-Title_RESULTS!$H$7)<=('Sheet3(F_21)'!A31-Title_RESULTS!$H$7),((Title_RESULTS!$C$8*Partcipation!$C$26*8760*Title_RESULTS!$H$21/100000)),0) -> 4879.944126 | E31: =IF($G31=0,0,((Title_RESULTS!$H$14*((1+Title_RESULTS!$H$15/100)^($A31-Title_RESULTS!$H$7))*'EUE_Line Losses'!$B$25*Partcipation!$C$26))/1000) -> 51.10230265 | F31: =IF($G31=0,0,(Title_RESULTS!$H$19/100*((1+Title_RESULTS!$H$20/100)^($A31-Title_RESULTS!$H$7))*$D31*1000)/1000) -> 14.62626689 | G31: =(+Title_RESULTS!$H$22/100*((1+Title_RESULTS!$H$23/100)^(+'Sheet4(F_22)'!A31-Title_RESULTS!$H$7)))*'Sheet3(F_21)'!D31 -> 356.1915018 | H31: =IF($G31=0,0,(($D31))*(Partcipation!$G31/100)) -> 268.8873349 | I31: =IF($A31>=+Title_RESULTS!$H$8,+Partcipation!$C$60*Title_RESULTS!$H$24/1000*(1+Title_RESULTS!$H$25/100)^($A31-Title_RESULTS!$H$7),0) -> 0 | J31: =(+C31+G31+E31+F31-H31+I31)*Partcipation!H31 -> 645.7067599
A32: 2036 | B32: =VLOOKUP(A32,'Value of Defferal'!$B39:$F$61,'Value of Defferal'!$C$10) -> 0.1345099494 | C32: =VLOOKUP(A32,'Value of Defferal'!$B39:$F$61,'Value of Defferal'!$C$9) -> 504.4982 | D32: =IF((Title_RESULTS!$H$8-Title_RESULTS!$H$7)<=('Sheet3(F_21)'!A32-Title_RESULTS!$H$7),((Title_RESULTS!$C$8*Partcipation!$C$26*8760*Title_RESULTS!$H$21/100000)),0) -> 4879.944126 | E32: =IF($G32=0,0,((Title_RESULTS!$H$14*((1+Title_RESULTS!$H$15/100)^($A32-Title_RESULTS!$H$7))*'EUE_Line Losses'!$B$25*Partcipation!$C$26))/1000) -> 52.32875792 | F32: =IF($G32=0,0,(Title_RESULTS!$H$19/100*((1+Title_RESULTS!$H$20/100)^($A32-Title_RESULTS!$H$7))*$D32*1000)/1000) -> 14.97729729 | G32: =(+Title_RESULTS!$H$22/100*((1+Title_RESULTS!$H$23/100)^(+'Sheet4(F_22)'!A32-Title_RESULTS!$H$7)))*'Sheet3(F_21)'!D32 -> 372.362596 | H32: =IF($G32=0,0,(($D32))*(Partcipation!$G32/100)) -> 274.3085486 | I32: =IF($A32>=+Title_RESULTS!$H$8,+Partcipation!$C$60*Title_RESULTS!$H$24/1000*(1+Title_RESULTS!$H$25/100)^($A32-Title_RESULTS!$H$7),0) -> 0 | J32: =(+C32+G32+E32+F32-H32+I32)*Partcipation!H32 -> 669.8583026
A33: 2037 | B33: =VLOOKUP(A33,'Value of Defferal'!$B40:$F$61,'Value of Defferal'!$C$10) -> 0.1377381882 | C33: =VLOOKUP(A33,'Value of Defferal'!$B40:$F$61,'Value of Defferal'!$C$9) -> 516.6061568 | D33: =IF((Title_RESULTS!$H$8-Title_RESULTS!$H$7)<=('Sheet3(F_21)'!A33-Title_RESULTS!$H$7),((Title_RESULTS!$C$8*Partcipation!$C$26*8760*Title_RESULTS!$H$21/100000)),0) -> 4879.944126 | E33: =IF($G33=0,0,((Title_RESULTS!$H$14*((1+Title_RESULTS!$H$15/100)^($A33-Title_RESULTS!$H$7))*'EUE_Line Losses'!$B$25*Partcipation!$C$26))/1000) -> 53.58464811 | F33: =IF($G33=0,0,(Title_RESULTS!$H$19/100*((1+Title_RESULTS!$H$20/100)^($A33-Title_RESULTS!$H$7))*$D33*1000)/1000) -> 15.33675243 | G33: =(+Title_RESULTS!$H$22/100*((1+Title_RESULTS!$H$23/100)^(+'Sheet4(F_22)'!A33-Title_RESULTS!$H$7)))*'Sheet3(F_21)'!D33 -> 389.2678578 | H33: =IF($G33=0,0,(($D33))*(Partcipation!$G33/100)) -> 289.1758464 | I33: =IF($A33>=+Title_RESULTS!$H$8,+Partcipation!$C$60*Title_RESULTS!$H$24/1000*(1+Title_RESULTS!$H$25/100)^($A33-Title_RESULTS!$H$7),0) -> 0 | J33: =(+C33+G33+E33+F33-H33+I33)*Partcipation!H33 -> 685.6195688
A34: 2038 | B34: =VLOOKUP(A34,'Value of Defferal'!$B41:$F$61,'Value of Defferal'!$C$10) -> 0.1410439047 | C34: =VLOOKUP(A34,'Value of Defferal'!$B41:$F$61,'Value of Defferal'!$C$9) -> 529.0047046 | D34: =IF((Title_RESULTS!$H$8-Title_RESULTS!$H$7)<=('Sheet3(F_21)'!A34-Title_RESULTS!$H$7),((Title_RESULTS!$C$8*Partcipation!$C$26*8760*Title_RESULTS!$H$21/100000)),0) -> 4879.944126 | E34: =IF($G34=0,0,((Title_RESULTS!$H$14*((1+Title_RESULTS!$H$15/100)^($A34-Title_RESULTS!$H$7))*'EUE_Line Losses'!$B$25*Partcipation!$C$26))/1000) -> 54.87067966 | F34: =IF($G34=0,0,(Title_RESULTS!$H$19/100*((1+Title_RESULTS!$H$20/100)^($A34-Title_RESULTS!$H$7))*$D34*1000)/1000) -> 15.70483449 | G34: =(+Title_RESULTS!$H$22/100*((1+Title_RESULTS!$H$23/100)^(+'Sheet4(F_22)'!A34-Title_RESULTS!$H$7)))*'Sheet3(F_21)'!D34 -> 406.9406186 | H34: =IF($G34=0,0,(($D34))*(Partcipation!$G34/100)) -> 295.1662559 | I34: =IF($A34>=+Title_RESULTS!$H$8,+Partcipation!$C$60*Title_RESULTS!$H$24/1000*(1+Title_RESULTS!$H$25/100)^($A34-Title_RESULTS!$H$7),0) -> 0 | J34: =(+C34+G34+E34+F34-H34+I34)*Partcipation!H34 -> 711.3545815
A35: 2039 | B35: =VLOOKUP(A35,'Value of Defferal'!$B42:$F$61,'Value of Defferal'!$C$10) -> 0.1444289584 | C35: =VLOOKUP(A35,'Value of Defferal'!$B42:$F$61,'Value of Defferal'!$C$9) -> 541.7008175 | D35: =IF((Title_RESULTS!$H$8-Title_RESULTS!$H$7)<=('Sheet3(F_21)'!A35-Title_RESULTS!$H$7),((Title_RESULTS!$C$8*Partcipation!$C$26*8760*Title_RESULTS!$H$21/100000)),0) -> 4879.944126 | E35: =IF($G35=0,0,((Title_RESULTS!$H$14*((1+Title_RESULTS!$H$15/100)^($A35-Title_RESULTS!$H$7))*'EUE_Line Losses'!$B$25*Partcipation!$C$26))/1000) -> 56.18757597 | F35: =IF($G35=0,0,(Title_RESULTS!$H$19/100*((1+Title_RESULTS!$H$20/100)^($A35-Title_RESULTS!$H$7))*$D35*1000)/1000) -> 16.08175051 | G35: =(+Title_RESULTS!$H$22/100*((1+Title_RESULTS!$H$23/100)^(+'Sheet4(F_22)'!A35-Title_RESULTS!$H$7)))*'Sheet3(F_21)'!D35 -> 425.4157227 | H35: =IF($G35=0,0,(($D35))*(Partcipation!$G35/100)) -> 307.4362286 | I35: =IF($A35>=+Title_RESULTS!$H$8,+Partcipation!$C$60*Title_RESULTS!$H$24/1000*(1+Title_RESULTS!$H$25/100)^($A35-Title_RESULTS!$H$7),0) -> 0 | J35: =(+C35+G35+E35+F35-H35+I35)*Partcipation!H35 -> 731.949638
A36: 2040 | B36: =VLOOKUP(A36,'Value of Defferal'!$B43:$F$61,'Value of Defferal'!$C$10) -> 0.1478952535 | C36: =VLOOKUP(A36,'Value of Defferal'!$B43:$F$61,'Value of Defferal'!$C$9) -> 554.7016371 | D36: =IF((Title_RESULTS!$H$8-Title_RESULTS!$H$7)<=('Sheet3(F_21)'!A36-Title_RESULTS!$H$7),((Title_RESULTS!$C$8*Partcipation!$C$26*8760*Title_RESULTS!$H$21/100000)),0) -> 4879.944126 | E36: =IF($G36=0,0,((Title_RESULTS!$H$14*((1+Title_RESULTS!$H$15/100)^($A36-Title_RESULTS!$H$7))*'EUE_Line Losses'!$B$25*Partcipation!$C$26))/1000) -> 57.5360778 | F36: =IF($G36=0,0,(Title_RESULTS!$H$19/100*((1+Title_RESULTS!$H$20/100)^($A36-Title_RESULTS!$H$7))*$D36*1000)/1000) -> 16.46771253 | G36: =(+Title_RESULTS!$H$22/100*((1+Title_RESULTS!$H$23/100)^(+'Sheet4(F_22)'!A36-Title_RESULTS!$H$7)))*'Sheet3(F_21)'!D36 -> 444.7295965 | H36: =IF($G36=0,0,(($D36))*(Partcipation!$G36/100)) -> 307.0848224 | I36: =IF($A36>=+Title_RESULTS!$H$8,+Partcipation!$C$60*Title_RESULTS!$H$24/1000*(1+Title_RESULTS!$H$25/100)^($A36-Title_RESULTS!$H$7),0) -> 0 | J36: =(+C36+G36+E36+F36-H36+I36)*Partcipation!H36 -> 766.3502015
A37: 2041 | B37: =VLOOKUP(A37,'Value of Defferal'!$B44:$F$61,'Value of Defferal'!$C$10) -> 0.1514447395 | C37: =VLOOKUP(A37,'Value of Defferal'!$B44:$F$61,'Value of Defferal'!$C$9) -> 568.0144764 | D37: =IF((Title_RESULTS!$H$8-Title_RESULTS!$H$7)<=('Sheet3(F_21)'!A37-Title_RESULTS!$H$7),((Title_RESULTS!$C$8*Partcipation!$C$26*8760*Title_RESULTS!$H$21/100000)),0) -> 4879.944126 | E37: =IF($G37=0,0,((Title_RESULTS!$H$14*((1+Title_RESULTS!$H$15/100)^($A37-Title_RESULTS!$H$7))*'EUE_Line Losses'!$B$25*Partcipation!$C$26))/1000) -> 58.91694367 | F37: =IF($G37=0,0,(Title_RESULTS!$H$19/100*((1+Title_RESULTS!$H$20/100)^($A37-Title_RESULTS!$H$7))*$D37*1000)/1000) -> 16.86293763 | G37: =(+Title_RESULTS!$H$22/100*((1+Title_RESULTS!$H$23/100)^(+'Sheet4(F_22)'!A37-Title_RESULTS!$H$7)))*'Sheet3(F_21)'!D37 -> 464.9203202 | H37: =IF($G37=0,0,(($D37))*(Partcipation!$G37/100)) -> 326.5213666 | I37: =IF($A37>=+Title_RESULTS!$H$8,+Partcipation!$C$60*Title_RESULTS!$H$24/1000*(1+Title_RESULTS!$H$25/100)^($A37-Title_RESULTS!$H$7),0) -> 0 | J37: =(+C37+G37+E37+F37-H37+I37)*Partcipation!H37 -> 782.1933113
A38: 2042 | B38: =VLOOKUP(A38,'Value of Defferal'!$B45:$F$61,'Value of Defferal'!$C$10) -> 0.1550794133 | C38: =VLOOKUP(A38,'Value of Defferal'!$B45:$F$61,'Value of Defferal'!$C$9) -> 581.6468238 | D38: =IF((Title_RESULTS!$H$8-Title_RESULTS!$H$7)<=('Sheet3(F_21)'!A38-Title_RESULTS!$H$7),((Title_RESULTS!$C$8*Partcipation!$C$26*8760*Title_RESULTS!$H$21/100000)),0) -> 4879.944126 | E38: =IF($G38=0,0,((Title_RESULTS!$H$14*((1+Title_RESULTS!$H$15/100)^($A38-Title_RESULTS!$H$7))*'EUE_Line Losses'!$B$25*Partcipation!$C$26))/1000) -> 60.33095031 | F38: =IF($G38=0,0,(Title_RESULTS!$H$19/100*((1+Title_RESULTS!$H$20/100)^($A38-Title_RESULTS!$H$7))*$D38*1000)/1000) -> 17.26764813 | G38: =(+Title_RESULTS!$H$22/100*((1+Title_RESULTS!$H$23/100)^(+'Sheet4(F_22)'!A38-Title_RESULTS!$H$7)))*'Sheet3(F_21)'!D38 -> 486.0277027 | H38: =IF($G38=0,0,(($D38))*(Partcipation!$G38/100)) -> 343.8034968 | I38: =IF($A38>=+Title_RESULTS!$H$8,+Partcipation!$C$60*Title_RESULTS!$H$24/1000*(1+Title_RESULTS!$H$25/100)^($A38-Title_RESULTS!$H$7),0) -> 0 | J38: =(+C38+G38+E38+F38-H38+I38)*Partcipation!H38 -> 801.4696281
A39: 2043 | B39: =VLOOKUP(A39,'Value of Defferal'!$B46:$F$61,'Value of Defferal'!$C$10) -> 0.1588013192 | C39: =VLOOKUP(A39,'Value of Defferal'!$B46:$F$61,'Value of Defferal'!$C$9) -> 595.6063476 | D39: =IF((Title_RESULTS!$H$8-Title_RESULTS!$H$7)<=('Sheet3(F_21)'!A39-Title_RESULTS!$H$7),((Title_RESULTS!$C$8*Partcipation!$C$26*8760*Title_RESULTS!$H$21/100000)),0) -> 4879.944126 | E39: =IF($G39=0,0,((Title_RESULTS!$H$14*((1+Title_RESULTS!$H$15/100)^($A39-Title_RESULTS!$H$7))*'EUE_Line Losses'!$B$25*Partcipation!$C$26))/1000) -> 61.77889312 | F39: =IF($G39=0,0,(Title_RESULTS!$H$19/100*((1+Title_RESULTS!$H$20/100)^($A39-Title_RESULTS!$H$7))*$D39*1000)/1000) -> 17.68207169 | G39: =(+Title_RESULTS!$H$22/100*((1+Title_RESULTS!$H$23/100)^(+'Sheet4(F_22)'!A39-Title_RESULTS!$H$7)))*'Sheet3(F_21)'!D39 -> 508.0933604 | H39: =IF($G39=0,0,(($D39))*(Partcipation!$G39/100)) -> 358.2653689 | I39: =IF($A39>=+Title_RESULTS!$H$8,+Partcipation!$C$60*Title_RESULTS!$H$24/1000*(1+Title_RESULTS!$H$25/100)^($A39-Title_RESULTS!$H$7),0) -> 0 | J39: =(+C39+G39+E39+F39-H39+I39)*Partcipation!H39 -> 824.8953039
A40: 2044 | B40: =VLOOKUP(A40,'Value of Defferal'!$B47:$F$61,'Value of Defferal'!$C$10) -> 0.1626125509 | C40: =VLOOKUP(A40,'Value of Defferal'!$B47:$F$61,'Value of Defferal'!$C$9) -> 609.9008999 | D40: =IF((Title_RESULTS!$H$8-Title_RESULTS!$H$7)<=('Sheet3(F_21)'!A40-Title_RESULTS!$H$7),((Title_RESULTS!$C$8*Partcipation!$C$26*8760*Title_RESULTS!$H$21/100000)),0) -> 4879.944126 | E40: =IF($G40=0,0,((Title_RESULTS!$H$14*((1+Title_RESULTS!$H$15/100)^($A40-Title_RESULTS!$H$7))*'EUE_Line Losses'!$B$25*Partcipation!$C$26))/1000) -> 63.26158656 | F40: =IF($G40=0,0,(Title_RESULTS!$H$19/100*((1+Title_RESULTS!$H$20/100)^($A40-Title_RESULTS!$H$7))*$D40*1000)/1000) -> 18.10644141 | G40: =(+Title_RESULTS!$H$22/100*((1+Title_RESULTS!$H$23/100)^(+'Sheet4(F_22)'!A40-Title_RESULTS!$H$7)))*'Sheet3(F_21)'!D40 -> 531.160799 | H40: =IF($G40=0,0,(($D40))*(Partcipation!$G40/100)) -> 354.6218068 | I40: =IF($A40>=+Title_RESULTS!$H$8,+Partcipation!$C$60*Title_RESULTS!$H$24/1000*(1+Title_RESULTS!$H$25/100)^($A40-Title_RESULTS!$H$7),0) -> 0 | J40: =(+C40+G40+E40+F40-H40+I40)*Partcipation!H40 -> 867.80792
A42: NOMINAL | C42: =SUM(C16:C41) -> 10578.82423 | D42: 107358.7708 | E42: 1097.281877 | F42: 314.0589906 | G42: 7625.651799 | H42: 5547.32601 | I42: 0 | J42: 14068.49089
A44: NPV | C44: =NPV(Title_RESULTS!$C$37,C17:C41)+'Sheet3(F_21)'!C16 -> 4323.009628 | E44: =NPV(Title_RESULTS!$C$37,E17:E41)+'Sheet3(F_21)'!E16 -> 448.4014498 | F44: =NPV(Title_RESULTS!$C$37,F17:F41)+'Sheet3(F_21)'!F16 -> 128.3394082 | G44: =NPV(Title_RESULTS!$C$37,G17:G41)+'Sheet3(F_21)'!G16 -> 2945.404609 | H44: =NPV(Title_RESULTS!$C$37,H17:H41)+'Sheet3(F_21)'!H16 -> 2162.983122 | I44: =NPV(Title_RESULTS!$C$37,I17:I41)+'Sheet3(F_21)'!I16 -> 0 | J44: =NPV(Title_RESULTS!$C$37,J17:J41)+'Sheet3(F_21)'!J16 -> 5682.171972
A46: * SUPPLEMENTAL INFORMATION NOT SPECIFIED IN WORKBOOK

Sheet Sheet5(p_5)
B1: * WORKSHEET : DSM PROGRAM FUEL SAVINGS | F1: WORKSHEET FOR FORM CE 2.2
B2: PROGRAM: | C2: =+Input!C3 -> Retro-Commissioning | F2: Page 1 of 1
F3: =+Title_RESULTS!I4 -> 2019-05-14T07:54:57.350
A8: (1) | B8: (2) | C8: (3) | D8: (4) | E8: (5) | F8: (6) | G8: (7)
B10: REDUCTION | D10: INCREASE | F10: NET
B11: IN KWH | C11: AVOIDED | D11: IN KWH | E11: INCREASED | F11: AVOIDED | G11: EFFECTIVE
B12: GENERATION | C12: MARGINAL | D12: GENERATION | E12: MARGINAL | F12: PROGRAM | G12: PROGRAM
B13: NET NEW CUST | C13: FUEL COST - | D13: NET NEW CUST | E13: FUEL COST - | F13: FUEL | G13: FUEL
B14: KWH | C14: REDUCED KWH | D14: KWH | E14: INCREASE KWH | F14: SAVINGS | G14: SAVINGS
A15: YEAR | B15: (000) | C15: $(000) | D15: (000) | E15: $(000) | F15: $(000) | G15: $(000)
A16: =+Title_RESULTS!H7 -> 2020 | B16: =(+Partcipation!$C15+(Partcipation!$C16-Partcipation!$C15)/2)*Title_RESULTS!$C$10/1000 -> 4163.71308 | C16: =$B16*'Sheet2(F_12)'!$E16/100 -> 120.777226 | D16: =(+Partcipation!$C15+(Partcipation!$C16-Partcipation!$C15)/2)*(+Title_RESULTS!$C$31/(1-Title_RESULTS!$C$11/100))/1000 -> 0 | E16: =+$D16*'Sheet2(F_12)'!$F16/100 -> 0 | F16: =+C16-E16 -> 120.777226 | G16: =+$F16*'Sheet2(F_12)'!$I16 -> 120.777226
A17: =+A16+1 -> 2021 | B17: =(+Partcipation!$C16+(Partcipation!$C17-Partcipation!$C16)/2)*Title_RESULTS!$C$10/1000 -> 12491.13924 | C17: =$B17*'Sheet2(F_12)'!$E17/100 -> 359.3845254 | D17: =(+Partcipation!$C16+(Partcipation!$C17-Partcipation!$C16)/2)*(+Title_RESULTS!$C$31/(1-Title_RESULTS!$C$11/100))/1000 -> 0 | E17: =+$D17*'Sheet2(F_12)'!$F17/100 -> 0 | F17: =+C17-E17 -> 359.3845254 | G17: =+$F17*'Sheet2(F_12)'!$I17 -> 359.3845254
A18: =+A17+1 -> 2022 | B18: =(+Partcipation!$C17+(Partcipation!$C18-Partcipation!$C17)/2)*Title_RESULTS!$C$10/1000 -> 20818.5654 | C18: =$B18*'Sheet2(F_12)'!$E18/100 -> 618.1814744 | D18: =(+Partcipation!$C17+(Partcipation!$C18-Partcipation!$C17)/2)*(+Title_RESULTS!$C$31/(1-Title_RESULTS!$C$11/100))/1000 -> 0 | E18: =+$D18*'Sheet2(F_12)'!$F18/100 -> 0 | F18: =+C18-E18 -> 618.1814744 | G18: =+$F18*'Sheet2(F_12)'!$I18 -> 618.1814744
A19: =+A18+1 -> 2023 | B19: =(+Partcipation!$C18+(Partcipation!$C19-Partcipation!$C18)/2)*Title_RESULTS!$C$10/1000 -> 24982.27848 | C19: =$B19*'Sheet2(F_12)'!$E19/100 -> 772.2499489 | D19: =(+Partcipation!$C18+(Partcipation!$C19-Partcipation!$C18)/2)*(+Title_RESULTS!$C$31/(1-Title_RESULTS!$C$11/100))/1000 -> 0 | E19: =+$D19*'Sheet2(F_12)'!$F19/100 -> 0 | F19: =+C19-E19 -> 772.2499489 | G19: =+$F19*'Sheet2(F_12)'!$I19 -> 772.2499489
A20: 2024 | B20: =(+Partcipation!$C19+(Partcipation!$C20-Partcipation!$C19)/2)*Title_RESULTS!$C$10/1000 -> 24982.27848 | C20: =$B20*'Sheet2(F_12)'!$E20/100 -> 802.5964612 | D20: =(+Partcipation!$C19+(Partcipation!$C20-Partcipation!$C19)/2)*(+Title_RESULTS!$C$31/(1-Title_RESULTS!$C$11/100))/1000 -> 0 | E20: =+$D20*'Sheet2(F_12)'!$F20/100 -> 0 | F20: 802.5964612 | G20: =+$F20*'Sheet2(F_12)'!$I20 -> 802.5964612
A21: 2025 | B21: =(+Partcipation!$C20+(Partcipation!$C21-Partcipation!$C20)/2)*Title_RESULTS!$C$10/1000 -> 24982.27848 | C21: =$B21*'Sheet2(F_12)'!$E21/100 -> 861.7469653 | D21: =(+Partcipation!$C20+(Partcipation!$C21-Partcipation!$C20)/2)*(+Title_RESULTS!$C$31/(1-Title_RESULTS!$C$11/100))/1000 -> 0 | E21: =+$D21*'Sheet2(F_12)'!$F21/100 -> 0 | F21: 861.7469653 | G21: =+$F21*'Sheet2(F_12)'!$I21 -> 861.7469653
A22: 2026 | B22: =(+Partcipation!$C21+(Partcipation!$C22-Partcipation!$C21)/2)*Title_RESULTS!$C$10/1000 -> 24982.27848 | C22: =$B22*'Sheet2(F_12)'!$E22/100 -> 889.3871757 | D22: =(+Partcipation!$C21+(Partcipation!$C22-Partcipation!$C21)/2)*(+Title_RESULTS!$C$31/(1-Title_RESULTS!$C$11/100))/1000 -> 0 | E22: =+$D22*'Sheet2(F_12)'!$F22/100 -> 0 | F22: 889.3871757 | G22: =+$F22*'Sheet2(F_12)'!$I22 -> 889.3871757
A23: 2027 | B23: =(+Partcipation!$C22+(Partcipation!$C23-Partcipation!$C22)/2)*Title_RESULTS!$C$10/1000 -> 24982.27848 | C23: =$B23*'Sheet2(F_12)'!$E23/100 -> 944.9698935 | D23: =(+Partcipation!$C22+(Partcipation!$C23-Partcipation!$C22)/2)*(+Title_RESULTS!$C$31/(1-Title_RESULTS!$C$11/100))/1000 -> 0 | E23: =+$D23*'Sheet2(F_12)'!$F23/100 -> 0 | F23: 944.9698935 | G23: =+$F23*'Sheet2(F_12)'!$I23 -> 944.9698935
A24: 2028 | B24: =(+Partcipation!$C23+(Partcipation!$C24-Partcipation!$C23)/2)*Title_RESULTS!$C$10/1000 -> 24982.27848 | C24: =$B24*'Sheet2(F_12)'!$E24/100 -> 1047.135919 | D24: =(+Partcipation!$C23+(Partcipation!$C24-Partcipation!$C23)/2)*(+Title_RESULTS!$C$31/(1-Title_RESULTS!$C$11/100))/1000 -> 0 | E24: =+$D24*'Sheet2(F_12)'!$F24/100 -> 0 | F24: 1047.135919 | G24: =+$F24*'Sheet2(F_12)'!$I24 -> 1047.135919
A25: 2029 | B25: =(+Partcipation!$C24+(Partcipation!$C25-Partcipation!$C24)/2)*Title_RESULTS!$C$10/1000 -> 24982.27848 | C25: =$B25*'Sheet2(F_12)'!$E25/100 -> 1121.864008 | D25: =(+Partcipation!$C24+(Partcipation!$C25-Partcipation!$C24)/2)*(+Title_RESULTS!$C$31/(1-Title_RESULTS!$C$11/100))/1000 -> 0 | E25: =+$D25*'Sheet2(F_12)'!$F25/100 -> 0 | F25: 1121.864008 | G25: =+$F25*'Sheet2(F_12)'!$I25 -> 1121.864008
A26: 2030 | B26: =(+Partcipation!$C25+(Partcipation!$C26-Partcipation!$C25)/2)*Title_RESULTS!$C$10/1000 -> 24982.27848 | C26: =$B26*'Sheet2(F_12)'!$E26/100 -> 1253.059945 | D26: =(+Partcipation!$C25+(Partcipation!$C26-Partcipation!$C25)/2)*(+Title_RESULTS!$C$31/(1-Title_RESULTS!$C$11/100))/1000 -> 0 | E26: =+$D26*'Sheet2(F_12)'!$F26/100 -> 0 | F26: 1253.059945 | G26: =+$F26*'Sheet2(F_12)'!$I26 -> 1253.059945
A27: 2031 | B27: =(+Partcipation!$C26+(Partcipation!$C27-Partcipation!$C26)/2)*Title_RESULTS!$C$10/1000 -> 24982.27848 | C27: =$B27*'Sheet2(F_12)'!$E27/100 -> 1248.400009 | D27: =(+Partcipation!$C26+(Partcipation!$C27-Partcipation!$C26)/2)*(+Title_RESULTS!$C$31/(1-Title_RESULTS!$C$11/100))/1000 -> 0 | E27: =+$D27*'Sheet2(F_12)'!$F27/100 -> 0 | F27: 1248.400009 | G27: =+$F27*'Sheet2(F_12)'!$I27 -> 1248.400009
A28: 2032 | B28: =(+Partcipation!$C27+(Partcipation!$C28-Partcipation!$C27)/2)*Title_RESULTS!$C$10/1000 -> 24982.27848 | C28: =$B28*'Sheet2(F_12)'!$E28/100 -> 1364.385828 | D28: =(+Partcipation!$C27+(Partcipation!$C28-Partcipation!$C27)/2)*(+Title_RESULTS!$C$31/(1-Title_RESULTS!$C$11/100))/1000 -> 0 | E28: =+$D28*'Sheet2(F_12)'!$F28/100 -> 0 | F28: 1364.385828 | G28: =+$F28*'Sheet2(F_12)'!$I28 -> 1364.385828
A29: 2033 | B29: =(+Partcipation!$C28+(Partcipation!$C29-Partcipation!$C28)/2)*Title_RESULTS!$C$10/1000 -> 24982.27848 | C29: =$B29*'Sheet2(F_12)'!$E29/100 -> 1454.993375 | D29: =(+Partcipation!$C28+(Partcipation!$C29-Partcipation!$C28)/2)*(+Title_RESULTS!$C$31/(1-Title_RESULTS!$C$11/100))/1000 -> 0 | E29: =+$D29*'Sheet2(F_12)'!$F29/100 -> 0 | F29: 1454.993375 | G29: =+$F29*'Sheet2(F_12)'!$I29 -> 1454.993375
A30: 2034 | B30: =(+Partcipation!$C29+(Partcipation!$C30-Partcipation!$C29)/2)*Title_RESULTS!$C$10/1000 -> 24982.27848 | C30: =$B30*'Sheet2(F_12)'!$E30/100 -> 1522.74117 | D30: =(+Partcipation!$C29+(Partcipation!$C30-Partcipation!$C29)/2)*(+Title_RESULTS!$C$31/(1-Title_RESULTS!$C$11/100))/1000 -> 0 | E30: =+$D30*'Sheet2(F_12)'!$F30/100 -> 0 | F30: 1522.74117 | G30: =+$F30*'Sheet2(F_12)'!$I30 -> 1522.74117
A31: 2035 | B31: =(+Partcipation!$C30+(Partcipation!$C31-Partcipation!$C30)/2)*Title_RESULTS!$C$10/1000 -> 24982.27848 | C31: =$B31*'Sheet2(F_12)'!$E31/100 -> 1677.066629 | D31: =(+Partcipation!$C30+(Partcipation!$C31-Partcipation!$C30)/2)*(+Title_RESULTS!$C$31/(1-Title_RESULTS!$C$11/100))/1000 -> 0 | E31: =+$D31*'Sheet2(F_12)'!$F31/100 -> 0 | F31: 1677.066629 | G31: =+$F31*'Sheet2(F_12)'!$I31 -> 1677.066629
A32: 2036 | B32: =(+Partcipation!$C31+(Partcipation!$C32-Partcipation!$C31)/2)*Title_RESULTS!$C$10/1000 -> 24982.27848 | C32: =$B32*'Sheet2(F_12)'!$E32/100 -> 1656.442997 | D32: =(+Partcipation!$C31+(Partcipation!$C32-Partcipation!$C31)/2)*(+Title_RESULTS!$C$31/(1-Title_RESULTS!$C$11/100))/1000 -> 0 | E32: =+$D32*'Sheet2(F_12)'!$F32/100 -> 0 | F32: 1656.442997 | G32: =+$F32*'Sheet2(F_12)'!$I32 -> 1656.442997
A33: 2037 | B33: =(+Partcipation!$C32+(Partcipation!$C33-Partcipation!$C32)/2)*Title_RESULTS!$C$10/1000 -> 24982.27848 | C33: =$B33*'Sheet2(F_12)'!$E33/100 -> 1767.945846 | D33: =(+Partcipation!$C32+(Partcipation!$C33-Partcipation!$C32)/2)*(+Title_RESULTS!$C$31/(1-Title_RESULTS!$C$11/100))/1000 -> 0 | E33: =+$D33*'Sheet2(F_12)'!$F33/100 -> 0 | F33: 1767.945846 | G33: =+$F33*'Sheet2(F_12)'!$I33 -> 1767.945846
A34: 2038 | B34: =(+Partcipation!$C33+(Partcipation!$C34-Partcipation!$C33)/2)*Title_RESULTS!$C$10/1000 -> 24982.27848 | C34: =$B34*'Sheet2(F_12)'!$E34/100 -> 1774.642009 | D34: =(+Partcipation!$C33+(Partcipation!$C34-Partcipation!$C33)/2)*(+Title_RESULTS!$C$31/(1-Title_RESULTS!$C$11/100))/1000 -> 0 | E34: =+$D34*'Sheet2(F_12)'!$F34/100 -> 0 | F34: 1774.642009 | G34: =+$F34*'Sheet2(F_12)'!$I34 -> 1774.642009
A35: 2039 | B35: =(+Partcipation!$C34+(Partcipation!$C35-Partcipation!$C34)/2)*Title_RESULTS!$C$10/1000 -> 24982.27848 | C35: =$B35*'Sheet2(F_12)'!$E35/100 -> 1776.478605 | D35: =(+Partcipation!$C34+(Partcipation!$C35-Partcipation!$C34)/2)*(+Title_RESULTS!$C$31/(1-Title_RESULTS!$C$11/100))/1000 -> 0 | E35: =+$D35*'Sheet2(F_12)'!$F35/100 -> 0 | F35: 1776.478605 | G35: =+$F35*'Sheet2(F_12)'!$I35 -> 1776.478605
A36: 2040 | B36: =(+Partcipation!$C35+(Partcipation!$C36-Partcipation!$C35)/2)*Title_RESULTS!$C$10/1000 -> 24982.27848 | C36: =$B36*'Sheet2(F_12)'!$E36/100 -> 1911.573758 | D36: =(+Partcipation!$C35+(Partcipation!$C36-Partcipation!$C35)/2)*(+Title_RESULTS!$C$31/(1-Title_RESULTS!$C$11/100))/1000 -> 0 | E36: =+$D36*'Sheet2(F_12)'!$F36/100 -> 0 | F36: 1911.573758 | G36: =+$F36*'Sheet2(F_12)'!$I36 -> 1911.573758
A37: 2041 | B37: =(+Partcipation!$C36+(Partcipation!$C37-Partcipation!$C36)/2)*Title_RESULTS!$C$10/1000 -> 24982.27848 | C37: =$B37*'Sheet2(F_12)'!$E37/100 -> 1968.770853 | D37: =(+Partcipation!$C36+(Partcipation!$C37-Partcipation!$C36)/2)*(+Title_RESULTS!$C$31/(1-Title_RESULTS!$C$11/100))/1000 -> 0 | E37: =+$D37*'Sheet2(F_12)'!$F37/100 -> 0 | F37: 1968.770853 | G37: =+$F37*'Sheet2(F_12)'!$I37 -> 1968.770853
A38: 2042 | B38: =(+Partcipation!$C37+(Partcipation!$C38-Partcipation!$C37)/2)*Title_RESULTS!$C$10/1000 -> 24982.27848 | C38: =$B38*'Sheet2(F_12)'!$E38/100 -> 2104.823505 | D38: =(+Partcipation!$C37+(Partcipation!$C38-Partcipation!$C37)/2)*(+Title_RESULTS!$C$31/(1-Title_RESULTS!$C$11/100))/1000 -> 0 | E38: =+$D38*'Sheet2(F_12)'!$F38/100 -> 0 | F38: 2104.823505 | G38: =+$F38*'Sheet2(F_12)'!$I38 -> 2104.823505
A39: 2043 | B39: =(+Partcipation!$C38+(Partcipation!$C39-Partcipation!$C38)/2)*Title_RESULTS!$C$10/1000 -> 24982.27848 | C39: =$B39*'Sheet2(F_12)'!$E39/100 -> 2154.788062 | D39: =(+Partcipation!$C38+(Partcipation!$C39-Partcipation!$C38)/2)*(+Title_RESULTS!$C$31/(1-Title_RESULTS!$C$11/100))/1000 -> 0 | E39: =+$D39*'Sheet2(F_12)'!$F39/100 -> 0 | F39: 2154.788062 | G39: =+$F39*'Sheet2(F_12)'!$I39 -> 2154.788062
A40: 2044 | B40: =(+Partcipation!$C39+(Partcipation!$C40-Partcipation!$C39)/2)*Title_RESULTS!$C$10/1000 -> 24982.27848 | C40: =$B40*'Sheet2(F_12)'!$E40/100 -> 2071.853959 | D40: =(+Partcipation!$C39+(Partcipation!$C40-Partcipation!$C39)/2)*(+Title_RESULTS!$C$31/(1-Title_RESULTS!$C$11/100))/1000 -> 0 | E40: =+$D40*'Sheet2(F_12)'!$F40/100 -> 0 | F40: 2071.853959 | G40: =+$F40*'Sheet2(F_12)'!$I40 -> 2071.853959
A42: NOMINAL | B42: =SUM(B16:B41) -> 587083.5443 | C42: 33246.26015 | D42: 0 | E42: 0 | F42: 33246.26015 | G42: 33246.26015
A44: NPV: | C44: =NPV(+Title_RESULTS!$C$37,C17:C41)+C16 -> 13218.16805 | E44: =NPV(+Title_RESULTS!$C$37,E17:E41)+E16 -> 0 | F44: =NPV(+Title_RESULTS!$C$37,F17:F41)+F16 -> 13218.16805 | G44: =NPV(+Title_RESULTS!$C$37,G17:G41)+G16 -> 13218.16805
A46: * SUPPLEMENTAL INFORMATION NOT SPECIFIED IN WORKBOOK

Sheet Sheet2(F_12)
D1: INPUT DATA -- PART 2 | J1: PSC FORM CE 1.2
D2: PROGRAM: | E2: =+Input!C3 -> Retro-Commissioning | J2: PAGE 1 OF 1
J3: =+Title_RESULTS!I4 -> 2019-05-14T07:54:57.350
A8: (1) | B8: (2) | C8: (3) | D8: (4) | E8: (5) | F8: (6) | G8: (7) | H8: (8) | I8: (9) | J8: (10) | K8: (11)
D10: UTILITY
D11: AVERAGE
B12: CUMULATIVE | C12: ADJUSTED | D12: SYSTEM | E12: AVOIDED | F12: INCREASED | H12: PROGRAM | I12: PROGRAM | J12: OTHER | K12: OTHER
B13: TOTAL | C13: CUMULATIVE | D13: FUEL | E13: MARGINAL | F13: MARGINAL | G13: REPLACEMENT | H13: KW | I13: KWH | J13: COSTS | K13: BENEFITS
B14: PARTICIPATING | C14: PARTICIPATING | D14: COSTS | E14: FUEL COST | F14: FUEL COST | G14: FUEL COST | H14: EFFECTIVENESS | I14: EFFECTIVENESS | K14: (CO2)
A15: YEAR | B15: CUSTOMERS | C15: CUSTOMERS | D15: (C/KWH) | E15: (C/KWH) | F15: (C/KWH) | G15: (C/KWH) | H15: FACTOR | I15: FACTOR | J15: ($000) | K15: ($000)
A16: =+Title_RESULTS!H7 -> 2020 | B16: =+Partcipation!B16 -> 1000 | C16: =+Partcipation!C16 -> 1000 | D16: =+Partcipation!D16 -> 2.434612542 | E16: =+Partcipation!E16 -> 2.900709624 | F16: 0 | G16: =+Partcipation!G16 -> 2.878920848 | H16: 1 | I16: 1 | J16: 0 | K16: =+Partcipation!L16 -> 0
A17: =+A16+1 -> 2021 | B17: =+Partcipation!B17 -> 2000 | C17: =+Partcipation!C17 -> 2000 | D17: =+Partcipation!D17 -> 2.550484234 | E17: =+Partcipation!E17 -> 2.877115677 | F17: 0 | G17: =+Partcipation!G17 -> 3.037777796 | H17: 1 | I17: 1 | J17: 0 | K17: =+Partcipation!L17 -> 0
A18: =+A17+1 -> 2022 | B18: =+Partcipation!B18 -> 3000 | C18: =+Partcipation!C18 -> 3000 | D18: =+Partcipation!D18 -> 2.644432311 | E18: =+Partcipation!E18 -> 2.969375951 | F18: 0 | G18: =+Partcipation!G18 -> 3.15623423 | H18: 1 | I18: 1 | J18: 0 | K18: =+Partcipation!L18 -> 0
A19: =+A18+1 -> 2023 | B19: =+Partcipation!B19 -> 3000 | C19: =+Partcipation!C19 -> 3000 | D19: =+Partcipation!D19 -> 2.622754872 | E19: =+Partcipation!E19 -> 3.09119102 | F19: 0 | G19: =+Partcipation!G19 -> 3.172627578 | H19: 1 | I19: 1 | J19: 0 | K19: =+Partcipation!L19 -> 0
A20: 2024 | B20: =+Partcipation!B20 -> 3000 | C20: =+Partcipation!C20 -> 3000 | D20: =+Partcipation!D20 -> 2.771516829 | E20: =+Partcipation!E20 -> 3.212663175 | F20: 0 | G20: =+Partcipation!G20 -> 3.314553178 | H20: 1 | I20: 1 | J20: 0 | K20: =+Partcipation!L20 -> 0
A21: 2025 | B21: =+Partcipation!B21 -> 3000 | C21: =+Partcipation!C21 -> 3000 | D21: =+Partcipation!D21 -> 2.930598228 | E21: =+Partcipation!E21 -> 3.449433029 | F21: 0 | G21: =+Partcipation!G21 -> 3.44590333 | H21: 1 | I21: 1 | J21: 0 | K21: =+Partcipation!L21 -> 0
A22: 2026 | B22: =+Partcipation!B22 -> 3000 | C22: =+Partcipation!C22 -> 3000 | D22: =+Partcipation!D22 -> 3.063102784 | E22: =+Partcipation!E22 -> 3.560072298 | F22: 0 | G22: =+Partcipation!G22 -> 3.557551829 | H22: 1 | I22: 1 | J22: 0 | K22: =+Partcipation!L22 -> 0
A23: 2027 | B23: =+Partcipation!B23 -> 3000 | C23: =+Partcipation!C23 -> 3000 | D23: =+Partcipation!D23 -> 3.243461241 | E23: =+Partcipation!E23 -> 3.782560883 | F23: 0 | G23: =+Partcipation!G23 -> 3.716786671 | H23: 1 | I23: 1 | J23: 0 | K23: =+Partcipation!L23 -> 0
A24: 2028 | B24: =+Partcipation!B24 -> 3000 | C24: =+Partcipation!C24 -> 3000 | D24: =+Partcipation!D24 -> 3.550601165 | E24: =+Partcipation!E24 -> 4.191514876 | F24: 0 | G24: =+Partcipation!G24 -> 4.00024514 | H24: 1 | I24: 1 | J24: 0 | K24: =+Partcipation!L24 -> 0
A25: 2029 | B25: =+Partcipation!B25 -> 3000 | C25: =+Partcipation!C25 -> 3000 | D25: =+Partcipation!D25 -> 3.731496299 | E25: =+Partcipation!E25 -> 4.490639269 | F25: 0 | G25: =+Partcipation!G25 -> 4.175798512 | H25: 1 | I25: 1 | J25: 0 | K25: =+Partcipation!L25 -> 0
A26: 2030 | B26: =+Partcipation!B26 -> 3000 | C26: =+Partcipation!C26 -> 3000 | D26: =+Partcipation!D26 -> 4.065659208 | E26: =+Partcipation!E26 -> 5.015795282 | F26: 0 | G26: =+Partcipation!G26 -> 4.486281269 | H26: 1 | I26: 1 | J26: 0 | K26: =+Partcipation!L26 -> 0
A27: 2031 | B27: =+Partcipation!B27 -> 3000 | C27: =+Partcipation!C27 -> 3000 | D27: =+Partcipation!D27 -> 4.205810946 | E27: =+Partcipation!E27 -> 4.997142314 | F27: 0 | G27: =+Partcipation!G27 -> 4.59784188 | H27: 1 | I27: 1 | J27: 0 | K27: =+Partcipation!L27 -> 0
A28: 2032 | B28: =+Partcipation!B28 -> 3000 | C28: =+Partcipation!C28 -> 3000 | D28: =+Partcipation!D28 -> 4.505899964 | E28: =+Partcipation!E28 -> 5.461414693 | F28: 0 | G28: =+Partcipation!G28 -> 4.873757964 | H28: 1 | I28: 1 | J28: 0 | K28: =+Partcipation!L28 -> 0
A29: 2033 | B29: =+Partcipation!B29 -> 3000 | C29: =+Partcipation!C29 -> 3000 | D29: =+Partcipation!D29 -> 4.600412945 | E29: =+Partcipation!E29 -> 5.824101979 | F29: 0 | G29: =+Partcipation!G29 -> 4.984915998 | H29: 1 | I29: 1 | J29: 0 | K29: =+Partcipation!L29 -> 0
A30: 2034 | B30: =+Partcipation!B30 -> 3000 | C30: =+Partcipation!C30 -> 3000 | D30: =+Partcipation!D30 -> 4.904246138 | E30: =+Partcipation!E30 -> 6.095285388 | F30: 0 | G30: =+Partcipation!G30 -> 5.306578162 | H30: 1 | I30: 1 | J30: 0 | K30: =+Partcipation!L30 -> 0
A31: 2035 | B31: =+Partcipation!B31 -> 3000 | C31: =+Partcipation!C31 -> 3000 | D31: =+Partcipation!D31 -> 5.112907005 | E31: =+Partcipation!E31 -> 6.713025114 | F31: 0 | G31: =+Partcipation!G31 -> 5.510049459 | H31: 1 | I31: 1 | J31: 0 | K31: =+Partcipation!L31 -> 0
A32: 2036 | B32: =+Partcipation!B32 -> 3000 | C32: =+Partcipation!C32 -> 3000 | D32: =+Partcipation!D32 -> 5.2847745 | E32: =+Partcipation!E32 -> 6.63047207 | F32: 0 | G32: =+Partcipation!G32 -> 5.621141176 | H32: 1 | I32: 1 | J32: 0 | K32: =+Partcipation!L32 -> 0
A33: 2037 | B33: =+Partcipation!B33 -> 3000 | C33: =+Partcipation!C33 -> 3000 | D33: =+Partcipation!D33 -> 5.580777056 | E33: =+Partcipation!E33 -> 7.076799848 | F33: 0 | G33: =+Partcipation!G33 -> 5.925802405 | H33: 1 | I33: 1 | J33: 0 | K33: =+Partcipation!L33 -> 0
A34: 2038 | B34: =+Partcipation!B34 -> 3000 | C34: =+Partcipation!C34 -> 3000 | D34: =+Partcipation!D34 -> 5.712201315 | E34: =+Partcipation!E34 -> 7.103603501 | F34: 0 | G34: =+Partcipation!G34 -> 6.048558103 | H34: 1 | I34: 1 | J34: 0 | K34: =+Partcipation!L34 -> 0
A35: 2039 | B35: =+Partcipation!B35 -> 3000 | C35: =+Partcipation!C35 -> 3000 | D35: =+Partcipation!D35 -> 5.931144007 | E35: =+Partcipation!E35 -> 7.110955099 | F35: 0 | G35: =+Partcipation!G35 -> 6.29999485 | H35: 1 | I35: 1 | J35: 0 | K35: =+Partcipation!L35 -> 0
A36: 2040 | B36: =+Partcipation!B36 -> 3000 | C36: =+Partcipation!C36 -> 3000 | D36: =+Partcipation!D36 -> 5.999355829 | E36: =+Partcipation!E36 -> 7.651719035 | F36: 0 | G36: =+Partcipation!G36 -> 6.29279382 | H36: 1 | I36: 1 | J36: 0 | K36: =+Partcipation!L36 -> 0
A37: 2041 | B37: =+Partcipation!B37 -> 3000 | C37: =+Partcipation!C37 -> 3000 | D37: =+Partcipation!D37 -> 6.297281238 | E37: =+Partcipation!E37 -> 7.880669711 | F37: 0 | G37: =+Partcipation!G37 -> 6.691088221 | H37: 1 | I37: 1 | J37: 0 | K37: =+Partcipation!L37 -> 0
A38: 2042 | B38: =+Partcipation!B38 -> 3000 | C38: =+Partcipation!C38 -> 3000 | D38: =+Partcipation!D38 -> 6.592646796 | E38: =+Partcipation!E38 -> 8.425266362 | F38: 0 | G38: =+Partcipation!G38 -> 7.045234289 | H38: 1 | I38: 1 | J38: 0 | K38: =+Partcipation!L38 -> 0
A39: 2043 | B39: =+Partcipation!B39 -> 3000 | C39: =+Partcipation!C39 -> 3000 | D39: =+Partcipation!D39 -> 6.782797747 | E39: =+Partcipation!E39 -> 8.625266362 | F39: 0 | G39: =+Partcipation!G39 -> 7.341587519 | H39: 1 | I39: 1 | J39: 0 | K39: =+Partcipation!L39 -> 0
A40: 2044 | B40: =+Partcipation!B40 -> 3000 | C40: =+Partcipation!C40 -> 3000 | D40: =+Partcipation!D40 -> 6.682976687 | E40: =+Partcipation!E40 -> 8.293294627 | F40: 0 | G40: =+Partcipation!G40 -> 7.266923507 | H40: 1 | I40: 1 | J40: 0 | K40: =+Partcipation!L40 -> 0

Sheet Sheet4(F_22)
C1: AVOIDED T & D AND PROGRAM FUEL SAVINGS | H1: PSC FORM CE 2.2
C2: PROGRAM: | D2: =+Input!C3 -> Retro-Commissioning | H2: Page 1 of 2
H3: =+Title_RESULTS!I4 -> 2019-05-14T07:54:57.350
C5: * INSERVICE COSTS OF AVOIDED TRANS. (000) = | F5: =+'Value of Defferal'!L4 -> 218.7855872
C6: * INSERVICE COSTS OF AVOIDED DIST. (000) = | F6: =+'Value of Defferal'!L5 -> 1035.417097
A9: (1) | B9: (2) | C9: (3) | D9: (4) | E9: (5) | F9: (6) | G9: (7) | H9: (8) | I9: (9) | J9: (10)
B11: AVOIDED | C11: AVOIDED | E11: AVOIDED | F11: AVOIDED
B12: TRANSMISSION | C12: TRANSMISSION | D12: TOTAL AVOIDED | E12: DISTRIBUTION | F12: DISTRIBUTION | G12: TOTAL AVOIDED | H12: PROGRAM
B13: CAPACITY | C13: O&M | D13: TRANSMISSION | E13: CAPACITY | F13: O&M | G13: DISTRIBUTION | H13: FUEL
B14: COST | C14: COST | D14: COST | E14: COST | F14: COST | G14: COST | H14: SAVINGS
A15: YEAR | B15: $(000) | C15: $(000) | D15: $(000) | E15: $(000) | F15: $(000) | G15: $(000) | H15: $(000)
A16: =+Title_RESULTS!$H$7 -> 2020 | B16: =VLOOKUP(A16,'Value of Defferal'!$I23:$P$58,'Value of Defferal'!$K$9) -> 0 | C16: =IF(+Title_RESULTS!$H$9<='Sheet4(F_22)'!$A16,(+Title_RESULTS!$H$16*((1+Title_RESULTS!$H$18/100)^('Sheet4(F_22)'!$A16-Title_RESULTS!$H$7))*Title_RESULTS!$C$8*Partcipation!$C$26/1000),0) -> 0 | D16: =(+B16+C16)*+Partcipation!$H16 -> 0 | E16: =VLOOKUP(A16,'Value of Defferal'!$I23:$P$58,'Value of Defferal'!$K$13) -> 0 | F16: =IF(+'Value of Defferal'!P23=0,0,Title_RESULTS!$H$17*Title_RESULTS!$C$7*Partcipation!$C$26*(1+Title_RESULTS!$H$18/100)^('Sheet4(F_22)'!A16-Title_RESULTS!$H$7))/1000 -> 0 | G16: =(+E16+F16)*Partcipation!$H16 -> 0 | H16: =+'Sheet5(p_5)'!$F16*'Sheet2(F_12)'!$I16 -> 120.777226
A17: =+A16+1 -> 2021 | B17: =VLOOKUP(A17,'Value of Defferal'!$I24:$P$58,'Value of Defferal'!$K$9) -> 21.62089571 | C17: =IF(+Title_RESULTS!$H$9<='Sheet4(F_22)'!$A17,(+Title_RESULTS!$H$16*((1+Title_RESULTS!$H$18/100)^('Sheet4(F_22)'!$A17-Title_RESULTS!$H$7))*Title_RESULTS!$C$8*Partcipation!$C$26/1000),0) -> 17.42665781 | D17: =(+B17+C17)*+Partcipation!$H17 -> 39.04755352 | E17: =VLOOKUP(A17,'Value of Defferal'!$I24:$P$58,'Value of Defferal'!$K$13) -> 102.3223026 | F17: =IF(+'Value of Defferal'!P24=0,0,Title_RESULTS!$H$17*Title_RESULTS!$C$7*Partcipation!$C$26*(1+Title_RESULTS!$H$18/100)^('Sheet4(F_22)'!A17-Title_RESULTS!$H$7))/1000 -> 142.5474065 | G17: =(+E17+F17)*Partcipation!$H17 -> 244.8697092 | H17: =+'Sheet5(p_5)'!$F17*'Sheet2(F_12)'!$I17 -> 359.3845254
A18: =+A17+1 -> 2022 | B18: =VLOOKUP(A18,'Value of Defferal'!$I25:$P$58,'Value of Defferal'!$K$9) -> 22.13979721 | C18: =IF(+Title_RESULTS!$H$9<='Sheet4(F_22)'!$A18,(+Title_RESULTS!$H$16*((1+Title_RESULTS!$H$18/100)^('Sheet4(F_22)'!$A18-Title_RESULTS!$H$7))*Title_RESULTS!$C$8*Partcipation!$C$26/1000),0) -> 17.8448976 | D18: =(+B18+C18)*+Partcipation!$H18 -> 39.98469481 | E18: =VLOOKUP(A18,'Value of Defferal'!$I25:$P$58,'Value of Defferal'!$K$13) -> 104.7780379 | F18: =IF(+'Value of Defferal'!P25=0,0,Title_RESULTS!$H$17*Title_RESULTS!$C$7*Partcipation!$C$26*(1+Title_RESULTS!$H$18/100)^('Sheet4(F_22)'!A18-Title_RESULTS!$H$7))/1000 -> 145.9685443 | G18: =(+E18+F18)*Partcipation!$H18 -> 250.7465822 | H18: =+'Sheet5(p_5)'!$F18*'Sheet2(F_12)'!$I18 -> 618.1814744
A19: =+A18+1 -> 2023 | B19: =VLOOKUP(A19,'Value of Defferal'!$I26:$P$58,'Value of Defferal'!$K$9) -> 22.67115234 | C19: =IF(+Title_RESULTS!$H$9<='Sheet4(F_22)'!$A19,(+Title_RESULTS!$H$16*((1+Title_RESULTS!$H$18/100)^('Sheet4(F_22)'!$A19-Title_RESULTS!$H$7))*Title_RESULTS!$C$8*Partcipation!$C$26/1000),0) -> 18.27317514 | D19: =(+B19+C19)*+Partcipation!$H19 -> 40.94432748 | E19: =VLOOKUP(A19,'Value of Defferal'!$I26:$P$58,'Value of Defferal'!$K$13) -> 107.2927108 | F19: =IF(+'Value of Defferal'!P26=0,0,Title_RESULTS!$H$17*Title_RESULTS!$C$7*Partcipation!$C$26*(1+Title_RESULTS!$H$18/100)^('Sheet4(F_22)'!A19-Title_RESULTS!$H$7))/1000 -> 149.4717894 | G19: =(+E19+F19)*Partcipation!$H19 -> 256.7645002 | H19: =+'Sheet5(p_5)'!$F19*'Sheet2(F_12)'!$I19 -> 772.2499489
A20: 2024 | B20: =VLOOKUP(A20,'Value of Defferal'!$I27:$P$58,'Value of Defferal'!$K$9) -> 23.21526 | C20: =IF(+Title_RESULTS!$H$9<='Sheet4(F_22)'!$A20,(+Title_RESULTS!$H$16*((1+Title_RESULTS!$H$18/100)^('Sheet4(F_22)'!$A20-Title_RESULTS!$H$7))*Title_RESULTS!$C$8*Partcipation!$C$26/1000),0) -> 18.71173135 | D20: =(+B20+C20)*+Partcipation!$H20 -> 41.92699134 | E20: =VLOOKUP(A20,'Value of Defferal'!$I27:$P$58,'Value of Defferal'!$K$13) -> 109.8677359 | F20: =IF(+'Value of Defferal'!P27=0,0,Title_RESULTS!$H$17*Title_RESULTS!$C$7*Partcipation!$C$26*(1+Title_RESULTS!$H$18/100)^('Sheet4(F_22)'!A20-Title_RESULTS!$H$7))/1000 -> 153.0591123 | G20: =(+E20+F20)*Partcipation!$H20 -> 262.9268482 | H20: =+'Sheet5(p_5)'!$F20*'Sheet2(F_12)'!$I20 -> 802.5964612
A21: 2025 | B21: =VLOOKUP(A21,'Value of Defferal'!$I28:$P$58,'Value of Defferal'!$K$9) -> 23.77242624 | C21: =IF(+Title_RESULTS!$H$9<='Sheet4(F_22)'!$A21,(+Title_RESULTS!$H$16*((1+Title_RESULTS!$H$18/100)^('Sheet4(F_22)'!$A21-Title_RESULTS!$H$7))*Title_RESULTS!$C$8*Partcipation!$C$26/1000),0) -> 19.1608129 | D21: =(+B21+C21)*+Partcipation!$H21 -> 42.93323914 | E21: =VLOOKUP(A21,'Value of Defferal'!$I28:$P$58,'Value of Defferal'!$K$13) -> 112.5045615 | F21: =IF(+'Value of Defferal'!P28=0,0,Title_RESULTS!$H$17*Title_RESULTS!$C$7*Partcipation!$C$26*(1+Title_RESULTS!$H$18/100)^('Sheet4(F_22)'!A21-Title_RESULTS!$H$7))/1000 -> 156.732531 | G21: =(+E21+F21)*Partcipation!$H21 -> 269.2370925 | H21: =+'Sheet5(p_5)'!$F21*'Sheet2(F_12)'!$I21 -> 861.7469653
A22: 2026 | B22: =VLOOKUP(A22,'Value of Defferal'!$I29:$P$58,'Value of Defferal'!$K$9) -> 24.34296447 | C22: =IF(+Title_RESULTS!$H$9<='Sheet4(F_22)'!$A22,(+Title_RESULTS!$H$16*((1+Title_RESULTS!$H$18/100)^('Sheet4(F_22)'!$A22-Title_RESULTS!$H$7))*Title_RESULTS!$C$8*Partcipation!$C$26/1000),0) -> 19.62067241 | D22: =(+B22+C22)*+Partcipation!$H22 -> 43.96363688 | E22: =VLOOKUP(A22,'Value of Defferal'!$I29:$P$58,'Value of Defferal'!$K$13) -> 115.204671 | F22: =IF(+'Value of Defferal'!P29=0,0,Title_RESULTS!$H$17*Title_RESULTS!$C$7*Partcipation!$C$26*(1+Title_RESULTS!$H$18/100)^('Sheet4(F_22)'!A22-Title_RESULTS!$H$7))/1000 -> 160.4941118 | G22: =(+E22+F22)*Partcipation!$H22 -> 275.6987828 | H22: =+'Sheet5(p_5)'!$F22*'Sheet2(F_12)'!$I22 -> 889.3871757
A23: 2027 | B23: =VLOOKUP(A23,'Value of Defferal'!$I30:$P$58,'Value of Defferal'!$K$9) -> 24.92719561 | C23: =IF(+Title_RESULTS!$H$9<='Sheet4(F_22)'!$A23,(+Title_RESULTS!$H$16*((1+Title_RESULTS!$H$18/100)^('Sheet4(F_22)'!$A23-Title_RESULTS!$H$7))*Title_RESULTS!$C$8*Partcipation!$C$26/1000),0) -> 20.09156855 | D23: =(+B23+C23)*+Partcipation!$H23 -> 45.01876416 | E23: =VLOOKUP(A23,'Value of Defferal'!$I30:$P$58,'Value of Defferal'!$K$13) -> 117.9695831 | F23: =IF(+'Value of Defferal'!P30=0,0,Title_RESULTS!$H$17*Title_RESULTS!$C$7*Partcipation!$C$26*(1+Title_RESULTS!$H$18/100)^('Sheet4(F_22)'!A23-Title_RESULTS!$H$7))/1000 -> 164.3459704 | G23: =(+E23+F23)*Partcipation!$H23 -> 282.3155535 | H23: =+'Sheet5(p_5)'!$F23*'Sheet2(F_12)'!$I23 -> 944.9698935
A24: 2028 | B24: =VLOOKUP(A24,'Value of Defferal'!$I31:$P$58,'Value of Defferal'!$K$9) -> 25.52544831 | C24: =IF(+Title_RESULTS!$H$9<='Sheet4(F_22)'!$A24,(+Title_RESULTS!$H$16*((1+Title_RESULTS!$H$18/100)^('Sheet4(F_22)'!$A24-Title_RESULTS!$H$7))*Title_RESULTS!$C$8*Partcipation!$C$26/1000),0) -> 20.57376619 | D24: =(+B24+C24)*+Partcipation!$H24 -> 46.0992145 | E24: =VLOOKUP(A24,'Value of Defferal'!$I31:$P$58,'Value of Defferal'!$K$13) -> 120.8008531 | F24: =IF(+'Value of Defferal'!P31=0,0,Title_RESULTS!$H$17*Title_RESULTS!$C$7*Partcipation!$C$26*(1+Title_RESULTS!$H$18/100)^('Sheet4(F_22)'!A24-Title_RESULTS!$H$7))/1000 -> 168.2902737 | G24: =(+E24+F24)*Partcipation!$H24 -> 289.0911268 | H24: =+'Sheet5(p_5)'!$F24*'Sheet2(F_12)'!$I24 -> 1047.135919
A25: 2029 | B25: =VLOOKUP(A25,'Value of Defferal'!$I32:$P$58,'Value of Defferal'!$K$9) -> 26.13805907 | C25: =IF(+Title_RESULTS!$H$9<='Sheet4(F_22)'!$A25,(+Title_RESULTS!$H$16*((1+Title_RESULTS!$H$18/100)^('Sheet4(F_22)'!$A25-Title_RESULTS!$H$7))*Title_RESULTS!$C$8*Partcipation!$C$26/1000),0) -> 21.06753658 | D25: =(+B25+C25)*+Partcipation!$H25 -> 47.20559565 | E25: =VLOOKUP(A25,'Value of Defferal'!$I32:$P$58,'Value of Defferal'!$K$13) -> 123.7000736 | F25: =IF(+'Value of Defferal'!P32=0,0,Title_RESULTS!$H$17*Title_RESULTS!$C$7*Partcipation!$C$26*(1+Title_RESULTS!$H$18/100)^('Sheet4(F_22)'!A25-Title_RESULTS!$H$7))/1000 -> 172.3292403 | G25: =(+E25+F25)*Partcipation!$H25 -> 296.0293139 | H25: =+'Sheet5(p_5)'!$F25*'Sheet2(F_12)'!$I25 -> 1121.864008
A26: 2030 | B26: =VLOOKUP(A26,'Value of Defferal'!$I33:$P$58,'Value of Defferal'!$K$9) -> 26.76537249 | C26: =IF(+Title_RESULTS!$H$9<='Sheet4(F_22)'!$A26,(+Title_RESULTS!$H$16*((1+Title_RESULTS!$H$18/100)^('Sheet4(F_22)'!$A26-Title_RESULTS!$H$7))*Title_RESULTS!$C$8*Partcipation!$C$26/1000),0) -> 21.57315746 | D26: =(+B26+C26)*+Partcipation!$H26 -> 48.33852994 | E26: =VLOOKUP(A26,'Value of Defferal'!$I33:$P$58,'Value of Defferal'!$K$13) -> 126.6688754 | F26: =IF(+'Value of Defferal'!P33=0,0,Title_RESULTS!$H$17*Title_RESULTS!$C$7*Partcipation!$C$26*(1+Title_RESULTS!$H$18/100)^('Sheet4(F_22)'!A26-Title_RESULTS!$H$7))/1000 -> 176.4651421 | G26: =(+E26+F26)*Partcipation!$H26 -> 303.1340174 | H26: =+'Sheet5(p_5)'!$F26*'Sheet2(F_12)'!$I26 -> 1253.059945
A27: 2031 | B27: =VLOOKUP(A27,'Value of Defferal'!$I34:$P$58,'Value of Defferal'!$K$9) -> 27.40774143 | C27: =IF(+Title_RESULTS!$H$9<='Sheet4(F_22)'!$A27,(+Title_RESULTS!$H$16*((1+Title_RESULTS!$H$18/100)^('Sheet4(F_22)'!$A27-Title_RESULTS!$H$7))*Title_RESULTS!$C$8*Partcipation!$C$26/1000),0) -> 22.09091324 | D27: =(+B27+C27)*+Partcipation!$H27 -> 49.49865466 | E27: =VLOOKUP(A27,'Value of Defferal'!$I34:$P$58,'Value of Defferal'!$K$13) -> 129.7089284 | F27: =IF(+'Value of Defferal'!P34=0,0,Title_RESULTS!$H$17*Title_RESULTS!$C$7*Partcipation!$C$26*(1+Title_RESULTS!$H$18/100)^('Sheet4(F_22)'!A27-Title_RESULTS!$H$7))/1000 -> 180.7003055 | G27: =(+E27+F27)*Partcipation!$H27 -> 310.4092338 | H27: =+'Sheet5(p_5)'!$F27*'Sheet2(F_12)'!$I27 -> 1248.400009
A28: 2032 | B28: =VLOOKUP(A28,'Value of Defferal'!$I35:$P$58,'Value of Defferal'!$K$9) -> 28.06552722 | C28: =IF(+Title_RESULTS!$H$9<='Sheet4(F_22)'!$A28,(+Title_RESULTS!$H$16*((1+Title_RESULTS!$H$18/100)^('Sheet4(F_22)'!$A28-Title_RESULTS!$H$7))*Title_RESULTS!$C$8*Partcipation!$C$26/1000),0) -> 22.62109515 | D28: =(+B28+C28)*+Partcipation!$H28 -> 50.68662237 | E28: =VLOOKUP(A28,'Value of Defferal'!$I35:$P$58,'Value of Defferal'!$K$13) -> 132.8219426 | F28: =IF(+'Value of Defferal'!P35=0,0,Title_RESULTS!$H$17*Title_RESULTS!$C$7*Partcipation!$C$26*(1+Title_RESULTS!$H$18/100)^('Sheet4(F_22)'!A28-Title_RESULTS!$H$7))/1000 -> 185.0371128 | G28: =(+E28+F28)*Partcipation!$H28 -> 317.8590554 | H28: =+'Sheet5(p_5)'!$F28*'Sheet2(F_12)'!$I28 -> 1364.385828
A29: 2033 | B29: =VLOOKUP(A29,'Value of Defferal'!$I36:$P$58,'Value of Defferal'!$K$9) -> 28.73909987 | C29: =IF(+Title_RESULTS!$H$9<='Sheet4(F_22)'!$A29,(+Title_RESULTS!$H$16*((1+Title_RESULTS!$H$18/100)^('Sheet4(F_22)'!$A29-Title_RESULTS!$H$7))*Title_RESULTS!$C$8*Partcipation!$C$26/1000),0) -> 23.16400144 | D29: =(+B29+C29)*+Partcipation!$H29 -> 51.90310131 | E29: =VLOOKUP(A29,'Value of Defferal'!$I36:$P$58,'Value of Defferal'!$K$13) -> 136.0096693 | F29: =IF(+'Value of Defferal'!P36=0,0,Title_RESULTS!$H$17*Title_RESULTS!$C$7*Partcipation!$C$26*(1+Title_RESULTS!$H$18/100)^('Sheet4(F_22)'!A29-Title_RESULTS!$H$7))/1000 -> 189.4780035 | G29: =(+E29+F29)*Partcipation!$H29 -> 325.4876728 | H29: =+'Sheet5(p_5)'!$F29*'Sheet2(F_12)'!$I29 -> 1454.993375
A30: 2034 | B30: =VLOOKUP(A30,'Value of Defferal'!$I37:$P$58,'Value of Defferal'!$K$9) -> 29.42883827 | C30: =IF(+Title_RESULTS!$H$9<='Sheet4(F_22)'!$A30,(+Title_RESULTS!$H$16*((1+Title_RESULTS!$H$18/100)^('Sheet4(F_22)'!$A30-Title_RESULTS!$H$7))*Title_RESULTS!$C$8*Partcipation!$C$26/1000),0) -> 23.71993747 | D30: =(+B30+C30)*+Partcipation!$H30 -> 53.14877574 | E30: =VLOOKUP(A30,'Value of Defferal'!$I37:$P$58,'Value of Defferal'!$K$13) -> 139.2739013 | F30: =IF(+'Value of Defferal'!P37=0,0,Title_RESULTS!$H$17*Title_RESULTS!$C$7*Partcipation!$C$26*(1+Title_RESULTS!$H$18/100)^('Sheet4(F_22)'!A30-Title_RESULTS!$H$7))/1000 -> 194.0254756 | G30: =(+E30+F30)*Partcipation!$H30 -> 333.2993769 | H30: =+'Sheet5(p_5)'!$F30*'Sheet2(F_12)'!$I30 -> 1522.74117
A31: 2035 | B31: =VLOOKUP(A31,'Value of Defferal'!$I38:$P$58,'Value of Defferal'!$K$9) -> 30.13513039 | C31: =IF(+Title_RESULTS!$H$9<='Sheet4(F_22)'!$A31,(+Title_RESULTS!$H$16*((1+Title_RESULTS!$H$18/100)^('Sheet4(F_22)'!$A31-Title_RESULTS!$H$7))*Title_RESULTS!$C$8*Partcipation!$C$26/1000),0) -> 24.28921597 | D31: =(+B31+C31)*+Partcipation!$H31 -> 54.42434636 | E31: =VLOOKUP(A31,'Value of Defferal'!$I38:$P$58,'Value of Defferal'!$K$13) -> 142.616475 | F31: =IF(+'Value of Defferal'!P38=0,0,Title_RESULTS!$H$17*Title_RESULTS!$C$7*Partcipation!$C$26*(1+Title_RESULTS!$H$18/100)^('Sheet4(F_22)'!A31-Title_RESULTS!$H$7))/1000 -> 198.682087 | G31: =(+E31+F31)*Partcipation!$H31 -> 341.298562 | H31: =+'Sheet5(p_5)'!$F31*'Sheet2(F_12)'!$I31 -> 1677.066629
A32: 2036 | B32: =VLOOKUP(A32,'Value of Defferal'!$I39:$P$58,'Value of Defferal'!$K$9) -> 30.85837352 | C32: =IF(+Title_RESULTS!$H$9<='Sheet4(F_22)'!$A32,(+Title_RESULTS!$H$16*((1+Title_RESULTS!$H$18/100)^('Sheet4(F_22)'!$A32-Title_RESULTS!$H$7))*Title_RESULTS!$C$8*Partcipation!$C$26/1000),0) -> 24.87215716 | D32: =(+B32+C32)*+Partcipation!$H32 -> 55.73053067 | E32: =VLOOKUP(A32,'Value of Defferal'!$I39:$P$58,'Value of Defferal'!$K$13) -> 146.0392704 | F32: =IF(+'Value of Defferal'!P39=0,0,Title_RESULTS!$H$17*Title_RESULTS!$C$7*Partcipation!$C$26*(1+Title_RESULTS!$H$18/100)^('Sheet4(F_22)'!A32-Title_RESULTS!$H$7))/1000 -> 203.4504571 | G32: =(+E32+F32)*Partcipation!$H32 -> 349.4897275 | H32: =+'Sheet5(p_5)'!$F32*'Sheet2(F_12)'!$I32 -> 1656.442997
A33: 2037 | B33: =VLOOKUP(A33,'Value of Defferal'!$I40:$P$58,'Value of Defferal'!$K$9) -> 31.59897448 | C33: =IF(+Title_RESULTS!$H$9<='Sheet4(F_22)'!$A33,(+Title_RESULTS!$H$16*((1+Title_RESULTS!$H$18/100)^('Sheet4(F_22)'!$A33-Title_RESULTS!$H$7))*Title_RESULTS!$C$8*Partcipation!$C$26/1000),0) -> 25.46908893 | D33: =(+B33+C33)*+Partcipation!$H33 -> 57.06806341 | E33: =VLOOKUP(A33,'Value of Defferal'!$I40:$P$58,'Value of Defferal'!$K$13) -> 149.5442128 | F33: =IF(+'Value of Defferal'!P40=0,0,Title_RESULTS!$H$17*Title_RESULTS!$C$7*Partcipation!$C$26*(1+Title_RESULTS!$H$18/100)^('Sheet4(F_22)'!A33-Title_RESULTS!$H$7))/1000 -> 208.3332681 | G33: =(+E33+F33)*Partcipation!$H33 -> 357.8774809 | H33: =+'Sheet5(p_5)'!$F33*'Sheet2(F_12)'!$I33 -> 1767.945846
A34: 2038 | B34: =VLOOKUP(A34,'Value of Defferal'!$I41:$P$58,'Value of Defferal'!$K$9) -> 32.35734987 | C34: =IF(+Title_RESULTS!$H$9<='Sheet4(F_22)'!$A34,(+Title_RESULTS!$H$16*((1+Title_RESULTS!$H$18/100)^('Sheet4(F_22)'!$A34-Title_RESULTS!$H$7))*Title_RESULTS!$C$8*Partcipation!$C$26/1000),0) -> 26.08034706 | D34: =(+B34+C34)*+Partcipation!$H34 -> 58.43769693 | E34: =VLOOKUP(A34,'Value of Defferal'!$I41:$P$58,'Value of Defferal'!$K$13) -> 153.133274 | F34: =IF(+'Value of Defferal'!P41=0,0,Title_RESULTS!$H$17*Title_RESULTS!$C$7*Partcipation!$C$26*(1+Title_RESULTS!$H$18/100)^('Sheet4(F_22)'!A34-Title_RESULTS!$H$7))/1000 -> 213.3332665 | G34: =(+E34+F34)*Partcipation!$H34 -> 366.4665405 | H34: =+'Sheet5(p_5)'!$F34*'Sheet2(F_12)'!$I34 -> 1774.642009
A35: 2039 | B35: =VLOOKUP(A35,'Value of Defferal'!$I42:$P$58,'Value of Defferal'!$K$9) -> 33.13392627 | C35: =IF(+Title_RESULTS!$H$9<='Sheet4(F_22)'!$A35,(+Title_RESULTS!$H$16*((1+Title_RESULTS!$H$18/100)^('Sheet4(F_22)'!$A35-Title_RESULTS!$H$7))*Title_RESULTS!$C$8*Partcipation!$C$26/1000),0) -> 26.70627539 | D35: =(+B35+C35)*+Partcipation!$H35 -> 59.84020166 | E35: =VLOOKUP(A35,'Value of Defferal'!$I42:$P$58,'Value of Defferal'!$K$13) -> 156.8084725 | F35: =IF(+'Value of Defferal'!P42=0,0,Title_RESULTS!$H$17*Title_RESULTS!$C$7*Partcipation!$C$26*(1+Title_RESULTS!$H$18/100)^('Sheet4(F_22)'!A35-Title_RESULTS!$H$7))/1000 -> 218.4532649 | G35: =(+E35+F35)*Partcipation!$H35 -> 375.2617374 | H35: =+'Sheet5(p_5)'!$F35*'Sheet2(F_12)'!$I35 -> 1776.478605
A36: 2040 | B36: =VLOOKUP(A36,'Value of Defferal'!$I43:$P$58,'Value of Defferal'!$K$9) -> 33.9291405 | C36: =IF(+Title_RESULTS!$H$9<='Sheet4(F_22)'!$A36,(+Title_RESULTS!$H$16*((1+Title_RESULTS!$H$18/100)^('Sheet4(F_22)'!$A36-Title_RESULTS!$H$7))*Title_RESULTS!$C$8*Partcipation!$C$26/1000),0) -> 27.347226 | D36: =(+B36+C36)*+Partcipation!$H36 -> 61.2763665 | E36: =VLOOKUP(A36,'Value of Defferal'!$I43:$P$58,'Value of Defferal'!$K$13) -> 160.5718759 | F36: =IF(+'Value of Defferal'!P43=0,0,Title_RESULTS!$H$17*Title_RESULTS!$C$7*Partcipation!$C$26*(1+Title_RESULTS!$H$18/100)^('Sheet4(F_22)'!A36-Title_RESULTS!$H$7))/1000 -> 223.6961433 | G36: =(+E36+F36)*Partcipation!$H36 -> 384.2680191 | H36: =+'Sheet5(p_5)'!$F36*'Sheet2(F_12)'!$I36 -> 1911.573758
A37: 2041 | B37: =VLOOKUP(A37,'Value of Defferal'!$I44:$P$58,'Value of Defferal'!$K$9) -> 34.74343987 | C37: =IF(+Title_RESULTS!$H$9<='Sheet4(F_22)'!$A37,(+Title_RESULTS!$H$16*((1+Title_RESULTS!$H$18/100)^('Sheet4(F_22)'!$A37-Title_RESULTS!$H$7))*Title_RESULTS!$C$8*Partcipation!$C$26/1000),0) -> 28.00355942 | D37: =(+B37+C37)*+Partcipation!$H37 -> 62.74699929 | E37: =VLOOKUP(A37,'Value of Defferal'!$I44:$P$58,'Value of Defferal'!$K$13) -> 164.4256009 | F37: =IF(+'Value of Defferal'!P44=0,0,Title_RESULTS!$H$17*Title_RESULTS!$C$7*Partcipation!$C$26*(1+Title_RESULTS!$H$18/100)^('Sheet4(F_22)'!A37-Title_RESULTS!$H$7))/1000 -> 229.0648507 | G37: =(+E37+F37)*Partcipation!$H37 -> 393.4904516 | H37: =+'Sheet5(p_5)'!$F37*'Sheet2(F_12)'!$I37 -> 1968.770853
A38: 2042 | B38: =VLOOKUP(A38,'Value of Defferal'!$I45:$P$58,'Value of Defferal'!$K$9) -> 35.57728243 | C38: =IF(+Title_RESULTS!$H$9<='Sheet4(F_22)'!$A38,(+Title_RESULTS!$H$16*((1+Title_RESULTS!$H$18/100)^('Sheet4(F_22)'!$A38-Title_RESULTS!$H$7))*Title_RESULTS!$C$8*Partcipation!$C$26/1000),0) -> 28.67564485 | D38: =(+B38+C38)*+Partcipation!$H38 -> 64.25292728 | E38: =VLOOKUP(A38,'Value of Defferal'!$I45:$P$58,'Value of Defferal'!$K$13) -> 168.3718153 | F38: =IF(+'Value of Defferal'!P45=0,0,Title_RESULTS!$H$17*Title_RESULTS!$C$7*Partcipation!$C$26*(1+Title_RESULTS!$H$18/100)^('Sheet4(F_22)'!A38-Title_RESULTS!$H$7))/1000 -> 234.5624071 | G38: =(+E38+F38)*Partcipation!$H38 -> 402.9342224 | H38: =+'Sheet5(p_5)'!$F38*'Sheet2(F_12)'!$I38 -> 2104.823505
A39: 2043 | B39: =VLOOKUP(A39,'Value of Defferal'!$I46:$P$58,'Value of Defferal'!$K$9) -> 36.43113721 | C39: =IF(+Title_RESULTS!$H$9<='Sheet4(F_22)'!$A39,(+Title_RESULTS!$H$16*((1+Title_RESULTS!$H$18/100)^('Sheet4(F_22)'!$A39-Title_RESULTS!$H$7))*Title_RESULTS!$C$8*Partcipation!$C$26/1000),0) -> 29.36386033 | D39: =(+B39+C39)*+Partcipation!$H39 -> 65.79499753 | E39: =VLOOKUP(A39,'Value of Defferal'!$I46:$P$58,'Value of Defferal'!$K$13) -> 172.4127389 | F39: =IF(+'Value of Defferal'!P46=0,0,Title_RESULTS!$H$17*Title_RESULTS!$C$7*Partcipation!$C$26*(1+Title_RESULTS!$H$18/100)^('Sheet4(F_22)'!A39-Title_RESULTS!$H$7))/1000 -> 240.1919049 | G39: =(+E39+F39)*Partcipation!$H39 -> 412.6046438 | H39: =+'Sheet5(p_5)'!$F39*'Sheet2(F_12)'!$I39 -> 2154.788062
A40: 2044 | B40: =VLOOKUP(A40,'Value of Defferal'!$I47:$P$58,'Value of Defferal'!$K$9) -> 37.3054845 | C40: =IF(+Title_RESULTS!$H$9<='Sheet4(F_22)'!$A40,(+Title_RESULTS!$H$16*((1+Title_RESULTS!$H$18/100)^('Sheet4(F_22)'!$A40-Title_RESULTS!$H$7))*Title_RESULTS!$C$8*Partcipation!$C$26/1000),0) -> 30.06859297 | D40: =(+B40+C40)*+Partcipation!$H40 -> 67.37407747 | E40: =VLOOKUP(A40,'Value of Defferal'!$I47:$P$58,'Value of Defferal'!$K$13) -> 176.5506446 | F40: =IF(+'Value of Defferal'!P47=0,0,Title_RESULTS!$H$17*Title_RESULTS!$C$7*Partcipation!$C$26*(1+Title_RESULTS!$H$18/100)^('Sheet4(F_22)'!A40-Title_RESULTS!$H$7))/1000 -> 245.9565106 | G40: =(+E40+F40)*Partcipation!$H40 -> 422.5071552 | H40: =+'Sheet5(p_5)'!$F40*'Sheet2(F_12)'!$I40 -> 2071.853959
A42: NOMINAL | B42: =SUM(B16:B41) -> 690.8300173 | C42: 556.8158914 | D42: 1247.645909 | E42: 3269.398227 | F42: 4554.669179 | G42: 7824.067406 | H42: 33246.26015
A44: NPV: | B44: =NPV(Title_RESULTS!$C$37,'Sheet4(F_22)'!B17:B41)+'Sheet4(F_22)'!B16 -> 303.9234552 | C44: =NPV(Title_RESULTS!$C$37,'Sheet4(F_22)'!C17:C41)+'Sheet4(F_22)'!C16 -> 244.9653393 | D44: =NPV(Title_RESULTS!$C$37,'Sheet4(F_22)'!D17:D41)+'Sheet4(F_22)'!D16 -> 548.8887945 | E44: =NPV(Title_RESULTS!$C$37,'Sheet4(F_22)'!E17:E41)+'Sheet4(F_22)'!E16 -> 1438.337624 | F44: =NPV(Title_RESULTS!$C$37,'Sheet4(F_22)'!F17:F41)+'Sheet4(F_22)'!F16 -> 2003.779164 | G44: =NPV(Title_RESULTS!$C$37,'Sheet4(F_22)'!G17:G41)+'Sheet4(F_22)'!G16 -> 3442.116787 | H44: =NPV(Title_RESULTS!$C$37,'Sheet4(F_22)'!H17:H41)+'Sheet4(F_22)'!H16 -> 13218.16805
A46: * SUPPLEMENTAL INFORMATION NOT SPECIFIED IN WORKBOOK

Sheet Sheet6(p_6)
C1: * WORKSHEET: UTILITY COSTS AND PARTICIPANT COSTS AND REV LOSS/GAIN | P1: WORKSHEET FOR FORM CE 2.2
C2: PROGRAM: | E2: =+Input!C3 -> Retro-Commissioning | P2: Page 2 of 2
P3: =+Title_RESULTS!I4 -> 2019-05-14T07:54:57.350
A7: (1) | B7: (2) | C7: (3) | D7: (4) | E7: (5) | F7: (6) | G7: (7) | H7: (8) | I7: (9) | J7: (10) | K7: (11) | L7: (12) | M7: (13) | N7: (14) | O7: (15) | P7: (16) | Q7: (17) | R7: (18)
B9: <----- UTILITY PROGRAM COSTS & REBATES -------> | H9: <------------------ PARTICIPATING CUSTOMER COSTS & BENEFITS ---------------------->
D11: TOTAL | G11: TOTAL | H11: PARTIC. | I11: PARTIC. | J11: TOTAL | K11: REDUCT. | L11: RED. | M11: RED. | N11: EFFECT. | O11: INC. | P11: INC. | Q11: INC. | R11: EFFECT.
B12: UTIL | C12: UTIL | D12: UTIL | E12: UTIL | F12: UTIL | G12: REBATE/ | H12: CUST | I12: CUST | J12: COSTS | K12: IN | L12: REV. | M12: REV. | N12: REV. | O12: IN | P12: REV. | Q12: REV. | R12: REVENUE
B13: NONREC. | C13: RECUR | D13: PGM | E13: NONREC. | F13: RECUR. | G13: INCENT. | H13: EQUIP | I13: O & M | J13: PARTIC. | K13: CUST. | L13: - FUEL | M13: NONFUEL | N13: REDUCT. | O13: CUST. | P13: - FUEL | Q13: NONFUEL | R13: INC.
B14: COSTS | C14: COSTS | D14: COSTS | E14: REBATES | F14: REBATES | G14: COSTS | H14: COSTS | I14: COSTS | J14: CUST | K14: KWH | L14: PORTION | M14: PORTION | N14: TO CUST | O14: KWH | P14: PORTION | Q14: PORTION | R14: IN BILL
A15: YEAR | B15: $(000) | C15: $(000) | D15: $(000) | E15: $(000) | F15: $(000) | G15: $(000) | H15: $(000) | I15: $(000) | J15: $(000) | K15: (000) | L15: $(000) | M15: $(000) | N15: $(000) | O15: (000) | P15: $(000) | R15: $(000)
A16: =+Title_RESULTS!H7 -> 2020 | B16: =IF(+'Sheet9(F_25)'!$A16>=Title_RESULTS!$H$8,0,((Partcipation!$B16-Partcipation!$B15)*(Title_RESULTS!$C$26*((1+Title_RESULTS!$C$28/100)^('Sheet9(F_25)'!$A16-Title_RESULTS!$H$7)))/1000)) -> 0 | C16: =(Partcipation!$C15+(Partcipation!$C16-Partcipation!$C15)/2)*(Title_RESULTS!$C$27*((1+Title_RESULTS!$C$28/100)^('Sheet9(F_25)'!$A16-Title_RESULTS!$H$7)))/1000 -> 0 | D16: =SUM(B16:C16) -> 0 | E16: =IF(+'Sheet9(F_25)'!$A16>=Title_RESULTS!$H$8,0,((Partcipation!$B16-Partcipation!$B15)*(Title_RESULTS!$C$39*((1+Title_RESULTS!$C$41/100)^('Sheet9(F_25)'!$A16-Title_RESULTS!$H$7)))/1000)) -> 0 | F16: =(Partcipation!$C15+(Partcipation!$C16-Partcipation!$C15)/2)*(Title_RESULTS!$C$40*((1+Title_RESULTS!$C$41/100)^('Sheet9(F_25)'!$A16-Title_RESULTS!$H$7)))/1000 -> 0 | G16: =SUM(E16:F16) -> 0 | H16: =IF(Partcipation!$B17<Partcipation!$B16,0,IF(Partcipation!$B16=0,0,(Partcipation!$B16-Partcipation!$B15)*(+Title_RESULTS!$C$29*(1+Title_RESULTS!$C$30/100)^(+'Sheet8(F_24)'!$A16-Title_RESULTS!$H$7))/1000)) -> 4819.197737 | I16: =IF(+Title_RESULTS!$C$31<0,0,(+Partcipation!$B15+(Partcipation!$B16-Partcipation!$B15)/2)*(+Title_RESULTS!$C$31*(1+Title_RESULTS!$C$32/100)^(+'Sheet6(p_6)'!$A16-Title_RESULTS!$H$7))/1000) -> 0 | J16: =SUM(H16:I16) -> 4819.197737 | K16: =(+Partcipation!$B15+(Partcipation!$B16-Partcipation!$B15)/2)*(+Title_RESULTS!$C$14)/1000 -> 3947.2 | L16: =($K16)*Partcipation!$E73*Title_RESULTS!$C$12/100 -> 96.09902624 | M16: =((+$K16*(Title_RESULTS!$H$30/100)*((1+Title_RESULTS!$H$31/100)^('Sheet9(F_25)'!$A16-Title_RESULTS!$H$7)))+((Title_RESULTS!$H$32*Title_RESULTS!$H$35*12*Title_RESULTS!$C$7/1000)*(Partcipation!$B15+(Partcipation!$B16-Partcipation!$B15)/2))*((1+Title_RESULTS!$H$33/100)^('Sheet9(F_25)'!$A16-Title_RESULTS!$H$7))) -> 319.4714707 | N16: ='Sheet2(F_12)'!$I16*('Sheet6(p_6)'!$L16+'Sheet6(p_6)'!$M16) -> 415.5704969 | O16: =(Partcipation!$B15+(Partcipation!$B16-Partcipation!$B15)/2)*(Title_RESULTS!$C$13)/1000 -> 0 | P16: =($O16)*'Sheet2(F_12)'!$D16*Title_RESULTS!$C$12/100 -> 0 | Q16: =+$O16*((Title_RESULTS!$H$30/100)*((1+Title_RESULTS!$H$31/100)^('Sheet9(F_25)'!$A16-Title_RESULTS!$H$7))) -> 0 | R16: =+Partcipation!$I16*('Sheet6(p_6)'!$P16-'Sheet6(p_6)'!$Q16) -> 0
A17: =+A16+1 -> 2021 | B17: =IF(+'Sheet9(F_25)'!$A17>=Title_RESULTS!$H$8,0,((Partcipation!$B17-Partcipation!$B16)*(Title_RESULTS!$C$26*((1+Title_RESULTS!$C$28/100)^('Sheet9(F_25)'!$A17-Title_RESULTS!$H$7)))/1000)) -> 0 | C17: =(Partcipation!$C16+(Partcipation!$C17-Partcipation!$C16)/2)*(Title_RESULTS!$C$27*((1+Title_RESULTS!$C$28/100)^('Sheet9(F_25)'!$A17-Title_RESULTS!$H$7)))/1000 -> 0 | D17: =SUM(B17:C17) -> 0 | E17: =IF(+'Sheet9(F_25)'!$A17>=Title_RESULTS!$H$8,0,((Partcipation!$B17-Partcipation!$B16)*(Title_RESULTS!$C$39*((1+Title_RESULTS!$C$41/100)^('Sheet9(F_25)'!$A17-Title_RESULTS!$H$7)))/1000)) -> 0 | F17: =(Partcipation!$C16+(Partcipation!$C17-Partcipation!$C16)/2)*(Title_RESULTS!$C$40*((1+Title_RESULTS!$C$41/100)^('Sheet9(F_25)'!$A17-Title_RESULTS!$H$7)))/1000 -> 0 | G17: =SUM(E17:F17) -> 0 | H17: =IF(Partcipation!$B18<Partcipation!$B17,0,IF(Partcipation!$B17=0,0,(Partcipation!$B17-Partcipation!$B16)*(+Title_RESULTS!$C$29*(1+Title_RESULTS!$C$30/100)^(+'Sheet8(F_24)'!$A17-Title_RESULTS!$H$7))/1000)) -> 4930.039285 | I17: =IF(+Title_RESULTS!$C$31<0,0,(+Partcipation!$B16+(Partcipation!$B17-Partcipation!$B16)/2)*(+Title_RESULTS!$C$31*(1+Title_RESULTS!$C$32/100)^(+'Sheet6(p_6)'!$A17-Title_RESULTS!$H$7))/1000) -> 0 | J17: =SUM(H17:I17) -> 4930.039285 | K17: =(+Partcipation!$B16+(Partcipation!$B17-Partcipation!$B16)/2)*(+Title_RESULTS!$C$14)/1000 -> 11841.6 | L17: =($K17)*Partcipation!$E74*Title_RESULTS!$C$12/100 -> 302.0181411 | M17: =((+$K17*(Title_RESULTS!$H$30/100)*((1+Title_RESULTS!$H$31/100)^('Sheet9(F_25)'!$A17-Title_RESULTS!$H$7)))+((Title_RESULTS!$H$32*Title_RESULTS!$H$35*12*Title_RESULTS!$C$7/1000)*(Partcipation!$B16+(Partcipation!$B17-Partcipation!$B16)/2))*((1+Title_RESULTS!$H$33/100)^('Sheet9(F_25)'!$A17-Title_RESULTS!$H$7))) -> 967.9985562 | N17: ='Sheet2(F_12)'!$I17*('Sheet6(p_6)'!$L17+'Sheet6(p_6)'!$M17) -> 1270.016697 | O17: =(Partcipation!$B16+(Partcipation!$B17-Partcipation!$B16)/2)*(Title_RESULTS!$C$13)/1000 -> 0 | P17: =($O17)*'Sheet2(F_12)'!$D17*Title_RESULTS!$C$12/100 -> 0 | Q17: =+$O17*((Title_RESULTS!$H$30/100)*((1+Title_RESULTS!$H$31/100)^('Sheet9(F_25)'!$A17-Title_RESULTS!$H$7))) -> 0 | R17: =+Partcipation!$I17*('Sheet6(p_6)'!$P17-'Sheet6(p_6)'!$Q17) -> 0
A18: =+A17+1 -> 2022 | B18: =IF(+'Sheet9(F_25)'!$A18>=Title_RESULTS!$H$8,0,((Partcipation!$B18-Partcipation!$B17)*(Title_RESULTS!$C$26*((1+Title_RESULTS!$C$28/100)^('Sheet9(F_25)'!$A18-Title_RESULTS!$H$7)))/1000)) -> 0 | C18: =(Partcipation!$C17+(Partcipation!$C18-Partcipation!$C17)/2)*(Title_RESULTS!$C$27*((1+Title_RESULTS!$C$28/100)^('Sheet9(F_25)'!$A18-Title_RESULTS!$H$7)))/1000 -> 0 | D18: =SUM(B18:C18) -> 0 | E18: =IF(+'Sheet9(F_25)'!$A18>=Title_RESULTS!$H$8,0,((Partcipation!$B18-Partcipation!$B17)*(Title_RESULTS!$C$39*((1+Title_RESULTS!$C$41/100)^('Sheet9(F_25)'!$A18-Title_RESULTS!$H$7)))/1000)) -> 0 | F18: =(Partcipation!$C17+(Partcipation!$C18-Partcipation!$C17)/2)*(Title_RESULTS!$C$40*((1+Title_RESULTS!$C$41/100)^('Sheet9(F_25)'!$A18-Title_RESULTS!$H$7)))/1000 -> 0 | G18: =SUM(E18:F18) -> 0 | H18: =IF(Partcipation!$B19<Partcipation!$B18,0,IF(Partcipation!$B18=0,0,(Partcipation!$B18-Partcipation!$B17)*(+Title_RESULTS!$C$29*(1+Title_RESULTS!$C$30/100)^(+'Sheet8(F_24)'!$A18-Title_RESULTS!$H$7))/1000)) -> 5043.430188 | I18: =IF(+Title_RESULTS!$C$31<0,0,(+Partcipation!$B17+(Partcipation!$B18-Partcipation!$B17)/2)*(+Title_RESULTS!$C$31*(1+Title_RESULTS!$C$32/100)^(+'Sheet6(p_6)'!$A18-Title_RESULTS!$H$7))/1000) -> 0 | J18: =SUM(H18:I18) -> 5043.430188 | K18: =(+Partcipation!$B17+(Partcipation!$B18-Partcipation!$B17)/2)*(+Title_RESULTS!$C$14)/1000 -> 19736 | L18: =($K18)*Partcipation!$E75*Title_RESULTS!$C$12/100 -> 521.9051608 | M18: =((+$K18*(Title_RESULTS!$H$30/100)*((1+Title_RESULTS!$H$31/100)^('Sheet9(F_25)'!$A18-Title_RESULTS!$H$7)))+((Title_RESULTS!$H$32*Title_RESULTS!$H$35*12*Title_RESULTS!$C$7/1000)*(Partcipation!$B17+(Partcipation!$B18-Partcipation!$B17)/2))*((1+Title_RESULTS!$H$33/100)^('Sheet9(F_25)'!$A18-Title_RESULTS!$H$7))) -> 1629.464236 | N18: ='Sheet2(F_12)'!$I18*('Sheet6(p_6)'!$L18+'Sheet6(p_6)'!$M18) -> 2151.369397 | O18: =(Partcipation!$B17+(Partcipation!$B18-Partcipation!$B17)/2)*(Title_RESULTS!$C$13)/1000 -> 0 | P18: =($O18)*'Sheet2(F_12)'!$D18*Title_RESULTS!$C$12/100 -> 0 | Q18: =+$O18*((Title_RESULTS!$H$30/100)*((1+Title_RESULTS!$H$31/100)^('Sheet9(F_25)'!$A18-Title_RESULTS!$H$7))) -> 0 | R18: =+Partcipation!$I18*('Sheet6(p_6)'!$P18-'Sheet6(p_6)'!$Q18) -> 0
A19: =+A18+1 -> 2023 | B19: =IF(+'Sheet9(F_25)'!$A19>=Title_RESULTS!$H$8,0,((Partcipation!$B19-Partcipation!$B18)*(Title_RESULTS!$C$26*((1+Title_RESULTS!$C$28/100)^('Sheet9(F_25)'!$A19-Title_RESULTS!$H$7)))/1000)) -> 0 | C19: =(Partcipation!$C18+(Partcipation!$C19-Partcipation!$C18)/2)*(Title_RESULTS!$C$27*((1+Title_RESULTS!$C$28/100)^('Sheet9(F_25)'!$A19-Title_RESULTS!$H$7)))/1000 -> 0 | D19: =SUM(B19:C19) -> 0 | E19: =IF(+'Sheet9(F_25)'!$A19>=Title_RESULTS!$H$8,0,((Partcipation!$B19-Partcipation!$B18)*(Title_RESULTS!$C$39*((1+Title_RESULTS!$C$41/100)^('Sheet9(F_25)'!$A19-Title_RESULTS!$H$7)))/1000)) -> 0 | F19: =(Partcipation!$C18+(Partcipation!$C19-Partcipation!$C18)/2)*(Title_RESULTS!$C$40*((1+Title_RESULTS!$C$41/100)^('Sheet9(F_25)'!$A19-Title_RESULTS!$H$7)))/1000 -> 0 | G19: =SUM(E19:F19) -> 0 | H19: =IF(Partcipation!$B20<Partcipation!$B19,0,IF(Partcipation!$B19=0,0,(Partcipation!$B19-Partcipation!$B18)*(+Title_RESULTS!$C$29*(1+Title_RESULTS!$C$30/100)^(+'Sheet8(F_24)'!$A19-Title_RESULTS!$H$7))/1000)) -> 0 | I19: =IF(+Title_RESULTS!$C$31<0,0,(+Partcipation!$B18+(Partcipation!$B19-Partcipation!$B18)/2)*(+Title_RESULTS!$C$31*(1+Title_RESULTS!$C$32/100)^(+'Sheet6(p_6)'!$A19-Title_RESULTS!$H$7))/1000) -> 0 | J19: =SUM(H19:I19) -> 0 | K19: =(+Partcipation!$B18+(Partcipation!$B19-Partcipation!$B18)/2)*(+Title_RESULTS!$C$14)/1000 -> 23683.2 | L19: =($K19)*Partcipation!$E76*Title_RESULTS!$C$12/100 -> 621.1522818 | M19: =((+$K19*(Title_RESULTS!$H$30/100)*((1+Title_RESULTS!$H$31/100)^('Sheet9(F_25)'!$A19-Title_RESULTS!$H$7)))+((Title_RESULTS!$H$32*Title_RESULTS!$H$35*12*Title_RESULTS!$C$7/1000)*(Partcipation!$B18+(Partcipation!$B19-Partcipation!$B18)/2))*((1+Title_RESULTS!$H$33/100)^('Sheet9(F_25)'!$A19-Title_RESULTS!$H$7))) -> 1974.910654 | N19: ='Sheet2(F_12)'!$I19*('Sheet6(p_6)'!$L19+'Sheet6(p_6)'!$M19) -> 2596.062936 | O19: =(Partcipation!$B18+(Partcipation!$B19-Partcipation!$B18)/2)*(Title_RESULTS!$C$13)/1000 -> 0 | P19: =($O19)*'Sheet2(F_12)'!$D19*Title_RESULTS!$C$12/100 -> 0 | Q19: =+$O19*((Title_RESULTS!$H$30/100)*((1+Title_RESULTS!$H$31/100)^('Sheet9(F_25)'!$A19-Title_RESULTS!$H$7))) -> 0 | R19: =+Partcipation!$I19*('Sheet6(p_6)'!$P19-'Sheet6(p_6)'!$Q19) -> 0
A20: 2024 | B20: =IF(+'Sheet9(F_25)'!$A20>=Title_RESULTS!$H$8,0,((Partcipation!$B20-Partcipation!$B19)*(Title_RESULTS!$C$26*((1+Title_RESULTS!$C$28/100)^('Sheet9(F_25)'!$A20-Title_RESULTS!$H$7)))/1000)) -> 0 | C20: =(Partcipation!$C19+(Partcipation!$C20-Partcipation!$C19)/2)*(Title_RESULTS!$C$27*((1+Title_RESULTS!$C$28/100)^('Sheet9(F_25)'!$A20-Title_RESULTS!$H$7)))/1000 -> 0 | D20: 0 | E20: =IF(+'Sheet9(F_25)'!$A20>=Title_RESULTS!$H$8,0,((Partcipation!$B20-Partcipation!$B19)*(Title_RESULTS!$C$39*((1+Title_RESULTS!$C$41/100)^('Sheet9(F_25)'!$A20-Title_RESULTS!$H$7)))/1000)) -> 0 | F20: =(Partcipation!$C19+(Partcipation!$C20-Partcipation!$C19)/2)*(Title_RESULTS!$C$40*((1+Title_RESULTS!$C$41/100)^('Sheet9(F_25)'!$A20-Title_RESULTS!$H$7)))/1000 -> 0 | G20: 0 | H20: =IF(Partcipation!$B21<Partcipation!$B20,0,IF(Partcipation!$B20=0,0,(Partcipation!$B20-Partcipation!$B19)*(+Title_RESULTS!$C$29*(1+Title_RESULTS!$C$30/100)^(+'Sheet8(F_24)'!$A20-Title_RESULTS!$H$7))/1000)) -> 0 | I20: =IF(+Title_RESULTS!$C$31<0,0,(+Partcipation!$B19+(Partcipation!$B20-Partcipation!$B19)/2)*(+Title_RESULTS!$C$31*(1+Title_RESULTS!$C$32/100)^(+'Sheet6(p_6)'!$A20-Title_RESULTS!$H$7))/1000) -> 0 | J20: 0 | K20: =(+Partcipation!$B19+(Partcipation!$B20-Partcipation!$B19)/2)*(+Title_RESULTS!$C$14)/1000 -> 23683.2 | L20: =($K20)*Partcipation!$E77*Title_RESULTS!$C$12/100 -> 656.3838737 | M20: =((+$K20*(Title_RESULTS!$H$30/100)*((1+Title_RESULTS!$H$31/100)^('Sheet9(F_25)'!$A20-Title_RESULTS!$H$7)))+((Title_RESULTS!$H$32*Title_RESULTS!$H$35*12*Title_RESULTS!$C$7/1000)*(Partcipation!$B19+(Partcipation!$B20-Partcipation!$B19)/2))*((1+Title_RESULTS!$H$33/100)^('Sheet9(F_25)'!$A20-Title_RESULTS!$H$7))) -> 1994.659761 | N20: ='Sheet2(F_12)'!$I20*('Sheet6(p_6)'!$L20+'Sheet6(p_6)'!$M20) -> 2651.043635 | O20: =(Partcipation!$B19+(Partcipation!$B20-Partcipation!$B19)/2)*(Title_RESULTS!$C$13)/1000 -> 0 | P20: =($O20)*'Sheet2(F_12)'!$D20*Title_RESULTS!$C$12/100 -> 0 | Q20: =+$O20*((Title_RESULTS!$H$30/100)*((1+Title_RESULTS!$H$31/100)^('Sheet9(F_25)'!$A20-Title_RESULTS!$H$7))) -> 0 | R20: =+Partcipation!$I20*('Sheet6(p_6)'!$P20-'Sheet6(p_6)'!$Q20) -> 0
A21: 2025 | B21: =IF(+'Sheet9(F_25)'!$A21>=Title_RESULTS!$H$8,0,((Partcipation!$B21-Partcipation!$B20)*(Title_RESULTS!$C$26*((1+Title_RESULTS!$C$28/100)^('Sheet9(F_25)'!$A21-Title_RESULTS!$H$7)))/1000)) -> 0 | C21: =(Partcipation!$C20+(Partcipation!$C21-Partcipation!$C20)/2)*(Title_RESULTS!$C$27*((1+Title_RESULTS!$C$28/100)^('Sheet9(F_25)'!$A21-Title_RESULTS!$H$7)))/1000 -> 0 | D21: 0 | E21: =IF(+'Sheet9(F_25)'!$A21>=Title_RESULTS!$H$8,0,((Partcipation!$B21-Partcipation!$B20)*(Title_RESULTS!$C$39*((1+Title_RESULTS!$C$41/100)^('Sheet9(F_25)'!$A21-Title_RESULTS!$H$7)))/1000)) -> 0 | F21: =(Partcipation!$C20+(Partcipation!$C21-Partcipation!$C20)/2)*(Title_RESULTS!$C$40*((1+Title_RESULTS!$C$41/100)^('Sheet9(F_25)'!$A21-Title_RESULTS!$H$7)))/1000 -> 0 | G21: 0 | H21: =IF(Partcipation!$B22<Partcipation!$B21,0,IF(Partcipation!$B21=0,0,(Partcipation!$B21-Partcipation!$B20)*(+Title_RESULTS!$C$29*(1+Title_RESULTS!$C$30/100)^(+'Sheet8(F_24)'!$A21-Title_RESULTS!$H$7))/1000)) -> 0 | I21: =IF(+Title_RESULTS!$C$31<0,0,(+Partcipation!$B20+(Partcipation!$B21-Partcipation!$B20)/2)*(+Title_RESULTS!$C$31*(1+Title_RESULTS!$C$32/100)^(+'Sheet6(p_6)'!$A21-Title_RESULTS!$H$7))/1000) -> 0 | J21: 0 | K21: =(+Partcipation!$B20+(Partcipation!$B21-Partcipation!$B20)/2)*(+Title_RESULTS!$C$14)/1000 -> 23683.2 | L21: =($K21)*Partcipation!$E78*Title_RESULTS!$C$12/100 -> 694.0594396 | M21: =((+$K21*(Title_RESULTS!$H$30/100)*((1+Title_RESULTS!$H$31/100)^('Sheet9(F_25)'!$A21-Title_RESULTS!$H$7)))+((Title_RESULTS!$H$32*Title_RESULTS!$H$35*12*Title_RESULTS!$C$7/1000)*(Partcipation!$B20+(Partcipation!$B21-Partcipation!$B20)/2))*((1+Title_RESULTS!$H$33/100)^('Sheet9(F_25)'!$A21-Title_RESULTS!$H$7))) -> 2014.606358 | N21: ='Sheet2(F_12)'!$I21*('Sheet6(p_6)'!$L21+'Sheet6(p_6)'!$M21) -> 2708.665798 | O21: =(Partcipation!$B20+(Partcipation!$B21-Partcipation!$B20)/2)*(Title_RESULTS!$C$13)/1000 -> 0 | P21: =($O21)*'Sheet2(F_12)'!$D21*Title_RESULTS!$C$12/100 -> 0 | Q21: =+$O21*((Title_RESULTS!$H$30/100)*((1+Title_RESULTS!$H$31/100)^('Sheet9(F_25)'!$A21-Title_RESULTS!$H$7))) -> 0 | R21: =+Partcipation!$I21*('Sheet6(p_6)'!$P21-'Sheet6(p_6)'!$Q21) -> 0
A22: 2026 | B22: =IF(+'Sheet9(F_25)'!$A22>=Title_RESULTS!$H$8,0,((Partcipation!$B22-Partcipation!$B21)*(Title_RESULTS!$C$26*((1+Title_RESULTS!$C$28/100)^('Sheet9(F_25)'!$A22-Title_RESULTS!$H$7)))/1000)) -> 0 | C22: =(Partcipation!$C21+(Partcipation!$C22-Partcipation!$C21)/2)*(Title_RESULTS!$C$27*((1+Title_RESULTS!$C$28/100)^('Sheet9(F_25)'!$A22-Title_RESULTS!$H$7)))/1000 -> 0 | D22: 0 | E22: =IF(+'Sheet9(F_25)'!$A22>=Title_RESULTS!$H$8,0,((Partcipation!$B22-Partcipation!$B21)*(Title_RESULTS!$C$39*((1+Title_RESULTS!$C$41/100)^('Sheet9(F_25)'!$A22-Title_RESULTS!$H$7)))/1000)) -> 0 | F22: =(Partcipation!$C21+(Partcipation!$C22-Partcipation!$C21)/2)*(Title_RESULTS!$C$40*((1+Title_RESULTS!$C$41/100)^('Sheet9(F_25)'!$A22-Title_RESULTS!$H$7)))/1000 -> 0 | G22: 0 | H22: =IF(Partcipation!$B23<Partcipation!$B22,0,IF(Partcipation!$B22=0,0,(Partcipation!$B22-Partcipation!$B21)*(+Title_RESULTS!$C$29*(1+Title_RESULTS!$C$30/100)^(+'Sheet8(F_24)'!$A22-Title_RESULTS!$H$7))/1000)) -> 0 | I22: =IF(+Title_RESULTS!$C$31<0,0,(+Partcipation!$B21+(Partcipation!$B22-Partcipation!$B21)/2)*(+Title_RESULTS!$C$31*(1+Title_RESULTS!$C$32/100)^(+'Sheet6(p_6)'!$A22-Title_RESULTS!$H$7))/1000) -> 0 | J22: 0 | K22: =(+Partcipation!$B21+(Partcipation!$B22-Partcipation!$B21)/2)*(+Title_RESULTS!$C$14)/1000 -> 23683.2 | L22: =($K22)*Partcipation!$E79*Title_RESULTS!$C$12/100 -> 725.4407586 | M22: =((+$K22*(Title_RESULTS!$H$30/100)*((1+Title_RESULTS!$H$31/100)^('Sheet9(F_25)'!$A22-Title_RESULTS!$H$7)))+((Title_RESULTS!$H$32*Title_RESULTS!$H$35*12*Title_RESULTS!$C$7/1000)*(Partcipation!$B21+(Partcipation!$B22-Partcipation!$B21)/2))*((1+Title_RESULTS!$H$33/100)^('Sheet9(F_25)'!$A22-Title_RESULTS!$H$7))) -> 2034.752422 | N22: ='Sheet2(F_12)'!$I22*('Sheet6(p_6)'!$L22+'Sheet6(p_6)'!$M22) -> 2760.193181 | O22: =(Partcipation!$B21+(Partcipation!$B22-Partcipation!$B21)/2)*(Title_RESULTS!$C$13)/1000 -> 0 | P22: =($O22)*'Sheet2(F_12)'!$D22*Title_RESULTS!$C$12/100 -> 0 | Q22: =+$O22*((Title_RESULTS!$H$30/100)*((1+Title_RESULTS!$H$31/100)^('Sheet9(F_25)'!$A22-Title_RESULTS!$H$7))) -> 0 | R22: =+Partcipation!$I22*('Sheet6(p_6)'!$P22-'Sheet6(p_6)'!$Q22) -> 0
A23: 2027 | B23: =IF(+'Sheet9(F_25)'!$A23>=Title_RESULTS!$H$8,0,((Partcipation!$B23-Partcipation!$B22)*(Title_RESULTS!$C$26*((1+Title_RESULTS!$C$28/100)^('Sheet9(F_25)'!$A23-Title_RESULTS!$H$7)))/1000)) -> 0 | C23: =(Partcipation!$C22+(Partcipation!$C23-Partcipation!$C22)/2)*(Title_RESULTS!$C$27*((1+Title_RESULTS!$C$28/100)^('Sheet9(F_25)'!$A23-Title_RESULTS!$H$7)))/1000 -> 0 | D23: 0 | E23: =IF(+'Sheet9(F_25)'!$A23>=Title_RESULTS!$H$8,0,((Partcipation!$B23-Partcipation!$B22)*(Title_RESULTS!$C$39*((1+Title_RESULTS!$C$41/100)^('Sheet9(F_25)'!$A23-Title_RESULTS!$H$7)))/1000)) -> 0 | F23: =(Partcipation!$C22+(Partcipation!$C23-Partcipation!$C22)/2)*(Title_RESULTS!$C$40*((1+Title_RESULTS!$C$41/100)^('Sheet9(F_25)'!$A23-Title_RESULTS!$H$7)))/1000 -> 0 | G23: 0 | H23: =IF(Partcipation!$B24<Partcipation!$B23,0,IF(Partcipation!$B23=0,0,(Partcipation!$B23-Partcipation!$B22)*(+Title_RESULTS!$C$29*(1+Title_RESULTS!$C$30/100)^(+'Sheet8(F_24)'!$A23-Title_RESULTS!$H$7))/1000)) -> 0 | I23: =IF(+Title_RESULTS!$C$31<0,0,(+Partcipation!$B22+(Partcipation!$B23-Partcipation!$B22)/2)*(+Title_RESULTS!$C$31*(1+Title_RESULTS!$C$32/100)^(+'Sheet6(p_6)'!$A23-Title_RESULTS!$H$7))/1000) -> 0 | J23: 0 | K23: =(+Partcipation!$B22+(Partcipation!$B23-Partcipation!$B22)/2)*(+Title_RESULTS!$C$14)/1000 -> 23683.2 | L23: =($K23)*Partcipation!$E80*Title_RESULTS!$C$12/100 -> 768.1554127 | M23: =((+$K23*(Title_RESULTS!$H$30/100)*((1+Title_RESULTS!$H$31/100)^('Sheet9(F_25)'!$A23-Title_RESULTS!$H$7)))+((Title_RESULTS!$H$32*Title_RESULTS!$H$35*12*Title_RESULTS!$C$7/1000)*(Partcipation!$B22+(Partcipation!$B23-Partcipation!$B22)/2))*((1+Title_RESULTS!$H$33/100)^('Sheet9(F_25)'!$A23-Title_RESULTS!$H$7))) -> 2055.099946 | N23: ='Sheet2(F_12)'!$I23*('Sheet6(p_6)'!$L23+'Sheet6(p_6)'!$M23) -> 2823.255359 | O23: =(Partcipation!$B22+(Partcipation!$B23-Partcipation!$B22)/2)*(Title_RESULTS!$C$13)/1000 -> 0 | P23: =($O23)*'Sheet2(F_12)'!$D23*Title_RESULTS!$C$12/100 -> 0 | Q23: =+$O23*((Title_RESULTS!$H$30/100)*((1+Title_RESULTS!$H$31/100)^('Sheet9(F_25)'!$A23-Title_RESULTS!$H$7))) -> 0 | R23: =+Partcipation!$I23*('Sheet6(p_6)'!$P23-'Sheet6(p_6)'!$Q23) -> 0
A24: 2028 | B24: =IF(+'Sheet9(F_25)'!$A24>=Title_RESULTS!$H$8,0,((Partcipation!$B24-Partcipation!$B23)*(Title_RESULTS!$C$26*((1+Title_RESULTS!$C$28/100)^('Sheet9(F_25)'!$A24-Title_RESULTS!$H$7)))/1000)) -> 0 | C24: =(Partcipation!$C23+(Partcipation!$C24-Partcipation!$C23)/2)*(Title_RESULTS!$C$27*((1+Title_RESULTS!$C$28/100)^('Sheet9(F_25)'!$A24-Title_RESULTS!$H$7)))/1000 -> 0 | D24: 0 | E24: =IF(+'Sheet9(F_25)'!$A24>=Title_RESULTS!$H$8,0,((Partcipation!$B24-Partcipation!$B23)*(Title_RESULTS!$C$39*((1+Title_RESULTS!$C$41/100)^('Sheet9(F_25)'!$A24-Title_RESULTS!$H$7)))/1000)) -> 0 | F24: =(Partcipation!$C23+(Partcipation!$C24-Partcipation!$C23)/2)*(Title_RESULTS!$C$40*((1+Title_RESULTS!$C$41/100)^('Sheet9(F_25)'!$A24-Title_RESULTS!$H$7)))/1000 -> 0 | G24: 0 | H24: =IF(Partcipation!$B25<Partcipation!$B24,0,IF(Partcipation!$B24=0,0,(Partcipation!$B24-Partcipation!$B23)*(+Title_RESULTS!$C$29*(1+Title_RESULTS!$C$30/100)^(+'Sheet8(F_24)'!$A24-Title_RESULTS!$H$7))/1000)) -> 0 | I24: =IF(+Title_RESULTS!$C$31<0,0,(+Partcipation!$B23+(Partcipation!$B24-Partcipation!$B23)/2)*(+Title_RESULTS!$C$31*(1+Title_RESULTS!$C$32/100)^(+'Sheet6(p_6)'!$A24-Title_RESULTS!$H$7))/1000) -> 0 | J24: 0 | K24: =(+Partcipation!$B23+(Partcipation!$B24-Partcipation!$B23)/2)*(+Title_RESULTS!$C$14)/1000 -> 23683.2 | L24: =($K24)*Partcipation!$E81*Title_RESULTS!$C$12/100 -> 840.8959751 | M24: =((+$K24*(Title_RESULTS!$H$30/100)*((1+Title_RESULTS!$H$31/100)^('Sheet9(F_25)'!$A24-Title_RESULTS!$H$7)))+((Title_RESULTS!$H$32*Title_RESULTS!$H$35*12*Title_RESULTS!$C$7/1000)*(Partcipation!$B23+(Partcipation!$B24-Partcipation!$B23)/2))*((1+Title_RESULTS!$H$33/100)^('Sheet9(F_25)'!$A24-Title_RESULTS!$H$7))) -> 2075.650946 | N24: ='Sheet2(F_12)'!$I24*('Sheet6(p_6)'!$L24+'Sheet6(p_6)'!$M24) -> 2916.546921 | O24: =(Partcipation!$B23+(Partcipation!$B24-Partcipation!$B23)/2)*(Title_RESULTS!$C$13)/1000 -> 0 | P24: =($O24)*'Sheet2(F_12)'!$D24*Title_RESULTS!$C$12/100 -> 0 | Q24: =+$O24*((Title_RESULTS!$H$30/100)*((1+Title_RESULTS!$H$31/100)^('Sheet9(F_25)'!$A24-Title_RESULTS!$H$7))) -> 0 | R24: =+Partcipation!$I24*('Sheet6(p_6)'!$P24-'Sheet6(p_6)'!$Q24) -> 0
A25: 2029 | B25: =IF(+'Sheet9(F_25)'!$A25>=Title_RESULTS!$H$8,0,((Partcipation!$B25-Partcipation!$B24)*(Title_RESULTS!$C$26*((1+Title_RESULTS!$C$28/100)^('Sheet9(F_25)'!$A25-Title_RESULTS!$H$7)))/1000)) -> 0 | C25: =(Partcipation!$C24+(Partcipation!$C25-Partcipation!$C24)/2)*(Title_RESULTS!$C$27*((1+Title_RESULTS!$C$28/100)^('Sheet9(F_25)'!$A25-Title_RESULTS!$H$7)))/1000 -> 0 | D25: 0 | E25: =IF(+'Sheet9(F_25)'!$A25>=Title_RESULTS!$H$8,0,((Partcipation!$B25-Partcipation!$B24)*(Title_RESULTS!$C$39*((1+Title_RESULTS!$C$41/100)^('Sheet9(F_25)'!$A25-Title_RESULTS!$H$7)))/1000)) -> 0 | F25: =(Partcipation!$C24+(Partcipation!$C25-Partcipation!$C24)/2)*(Title_RESULTS!$C$40*((1+Title_RESULTS!$C$41/100)^('Sheet9(F_25)'!$A25-Title_RESULTS!$H$7)))/1000 -> 0 | G25: 0 | H25: =IF(Partcipation!$B26<Partcipation!$B25,0,IF(Partcipation!$B25=0,0,(Partcipation!$B25-Partcipation!$B24)*(+Title_RESULTS!$C$29*(1+Title_RESULTS!$C$30/100)^(+'Sheet8(F_24)'!$A25-Title_RESULTS!$H$7))/1000)) -> 0 | I25: =IF(+Title_RESULTS!$C$31<0,0,(+Partcipation!$B24+(Partcipation!$B25-Partcipation!$B24)/2)*(+Title_RESULTS!$C$31*(1+Title_RESULTS!$C$32/100)^(+'Sheet6(p_6)'!$A25-Title_RESULTS!$H$7))/1000) -> 0 | J25: 0 | K25: =(+Partcipation!$B24+(Partcipation!$B25-Partcipation!$B24)/2)*(+Title_RESULTS!$C$14)/1000 -> 23683.2 | L25: =($K25)*Partcipation!$E82*Title_RESULTS!$C$12/100 -> 883.7377315 | M25: =((+$K25*(Title_RESULTS!$H$30/100)*((1+Title_RESULTS!$H$31/100)^('Sheet9(F_25)'!$A25-Title_RESULTS!$H$7)))+((Title_RESULTS!$H$32*Title_RESULTS!$H$35*12*Title_RESULTS!$C$7/1000)*(Partcipation!$B24+(Partcipation!$B25-Partcipation!$B24)/2))*((1+Title_RESULTS!$H$33/100)^('Sheet9(F_25)'!$A25-Title_RESULTS!$H$7))) -> 2096.407455 | N25: ='Sheet2(F_12)'!$I25*('Sheet6(p_6)'!$L25+'Sheet6(p_6)'!$M25) -> 2980.145187 | O25: =(Partcipation!$B24+(Partcipation!$B25-Partcipation!$B24)/2)*(Title_RESULTS!$C$13)/1000 -> 0 | P25: =($O25)*'Sheet2(F_12)'!$D25*Title_RESULTS!$C$12/100 -> 0 | Q25: =+$O25*((Title_RESULTS!$H$30/100)*((1+Title_RESULTS!$H$31/100)^('Sheet9(F_25)'!$A25-Title_RESULTS!$H$7))) -> 0 | R25: =+Partcipation!$I25*('Sheet6(p_6)'!$P25-'Sheet6(p_6)'!$Q25) -> 0
A26: 2030 | B26: =IF(+'Sheet9(F_25)'!$A26>=Title_RESULTS!$H$8,0,((Partcipation!$B26-Partcipation!$B25)*(Title_RESULTS!$C$26*((1+Title_RESULTS!$C$28/100)^('Sheet9(F_25)'!$A26-Title_RESULTS!$H$7)))/1000)) -> 0 | C26: =(Partcipation!$C25+(Partcipation!$C26-Partcipation!$C25)/2)*(Title_RESULTS!$C$27*((1+Title_RESULTS!$C$28/100)^('Sheet9(F_25)'!$A26-Title_RESULTS!$H$7)))/1000 -> 0 | D26: 0 | E26: =IF(+'Sheet9(F_25)'!$A26>=Title_RESULTS!$H$8,0,((Partcipation!$B26-Partcipation!$B25)*(Title_RESULTS!$C$39*((1+Title_RESULTS!$C$41/100)^('Sheet9(F_25)'!$A26-Title_RESULTS!$H$7)))/1000)) -> 0 | F26: =(Partcipation!$C25+(Partcipation!$C26-Partcipation!$C25)/2)*(Title_RESULTS!$C$40*((1+Title_RESULTS!$C$41/100)^('Sheet9(F_25)'!$A26-Title_RESULTS!$H$7)))/1000 -> 0 | G26: 0 | H26: =IF(Partcipation!$B27<Partcipation!$B26,0,IF(Partcipation!$B26=0,0,(Partcipation!$B26-Partcipation!$B25)*(+Title_RESULTS!$C$29*(1+Title_RESULTS!$C$30/100)^(+'Sheet8(F_24)'!$A26-Title_RESULTS!$H$7))/1000)) -> 0 | I26: =IF(+Title_RESULTS!$C$31<0,0,(+Partcipation!$B25+(Partcipation!$B26-Partcipation!$B25)/2)*(+Title_RESULTS!$C$31*(1+Title_RESULTS!$C$32/100)^(+'Sheet6(p_6)'!$A26-Title_RESULTS!$H$7))/1000) -> 0 | J26: 0 | K26: =(+Partcipation!$B25+(Partcipation!$B26-Partcipation!$B25)/2)*(+Title_RESULTS!$C$14)/1000 -> 23683.2 | L26: =($K26)*Partcipation!$E83*Title_RESULTS!$C$12/100 -> 962.8782016 | M26: =((+$K26*(Title_RESULTS!$H$30/100)*((1+Title_RESULTS!$H$31/100)^('Sheet9(F_25)'!$A26-Title_RESULTS!$H$7)))+((Title_RESULTS!$H$32*Title_RESULTS!$H$35*12*Title_RESULTS!$C$7/1000)*(Partcipation!$B25+(Partcipation!$B26-Partcipation!$B25)/2))*((1+Title_RESULTS!$H$33/100)^('Sheet9(F_25)'!$A26-Title_RESULTS!$H$7))) -> 2117.37153 | N26: ='Sheet2(F_12)'!$I26*('Sheet6(p_6)'!$L26+'Sheet6(p_6)'!$M26) -> 3080.249731 | O26: =(Partcipation!$B25+(Partcipation!$B26-Partcipation!$B25)/2)*(Title_RESULTS!$C$13)/1000 -> 0 | P26: =($O26)*'Sheet2(F_12)'!$D26*Title_RESULTS!$C$12/100 -> 0 | Q26: =+$O26*((Title_RESULTS!$H$30/100)*((1+Title_RESULTS!$H$31/100)^('Sheet9(F_25)'!$A26-Title_RESULTS!$H$7))) -> 0 | R26: =+Partcipation!$I26*('Sheet6(p_6)'!$P26-'Sheet6(p_6)'!$Q26) -> 0
A27: 2031 | B27: =IF(+'Sheet9(F_25)'!$A27>=Title_RESULTS!$H$8,0,((Partcipation!$B27-Partcipation!$B26)*(Title_RESULTS!$C$26*((1+Title_RESULTS!$C$28/100)^('Sheet9(F_25)'!$A27-Title_RESULTS!$H$7)))/1000)) -> 0 | C27: =(Partcipation!$C26+(Partcipation!$C27-Partcipation!$C26)/2)*(Title_RESULTS!$C$27*((1+Title_RESULTS!$C$28/100)^('Sheet9(F_25)'!$A27-Title_RESULTS!$H$7)))/1000 -> 0 | D27: 0 | E27: =IF(+'Sheet9(F_25)'!$A27>=Title_RESULTS!$H$8,0,((Partcipation!$B27-Partcipation!$B26)*(Title_RESULTS!$C$39*((1+Title_RESULTS!$C$41/100)^('Sheet9(F_25)'!$A27-Title_RESULTS!$H$7)))/1000)) -> 0 | F27: =(Partcipation!$C26+(Partcipation!$C27-Partcipation!$C26)/2)*(Title_RESULTS!$C$40*((1+Title_RESULTS!$C$41/100)^('Sheet9(F_25)'!$A27-Title_RESULTS!$H$7)))/1000 -> 0 | G27: 0 | H27: =IF(Partcipation!$B28<Partcipation!$B27,0,IF(Partcipation!$B27=0,0,(Partcipation!$B27-Partcipation!$B26)*(+Title_RESULTS!$C$29*(1+Title_RESULTS!$C$30/100)^(+'Sheet8(F_24)'!$A27-Title_RESULTS!$H$7))/1000)) -> 0 | I27: =IF(+Title_RESULTS!$C$31<0,0,(+Partcipation!$B26+(Partcipation!$B27-Partcipation!$B26)/2)*(+Title_RESULTS!$C$31*(1+Title_RESULTS!$C$32/100)^(+'Sheet6(p_6)'!$A27-Title_RESULTS!$H$7))/1000) -> 0 | J27: 0 | K27: =(+Partcipation!$B26+(Partcipation!$B27-Partcipation!$B26)/2)*(+Title_RESULTS!$C$14)/1000 -> 23683.2 | L27: =($K27)*Partcipation!$E84*Title_RESULTS!$C$12/100 -> 996.070618 | M27: =((+$K27*(Title_RESULTS!$H$30/100)*((1+Title_RESULTS!$H$31/100)^('Sheet9(F_25)'!$A27-Title_RESULTS!$H$7)))+((Title_RESULTS!$H$32*Title_RESULTS!$H$35*12*Title_RESULTS!$C$7/1000)*(Partcipation!$B26+(Partcipation!$B27-Partcipation!$B26)/2))*((1+Title_RESULTS!$H$33/100)^('Sheet9(F_25)'!$A27-Title_RESULTS!$H$7))) -> 2138.545245 | N27: ='Sheet2(F_12)'!$I27*('Sheet6(p_6)'!$L27+'Sheet6(p_6)'!$M27) -> 3134.615863 | O27: =(Partcipation!$B26+(Partcipation!$B27-Partcipation!$B26)/2)*(Title_RESULTS!$C$13)/1000 -> 0 | P27: =($O27)*'Sheet2(F_12)'!$D27*Title_RESULTS!$C$12/100 -> 0 | Q27: =+$O27*((Title_RESULTS!$H$30/100)*((1+Title_RESULTS!$H$31/100)^('Sheet9(F_25)'!$A27-Title_RESULTS!$H$7))) -> 0 | R27: =+Partcipation!$I27*('Sheet6(p_6)'!$P27-'Sheet6(p_6)'!$Q27) -> 0
A28: 2032 | B28: =IF(+'Sheet9(F_25)'!$A28>=Title_RESULTS!$H$8,0,((Partcipation!$B28-Partcipation!$B27)*(Title_RESULTS!$C$26*((1+Title_RESULTS!$C$28/100)^('Sheet9(F_25)'!$A28-Title_RESULTS!$H$7)))/1000)) -> 0 | C28: =(Partcipation!$C27+(Partcipation!$C28-Partcipation!$C27)/2)*(Title_RESULTS!$C$27*((1+Title_RESULTS!$C$28/100)^('Sheet9(F_25)'!$A28-Title_RESULTS!$H$7)))/1000 -> 0 | D28: 0 | E28: =IF(+'Sheet9(F_25)'!$A28>=Title_RESULTS!$H$8,0,((Partcipation!$B28-Partcipation!$B27)*(Title_RESULTS!$C$39*((1+Title_RESULTS!$C$41/100)^('Sheet9(F_25)'!$A28-Title_RESULTS!$H$7)))/1000)) -> 0 | F28: =(Partcipation!$C27+(Partcipation!$C28-Partcipation!$C27)/2)*(Title_RESULTS!$C$40*((1+Title_RESULTS!$C$41/100)^('Sheet9(F_25)'!$A28-Title_RESULTS!$H$7)))/1000 -> 0 | G28: 0 | H28: =IF(Partcipation!$B29<Partcipation!$B28,0,IF(Partcipation!$B28=0,0,(Partcipation!$B28-Partcipation!$B27)*(+Title_RESULTS!$C$29*(1+Title_RESULTS!$C$30/100)^(+'Sheet8(F_24)'!$A28-Title_RESULTS!$H$7))/1000)) -> 0 | I28: =IF(+Title_RESULTS!$C$31<0,0,(+Partcipation!$B27+(Partcipation!$B28-Partcipation!$B27)/2)*(+Title_RESULTS!$C$31*(1+Title_RESULTS!$C$32/100)^(+'Sheet6(p_6)'!$A28-Title_RESULTS!$H$7))/1000) -> 0 | J28: 0 | K28: =(+Partcipation!$B27+(Partcipation!$B28-Partcipation!$B27)/2)*(+Title_RESULTS!$C$14)/1000 -> 23683.2 | L28: =($K28)*Partcipation!$E85*Title_RESULTS!$C$12/100 -> 1067.1413 | M28: =((+$K28*(Title_RESULTS!$H$30/100)*((1+Title_RESULTS!$H$31/100)^('Sheet9(F_25)'!$A28-Title_RESULTS!$H$7)))+((Title_RESULTS!$H$32*Title_RESULTS!$H$35*12*Title_RESULTS!$C$7/1000)*(Partcipation!$B27+(Partcipation!$B28-Partcipation!$B27)/2))*((1+Title_RESULTS!$H$33/100)^('Sheet9(F_25)'!$A28-Title_RESULTS!$H$7))) -> 2159.930698 | N28: ='Sheet2(F_12)'!$I28*('Sheet6(p_6)'!$L28+'Sheet6(p_6)'!$M28) -> 3227.071998 | O28: =(Partcipation!$B27+(Partcipation!$B28-Partcipation!$B27)/2)*(Title_RESULTS!$C$13)/1000 -> 0 | P28: =($O28)*'Sheet2(F_12)'!$D28*Title_RESULTS!$C$12/100 -> 0 | Q28: =+$O28*((Title_RESULTS!$H$30/100)*((1+Title_RESULTS!$H$31/100)^('Sheet9(F_25)'!$A28-Title_RESULTS!$H$7))) -> 0 | R28: =+Partcipation!$I28*('Sheet6(p_6)'!$P28-'Sheet6(p_6)'!$Q28) -> 0
A29: 2033 | B29: =IF(+'Sheet9(F_25)'!$A29>=Title_RESULTS!$H$8,0,((Partcipation!$B29-Partcipation!$B28)*(Title_RESULTS!$C$26*((1+Title_RESULTS!$C$28/100)^('Sheet9(F_25)'!$A29-Title_RESULTS!$H$7)))/1000)) -> 0 | C29: =(Partcipation!$C28+(Partcipation!$C29-Partcipation!$C28)/2)*(Title_RESULTS!$C$27*((1+Title_RESULTS!$C$28/100)^('Sheet9(F_25)'!$A29-Title_RESULTS!$H$7)))/1000 -> 0 | D29: 0 | E29: =IF(+'Sheet9(F_25)'!$A29>=Title_RESULTS!$H$8,0,((Partcipation!$B29-Partcipation!$B28)*(Title_RESULTS!$C$39*((1+Title_RESULTS!$C$41/100)^('Sheet9(F_25)'!$A29-Title_RESULTS!$H$7)))/1000)) -> 0 | F29: =(Partcipation!$C28+(Partcipation!$C29-Partcipation!$C28)/2)*(Title_RESULTS!$C$40*((1+Title_RESULTS!$C$41/100)^('Sheet9(F_25)'!$A29-Title_RESULTS!$H$7)))/1000 -> 0 | G29: 0 | H29: =IF(Partcipation!$B30<Partcipation!$B29,0,IF(Partcipation!$B29=0,0,(Partcipation!$B29-Partcipation!$B28)*(+Title_RESULTS!$C$29*(1+Title_RESULTS!$C$30/100)^(+'Sheet8(F_24)'!$A29-Title_RESULTS!$H$7))/1000)) -> 0 | I29: =IF(+Title_RESULTS!$C$31<0,0,(+Partcipation!$B28+(Partcipation!$B29-Partcipation!$B28)/2)*(+Title_RESULTS!$C$31*(1+Title_RESULTS!$C$32/100)^(+'Sheet6(p_6)'!$A29-Title_RESULTS!$H$7))/1000) -> 0 | J29: 0 | K29: =(+Partcipation!$B28+(Partcipation!$B29-Partcipation!$B28)/2)*(+Title_RESULTS!$C$14)/1000 -> 23683.2 | L29: =($K29)*Partcipation!$E86*Title_RESULTS!$C$12/100 -> 1089.524999 | M29: =((+$K29*(Title_RESULTS!$H$30/100)*((1+Title_RESULTS!$H$31/100)^('Sheet9(F_25)'!$A29-Title_RESULTS!$H$7)))+((Title_RESULTS!$H$32*Title_RESULTS!$H$35*12*Title_RESULTS!$C$7/1000)*(Partcipation!$B28+(Partcipation!$B29-Partcipation!$B28)/2))*((1+Title_RESULTS!$H$33/100)^('Sheet9(F_25)'!$A29-Title_RESULTS!$H$7))) -> 2181.530004 | N29: ='Sheet2(F_12)'!$I29*('Sheet6(p_6)'!$L29+'Sheet6(p_6)'!$M29) -> 3271.055003 | O29: =(Partcipation!$B28+(Partcipation!$B29-Partcipation!$B28)/2)*(Title_RESULTS!$C$13)/1000 -> 0 | P29: =($O29)*'Sheet2(F_12)'!$D29*Title_RESULTS!$C$12/100 -> 0 | Q29: =+$O29*((Title_RESULTS!$H$30/100)*((1+Title_RESULTS!$H$31/100)^('Sheet9(F_25)'!$A29-Title_RESULTS!$H$7))) -> 0 | R29: =+Partcipation!$I29*('Sheet6(p_6)'!$P29-'Sheet6(p_6)'!$Q29) -> 0
A30: 2034 | B30: =IF(+'Sheet9(F_25)'!$A30>=Title_RESULTS!$H$8,0,((Partcipation!$B30-Partcipation!$B29)*(Title_RESULTS!$C$26*((1+Title_RESULTS!$C$28/100)^('Sheet9(F_25)'!$A30-Title_RESULTS!$H$7)))/1000)) -> 0 | C30: =(Partcipation!$C29+(Partcipation!$C30-Partcipation!$C29)/2)*(Title_RESULTS!$C$27*((1+Title_RESULTS!$C$28/100)^('Sheet9(F_25)'!$A30-Title_RESULTS!$H$7)))/1000 -> 0 | D30: 0 | E30: =IF(+'Sheet9(F_25)'!$A30>=Title_RESULTS!$H$8,0,((Partcipation!$B30-Partcipation!$B29)*(Title_RESULTS!$C$39*((1+Title_RESULTS!$C$41/100)^('Sheet9(F_25)'!$A30-Title_RESULTS!$H$7)))/1000)) -> 0 | F30: =(Partcipation!$C29+(Partcipation!$C30-Partcipation!$C29)/2)*(Title_RESULTS!$C$40*((1+Title_RESULTS!$C$41/100)^('Sheet9(F_25)'!$A30-Title_RESULTS!$H$7)))/1000 -> 0 | G30: 0 | H30: =IF(Partcipation!$B31<Partcipation!$B30,0,IF(Partcipation!$B30=0,0,(Partcipation!$B30-Partcipation!$B29)*(+Title_RESULTS!$C$29*(1+Title_RESULTS!$C$30/100)^(+'Sheet8(F_24)'!$A30-Title_RESULTS!$H$7))/1000)) -> 0 | I30: =IF(+Title_RESULTS!$C$31<0,0,(+Partcipation!$B29+(Partcipation!$B30-Partcipation!$B29)/2)*(+Title_RESULTS!$C$31*(1+Title_RESULTS!$C$32/100)^(+'Sheet6(p_6)'!$A30-Title_RESULTS!$H$7))/1000) -> 0 | J30: 0 | K30: =(+Partcipation!$B29+(Partcipation!$B30-Partcipation!$B29)/2)*(+Title_RESULTS!$C$14)/1000 -> 23683.2 | L30: =($K30)*Partcipation!$E87*Title_RESULTS!$C$12/100 -> 1161.482421 | M30: =((+$K30*(Title_RESULTS!$H$30/100)*((1+Title_RESULTS!$H$31/100)^('Sheet9(F_25)'!$A30-Title_RESULTS!$H$7)))+((Title_RESULTS!$H$32*Title_RESULTS!$H$35*12*Title_RESULTS!$C$7/1000)*(Partcipation!$B29+(Partcipation!$B30-Partcipation!$B29)/2))*((1+Title_RESULTS!$H$33/100)^('Sheet9(F_25)'!$A30-Title_RESULTS!$H$7))) -> 2203.345305 | N30: ='Sheet2(F_12)'!$I30*('Sheet6(p_6)'!$L30+'Sheet6(p_6)'!$M30) -> 3364.827726 | O30: =(Partcipation!$B29+(Partcipation!$B30-Partcipation!$B29)/2)*(Title_RESULTS!$C$13)/1000 -> 0 | P30: =($O30)*'Sheet2(F_12)'!$D30*Title_RESULTS!$C$12/100 -> 0 | Q30: =+$O30*((Title_RESULTS!$H$30/100)*((1+Title_RESULTS!$H$31/100)^('Sheet9(F_25)'!$A30-Title_RESULTS!$H$7))) -> 0 | R30: =+Partcipation!$I30*('Sheet6(p_6)'!$P30-'Sheet6(p_6)'!$Q30) -> 0
A31: 2035 | B31: =IF(+'Sheet9(F_25)'!$A31>=Title_RESULTS!$H$8,0,((Partcipation!$B31-Partcipation!$B30)*(Title_RESULTS!$C$26*((1+Title_RESULTS!$C$28/100)^('Sheet9(F_25)'!$A31-Title_RESULTS!$H$7)))/1000)) -> 0 | C31: =(Partcipation!$C30+(Partcipation!$C31-Partcipation!$C30)/2)*(Title_RESULTS!$C$27*((1+Title_RESULTS!$C$28/100)^('Sheet9(F_25)'!$A31-Title_RESULTS!$H$7)))/1000 -> 0 | D31: 0 | E31: =IF(+'Sheet9(F_25)'!$A31>=Title_RESULTS!$H$8,0,((Partcipation!$B31-Partcipation!$B30)*(Title_RESULTS!$C$39*((1+Title_RESULTS!$C$41/100)^('Sheet9(F_25)'!$A31-Title_RESULTS!$H$7)))/1000)) -> 0 | F31: =(Partcipation!$C30+(Partcipation!$C31-Partcipation!$C30)/2)*(Title_RESULTS!$C$40*((1+Title_RESULTS!$C$41/100)^('Sheet9(F_25)'!$A31-Title_RESULTS!$H$7)))/1000 -> 0 | G31: 0 | H31: =IF(Partcipation!$B32<Partcipation!$B31,0,IF(Partcipation!$B31=0,0,(Partcipation!$B31-Partcipation!$B30)*(+Title_RESULTS!$C$29*(1+Title_RESULTS!$C$30/100)^(+'Sheet8(F_24)'!$A31-Title_RESULTS!$H$7))/1000)) -> 0 | I31: =IF(+Title_RESULTS!$C$31<0,0,(+Partcipation!$B30+(Partcipation!$B31-Partcipation!$B30)/2)*(+Title_RESULTS!$C$31*(1+Title_RESULTS!$C$32/100)^(+'Sheet6(p_6)'!$A31-Title_RESULTS!$H$7))/1000) -> 0 | J31: 0 | K31: =(+Partcipation!$B30+(Partcipation!$B31-Partcipation!$B30)/2)*(+Title_RESULTS!$C$14)/1000 -> 23683.2 | L31: =($K31)*Partcipation!$E88*Title_RESULTS!$C$12/100 -> 1210.899992 | M31: =((+$K31*(Title_RESULTS!$H$30/100)*((1+Title_RESULTS!$H$31/100)^('Sheet9(F_25)'!$A31-Title_RESULTS!$H$7)))+((Title_RESULTS!$H$32*Title_RESULTS!$H$35*12*Title_RESULTS!$C$7/1000)*(Partcipation!$B30+(Partcipation!$B31-Partcipation!$B30)/2))*((1+Title_RESULTS!$H$33/100)^('Sheet9(F_25)'!$A31-Title_RESULTS!$H$7))) -> 2225.378758 | N31: ='Sheet2(F_12)'!$I31*('Sheet6(p_6)'!$L31+'Sheet6(p_6)'!$M31) -> 3436.278749 | O31: =(Partcipation!$B30+(Partcipation!$B31-Partcipation!$B30)/2)*(Title_RESULTS!$C$13)/1000 -> 0 | P31: =($O31)*'Sheet2(F_12)'!$D31*Title_RESULTS!$C$12/100 -> 0 | Q31: =+$O31*((Title_RESULTS!$H$30/100)*((1+Title_RESULTS!$H$31/100)^('Sheet9(F_25)'!$A31-Title_RESULTS!$H$7))) -> 0 | R31: =+Partcipation!$I31*('Sheet6(p_6)'!$P31-'Sheet6(p_6)'!$Q31) -> 0
A32: 2036 | B32: =IF(+'Sheet9(F_25)'!$A32>=Title_RESULTS!$H$8,0,((Partcipation!$B32-Partcipation!$B31)*(Title_RESULTS!$C$26*((1+Title_RESULTS!$C$28/100)^('Sheet9(F_25)'!$A32-Title_RESULTS!$H$7)))/1000)) -> 0 | C32: =(Partcipation!$C31+(Partcipation!$C32-Partcipation!$C31)/2)*(Title_RESULTS!$C$27*((1+Title_RESULTS!$C$28/100)^('Sheet9(F_25)'!$A32-Title_RESULTS!$H$7)))/1000 -> 0 | D32: 0 | E32: =IF(+'Sheet9(F_25)'!$A32>=Title_RESULTS!$H$8,0,((Partcipation!$B32-Partcipation!$B31)*(Title_RESULTS!$C$39*((1+Title_RESULTS!$C$41/100)^('Sheet9(F_25)'!$A32-Title_RESULTS!$H$7)))/1000)) -> 0 | F32: =(Partcipation!$C31+(Partcipation!$C32-Partcipation!$C31)/2)*(Title_RESULTS!$C$40*((1+Title_RESULTS!$C$41/100)^('Sheet9(F_25)'!$A32-Title_RESULTS!$H$7)))/1000 -> 0 | G32: 0 | H32: =IF(Partcipation!$B33<Partcipation!$B32,0,IF(Partcipation!$B32=0,0,(Partcipation!$B32-Partcipation!$B31)*(+Title_RESULTS!$C$29*(1+Title_RESULTS!$C$30/100)^(+'Sheet8(F_24)'!$A32-Title_RESULTS!$H$7))/1000)) -> 0 | I32: =IF(+Title_RESULTS!$C$31<0,0,(+Partcipation!$B31+(Partcipation!$B32-Partcipation!$B31)/2)*(+Title_RESULTS!$C$31*(1+Title_RESULTS!$C$32/100)^(+'Sheet6(p_6)'!$A32-Title_RESULTS!$H$7))/1000) -> 0 | J32: 0 | K32: =(+Partcipation!$B31+(Partcipation!$B32-Partcipation!$B31)/2)*(+Title_RESULTS!$C$14)/1000 -> 23683.2 | L32: =($K32)*Partcipation!$E89*Title_RESULTS!$C$12/100 -> 1251.603714 | M32: =((+$K32*(Title_RESULTS!$H$30/100)*((1+Title_RESULTS!$H$31/100)^('Sheet9(F_25)'!$A32-Title_RESULTS!$H$7)))+((Title_RESULTS!$H$32*Title_RESULTS!$H$35*12*Title_RESULTS!$C$7/1000)*(Partcipation!$B31+(Partcipation!$B32-Partcipation!$B31)/2))*((1+Title_RESULTS!$H$33/100)^('Sheet9(F_25)'!$A32-Title_RESULTS!$H$7))) -> 2247.632545 | N32: ='Sheet2(F_12)'!$I32*('Sheet6(p_6)'!$L32+'Sheet6(p_6)'!$M32) -> 3499.236259 | O32: =(Partcipation!$B31+(Partcipation!$B32-Partcipation!$B31)/2)*(Title_RESULTS!$C$13)/1000 -> 0 | P32: =($O32)*'Sheet2(F_12)'!$D32*Title_RESULTS!$C$12/100 -> 0 | Q32: =+$O32*((Title_RESULTS!$H$30/100)*((1+Title_RESULTS!$H$31/100)^('Sheet9(F_25)'!$A32-Title_RESULTS!$H$7))) -> 0 | R32: =+Partcipation!$I32*('Sheet6(p_6)'!$P32-'Sheet6(p_6)'!$Q32) -> 0
A33: 2037 | B33: =IF(+'Sheet9(F_25)'!$A33>=Title_RESULTS!$H$8,0,((Partcipation!$B33-Partcipation!$B32)*(Title_RESULTS!$C$26*((1+Title_RESULTS!$C$28/100)^('Sheet9(F_25)'!$A33-Title_RESULTS!$H$7)))/1000)) -> 0 | C33: =(Partcipation!$C32+(Partcipation!$C33-Partcipation!$C32)/2)*(Title_RESULTS!$C$27*((1+Title_RESULTS!$C$28/100)^('Sheet9(F_25)'!$A33-Title_RESULTS!$H$7)))/1000 -> 0 | D33: 0 | E33: =IF(+'Sheet9(F_25)'!$A33>=Title_RESULTS!$H$8,0,((Partcipation!$B33-Partcipation!$B32)*(Title_RESULTS!$C$39*((1+Title_RESULTS!$C$41/100)^('Sheet9(F_25)'!$A33-Title_RESULTS!$H$7)))/1000)) -> 0 | F33: =(Partcipation!$C32+(Partcipation!$C33-Partcipation!$C32)/2)*(Title_RESULTS!$C$40*((1+Title_RESULTS!$C$41/100)^('Sheet9(F_25)'!$A33-Title_RESULTS!$H$7)))/1000 -> 0 | G33: 0 | H33: =IF(Partcipation!$B34<Partcipation!$B33,0,IF(Partcipation!$B33=0,0,(Partcipation!$B33-Partcipation!$B32)*(+Title_RESULTS!$C$29*(1+Title_RESULTS!$C$30/100)^(+'Sheet8(F_24)'!$A33-Title_RESULTS!$H$7))/1000)) -> 0 | I33: =IF(+Title_RESULTS!$C$31<0,0,(+Partcipation!$B32+(Partcipation!$B33-Partcipation!$B32)/2)*(+Title_RESULTS!$C$31*(1+Title_RESULTS!$C$32/100)^(+'Sheet6(p_6)'!$A33-Title_RESULTS!$H$7))/1000) -> 0 | J33: 0 | K33: =(+Partcipation!$B32+(Partcipation!$B33-Partcipation!$B32)/2)*(+Title_RESULTS!$C$14)/1000 -> 23683.2 | L33: =($K33)*Partcipation!$E90*Title_RESULTS!$C$12/100 -> 1321.706592 | M33: =((+$K33*(Title_RESULTS!$H$30/100)*((1+Title_RESULTS!$H$31/100)^('Sheet9(F_25)'!$A33-Title_RESULTS!$H$7)))+((Title_RESULTS!$H$32*Title_RESULTS!$H$35*12*Title_RESULTS!$C$7/1000)*(Partcipation!$B32+(Partcipation!$B33-Partcipation!$B32)/2))*((1+Title_RESULTS!$H$33/100)^('Sheet9(F_25)'!$A33-Title_RESULTS!$H$7))) -> 2270.108871 | N33: ='Sheet2(F_12)'!$I33*('Sheet6(p_6)'!$L33+'Sheet6(p_6)'!$M33) -> 3591.815462 | O33: =(Partcipation!$B32+(Partcipation!$B33-Partcipation!$B32)/2)*(Title_RESULTS!$C$13)/1000 -> 0 | P33: =($O33)*'Sheet2(F_12)'!$D33*Title_RESULTS!$C$12/100 -> 0 | Q33: =+$O33*((Title_RESULTS!$H$30/100)*((1+Title_RESULTS!$H$31/100)^('Sheet9(F_25)'!$A33-Title_RESULTS!$H$7))) -> 0 | R33: =+Partcipation!$I33*('Sheet6(p_6)'!$P33-'Sheet6(p_6)'!$Q33) -> 0
A34: 2038 | B34: =IF(+'Sheet9(F_25)'!$A34>=Title_RESULTS!$H$8,0,((Partcipation!$B34-Partcipation!$B33)*(Title_RESULTS!$C$26*((1+Title_RESULTS!$C$28/100)^('Sheet9(F_25)'!$A34-Title_RESULTS!$H$7)))/1000)) -> 0 | C34: =(Partcipation!$C33+(Partcipation!$C34-Partcipation!$C33)/2)*(Title_RESULTS!$C$27*((1+Title_RESULTS!$C$28/100)^('Sheet9(F_25)'!$A34-Title_RESULTS!$H$7)))/1000 -> 0 | D34: 0 | E34: =IF(+'Sheet9(F_25)'!$A34>=Title_RESULTS!$H$8,0,((Partcipation!$B34-Partcipation!$B33)*(Title_RESULTS!$C$39*((1+Title_RESULTS!$C$41/100)^('Sheet9(F_25)'!$A34-Title_RESULTS!$H$7)))/1000)) -> 0 | F34: =(Partcipation!$C33+(Partcipation!$C34-Partcipation!$C33)/2)*(Title_RESULTS!$C$40*((1+Title_RESULTS!$C$41/100)^('Sheet9(F_25)'!$A34-Title_RESULTS!$H$7)))/1000 -> 0 | G34: 0 | H34: =IF(Partcipation!$B35<Partcipation!$B34,0,IF(Partcipation!$B34=0,0,(Partcipation!$B34-Partcipation!$B33)*(+Title_RESULTS!$C$29*(1+Title_RESULTS!$C$30/100)^(+'Sheet8(F_24)'!$A34-Title_RESULTS!$H$7))/1000)) -> 0 | I34: =IF(+Title_RESULTS!$C$31<0,0,(+Partcipation!$B33+(Partcipation!$B34-Partcipation!$B33)/2)*(+Title_RESULTS!$C$31*(1+Title_RESULTS!$C$32/100)^(+'Sheet6(p_6)'!$A34-Title_RESULTS!$H$7))/1000) -> 0 | J34: 0 | K34: =(+Partcipation!$B33+(Partcipation!$B34-Partcipation!$B33)/2)*(+Title_RESULTS!$C$14)/1000 -> 23683.2 | L34: =($K34)*Partcipation!$E91*Title_RESULTS!$C$12/100 -> 1352.832062 | M34: =((+$K34*(Title_RESULTS!$H$30/100)*((1+Title_RESULTS!$H$31/100)^('Sheet9(F_25)'!$A34-Title_RESULTS!$H$7)))+((Title_RESULTS!$H$32*Title_RESULTS!$H$35*12*Title_RESULTS!$C$7/1000)*(Partcipation!$B33+(Partcipation!$B34-Partcipation!$B33)/2))*((1+Title_RESULTS!$H$33/100)^('Sheet9(F_25)'!$A34-Title_RESULTS!$H$7))) -> 2292.809959 | N34: ='Sheet2(F_12)'!$I34*('Sheet6(p_6)'!$L34+'Sheet6(p_6)'!$M34) -> 3645.642021 | O34: =(Partcipation!$B33+(Partcipation!$B34-Partcipation!$B33)/2)*(Title_RESULTS!$C$13)/1000 -> 0 | P34: =($O34)*'Sheet2(F_12)'!$D34*Title_RESULTS!$C$12/100 -> 0 | Q34: =+$O34*((Title_RESULTS!$H$30/100)*((1+Title_RESULTS!$H$31/100)^('Sheet9(F_25)'!$A34-Title_RESULTS!$H$7))) -> 0 | R34: =+Partcipation!$I34*('Sheet6(p_6)'!$P34-'Sheet6(p_6)'!$Q34) -> 0
A35: 2039 | B35: =IF(+'Sheet9(F_25)'!$A35>=Title_RESULTS!$H$8,0,((Partcipation!$B35-Partcipation!$B34)*(Title_RESULTS!$C$26*((1+Title_RESULTS!$C$28/100)^('Sheet9(F_25)'!$A35-Title_RESULTS!$H$7)))/1000)) -> 0 | C35: =(Partcipation!$C34+(Partcipation!$C35-Partcipation!$C34)/2)*(Title_RESULTS!$C$27*((1+Title_RESULTS!$C$28/100)^('Sheet9(F_25)'!$A35-Title_RESULTS!$H$7)))/1000 -> 0 | D35: 0 | E35: =IF(+'Sheet9(F_25)'!$A35>=Title_RESULTS!$H$8,0,((Partcipation!$B35-Partcipation!$B34)*(Title_RESULTS!$C$39*((1+Title_RESULTS!$C$41/100)^('Sheet9(F_25)'!$A35-Title_RESULTS!$H$7)))/1000)) -> 0 | F35: =(Partcipation!$C34+(Partcipation!$C35-Partcipation!$C34)/2)*(Title_RESULTS!$C$40*((1+Title_RESULTS!$C$41/100)^('Sheet9(F_25)'!$A35-Title_RESULTS!$H$7)))/1000 -> 0 | G35: 0 | H35: =IF(Partcipation!$B36<Partcipation!$B35,0,IF(Partcipation!$B35=0,0,(Partcipation!$B35-Partcipation!$B34)*(+Title_RESULTS!$C$29*(1+Title_RESULTS!$C$30/100)^(+'Sheet8(F_24)'!$A35-Title_RESULTS!$H$7))/1000)) -> 0 | I35: =IF(+Title_RESULTS!$C$31<0,0,(+Partcipation!$B34+(Partcipation!$B35-Partcipation!$B34)/2)*(+Title_RESULTS!$C$31*(1+Title_RESULTS!$C$32/100)^(+'Sheet6(p_6)'!$A35-Title_RESULTS!$H$7))/1000) -> 0 | J35: 0 | K35: =(+Partcipation!$B34+(Partcipation!$B35-Partcipation!$B34)/2)*(+Title_RESULTS!$C$14)/1000 -> 23683.2 | L35: =($K35)*Partcipation!$E92*Title_RESULTS!$C$12/100 -> 1404.684698 | M35: =((+$K35*(Title_RESULTS!$H$30/100)*((1+Title_RESULTS!$H$31/100)^('Sheet9(F_25)'!$A35-Title_RESULTS!$H$7)))+((Title_RESULTS!$H$32*Title_RESULTS!$H$35*12*Title_RESULTS!$C$7/1000)*(Partcipation!$B34+(Partcipation!$B35-Partcipation!$B34)/2))*((1+Title_RESULTS!$H$33/100)^('Sheet9(F_25)'!$A35-Title_RESULTS!$H$7))) -> 2315.738059 | N35: ='Sheet2(F_12)'!$I35*('Sheet6(p_6)'!$L35+'Sheet6(p_6)'!$M35) -> 3720.422756 | O35: =(Partcipation!$B34+(Partcipation!$B35-Partcipation!$B34)/2)*(Title_RESULTS!$C$13)/1000 -> 0 | P35: =($O35)*'Sheet2(F_12)'!$D35*Title_RESULTS!$C$12/100 -> 0 | Q35: =+$O35*((Title_RESULTS!$H$30/100)*((1+Title_RESULTS!$H$31/100)^('Sheet9(F_25)'!$A35-Title_RESULTS!$H$7))) -> 0 | R35: =+Partcipation!$I35*('Sheet6(p_6)'!$P35-'Sheet6(p_6)'!$Q35) -> 0
A36: 2040 | B36: =IF(+'Sheet9(F_25)'!$A36>=Title_RESULTS!$H$8,0,((Partcipation!$B36-Partcipation!$B35)*(Title_RESULTS!$C$26*((1+Title_RESULTS!$C$28/100)^('Sheet9(F_25)'!$A36-Title_RESULTS!$H$7)))/1000)) -> 0 | C36: =(Partcipation!$C35+(Partcipation!$C36-Partcipation!$C35)/2)*(Title_RESULTS!$C$27*((1+Title_RESULTS!$C$28/100)^('Sheet9(F_25)'!$A36-Title_RESULTS!$H$7)))/1000 -> 0 | D36: 0 | E36: =IF(+'Sheet9(F_25)'!$A36>=Title_RESULTS!$H$8,0,((Partcipation!$B36-Partcipation!$B35)*(Title_RESULTS!$C$39*((1+Title_RESULTS!$C$41/100)^('Sheet9(F_25)'!$A36-Title_RESULTS!$H$7)))/1000)) -> 0 | F36: =(Partcipation!$C35+(Partcipation!$C36-Partcipation!$C35)/2)*(Title_RESULTS!$C$40*((1+Title_RESULTS!$C$41/100)^('Sheet9(F_25)'!$A36-Title_RESULTS!$H$7)))/1000 -> 0 | G36: 0 | H36: =IF(Partcipation!$B37<Partcipation!$B36,0,IF(Partcipation!$B36=0,0,(Partcipation!$B36-Partcipation!$B35)*(+Title_RESULTS!$C$29*(1+Title_RESULTS!$C$30/100)^(+'Sheet8(F_24)'!$A36-Title_RESULTS!$H$7))/1000)) -> 0 | I36: =IF(+Title_RESULTS!$C$31<0,0,(+Partcipation!$B35+(Partcipation!$B36-Partcipation!$B35)/2)*(+Title_RESULTS!$C$31*(1+Title_RESULTS!$C$32/100)^(+'Sheet6(p_6)'!$A36-Title_RESULTS!$H$7))/1000) -> 0 | J36: 0 | K36: =(+Partcipation!$B35+(Partcipation!$B36-Partcipation!$B35)/2)*(+Title_RESULTS!$C$14)/1000 -> 23683.2 | L36: =($K36)*Partcipation!$E93*Title_RESULTS!$C$12/100 -> 1420.83944 | M36: =((+$K36*(Title_RESULTS!$H$30/100)*((1+Title_RESULTS!$H$31/100)^('Sheet9(F_25)'!$A36-Title_RESULTS!$H$7)))+((Title_RESULTS!$H$32*Title_RESULTS!$H$35*12*Title_RESULTS!$C$7/1000)*(Partcipation!$B35+(Partcipation!$B36-Partcipation!$B35)/2))*((1+Title_RESULTS!$H$33/100)^('Sheet9(F_25)'!$A36-Title_RESULTS!$H$7))) -> 2338.895439 | N36: ='Sheet2(F_12)'!$I36*('Sheet6(p_6)'!$L36+'Sheet6(p_6)'!$M36) -> 3759.734879 | O36: =(Partcipation!$B35+(Partcipation!$B36-Partcipation!$B35)/2)*(Title_RESULTS!$C$13)/1000 -> 0 | P36: =($O36)*'Sheet2(F_12)'!$D36*Title_RESULTS!$C$12/100 -> 0 | Q36: =+$O36*((Title_RESULTS!$H$30/100)*((1+Title_RESULTS!$H$31/100)^('Sheet9(F_25)'!$A36-Title_RESULTS!$H$7))) -> 0 | R36: =+Partcipation!$I36*('Sheet6(p_6)'!$P36-'Sheet6(p_6)'!$Q36) -> 0
A37: 2041 | B37: =IF(+'Sheet9(F_25)'!$A37>=Title_RESULTS!$H$8,0,((Partcipation!$B37-Partcipation!$B36)*(Title_RESULTS!$C$26*((1+Title_RESULTS!$C$28/100)^('Sheet9(F_25)'!$A37-Title_RESULTS!$H$7)))/1000)) -> 0 | C37: =(Partcipation!$C36+(Partcipation!$C37-Partcipation!$C36)/2)*(Title_RESULTS!$C$27*((1+Title_RESULTS!$C$28/100)^('Sheet9(F_25)'!$A37-Title_RESULTS!$H$7)))/1000 -> 0 | D37: 0 | E37: =IF(+'Sheet9(F_25)'!$A37>=Title_RESULTS!$H$8,0,((Partcipation!$B37-Partcipation!$B36)*(Title_RESULTS!$C$39*((1+Title_RESULTS!$C$41/100)^('Sheet9(F_25)'!$A37-Title_RESULTS!$H$7)))/1000)) -> 0 | F37: =(Partcipation!$C36+(Partcipation!$C37-Partcipation!$C36)/2)*(Title_RESULTS!$C$40*((1+Title_RESULTS!$C$41/100)^('Sheet9(F_25)'!$A37-Title_RESULTS!$H$7)))/1000 -> 0 | G37: 0 | H37: =IF(Partcipation!$B38<Partcipation!$B37,0,IF(Partcipation!$B37=0,0,(Partcipation!$B37-Partcipation!$B36)*(+Title_RESULTS!$C$29*(1+Title_RESULTS!$C$30/100)^(+'Sheet8(F_24)'!$A37-Title_RESULTS!$H$7))/1000)) -> 0 | I37: =IF(+Title_RESULTS!$C$31<0,0,(+Partcipation!$B36+(Partcipation!$B37-Partcipation!$B36)/2)*(+Title_RESULTS!$C$31*(1+Title_RESULTS!$C$32/100)^(+'Sheet6(p_6)'!$A37-Title_RESULTS!$H$7))/1000) -> 0 | J37: 0 | K37: =(+Partcipation!$B36+(Partcipation!$B37-Partcipation!$B36)/2)*(+Title_RESULTS!$C$14)/1000 -> 23683.2 | L37: =($K37)*Partcipation!$E94*Title_RESULTS!$C$12/100 -> 1491.39771 | M37: =((+$K37*(Title_RESULTS!$H$30/100)*((1+Title_RESULTS!$H$31/100)^('Sheet9(F_25)'!$A37-Title_RESULTS!$H$7)))+((Title_RESULTS!$H$32*Title_RESULTS!$H$35*12*Title_RESULTS!$C$7/1000)*(Partcipation!$B36+(Partcipation!$B37-Partcipation!$B36)/2))*((1+Title_RESULTS!$H$33/100)^('Sheet9(F_25)'!$A37-Title_RESULTS!$H$7))) -> 2362.284394 | N37: ='Sheet2(F_12)'!$I37*('Sheet6(p_6)'!$L37+'Sheet6(p_6)'!$M37) -> 3853.682104 | O37: =(Partcipation!$B36+(Partcipation!$B37-Partcipation!$B36)/2)*(Title_RESULTS!$C$13)/1000 -> 0 | P37: =($O37)*'Sheet2(F_12)'!$D37*Title_RESULTS!$C$12/100 -> 0 | Q37: =+$O37*((Title_RESULTS!$H$30/100)*((1+Title_RESULTS!$H$31/100)^('Sheet9(F_25)'!$A37-Title_RESULTS!$H$7))) -> 0 | R37: =+Partcipation!$I37*('Sheet6(p_6)'!$P37-'Sheet6(p_6)'!$Q37) -> 0
A38: 2042 | B38: =IF(+'Sheet9(F_25)'!$A38>=Title_RESULTS!$H$8,0,((Partcipation!$B38-Partcipation!$B37)*(Title_RESULTS!$C$26*((1+Title_RESULTS!$C$28/100)^('Sheet9(F_25)'!$A38-Title_RESULTS!$H$7)))/1000)) -> 0 | C38: =(Partcipation!$C37+(Partcipation!$C38-Partcipation!$C37)/2)*(Title_RESULTS!$C$27*((1+Title_RESULTS!$C$28/100)^('Sheet9(F_25)'!$A38-Title_RESULTS!$H$7)))/1000 -> 0 | D38: 0 | E38: =IF(+'Sheet9(F_25)'!$A38>=Title_RESULTS!$H$8,0,((Partcipation!$B38-Partcipation!$B37)*(Title_RESULTS!$C$39*((1+Title_RESULTS!$C$41/100)^('Sheet9(F_25)'!$A38-Title_RESULTS!$H$7)))/1000)) -> 0 | F38: =(Partcipation!$C37+(Partcipation!$C38-Partcipation!$C37)/2)*(Title_RESULTS!$C$40*((1+Title_RESULTS!$C$41/100)^('Sheet9(F_25)'!$A38-Title_RESULTS!$H$7)))/1000 -> 0 | G38: 0 | H38: =IF(Partcipation!$B39<Partcipation!$B38,0,IF(Partcipation!$B38=0,0,(Partcipation!$B38-Partcipation!$B37)*(+Title_RESULTS!$C$29*(1+Title_RESULTS!$C$30/100)^(+'Sheet8(F_24)'!$A38-Title_RESULTS!$H$7))/1000)) -> 0 | I38: =IF(+Title_RESULTS!$C$31<0,0,(+Partcipation!$B37+(Partcipation!$B38-Partcipation!$B37)/2)*(+Title_RESULTS!$C$31*(1+Title_RESULTS!$C$32/100)^(+'Sheet6(p_6)'!$A38-Title_RESULTS!$H$7))/1000) -> 0 | J38: 0 | K38: =(+Partcipation!$B37+(Partcipation!$B38-Partcipation!$B37)/2)*(+Title_RESULTS!$C$14)/1000 -> 23683.2 | L38: =($K38)*Partcipation!$E95*Title_RESULTS!$C$12/100 -> 1561.349726 | M38: =((+$K38*(Title_RESULTS!$H$30/100)*((1+Title_RESULTS!$H$31/100)^('Sheet9(F_25)'!$A38-Title_RESULTS!$H$7)))+((Title_RESULTS!$H$32*Title_RESULTS!$H$35*12*Title_RESULTS!$C$7/1000)*(Partcipation!$B37+(Partcipation!$B38-Partcipation!$B37)/2))*((1+Title_RESULTS!$H$33/100)^('Sheet9(F_25)'!$A38-Title_RESULTS!$H$7))) -> 2385.907238 | N38: ='Sheet2(F_12)'!$I38*('Sheet6(p_6)'!$L38+'Sheet6(p_6)'!$M38) -> 3947.256964 | O38: =(Partcipation!$B37+(Partcipation!$B38-Partcipation!$B37)/2)*(Title_RESULTS!$C$13)/1000 -> 0 | P38: =($O38)*'Sheet2(F_12)'!$D38*Title_RESULTS!$C$12/100 -> 0 | Q38: =+$O38*((Title_RESULTS!$H$30/100)*((1+Title_RESULTS!$H$31/100)^('Sheet9(F_25)'!$A38-Title_RESULTS!$H$7))) -> 0 | R38: =+Partcipation!$I38*('Sheet6(p_6)'!$P38-'Sheet6(p_6)'!$Q38) -> 0
A39: 2043 | B39: =IF(+'Sheet9(F_25)'!$A39>=Title_RESULTS!$H$8,0,((Partcipation!$B39-Partcipation!$B38)*(Title_RESULTS!$C$26*((1+Title_RESULTS!$C$28/100)^('Sheet9(F_25)'!$A39-Title_RESULTS!$H$7)))/1000)) -> 0 | C39: =(Partcipation!$C38+(Partcipation!$C39-Partcipation!$C38)/2)*(Title_RESULTS!$C$27*((1+Title_RESULTS!$C$28/100)^('Sheet9(F_25)'!$A39-Title_RESULTS!$H$7)))/1000 -> 0 | D39: 0 | E39: =IF(+'Sheet9(F_25)'!$A39>=Title_RESULTS!$H$8,0,((Partcipation!$B39-Partcipation!$B38)*(Title_RESULTS!$C$39*((1+Title_RESULTS!$C$41/100)^('Sheet9(F_25)'!$A39-Title_RESULTS!$H$7)))/1000)) -> 0 | F39: =(Partcipation!$C38+(Partcipation!$C39-Partcipation!$C38)/2)*(Title_RESULTS!$C$40*((1+Title_RESULTS!$C$41/100)^('Sheet9(F_25)'!$A39-Title_RESULTS!$H$7)))/1000 -> 0 | G39: 0 | H39: =IF(Partcipation!$B40<Partcipation!$B39,0,IF(Partcipation!$B39=0,0,(Partcipation!$B39-Partcipation!$B38)*(+Title_RESULTS!$C$29*(1+Title_RESULTS!$C$30/100)^(+'Sheet8(F_24)'!$A39-Title_RESULTS!$H$7))/1000)) -> 0 | I39: =IF(+Title_RESULTS!$C$31<0,0,(+Partcipation!$B38+(Partcipation!$B39-Partcipation!$B38)/2)*(+Title_RESULTS!$C$31*(1+Title_RESULTS!$C$32/100)^(+'Sheet6(p_6)'!$A39-Title_RESULTS!$H$7))/1000) -> 0 | J39: 0 | K39: =(+Partcipation!$B38+(Partcipation!$B39-Partcipation!$B38)/2)*(+Title_RESULTS!$C$14)/1000 -> 23683.2 | L39: =($K39)*Partcipation!$E96*Title_RESULTS!$C$12/100 -> 1606.383556 | M39: =((+$K39*(Title_RESULTS!$H$30/100)*((1+Title_RESULTS!$H$31/100)^('Sheet9(F_25)'!$A39-Title_RESULTS!$H$7)))+((Title_RESULTS!$H$32*Title_RESULTS!$H$35*12*Title_RESULTS!$C$7/1000)*(Partcipation!$B38+(Partcipation!$B39-Partcipation!$B38)/2))*((1+Title_RESULTS!$H$33/100)^('Sheet9(F_25)'!$A39-Title_RESULTS!$H$7))) -> 2409.76631 | N39: ='Sheet2(F_12)'!$I39*('Sheet6(p_6)'!$L39+'Sheet6(p_6)'!$M39) -> 4016.149866 | O39: =(Partcipation!$B38+(Partcipation!$B39-Partcipation!$B38)/2)*(Title_RESULTS!$C$13)/1000 -> 0 | P39: =($O39)*'Sheet2(F_12)'!$D39*Title_RESULTS!$C$12/100 -> 0 | Q39: =+$O39*((Title_RESULTS!$H$30/100)*((1+Title_RESULTS!$H$31/100)^('Sheet9(F_25)'!$A39-Title_RESULTS!$H$7))) -> 0 | R39: =+Partcipation!$I39*('Sheet6(p_6)'!$P39-'Sheet6(p_6)'!$Q39) -> 0
A40: 2044 | B40: =IF(+'Sheet9(F_25)'!$A40>=Title_RESULTS!$H$8,0,((Partcipation!$B40-Partcipation!$B39)*(Title_RESULTS!$C$26*((1+Title_RESULTS!$C$28/100)^('Sheet9(F_25)'!$A40-Title_RESULTS!$H$7)))/1000)) -> 0 | C40: =(Partcipation!$C39+(Partcipation!$C40-Partcipation!$C39)/2)*(Title_RESULTS!$C$27*((1+Title_RESULTS!$C$28/100)^('Sheet9(F_25)'!$A40-Title_RESULTS!$H$7)))/1000 -> 0 | D40: 0 | E40: =IF(+'Sheet9(F_25)'!$A40>=Title_RESULTS!$H$8,0,((Partcipation!$B40-Partcipation!$B39)*(Title_RESULTS!$C$39*((1+Title_RESULTS!$C$41/100)^('Sheet9(F_25)'!$A40-Title_RESULTS!$H$7)))/1000)) -> 0 | F40: =(Partcipation!$C39+(Partcipation!$C40-Partcipation!$C39)/2)*(Title_RESULTS!$C$40*((1+Title_RESULTS!$C$41/100)^('Sheet9(F_25)'!$A40-Title_RESULTS!$H$7)))/1000 -> 0 | G40: 0 | H40: =IF(Partcipation!$B41<Partcipation!$B40,0,IF(Partcipation!$B40=0,0,(Partcipation!$B40-Partcipation!$B39)*(+Title_RESULTS!$C$29*(1+Title_RESULTS!$C$30/100)^(+'Sheet8(F_24)'!$A40-Title_RESULTS!$H$7))/1000)) -> 0 | I40: =IF(+Title_RESULTS!$C$31<0,0,(+Partcipation!$B39+(Partcipation!$B40-Partcipation!$B39)/2)*(+Title_RESULTS!$C$31*(1+Title_RESULTS!$C$32/100)^(+'Sheet6(p_6)'!$A40-Title_RESULTS!$H$7))/1000) -> 0 | J40: 0 | K40: =(+Partcipation!$B39+(Partcipation!$B40-Partcipation!$B39)/2)*(+Title_RESULTS!$C$14)/1000 -> 23683.2 | L40: =($K40)*Partcipation!$E97*Title_RESULTS!$C$12/100 -> 1582.742735 | M40: =((+$K40*(Title_RESULTS!$H$30/100)*((1+Title_RESULTS!$H$31/100)^('Sheet9(F_25)'!$A40-Title_RESULTS!$H$7)))+((Title_RESULTS!$H$32*Title_RESULTS!$H$35*12*Title_RESULTS!$C$7/1000)*(Partcipation!$B39+(Partcipation!$B40-Partcipation!$B39)/2))*((1+Title_RESULTS!$H$33/100)^('Sheet9(F_25)'!$A40-Title_RESULTS!$H$7))) -> 2433.863973 | N40: ='Sheet2(F_12)'!$I40*('Sheet6(p_6)'!$L40+'Sheet6(p_6)'!$M40) -> 4016.606708 | O40: =(Partcipation!$B39+(Partcipation!$B40-Partcipation!$B39)/2)*(Title_RESULTS!$C$13)/1000 -> 0 | P40: =($O40)*'Sheet2(F_12)'!$D40*Title_RESULTS!$C$12/100 -> 0 | Q40: =+$O40*((Title_RESULTS!$H$30/100)*((1+Title_RESULTS!$H$31/100)^('Sheet9(F_25)'!$A40-Title_RESULTS!$H$7))) -> 0 | R40: =+Partcipation!$I40*('Sheet6(p_6)'!$P40-'Sheet6(p_6)'!$Q40) -> 0
A42: NOMINAL | B42: =SUM(B16:B41) -> 0 | C42: 0 | D42: 0 | E42: 0 | F42: 0 | G42: 0 | H42: 14792.66721 | I42: 0 | J42: 14792.66721 | K42: 556555.2 | L42: 25591.38557 | M42: 51246.13013 | N42: 76837.5157 | O42: 0 | P42: 0 | Q42: 0 | R42: 0
A44: NPV | B44: =NPV(Title_RESULTS!$C$37,'Sheet6(p_6)'!B17:B41)+'Sheet6(p_6)'!B16 -> 0 | C44: =NPV(Title_RESULTS!$C$37,'Sheet6(p_6)'!C17:C41)+'Sheet6(p_6)'!C16 -> 0 | D44: =NPV(Title_RESULTS!$C$37,'Sheet6(p_6)'!D17:D41)+'Sheet6(p_6)'!D16 -> 0 | E44: =NPV(Title_RESULTS!$C$37,'Sheet6(p_6)'!E17:E41)+'Sheet6(p_6)'!E16 -> 0 | F44: =NPV(Title_RESULTS!$C$37,'Sheet6(p_6)'!F17:F41)+'Sheet6(p_6)'!F16 -> 0 | G44: =NPV(Title_RESULTS!$C$37,'Sheet6(p_6)'!G17:G41)+'Sheet6(p_6)'!G16 -> 0 | H44: =NPV(Title_RESULTS!$C$37,'Sheet6(p_6)'!H17:H41)+'Sheet6(p_6)'!H16 -> 13821.81631 | I44: =NPV(Title_RESULTS!$C$37,'Sheet6(p_6)'!I17:I41)+'Sheet6(p_6)'!I16 -> 0 | J44: =NPV(Title_RESULTS!$C$37,'Sheet6(p_6)'!J17:J41)+'Sheet6(p_6)'!J16 -> 13821.81631 | L44: =NPV(Title_RESULTS!$C$37,'Sheet6(p_6)'!L17:L41)+'Sheet6(p_6)'!L16 -> 10317.27191 | M44: =NPV(Title_RESULTS!$C$37,'Sheet6(p_6)'!M17:M41)+'Sheet6(p_6)'!M16 -> 23144.18326 | N44: =NPV(Title_RESULTS!$C$37,'Sheet6(p_6)'!N17:N41)+'Sheet6(p_6)'!N16 -> 33461.45517 | P44: =NPV(Title_RESULTS!$C$37,'Sheet6(p_6)'!P17:P41)+'Sheet6(p_6)'!P16 -> 0 | Q44: =NPV(Title_RESULTS!$C$37,'Sheet6(p_6)'!Q17:Q41)+'Sheet6(p_6)'!Q16 -> 0 | R44: =NPV(Title_RESULTS!$C$37,'Sheet6(p_6)'!R17:R41)+'Sheet6(p_6)'!R16 -> 0
A46: * SUPPLEMENTAL INFORMATION NOT SPECIFIED IN WORKBOOK

Sheet Sheet7(F_23)
D1: TOTAL RESOURCE COST TESTS | M1: PSC FORM CE 2.3
D2: PROGRAM: | E2: =+Input!C3 -> Retro-Commissioning | M2: Page 1 of 1
M3: =+Title_RESULTS!I4 -> 2019-05-14T07:54:57.350
A8: (1) | B8: (2) | C8: (3) | D8: (4) | E8: (5) | F8: (6) | G8: (7) | H8: (8) | I8: (9) | J8: (10) | K8: (11) | L8: (12) | M8: (13)
M10: CUMULATIVE
B11: INCREASED | C11: UTILITY | D11: PARTICIPANT | I11: PROGRAM | M11: DISCOUNTED
B12: SUPPLY | C12: PROGRAM | D12: PROGRAM | E12: OTHER | F12: TOTAL | G12: AVOIDED | H12: AVOIDED | I12: FUEL | J12: OTHER | K12: TOTAL | L12: NET | M12: NET
B13: COSTS | C13: COSTS | D13: COSTS | E13: COSTS | F13: COSTS | G13: GEN UNIT | H13: T & D | I13: SAVINGS | J13: BENEFITS | K13: BENEFITS | L13: BENEFITS | M13: BENEFITS
G14: BENEFITS | H14: BENEFITS
A15: YEAR | B15: $(000) | C15: $(000) | D15: $(000) | E15: $(000) | F15: $(000) | G15: $(000) | H15: $(000) | I15: $(000) | J15: $(000) | K15: $(000) | L15: $(000) | M15: $(000)
A16: =+Title_RESULTS!H7 -> 2020 | B16: =IF(A16>=(Title_RESULTS!$H$7+Title_RESULTS!$C$17),0,(IF($A16>=Title_RESULTS!$H$8,(Partcipation!$B15+(Partcipation!$B16-Partcipation!$B15)/2)*Title_RESULTS!$C$35*(1+Title_RESULTS!$C$36/100)^('Sheet7(F_23)'!$A16-Title_RESULTS!$H$7),0))) -> 0 | C16: =IF(A16>=(Title_RESULTS!$H$7+Title_RESULTS!$C$17),0,(+'Sheet6(p_6)'!$D16)) -> 0 | D16: =IF(A16>=(Title_RESULTS!$H$7+Title_RESULTS!$C$17),0,(+'Sheet6(p_6)'!$J16)) -> 4819.197737 | E16: =IF(A16>=(Title_RESULTS!$H$7+Title_RESULTS!$C$17),0,(+'f-11B'!$N15)) -> 0 | F16: =IF(A16>=(Title_RESULTS!$H$7+Title_RESULTS!$C$17),0,(SUM(B16:E16))) -> 4819.197737 | G16: =IF(A16>=(Title_RESULTS!$H$7+Title_RESULTS!$C$17),0,('Sheet3(F_21)'!$J16)) -> 0 | H16: =IF(A16>=(Title_RESULTS!$H$7+Title_RESULTS!$C$17),0,(+'Sheet4(F_22)'!$D16+'Sheet4(F_22)'!$G16)) -> 0 | I16: =IF(A16>=(Title_RESULTS!$H$7+Title_RESULTS!$C$17),0,(+'Sheet4(F_22)'!$H16)) -> 120.777226 | J16: =IF(A16>=(Title_RESULTS!$H$7+Title_RESULTS!$C$17),0,(IF(Title_RESULTS!$C$31<0,((Partcipation!$B15+(Partcipation!$B16-Partcipation!$B15)/2)*(ABS(Title_RESULTS!$C$31)*(1+Title_RESULTS!$C$32/100)^('Sheet7(F_23)'!$A16-Title_RESULTS!$H$7))/1000)+'f-11B'!$O15,+'f-11B'!$O15))) -> 0 | K16: =IF(A16>=(Title_RESULTS!$H$7+Title_RESULTS!$C$17),0,(SUM(G16:J16))) -> 120.777226 | L16: =IF(A16>=(Title_RESULTS!$H$7+Title_RESULTS!$C$17),0,(+$K16-$F16)) -> -4698.420511 | M16: =IF(A16>=(Title_RESULTS!$H$7+Title_RESULTS!$C$17),0,(+$L16/(1+Title_RESULTS!$C$37)^('Sheet7(F_23)'!$A16-Title_RESULTS!$H$7))) -> -4698.420511
A17: =+A16+1 -> 2021 | B17: =IF(A17>=(Title_RESULTS!$H$7+Title_RESULTS!$C$17),0,(IF($A17>=Title_RESULTS!$H$8,(Partcipation!$B16+(Partcipation!$B17-Partcipation!$B16)/2)*Title_RESULTS!$C$35*(1+Title_RESULTS!$C$36/100)^('Sheet7(F_23)'!$A17-Title_RESULTS!$H$7),0))) -> 0 | C17: =IF(A17>=(Title_RESULTS!$H$7+Title_RESULTS!$C$17),0,(+'Sheet6(p_6)'!$D17)) -> 0 | D17: =IF(A17>=(Title_RESULTS!$H$7+Title_RESULTS!$C$17),0,(+'Sheet6(p_6)'!$J17)) -> 4930.039285 | E17: =IF(A17>=(Title_RESULTS!$H$7+Title_RESULTS!$C$17),0,(+'f-11B'!$N16)) -> 0 | F17: =IF(A17>=(Title_RESULTS!$H$7+Title_RESULTS!$C$17),0,(SUM(B17:E17))) -> 4930.039285 | G17: =IF(A17>=(Title_RESULTS!$H$7+Title_RESULTS!$C$17),0,('Sheet3(F_21)'!$J17)) -> 0 | H17: =IF(A17>=(Title_RESULTS!$H$7+Title_RESULTS!$C$17),0,(+'Sheet4(F_22)'!$D17+'Sheet4(F_22)'!$G17)) -> 283.9172627 | I17: =IF(A17>=(Title_RESULTS!$H$7+Title_RESULTS!$C$17),0,(+'Sheet4(F_22)'!$H17)) -> 359.3845254 | J17: =IF(A17>=(Title_RESULTS!$H$7+Title_RESULTS!$C$17),0,(IF(Title_RESULTS!$C$31<0,((Partcipation!$B16+(Partcipation!$B17-Partcipation!$B16)/2)*(ABS(Title_RESULTS!$C$31)*(1+Title_RESULTS!$C$32/100)^('Sheet7(F_23)'!$A17-Title_RESULTS!$H$7))/1000)+'f-11B'!$O16,+'f-11B'!$O16))) -> 0 | K17: =IF(A17>=(Title_RESULTS!$H$7+Title_RESULTS!$C$17),0,(SUM(G17:J17))) -> 643.3017881 | L17: =IF(A17>=(Title_RESULTS!$H$7+Title_RESULTS!$C$17),0,(+$K17-$F17)) -> -4286.737497 | M17: =IF(A17>=(Title_RESULTS!$H$7+Title_RESULTS!$C$17),0,(+M16+$L17/(1+Title_RESULTS!$C$37)^('Sheet7(F_23)'!$A17-Title_RESULTS!$H$7))) -> -8701.724112
A18: =+A17+1 -> 2022 | B18: =IF(A18>=(Title_RESULTS!$H$7+Title_RESULTS!$C$17),0,(IF($A18>=Title_RESULTS!$H$8,(Partcipation!$B17+(Partcipation!$B18-Partcipation!$B17)/2)*Title_RESULTS!$C$35*(1+Title_RESULTS!$C$36/100)^('Sheet7(F_23)'!$A18-Title_RESULTS!$H$7),0))) -> 0 | C18: =IF(A18>=(Title_RESULTS!$H$7+Title_RESULTS!$C$17),0,(+'Sheet6(p_6)'!$D18)) -> 0 | D18: =IF(A18>=(Title_RESULTS!$H$7+Title_RESULTS!$C$17),0,(+'Sheet6(p_6)'!$J18)) -> 5043.430188 | E18: =IF(A18>=(Title_RESULTS!$H$7+Title_RESULTS!$C$17),0,(+'f-11B'!$N17)) -> 0 | F18: =IF(A18>=(Title_RESULTS!$H$7+Title_RESULTS!$C$17),0,(SUM(B18:E18))) -> 5043.430188 | G18: =IF(A18>=(Title_RESULTS!$H$7+Title_RESULTS!$C$17),0,('Sheet3(F_21)'!$J18)) -> 0 | H18: =IF(A18>=(Title_RESULTS!$H$7+Title_RESULTS!$C$17),0,(+'Sheet4(F_22)'!$D18+'Sheet4(F_22)'!$G18)) -> 290.731277 | I18: =IF(A18>=(Title_RESULTS!$H$7+Title_RESULTS!$C$17),0,(+'Sheet4(F_22)'!$H18)) -> 618.1814744 | J18: =IF(A18>=(Title_RESULTS!$H$7+Title_RESULTS!$C$17),0,(IF(Title_RESULTS!$C$31<0,((Partcipation!$B17+(Partcipation!$B18-Partcipation!$B17)/2)*(ABS(Title_RESULTS!$C$31)*(1+Title_RESULTS!$C$32/100)^('Sheet7(F_23)'!$A18-Title_RESULTS!$H$7))/1000)+'f-11B'!$O17,+'f-11B'!$O17))) -> 0 | K18: =IF(A18>=(Title_RESULTS!$H$7+Title_RESULTS!$C$17),0,(SUM(G18:J18))) -> 908.9127514 | L18: =IF(A18>=(Title_RESULTS!$H$7+Title_RESULTS!$C$17),0,(+$K18-$F18)) -> -4134.517437 | M18: =IF(A18>=(Title_RESULTS!$H$7+Title_RESULTS!$C$17),0,(+M17+$L18/(1+Title_RESULTS!$C$37)^('Sheet7(F_23)'!$A18-Title_RESULTS!$H$7))) -> -12307.57782
A19: =+A18+1 -> 2023 | B19: =IF(A19>=(Title_RESULTS!$H$7+Title_RESULTS!$C$17),0,(IF($A19>=Title_RESULTS!$H$8,(Partcipation!$B18+(Partcipation!$B19-Partcipation!$B18)/2)*Title_RESULTS!$C$35*(1+Title_RESULTS!$C$36/100)^('Sheet7(F_23)'!$A19-Title_RESULTS!$H$7),0))) -> 0 | C19: =IF(A19>=(Title_RESULTS!$H$7+Title_RESULTS!$C$17),0,(+'Sheet6(p_6)'!$D19)) -> 0 | D19: =IF(A19>=(Title_RESULTS!$H$7+Title_RESULTS!$C$17),0,(+'Sheet6(p_6)'!$J19)) -> 0 | E19: =IF(A19>=(Title_RESULTS!$H$7+Title_RESULTS!$C$17),0,(+'f-11B'!$N18)) -> 0 | F19: =IF(A19>=(Title_RESULTS!$H$7+Title_RESULTS!$C$17),0,(SUM(B19:E19))) -> 0 | G19: =IF(A19>=(Title_RESULTS!$H$7+Title_RESULTS!$C$17),0,('Sheet3(F_21)'!$J19)) -> 474.3438743 | H19: =IF(A19>=(Title_RESULTS!$H$7+Title_RESULTS!$C$17),0,(+'Sheet4(F_22)'!$D19+'Sheet4(F_22)'!$G19)) -> 297.7088277 | I19: =IF(A19>=(Title_RESULTS!$H$7+Title_RESULTS!$C$17),0,(+'Sheet4(F_22)'!$H19)) -> 772.2499489 | J19: =IF(A19>=(Title_RESULTS!$H$7+Title_RESULTS!$C$17),0,(IF(Title_RESULTS!$C$31<0,((Partcipation!$B18+(Partcipation!$B19-Partcipation!$B18)/2)*(ABS(Title_RESULTS!$C$31)*(1+Title_RESULTS!$C$32/100)^('Sheet7(F_23)'!$A19-Title_RESULTS!$H$7))/1000)+'f-11B'!$O18,+'f-11B'!$O18))) -> 0 | K19: =IF(A19>=(Title_RESULTS!$H$7+Title_RESULTS!$C$17),0,(SUM(G19:J19))) -> 1544.302651 | L19: =IF(A19>=(Title_RESULTS!$H$7+Title_RESULTS!$C$17),0,(+$K19-$F19)) -> 1544.302651 | M19: =IF(A19>=(Title_RESULTS!$H$7+Title_RESULTS!$C$17),0,(+M18+$L19/(1+Title_RESULTS!$C$37)^('Sheet7(F_23)'!$A19-Title_RESULTS!$H$7))) -> -11049.79016
A20: 2024 | B20: =IF(A20>=(Title_RESULTS!$H$7+Title_RESULTS!$C$17),0,(IF($A20>=Title_RESULTS!$H$8,(Partcipation!$B19+(Partcipation!$B20-Partcipation!$B19)/2)*Title_RESULTS!$C$35*(1+Title_RESULTS!$C$36/100)^('Sheet7(F_23)'!$A20-Title_RESULTS!$H$7),0))) -> 0 | C20: =IF(A20>=(Title_RESULTS!$H$7+Title_RESULTS!$C$17),0,(+'Sheet6(p_6)'!$D20)) -> 0 | D20: =IF(A20>=(Title_RESULTS!$H$7+Title_RESULTS!$C$17),0,(+'Sheet6(p_6)'!$J20)) -> 0 | E20: =IF(A20>=(Title_RESULTS!$H$7+Title_RESULTS!$C$17),0,(+'f-11B'!$N19)) -> 0 | F20: =IF(A20>=(Title_RESULTS!$H$7+Title_RESULTS!$C$17),0,(SUM(B20:E20))) -> 0 | G20: =IF(A20>=(Title_RESULTS!$H$7+Title_RESULTS!$C$17),0,('Sheet3(F_21)'!$J20)) -> 486.9920936 | H20: =IF(A20>=(Title_RESULTS!$H$7+Title_RESULTS!$C$17),0,(+'Sheet4(F_22)'!$D20+'Sheet4(F_22)'!$G20)) -> 304.8538395 | I20: =IF(A20>=(Title_RESULTS!$H$7+Title_RESULTS!$C$17),0,(+'Sheet4(F_22)'!$H20)) -> 802.5964612 | J20: =IF(A20>=(Title_RESULTS!$H$7+Title_RESULTS!$C$17),0,(IF(Title_RESULTS!$C$31<0,((Partcipation!$B19+(Partcipation!$B20-Partcipation!$B19)/2)*(ABS(Title_RESULTS!$C$31)*(1+Title_RESULTS!$C$32/100)^('Sheet7(F_23)'!$A20-Title_RESULTS!$H$7))/1000)+'f-11B'!$O19,+'f-11B'!$O19))) -> 0 | K20: =IF(A20>=(Title_RESULTS!$H$7+Title_RESULTS!$C$17),0,(SUM(G20:J20))) -> 1594.442394 | L20: =IF(A20>=(Title_RESULTS!$H$7+Title_RESULTS!$C$17),0,(+$K20-$F20)) -> 1594.442394 | M20: =IF(A20>=(Title_RESULTS!$H$7+Title_RESULTS!$C$17),0,(+M19+$L20/(1+Title_RESULTS!$C$37)^('Sheet7(F_23)'!$A20-Title_RESULTS!$H$7))) -> -9837.02871
A21: 2025 | B21: =IF(A21>=(Title_RESULTS!$H$7+Title_RESULTS!$C$17),0,(IF($A21>=Title_RESULTS!$H$8,(Partcipation!$B20+(Partcipation!$B21-Partcipation!$B20)/2)*Title_RESULTS!$C$35*(1+Title_RESULTS!$C$36/100)^('Sheet7(F_23)'!$A21-Title_RESULTS!$H$7),0))) -> 0 | C21: =IF(A21>=(Title_RESULTS!$H$7+Title_RESULTS!$C$17),0,(+'Sheet6(p_6)'!$D21)) -> 0 | D21: =IF(A21>=(Title_RESULTS!$H$7+Title_RESULTS!$C$17),0,(+'Sheet6(p_6)'!$J21)) -> 0 | E21: =IF(A21>=(Title_RESULTS!$H$7+Title_RESULTS!$C$17),0,(+'f-11B'!$N20)) -> 0 | F21: =IF(A21>=(Title_RESULTS!$H$7+Title_RESULTS!$C$17),0,(SUM(B21:E21))) -> 0 | G21: =IF(A21>=(Title_RESULTS!$H$7+Title_RESULTS!$C$17),0,('Sheet3(F_21)'!$J21)) -> 0 | H21: =IF(A21>=(Title_RESULTS!$H$7+Title_RESULTS!$C$17),0,(+'Sheet4(F_22)'!$D21+'Sheet4(F_22)'!$G21)) -> 0 | I21: =IF(A21>=(Title_RESULTS!$H$7+Title_RESULTS!$C$17),0,(+'Sheet4(F_22)'!$H21)) -> 0 | J21: =IF(A21>=(Title_RESULTS!$H$7+Title_RESULTS!$C$17),0,(IF(Title_RESULTS!$C$31<0,((Partcipation!$B20+(Partcipation!$B21-Partcipation!$B20)/2)*(ABS(Title_RESULTS!$C$31)*(1+Title_RESULTS!$C$32/100)^('Sheet7(F_23)'!$A21-Title_RESULTS!$H$7))/1000)+'f-11B'!$O20,+'f-11B'!$O20))) -> 0 | K21: =IF(A21>=(Title_RESULTS!$H$7+Title_RESULTS!$C$17),0,(SUM(G21:J21))) -> 0 | L21: =IF(A21>=(Title_RESULTS!$H$7+Title_RESULTS!$C$17),0,(+$K21-$F21)) -> 0 | M21: =IF(A21>=(Title_RESULTS!$H$7+Title_RESULTS!$C$17),0,(+M20+$L21/(1+Title_RESULTS!$C$37)^('Sheet7(F_23)'!$A21-Title_RESULTS!$H$7))) -> 0
A22: 2026 | B22: =IF(A22>=(Title_RESULTS!$H$7+Title_RESULTS!$C$17),0,(IF($A22>=Title_RESULTS!$H$8,(Partcipation!$B21+(Partcipation!$B22-Partcipation!$B21)/2)*Title_RESULTS!$C$35*(1+Title_RESULTS!$C$36/100)^('Sheet7(F_23)'!$A22-Title_RESULTS!$H$7),0))) -> 0 | C22: =IF(A22>=(Title_RESULTS!$H$7+Title_RESULTS!$C$17),0,(+'Sheet6(p_6)'!$D22)) -> 0 | D22: =IF(A22>=(Title_RESULTS!$H$7+Title_RESULTS!$C$17),0,(+'Sheet6(p_6)'!$J22)) -> 0 | E22: =IF(A22>=(Title_RESULTS!$H$7+Title_RESULTS!$C$17),0,(+'f-11B'!$N21)) -> 0 | F22: =IF(A22>=(Title_RESULTS!$H$7+Title_RESULTS!$C$17),0,(SUM(B22:E22))) -> 0 | G22: =IF(A22>=(Title_RESULTS!$H$7+Title_RESULTS!$C$17),0,('Sheet3(F_21)'!$J22)) -> 0 | H22: =IF(A22>=(Title_RESULTS!$H$7+Title_RESULTS!$C$17),0,(+'Sheet4(F_22)'!$D22+'Sheet4(F_22)'!$G22)) -> 0 | I22: =IF(A22>=(Title_RESULTS!$H$7+Title_RESULTS!$C$17),0,(+'Sheet4(F_22)'!$H22)) -> 0 | J22: =IF(A22>=(Title_RESULTS!$H$7+Title_RESULTS!$C$17),0,(IF(Title_RESULTS!$C$31<0,((Partcipation!$B21+(Partcipation!$B22-Partcipation!$B21)/2)*(ABS(Title_RESULTS!$C$31)*(1+Title_RESULTS!$C$32/100)^('Sheet7(F_23)'!$A22-Title_RESULTS!$H$7))/1000)+'f-11B'!$O21,+'f-11B'!$O21))) -> 0 | K22: =IF(A22>=(Title_RESULTS!$H$7+Title_RESULTS!$C$17),0,(SUM(G22:J22))) -> 0 | L22: =IF(A22>=(Title_RESULTS!$H$7+Title_RESULTS!$C$17),0,(+$K22-$F22)) -> 0 | M22: =IF(A22>=(Title_RESULTS!$H$7+Title_RESULTS!$C$17),0,(+M21+$L22/(1+Title_RESULTS!$C$37)^('Sheet7(F_23)'!$A22-Title_RESULTS!$H$7))) -> 0
A23: 2027 | B23: =IF(A23>=(Title_RESULTS!$H$7+Title_RESULTS!$C$17),0,(IF($A23>=Title_RESULTS!$H$8,(Partcipation!$B22+(Partcipation!$B23-Partcipation!$B22)/2)*Title_RESULTS!$C$35*(1+Title_RESULTS!$C$36/100)^('Sheet7(F_23)'!$A23-Title_RESULTS!$H$7),0))) -> 0 | C23: =IF(A23>=(Title_RESULTS!$H$7+Title_RESULTS!$C$17),0,(+'Sheet6(p_6)'!$D23)) -> 0 | D23: =IF(A23>=(Title_RESULTS!$H$7+Title_RESULTS!$C$17),0,(+'Sheet6(p_6)'!$J23)) -> 0 | E23: =IF(A23>=(Title_RESULTS!$H$7+Title_RESULTS!$C$17),0,(+'f-11B'!$N22)) -> 0 | F23: =IF(A23>=(Title_RESULTS!$H$7+Title_RESULTS!$C$17),0,(SUM(B23:E23))) -> 0 | G23: =IF(A23>=(Title_RESULTS!$H$7+Title_RESULTS!$C$17),0,('Sheet3(F_21)'!$J23)) -> 0 | H23: =IF(A23>=(Title_RESULTS!$H$7+Title_RESULTS!$C$17),0,(+'Sheet4(F_22)'!$D23+'Sheet4(F_22)'!$G23)) -> 0 | I23: =IF(A23>=(Title_RESULTS!$H$7+Title_RESULTS!$C$17),0,(+'Sheet4(F_22)'!$H23)) -> 0 | J23: =IF(A23>=(Title_RESULTS!$H$7+Title_RESULTS!$C$17),0,(IF(Title_RESULTS!$C$31<0,((Partcipation!$B22+(Partcipation!$B23-Partcipation!$B22)/2)*(ABS(Title_RESULTS!$C$31)*(1+Title_RESULTS!$C$32/100)^('Sheet7(F_23)'!$A23-Title_RESULTS!$H$7))/1000)+'f-11B'!$O22,+'f-11B'!$O22))) -> 0 | K23: =IF(A23>=(Title_RESULTS!$H$7+Title_RESULTS!$C$17),0,(SUM(G23:J23))) -> 0 | L23: =IF(A23>=(Title_RESULTS!$H$7+Title_RESULTS!$C$17),0,(+$K23-$F23)) -> 0 | M23: =IF(A23>=(Title_RESULTS!$H$7+Title_RESULTS!$C$17),0,(+M22+$L23/(1+Title_RESULTS!$C$37)^('Sheet7(F_23)'!$A23-Title_RESULTS!$H$7))) -> 0
A24: 2028 | B24: =IF(A24>=(Title_RESULTS!$H$7+Title_RESULTS!$C$17),0,(IF($A24>=Title_RESULTS!$H$8,(Partcipation!$B23+(Partcipation!$B24-Partcipation!$B23)/2)*Title_RESULTS!$C$35*(1+Title_RESULTS!$C$36/100)^('Sheet7(F_23)'!$A24-Title_RESULTS!$H$7),0))) -> 0 | C24: =IF(A24>=(Title_RESULTS!$H$7+Title_RESULTS!$C$17),0,(+'Sheet6(p_6)'!$D24)) -> 0 | D24: =IF(A24>=(Title_RESULTS!$H$7+Title_RESULTS!$C$17),0,(+'Sheet6(p_6)'!$J24)) -> 0 | E24: =IF(A24>=(Title_RESULTS!$H$7+Title_RESULTS!$C$17),0,(+'f-11B'!$N23)) -> 0 | F24: =IF(A24>=(Title_RESULTS!$H$7+Title_RESULTS!$C$17),0,(SUM(B24:E24))) -> 0 | G24: =IF(A24>=(Title_RESULTS!$H$7+Title_RESULTS!$C$17),0,('Sheet3(F_21)'!$J24)) -> 0 | H24: =IF(A24>=(Title_RESULTS!$H$7+Title_RESULTS!$C$17),0,(+'Sheet4(F_22)'!$D24+'Sheet4(F_22)'!$G24)) -> 0 | I24: =IF(A24>=(Title_RESULTS!$H$7+Title_RESULTS!$C$17),0,(+'Sheet4(F_22)'!$H24)) -> 0 | J24: =IF(A24>=(Title_RESULTS!$H$7+Title_RESULTS!$C$17),0,(IF(Title_RESULTS!$C$31<0,((Partcipation!$B23+(Partcipation!$B24-Partcipation!$B23)/2)*(ABS(Title_RESULTS!$C$31)*(1+Title_RESULTS!$C$32/100)^('Sheet7(F_23)'!$A24-Title_RESULTS!$H$7))/1000)+'f-11B'!$O23,+'f-11B'!$O23))) -> 0 | K24: =IF(A24>=(Title_RESULTS!$H$7+Title_RESULTS!$C$17),0,(SUM(G24:J24))) -> 0 | L24: =IF(A24>=(Title_RESULTS!$H$7+Title_RESULTS!$C$17),0,(+$K24-$F24)) -> 0 | M24: =IF(A24>=(Title_RESULTS!$H$7+Title_RESULTS!$C$17),0,(+M23+$L24/(1+Title_RESULTS!$C$37)^('Sheet7(F_23)'!$A24-Title_RESULTS!$H$7))) -> 0
A25: 2029 | B25: =IF(A25>=(Title_RESULTS!$H$7+Title_RESULTS!$C$17),0,(IF($A25>=Title_RESULTS!$H$8,(Partcipation!$B24+(Partcipation!$B25-Partcipation!$B24)/2)*Title_RESULTS!$C$35*(1+Title_RESULTS!$C$36/100)^('Sheet7(F_23)'!$A25-Title_RESULTS!$H$7),0))) -> 0 | C25: =IF(A25>=(Title_RESULTS!$H$7+Title_RESULTS!$C$17),0,(+'Sheet6(p_6)'!$D25)) -> 0 | D25: =IF(A25>=(Title_RESULTS!$H$7+Title_RESULTS!$C$17),0,(+'Sheet6(p_6)'!$J25)) -> 0 | E25: =IF(A25>=(Title_RESULTS!$H$7+Title_RESULTS!$C$17),0,(+'f-11B'!$N24)) -> 0 | F25: =IF(A25>=(Title_RESULTS!$H$7+Title_RESULTS!$C$17),0,(SUM(B25:E25))) -> 0 | G25: =IF(A25>=(Title_RESULTS!$H$7+Title_RESULTS!$C$17),0,('Sheet3(F_21)'!$J25)) -> 0 | H25: =IF(A25>=(Title_RESULTS!$H$7+Title_RESULTS!$C$17),0,(+'Sheet4(F_22)'!$D25+'Sheet4(F_22)'!$G25)) -> 0 | I25: =IF(A25>=(Title_RESULTS!$H$7+Title_RESULTS!$C$17),0,(+'Sheet4(F_22)'!$H25)) -> 0 | J25: =IF(A25>=(Title_RESULTS!$H$7+Title_RESULTS!$C$17),0,(IF(Title_RESULTS!$C$31<0,((Partcipation!$B24+(Partcipation!$B25-Partcipation!$B24)/2)*(ABS(Title_RESULTS!$C$31)*(1+Title_RESULTS!$C$32/100)^('Sheet7(F_23)'!$A25-Title_RESULTS!$H$7))/1000)+'f-11B'!$O24,+'f-11B'!$O24))) -> 0 | K25: =IF(A25>=(Title_RESULTS!$H$7+Title_RESULTS!$C$17),0,(SUM(G25:J25))) -> 0 | L25: =IF(A25>=(Title_RESULTS!$H$7+Title_RESULTS!$C$17),0,(+$K25-$F25)) -> 0 | M25: =IF(A25>=(Title_RESULTS!$H$7+Title_RESULTS!$C$17),0,(+M24+$L25/(1+Title_RESULTS!$C$37)^('Sheet7(F_23)'!$A25-Title_RESULTS!$H$7))) -> 0
A26: 2030 | B26: =IF(A26>=(Title_RESULTS!$H$7+Title_RESULTS!$C$17),0,(IF($A26>=Title_RESULTS!$H$8,(Partcipation!$B25+(Partcipation!$B26-Partcipation!$B25)/2)*Title_RESULTS!$C$35*(1+Title_RESULTS!$C$36/100)^('Sheet7(F_23)'!$A26-Title_RESULTS!$H$7),0))) -> 0 | C26: =IF(A26>=(Title_RESULTS!$H$7+Title_RESULTS!$C$17),0,(+'Sheet6(p_6)'!$D26)) -> 0 | D26: =IF(A26>=(Title_RESULTS!$H$7+Title_RESULTS!$C$17),0,(+'Sheet6(p_6)'!$J26)) -> 0 | E26: =IF(A26>=(Title_RESULTS!$H$7+Title_RESULTS!$C$17),0,(+'f-11B'!$N25)) -> 0 | F26: =IF(A26>=(Title_RESULTS!$H$7+Title_RESULTS!$C$17),0,(SUM(B26:E26))) -> 0 | G26: =IF(A26>=(Title_RESULTS!$H$7+Title_RESULTS!$C$17),0,('Sheet3(F_21)'!$J26)) -> 0 | H26: =IF(A26>=(Title_RESULTS!$H$7+Title_RESULTS!$C$17),0,(+'Sheet4(F_22)'!$D26+'Sheet4(F_22)'!$G26)) -> 0 | I26: =IF(A26>=(Title_RESULTS!$H$7+Title_RESULTS!$C$17),0,(+'Sheet4(F_22)'!$H26)) -> 0 | J26: =IF(A26>=(Title_RESULTS!$H$7+Title_RESULTS!$C$17),0,(IF(Title_RESULTS!$C$31<0,((Partcipation!$B25+(Partcipation!$B26-Partcipation!$B25)/2)*(ABS(Title_RESULTS!$C$31)*(1+Title_RESULTS!$C$32/100)^('Sheet7(F_23)'!$A26-Title_RESULTS!$H$7))/1000)+'f-11B'!$O25,+'f-11B'!$O25))) -> 0 | K26: =IF(A26>=(Title_RESULTS!$H$7+Title_RESULTS!$C$17),0,(SUM(G26:J26))) -> 0 | L26: =IF(A26>=(Title_RESULTS!$H$7+Title_RESULTS!$C$17),0,(+$K26-$F26)) -> 0 | M26: =IF(A26>=(Title_RESULTS!$H$7+Title_RESULTS!$C$17),0,(+M25+$L26/(1+Title_RESULTS!$C$37)^('Sheet7(F_23)'!$A26-Title_RESULTS!$H$7))) -> 0
A27: 2031 | B27: =IF(A27>=(Title_RESULTS!$H$7+Title_RESULTS!$C$17),0,(IF($A27>=Title_RESULTS!$H$8,(Partcipation!$B26+(Partcipation!$B27-Partcipation!$B26)/2)*Title_RESULTS!$C$35*(1+Title_RESULTS!$C$36/100)^('Sheet7(F_23)'!$A27-Title_RESULTS!$H$7),0))) -> 0 | C27: =IF(A27>=(Title_RESULTS!$H$7+Title_RESULTS!$C$17),0,(+'Sheet6(p_6)'!$D27)) -> 0 | D27: =IF(A27>=(Title_RESULTS!$H$7+Title_RESULTS!$C$17),0,(+'Sheet6(p_6)'!$J27)) -> 0 | E27: =IF(A27>=(Title_RESULTS!$H$7+Title_RESULTS!$C$17),0,(+'f-11B'!$N26)) -> 0 | F27: =IF(A27>=(Title_RESULTS!$H$7+Title_RESULTS!$C$17),0,(SUM(B27:E27))) -> 0 | G27: =IF(A27>=(Title_RESULTS!$H$7+Title_RESULTS!$C$17),0,('Sheet3(F_21)'!$J27)) -> 0 | H27: =IF(A27>=(Title_RESULTS!$H$7+Title_RESULTS!$C$17),0,(+'Sheet4(F_22)'!$D27+'Sheet4(F_22)'!$G27)) -> 0 | I27: =IF(A27>=(Title_RESULTS!$H$7+Title_RESULTS!$C$17),0,(+'Sheet4(F_22)'!$H27)) -> 0 | J27: =IF(A27>=(Title_RESULTS!$H$7+Title_RESULTS!$C$17),0,(IF(Title_RESULTS!$C$31<0,((Partcipation!$B26+(Partcipation!$B27-Partcipation!$B26)/2)*(ABS(Title_RESULTS!$C$31)*(1+Title_RESULTS!$C$32/100)^('Sheet7(F_23)'!$A27-Title_RESULTS!$H$7))/1000)+'f-11B'!$O26,+'f-11B'!$O26))) -> 0 | K27: =IF(A27>=(Title_RESULTS!$H$7+Title_RESULTS!$C$17),0,(SUM(G27:J27))) -> 0 | L27: =IF(A27>=(Title_RESULTS!$H$7+Title_RESULTS!$C$17),0,(+$K27-$F27)) -> 0 | M27: =IF(A27>=(Title_RESULTS!$H$7+Title_RESULTS!$C$17),0,(+M26+$L27/(1+Title_RESULTS!$C$37)^('Sheet7(F_23)'!$A27-Title_RESULTS!$H$7))) -> 0
A28: 2032 | B28: =IF(A28>=(Title_RESULTS!$H$7+Title_RESULTS!$C$17),0,(IF($A28>=Title_RESULTS!$H$8,(Partcipation!$B27+(Partcipation!$B28-Partcipation!$B27)/2)*Title_RESULTS!$C$35*(1+Title_RESULTS!$C$36/100)^('Sheet7(F_23)'!$A28-Title_RESULTS!$H$7),0))) -> 0 | C28: =IF(A28>=(Title_RESULTS!$H$7+Title_RESULTS!$C$17),0,(+'Sheet6(p_6)'!$D28)) -> 0 | D28: =IF(A28>=(Title_RESULTS!$H$7+Title_RESULTS!$C$17),0,(+'Sheet6(p_6)'!$J28)) -> 0 | E28: =IF(A28>=(Title_RESULTS!$H$7+Title_RESULTS!$C$17),0,(+'f-11B'!$N27)) -> 0 | F28: =IF(A28>=(Title_RESULTS!$H$7+Title_RESULTS!$C$17),0,(SUM(B28:E28))) -> 0 | G28: =IF(A28>=(Title_RESULTS!$H$7+Title_RESULTS!$C$17),0,('Sheet3(F_21)'!$J28)) -> 0 | H28: =IF(A28>=(Title_RESULTS!$H$7+Title_RESULTS!$C$17),0,(+'Sheet4(F_22)'!$D28+'Sheet4(F_22)'!$G28)) -> 0 | I28: =IF(A28>=(Title_RESULTS!$H$7+Title_RESULTS!$C$17),0,(+'Sheet4(F_22)'!$H28)) -> 0 | J28: =IF(A28>=(Title_RESULTS!$H$7+Title_RESULTS!$C$17),0,(IF(Title_RESULTS!$C$31<0,((Partcipation!$B27+(Partcipation!$B28-Partcipation!$B27)/2)*(ABS(Title_RESULTS!$C$31)*(1+Title_RESULTS!$C$32/100)^('Sheet7(F_23)'!$A28-Title_RESULTS!$H$7))/1000)+'f-11B'!$O27,+'f-11B'!$O27))) -> 0 | K28: =IF(A28>=(Title_RESULTS!$H$7+Title_RESULTS!$C$17),0,(SUM(G28:J28))) -> 0 | L28: =IF(A28>=(Title_RESULTS!$H$7+Title_RESULTS!$C$17),0,(+$K28-$F28)) -> 0 | M28: =IF(A28>=(Title_RESULTS!$H$7+Title_RESULTS!$C$17),0,(+M27+$L28/(1+Title_RESULTS!$C$37)^('Sheet7(F_23)'!$A28-Title_RESULTS!$H$7))) -> 0
A29: 2033 | B29: =IF(A29>=(Title_RESULTS!$H$7+Title_RESULTS!$C$17),0,(IF($A29>=Title_RESULTS!$H$8,(Partcipation!$B28+(Partcipation!$B29-Partcipation!$B28)/2)*Title_RESULTS!$C$35*(1+Title_RESULTS!$C$36/100)^('Sheet7(F_23)'!$A29-Title_RESULTS!$H$7),0))) -> 0 | C29: =IF(A29>=(Title_RESULTS!$H$7+Title_RESULTS!$C$17),0,(+'Sheet6(p_6)'!$D29)) -> 0 | D29: =IF(A29>=(Title_RESULTS!$H$7+Title_RESULTS!$C$17),0,(+'Sheet6(p_6)'!$J29)) -> 0 | E29: =IF(A29>=(Title_RESULTS!$H$7+Title_RESULTS!$C$17),0,(+'f-11B'!$N28)) -> 0 | F29: =IF(A29>=(Title_RESULTS!$H$7+Title_RESULTS!$C$17),0,(SUM(B29:E29))) -> 0 | G29: =IF(A29>=(Title_RESULTS!$H$7+Title_RESULTS!$C$17),0,('Sheet3(F_21)'!$J29)) -> 0 | H29: =IF(A29>=(Title_RESULTS!$H$7+Title_RESULTS!$C$17),0,(+'Sheet4(F_22)'!$D29+'Sheet4(F_22)'!$G29)) -> 0 | I29: =IF(A29>=(Title_RESULTS!$H$7+Title_RESULTS!$C$17),0,(+'Sheet4(F_22)'!$H29)) -> 0 | J29: =IF(A29>=(Title_RESULTS!$H$7+Title_RESULTS!$C$17),0,(IF(Title_RESULTS!$C$31<0,((Partcipation!$B28+(Partcipation!$B29-Partcipation!$B28)/2)*(ABS(Title_RESULTS!$C$31)*(1+Title_RESULTS!$C$32/100)^('Sheet7(F_23)'!$A29-Title_RESULTS!$H$7))/1000)+'f-11B'!$O28,+'f-11B'!$O28))) -> 0 | K29: =IF(A29>=(Title_RESULTS!$H$7+Title_RESULTS!$C$17),0,(SUM(G29:J29))) -> 0 | L29: =IF(A29>=(Title_RESULTS!$H$7+Title_RESULTS!$C$17),0,(+$K29-$F29)) -> 0 | M29: =IF(A29>=(Title_RESULTS!$H$7+Title_RESULTS!$C$17),0,(+M28+$L29/(1+Title_RESULTS!$C$37)^('Sheet7(F_23)'!$A29-Title_RESULTS!$H$7))) -> 0
A30: 2034 | B30: =IF(A30>=(Title_RESULTS!$H$7+Title_RESULTS!$C$17),0,(IF($A30>=Title_RESULTS!$H$8,(Partcipation!$B29+(Partcipation!$B30-Partcipation!$B29)/2)*Title_RESULTS!$C$35*(1+Title_RESULTS!$C$36/100)^('Sheet7(F_23)'!$A30-Title_RESULTS!$H$7),0))) -> 0 | C30: =IF(A30>=(Title_RESULTS!$H$7+Title_RESULTS!$C$17),0,(+'Sheet6(p_6)'!$D30)) -> 0 | D30: =IF(A30>=(Title_RESULTS!$H$7+Title_RESULTS!$C$17),0,(+'Sheet6(p_6)'!$J30)) -> 0 | E30: =IF(A30>=(Title_RESULTS!$H$7+Title_RESULTS!$C$17),0,(+'f-11B'!$N29)) -> 0 | F30: =IF(A30>=(Title_RESULTS!$H$7+Title_RESULTS!$C$17),0,(SUM(B30:E30))) -> 0 | G30: =IF(A30>=(Title_RESULTS!$H$7+Title_RESULTS!$C$17),0,('Sheet3(F_21)'!$J30)) -> 0 | H30: =IF(A30>=(Title_RESULTS!$H$7+Title_RESULTS!$C$17),0,(+'Sheet4(F_22)'!$D30+'Sheet4(F_22)'!$G30)) -> 0 | I30: =IF(A30>=(Title_RESULTS!$H$7+Title_RESULTS!$C$17),0,(+'Sheet4(F_22)'!$H30)) -> 0 | J30: =IF(A30>=(Title_RESULTS!$H$7+Title_RESULTS!$C$17),0,(IF(Title_RESULTS!$C$31<0,((Partcipation!$B29+(Partcipation!$B30-Partcipation!$B29)/2)*(ABS(Title_RESULTS!$C$31)*(1+Title_RESULTS!$C$32/100)^('Sheet7(F_23)'!$A30-Title_RESULTS!$H$7))/1000)+'f-11B'!$O29,+'f-11B'!$O29))) -> 0 | K30: =IF(A30>=(Title_RESULTS!$H$7+Title_RESULTS!$C$17),0,(SUM(G30:J30))) -> 0 | L30: =IF(A30>=(Title_RESULTS!$H$7+Title_RESULTS!$C$17),0,(+$K30-$F30)) -> 0 | M30: =IF(A30>=(Title_RESULTS!$H$7+Title_RESULTS!$C$17),0,(+M29+$L30/(1+Title_RESULTS!$C$37)^('Sheet7(F_23)'!$A30-Title_RESULTS!$H$7))) -> 0
A31: 2035 | B31: =IF(A31>=(Title_RESULTS!$H$7+Title_RESULTS!$C$17),0,(IF($A31>=Title_RESULTS!$H$8,(Partcipation!$B30+(Partcipation!$B31-Partcipation!$B30)/2)*Title_RESULTS!$C$35*(1+Title_RESULTS!$C$36/100)^('Sheet7(F_23)'!$A31-Title_RESULTS!$H$7),0))) -> 0 | C31: =IF(A31>=(Title_RESULTS!$H$7+Title_RESULTS!$C$17),0,(+'Sheet6(p_6)'!$D31)) -> 0 | D31: =IF(A31>=(Title_RESULTS!$H$7+Title_RESULTS!$C$17),0,(+'Sheet6(p_6)'!$J31)) -> 0 | E31: =IF(A31>=(Title_RESULTS!$H$7+Title_RESULTS!$C$17),0,(+'f-11B'!$N30)) -> 0 | F31: =IF(A31>=(Title_RESULTS!$H$7+Title_RESULTS!$C$17),0,(SUM(B31:E31))) -> 0 | G31: =IF(A31>=(Title_RESULTS!$H$7+Title_RESULTS!$C$17),0,('Sheet3(F_21)'!$J31)) -> 0 | H31: =IF(A31>=(Title_RESULTS!$H$7+Title_RESULTS!$C$17),0,(+'Sheet4(F_22)'!$D31+'Sheet4(F_22)'!$G31)) -> 0 | I31: =IF(A31>=(Title_RESULTS!$H$7+Title_RESULTS!$C$17),0,(+'Sheet4(F_22)'!$H31)) -> 0 | J31: =IF(A31>=(Title_RESULTS!$H$7+Title_RESULTS!$C$17),0,(IF(Title_RESULTS!$C$31<0,((Partcipation!$B30+(Partcipation!$B31-Partcipation!$B30)/2)*(ABS(Title_RESULTS!$C$31)*(1+Title_RESULTS!$C$32/100)^('Sheet7(F_23)'!$A31-Title_RESULTS!$H$7))/1000)+'f-11B'!$O30,+'f-11B'!$O30))) -> 0 | K31: =IF(A31>=(Title_RESULTS!$H$7+Title_RESULTS!$C$17),0,(SUM(G31:J31))) -> 0 | L31: =IF(A31>=(Title_RESULTS!$H$7+Title_RESULTS!$C$17),0,(+$K31-$F31)) -> 0 | M31: =IF(A31>=(Title_RESULTS!$H$7+Title_RESULTS!$C$17),0,(+M30+$L31/(1+Title_RESULTS!$C$37)^('Sheet7(F_23)'!$A31-Title_RESULTS!$H$7))) -> 0
A32: 2036 | B32: =IF(A32>=(Title_RESULTS!$H$7+Title_RESULTS!$C$17),0,(IF($A32>=Title_RESULTS!$H$8,(Partcipation!$B31+(Partcipation!$B32-Partcipation!$B31)/2)*Title_RESULTS!$C$35*(1+Title_RESULTS!$C$36/100)^('Sheet7(F_23)'!$A32-Title_RESULTS!$H$7),0))) -> 0 | C32: =IF(A32>=(Title_RESULTS!$H$7+Title_RESULTS!$C$17),0,(+'Sheet6(p_6)'!$D32)) -> 0 | D32: =IF(A32>=(Title_RESULTS!$H$7+Title_RESULTS!$C$17),0,(+'Sheet6(p_6)'!$J32)) -> 0 | E32: =IF(A32>=(Title_RESULTS!$H$7+Title_RESULTS!$C$17),0,(+'f-11B'!$N31)) -> 0 | F32: =IF(A32>=(Title_RESULTS!$H$7+Title_RESULTS!$C$17),0,(SUM(B32:E32))) -> 0 | G32: =IF(A32>=(Title_RESULTS!$H$7+Title_RESULTS!$C$17),0,('Sheet3(F_21)'!$J32)) -> 0 | H32: =IF(A32>=(Title_RESULTS!$H$7+Title_RESULTS!$C$17),0,(+'Sheet4(F_22)'!$D32+'Sheet4(F_22)'!$G32)) -> 0 | I32: =IF(A32>=(Title_RESULTS!$H$7+Title_RESULTS!$C$17),0,(+'Sheet4(F_22)'!$H32)) -> 0 | J32: =IF(A32>=(Title_RESULTS!$H$7+Title_RESULTS!$C$17),0,(IF(Title_RESULTS!$C$31<0,((Partcipation!$B31+(Partcipation!$B32-Partcipation!$B31)/2)*(ABS(Title_RESULTS!$C$31)*(1+Title_RESULTS!$C$32/100)^('Sheet7(F_23)'!$A32-Title_RESULTS!$H$7))/1000)+'f-11B'!$O31,+'f-11B'!$O31))) -> 0 | K32: =IF(A32>=(Title_RESULTS!$H$7+Title_RESULTS!$C$17),0,(SUM(G32:J32))) -> 0 | L32: =IF(A32>=(Title_RESULTS!$H$7+Title_RESULTS!$C$17),0,(+$K32-$F32)) -> 0 | M32: =IF(A32>=(Title_RESULTS!$H$7+Title_RESULTS!$C$17),0,(+M31+$L32/(1+Title_RESULTS!$C$37)^('Sheet7(F_23)'!$A32-Title_RESULTS!$H$7))) -> 0
A33: 2037 | B33: =IF(A33>=(Title_RESULTS!$H$7+Title_RESULTS!$C$17),0,(IF($A33>=Title_RESULTS!$H$8,(Partcipation!$B32+(Partcipation!$B33-Partcipation!$B32)/2)*Title_RESULTS!$C$35*(1+Title_RESULTS!$C$36/100)^('Sheet7(F_23)'!$A33-Title_RESULTS!$H$7),0))) -> 0 | C33: =IF(A33>=(Title_RESULTS!$H$7+Title_RESULTS!$C$17),0,(+'Sheet6(p_6)'!$D33)) -> 0 | D33: =IF(A33>=(Title_RESULTS!$H$7+Title_RESULTS!$C$17),0,(+'Sheet6(p_6)'!$J33)) -> 0 | E33: =IF(A33>=(Title_RESULTS!$H$7+Title_RESULTS!$C$17),0,(+'f-11B'!$N32)) -> 0 | F33: =IF(A33>=(Title_RESULTS!$H$7+Title_RESULTS!$C$17),0,(SUM(B33:E33))) -> 0 | G33: =IF(A33>=(Title_RESULTS!$H$7+Title_RESULTS!$C$17),0,('Sheet3(F_21)'!$J33)) -> 0 | H33: =IF(A33>=(Title_RESULTS!$H$7+Title_RESULTS!$C$17),0,(+'Sheet4(F_22)'!$D33+'Sheet4(F_22)'!$G33)) -> 0 | I33: =IF(A33>=(Title_RESULTS!$H$7+Title_RESULTS!$C$17),0,(+'Sheet4(F_22)'!$H33)) -> 0 | J33: =IF(A33>=(Title_RESULTS!$H$7+Title_RESULTS!$C$17),0,(IF(Title_RESULTS!$C$31<0,((Partcipation!$B32+(Partcipation!$B33-Partcipation!$B32)/2)*(ABS(Title_RESULTS!$C$31)*(1+Title_RESULTS!$C$32/100)^('Sheet7(F_23)'!$A33-Title_RESULTS!$H$7))/1000)+'f-11B'!$O32,+'f-11B'!$O32))) -> 0 | K33: =IF(A33>=(Title_RESULTS!$H$7+Title_RESULTS!$C$17),0,(SUM(G33:J33))) -> 0 | L33: =IF(A33>=(Title_RESULTS!$H$7+Title_RESULTS!$C$17),0,(+$K33-$F33)) -> 0 | M33: =IF(A33>=(Title_RESULTS!$H$7+Title_RESULTS!$C$17),0,(+M32+$L33/(1+Title_RESULTS!$C$37)^('Sheet7(F_23)'!$A33-Title_RESULTS!$H$7))) -> 0
A34: 2038 | B34: =IF(A34>=(Title_RESULTS!$H$7+Title_RESULTS!$C$17),0,(IF($A34>=Title_RESULTS!$H$8,(Partcipation!$B33+(Partcipation!$B34-Partcipation!$B33)/2)*Title_RESULTS!$C$35*(1+Title_RESULTS!$C$36/100)^('Sheet7(F_23)'!$A34-Title_RESULTS!$H$7),0))) -> 0 | C34: =IF(A34>=(Title_RESULTS!$H$7+Title_RESULTS!$C$17),0,(+'Sheet6(p_6)'!$D34)) -> 0 | D34: =IF(A34>=(Title_RESULTS!$H$7+Title_RESULTS!$C$17),0,(+'Sheet6(p_6)'!$J34)) -> 0 | E34: =IF(A34>=(Title_RESULTS!$H$7+Title_RESULTS!$C$17),0,(+'f-11B'!$N33)) -> 0 | F34: =IF(A34>=(Title_RESULTS!$H$7+Title_RESULTS!$C$17),0,(SUM(B34:E34))) -> 0 | G34: =IF(A34>=(Title_RESULTS!$H$7+Title_RESULTS!$C$17),0,('Sheet3(F_21)'!$J34)) -> 0 | H34: =IF(A34>=(Title_RESULTS!$H$7+Title_RESULTS!$C$17),0,(+'Sheet4(F_22)'!$D34+'Sheet4(F_22)'!$G34)) -> 0 | I34: =IF(A34>=(Title_RESULTS!$H$7+Title_RESULTS!$C$17),0,(+'Sheet4(F_22)'!$H34)) -> 0 | J34: =IF(A34>=(Title_RESULTS!$H$7+Title_RESULTS!$C$17),0,(IF(Title_RESULTS!$C$31<0,((Partcipation!$B33+(Partcipation!$B34-Partcipation!$B33)/2)*(ABS(Title_RESULTS!$C$31)*(1+Title_RESULTS!$C$32/100)^('Sheet7(F_23)'!$A34-Title_RESULTS!$H$7))/1000)+'f-11B'!$O33,+'f-11B'!$O33))) -> 0 | K34: =IF(A34>=(Title_RESULTS!$H$7+Title_RESULTS!$C$17),0,(SUM(G34:J34))) -> 0 | L34: =IF(A34>=(Title_RESULTS!$H$7+Title_RESULTS!$C$17),0,(+$K34-$F34)) -> 0 | M34: =IF(A34>=(Title_RESULTS!$H$7+Title_RESULTS!$C$17),0,(+M33+$L34/(1+Title_RESULTS!$C$37)^('Sheet7(F_23)'!$A34-Title_RESULTS!$H$7))) -> 0
A35: 2039 | B35: =IF(A35>=(Title_RESULTS!$H$7+Title_RESULTS!$C$17),0,(IF($A35>=Title_RESULTS!$H$8,(Partcipation!$B34+(Partcipation!$B35-Partcipation!$B34)/2)*Title_RESULTS!$C$35*(1+Title_RESULTS!$C$36/100)^('Sheet7(F_23)'!$A35-Title_RESULTS!$H$7),0))) -> 0 | C35: =IF(A35>=(Title_RESULTS!$H$7+Title_RESULTS!$C$17),0,(+'Sheet6(p_6)'!$D35)) -> 0 | D35: =IF(A35>=(Title_RESULTS!$H$7+Title_RESULTS!$C$17),0,(+'Sheet6(p_6)'!$J35)) -> 0 | E35: =IF(A35>=(Title_RESULTS!$H$7+Title_RESULTS!$C$17),0,(+'f-11B'!$N34)) -> 0 | F35: =IF(A35>=(Title_RESULTS!$H$7+Title_RESULTS!$C$17),0,(SUM(B35:E35))) -> 0 | G35: =IF(A35>=(Title_RESULTS!$H$7+Title_RESULTS!$C$17),0,('Sheet3(F_21)'!$J35)) -> 0 | H35: =IF(A35>=(Title_RESULTS!$H$7+Title_RESULTS!$C$17),0,(+'Sheet4(F_22)'!$D35+'Sheet4(F_22)'!$G35)) -> 0 | I35: =IF(A35>=(Title_RESULTS!$H$7+Title_RESULTS!$C$17),0,(+'Sheet4(F_22)'!$H35)) -> 0 | J35: =IF(A35>=(Title_RESULTS!$H$7+Title_RESULTS!$C$17),0,(IF(Title_RESULTS!$C$31<0,((Partcipation!$B34+(Partcipation!$B35-Partcipation!$B34)/2)*(ABS(Title_RESULTS!$C$31)*(1+Title_RESULTS!$C$32/100)^('Sheet7(F_23)'!$A35-Title_RESULTS!$H$7))/1000)+'f-11B'!$O34,+'f-11B'!$O34))) -> 0 | K35: =IF(A35>=(Title_RESULTS!$H$7+Title_RESULTS!$C$17),0,(SUM(G35:J35))) -> 0 | L35: =IF(A35>=(Title_RESULTS!$H$7+Title_RESULTS!$C$17),0,(+$K35-$F35)) -> 0 | M35: =IF(A35>=(Title_RESULTS!$H$7+Title_RESULTS!$C$17),0,(+M34+$L35/(1+Title_RESULTS!$C$37)^('Sheet7(F_23)'!$A35-Title_RESULTS!$H$7))) -> 0
A36: 2040 | B36: =IF(A36>=(Title_RESULTS!$H$7+Title_RESULTS!$C$17),0,(IF($A36>=Title_RESULTS!$H$8,(Partcipation!$B35+(Partcipation!$B36-Partcipation!$B35)/2)*Title_RESULTS!$C$35*(1+Title_RESULTS!$C$36/100)^('Sheet7(F_23)'!$A36-Title_RESULTS!$H$7),0))) -> 0 | C36: =IF(A36>=(Title_RESULTS!$H$7+Title_RESULTS!$C$17),0,(+'Sheet6(p_6)'!$D36)) -> 0 | D36: =IF(A36>=(Title_RESULTS!$H$7+Title_RESULTS!$C$17),0,(+'Sheet6(p_6)'!$J36)) -> 0 | E36: =IF(A36>=(Title_RESULTS!$H$7+Title_RESULTS!$C$17),0,(+'f-11B'!$N35)) -> 0 | F36: =IF(A36>=(Title_RESULTS!$H$7+Title_RESULTS!$C$17),0,(SUM(B36:E36))) -> 0 | G36: =IF(A36>=(Title_RESULTS!$H$7+Title_RESULTS!$C$17),0,('Sheet3(F_21)'!$J36)) -> 0 | H36: =IF(A36>=(Title_RESULTS!$H$7+Title_RESULTS!$C$17),0,(+'Sheet4(F_22)'!$D36+'Sheet4(F_22)'!$G36)) -> 0 | I36: =IF(A36>=(Title_RESULTS!$H$7+Title_RESULTS!$C$17),0,(+'Sheet4(F_22)'!$H36)) -> 0 | J36: =IF(A36>=(Title_RESULTS!$H$7+Title_RESULTS!$C$17),0,(IF(Title_RESULTS!$C$31<0,((Partcipation!$B35+(Partcipation!$B36-Partcipation!$B35)/2)*(ABS(Title_RESULTS!$C$31)*(1+Title_RESULTS!$C$32/100)^('Sheet7(F_23)'!$A36-Title_RESULTS!$H$7))/1000)+'f-11B'!$O35,+'f-11B'!$O35))) -> 0 | K36: =IF(A36>=(Title_RESULTS!$H$7+Title_RESULTS!$C$17),0,(SUM(G36:J36))) -> 0 | L36: =IF(A36>=(Title_RESULTS!$H$7+Title_RESULTS!$C$17),0,(+$K36-$F36)) -> 0 | M36: =IF(A36>=(Title_RESULTS!$H$7+Title_RESULTS!$C$17),0,(+M35+$L36/(1+Title_RESULTS!$C$37)^('Sheet7(F_23)'!$A36-Title_RESULTS!$H$7))) -> 0
A37: 2041 | B37: =IF(A37>=(Title_RESULTS!$H$7+Title_RESULTS!$C$17),0,(IF($A37>=Title_RESULTS!$H$8,(Partcipation!$B36+(Partcipation!$B37-Partcipation!$B36)/2)*Title_RESULTS!$C$35*(1+Title_RESULTS!$C$36/100)^('Sheet7(F_23)'!$A37-Title_RESULTS!$H$7),0))) -> 0 | C37: =IF(A37>=(Title_RESULTS!$H$7+Title_RESULTS!$C$17),0,(+'Sheet6(p_6)'!$D37)) -> 0 | D37: =IF(A37>=(Title_RESULTS!$H$7+Title_RESULTS!$C$17),0,(+'Sheet6(p_6)'!$J37)) -> 0 | E37: =IF(A37>=(Title_RESULTS!$H$7+Title_RESULTS!$C$17),0,(+'f-11B'!$N36)) -> 0 | F37: =IF(A37>=(Title_RESULTS!$H$7+Title_RESULTS!$C$17),0,(SUM(B37:E37))) -> 0 | G37: =IF(A37>=(Title_RESULTS!$H$7+Title_RESULTS!$C$17),0,('Sheet3(F_21)'!$J37)) -> 0 | H37: =IF(A37>=(Title_RESULTS!$H$7+Title_RESULTS!$C$17),0,(+'Sheet4(F_22)'!$D37+'Sheet4(F_22)'!$G37)) -> 0 | I37: =IF(A37>=(Title_RESULTS!$H$7+Title_RESULTS!$C$17),0,(+'Sheet4(F_22)'!$H37)) -> 0 | J37: =IF(A37>=(Title_RESULTS!$H$7+Title_RESULTS!$C$17),0,(IF(Title_RESULTS!$C$31<0,((Partcipation!$B36+(Partcipation!$B37-Partcipation!$B36)/2)*(ABS(Title_RESULTS!$C$31)*(1+Title_RESULTS!$C$32/100)^('Sheet7(F_23)'!$A37-Title_RESULTS!$H$7))/1000)+'f-11B'!$O36,+'f-11B'!$O36))) -> 0 | K37: =IF(A37>=(Title_RESULTS!$H$7+Title_RESULTS!$C$17),0,(SUM(G37:J37))) -> 0 | L37: =IF(A37>=(Title_RESULTS!$H$7+Title_RESULTS!$C$17),0,(+$K37-$F37)) -> 0 | M37: =IF(A37>=(Title_RESULTS!$H$7+Title_RESULTS!$C$17),0,(+M36+$L37/(1+Title_RESULTS!$C$37)^('Sheet7(F_23)'!$A37-Title_RESULTS!$H$7))) -> 0
A38: 2042 | B38: =IF(A38>=(Title_RESULTS!$H$7+Title_RESULTS!$C$17),0,(IF($A38>=Title_RESULTS!$H$8,(Partcipation!$B37+(Partcipation!$B38-Partcipation!$B37)/2)*Title_RESULTS!$C$35*(1+Title_RESULTS!$C$36/100)^('Sheet7(F_23)'!$A38-Title_RESULTS!$H$7),0))) -> 0 | C38: =IF(A38>=(Title_RESULTS!$H$7+Title_RESULTS!$C$17),0,(+'Sheet6(p_6)'!$D38)) -> 0 | D38: =IF(A38>=(Title_RESULTS!$H$7+Title_RESULTS!$C$17),0,(+'Sheet6(p_6)'!$J38)) -> 0 | E38: =IF(A38>=(Title_RESULTS!$H$7+Title_RESULTS!$C$17),0,(+'f-11B'!$N37)) -> 0 | F38: =IF(A38>=(Title_RESULTS!$H$7+Title_RESULTS!$C$17),0,(SUM(B38:E38))) -> 0 | G38: =IF(A38>=(Title_RESULTS!$H$7+Title_RESULTS!$C$17),0,('Sheet3(F_21)'!$J38)) -> 0 | H38: =IF(A38>=(Title_RESULTS!$H$7+Title_RESULTS!$C$17),0,(+'Sheet4(F_22)'!$D38+'Sheet4(F_22)'!$G38)) -> 0 | I38: =IF(A38>=(Title_RESULTS!$H$7+Title_RESULTS!$C$17),0,(+'Sheet4(F_22)'!$H38)) -> 0 | J38: =IF(A38>=(Title_RESULTS!$H$7+Title_RESULTS!$C$17),0,(IF(Title_RESULTS!$C$31<0,((Partcipation!$B37+(Partcipation!$B38-Partcipation!$B37)/2)*(ABS(Title_RESULTS!$C$31)*(1+Title_RESULTS!$C$32/100)^('Sheet7(F_23)'!$A38-Title_RESULTS!$H$7))/1000)+'f-11B'!$O37,+'f-11B'!$O37))) -> 0 | K38: =IF(A38>=(Title_RESULTS!$H$7+Title_RESULTS!$C$17),0,(SUM(G38:J38))) -> 0 | L38: =IF(A38>=(Title_RESULTS!$H$7+Title_RESULTS!$C$17),0,(+$K38-$F38)) -> 0 | M38: =IF(A38>=(Title_RESULTS!$H$7+Title_RESULTS!$C$17),0,(+M37+$L38/(1+Title_RESULTS!$C$37)^('Sheet7(F_23)'!$A38-Title_RESULTS!$H$7))) -> 0
A39: 2043 | B39: =IF(A39>=(Title_RESULTS!$H$7+Title_RESULTS!$C$17),0,(IF($A39>=Title_RESULTS!$H$8,(Partcipation!$B38+(Partcipation!$B39-Partcipation!$B38)/2)*Title_RESULTS!$C$35*(1+Title_RESULTS!$C$36/100)^('Sheet7(F_23)'!$A39-Title_RESULTS!$H$7),0))) -> 0 | C39: =IF(A39>=(Title_RESULTS!$H$7+Title_RESULTS!$C$17),0,(+'Sheet6(p_6)'!$D39)) -> 0 | D39: =IF(A39>=(Title_RESULTS!$H$7+Title_RESULTS!$C$17),0,(+'Sheet6(p_6)'!$J39)) -> 0 | E39: =IF(A39>=(Title_RESULTS!$H$7+Title_RESULTS!$C$17),0,(+'f-11B'!$N38)) -> 0 | F39: =IF(A39>=(Title_RESULTS!$H$7+Title_RESULTS!$C$17),0,(SUM(B39:E39))) -> 0 | G39: =IF(A39>=(Title_RESULTS!$H$7+Title_RESULTS!$C$17),0,('Sheet3(F_21)'!$J39)) -> 0 | H39: =IF(A39>=(Title_RESULTS!$H$7+Title_RESULTS!$C$17),0,(+'Sheet4(F_22)'!$D39+'Sheet4(F_22)'!$G39)) -> 0 | I39: =IF(A39>=(Title_RESULTS!$H$7+Title_RESULTS!$C$17),0,(+'Sheet4(F_22)'!$H39)) -> 0 | J39: =IF(A39>=(Title_RESULTS!$H$7+Title_RESULTS!$C$17),0,(IF(Title_RESULTS!$C$31<0,((Partcipation!$B38+(Partcipation!$B39-Partcipation!$B38)/2)*(ABS(Title_RESULTS!$C$31)*(1+Title_RESULTS!$C$32/100)^('Sheet7(F_23)'!$A39-Title_RESULTS!$H$7))/1000)+'f-11B'!$O38,+'f-11B'!$O38))) -> 0 | K39: =IF(A39>=(Title_RESULTS!$H$7+Title_RESULTS!$C$17),0,(SUM(G39:J39))) -> 0 | L39: =IF(A39>=(Title_RESULTS!$H$7+Title_RESULTS!$C$17),0,(+$K39-$F39)) -> 0 | M39: =IF(A39>=(Title_RESULTS!$H$7+Title_RESULTS!$C$17),0,(+M38+$L39/(1+Title_RESULTS!$C$37)^('Sheet7(F_23)'!$A39-Title_RESULTS!$H$7))) -> 0
A40: 2044 | B40: =IF(A40>=(Title_RESULTS!$H$7+Title_RESULTS!$C$17),0,(IF($A40>=Title_RESULTS!$H$8,(Partcipation!$B39+(Partcipation!$B40-Partcipation!$B39)/2)*Title_RESULTS!$C$35*(1+Title_RESULTS!$C$36/100)^('Sheet7(F_23)'!$A40-Title_RESULTS!$H$7),0))) -> 0 | C40: =IF(A40>=(Title_RESULTS!$H$7+Title_RESULTS!$C$17),0,(+'Sheet6(p_6)'!$D40)) -> 0 | D40: =IF(A40>=(Title_RESULTS!$H$7+Title_RESULTS!$C$17),0,(+'Sheet6(p_6)'!$J40)) -> 0 | E40: =IF(A40>=(Title_RESULTS!$H$7+Title_RESULTS!$C$17),0,(+'f-11B'!$N39)) -> 0 | F40: =IF(A40>=(Title_RESULTS!$H$7+Title_RESULTS!$C$17),0,(SUM(B40:E40))) -> 0 | G40: =IF(A40>=(Title_RESULTS!$H$7+Title_RESULTS!$C$17),0,('Sheet3(F_21)'!$J40)) -> 0 | H40: =IF(A40>=(Title_RESULTS!$H$7+Title_RESULTS!$C$17),0,(+'Sheet4(F_22)'!$D40+'Sheet4(F_22)'!$G40)) -> 0 | I40: =IF(A40>=(Title_RESULTS!$H$7+Title_RESULTS!$C$17),0,(+'Sheet4(F_22)'!$H40)) -> 0 | J40: =IF(A40>=(Title_RESULTS!$H$7+Title_RESULTS!$C$17),0,(IF(Title_RESULTS!$C$31<0,((Partcipation!$B39+(Partcipation!$B40-Partcipation!$B39)/2)*(ABS(Title_RESULTS!$C$31)*(1+Title_RESULTS!$C$32/100)^('Sheet7(F_23)'!$A40-Title_RESULTS!$H$7))/1000)+'f-11B'!$O39,+'f-11B'!$O39))) -> 0 | K40: =IF(A40>=(Title_RESULTS!$H$7+Title_RESULTS!$C$17),0,(SUM(G40:J40))) -> 0 | L40: =IF(A40>=(Title_RESULTS!$H$7+Title_RESULTS!$C$17),0,(+$K40-$F40)) -> 0 | M40: =IF(A40>=(Title_RESULTS!$H$7+Title_RESULTS!$C$17),0,(+M39+$L40/(1+Title_RESULTS!$C$37)^('Sheet7(F_23)'!$A40-Title_RESULTS!$H$7))) -> 0
A42: NOMINAL | B42: =SUM(B16:B41) -> 0 | C42: 0 | D42: 14792.66721 | E42: 0 | F42: 14792.66721 | G42: 961.3359679 | H42: 1177.211207 | I42: 2673.189636 | J42: 0 | K42: 4811.736811 | L42: -9980.930399
A44: NPV: | B44: =NPV(Title_RESULTS!$C$37,'Sheet7(F_23)'!B17:B41)+'Sheet7(F_23)'!B16 -> 0 | C44: =NPV(Title_RESULTS!$C$37,'Sheet7(F_23)'!C17:C41)+'Sheet7(F_23)'!C16 -> 0 | D44: =NPV(Title_RESULTS!$C$37,'Sheet7(F_23)'!D17:D41)+'Sheet7(F_23)'!D16 -> 13821.81631 | E44: =NPV(Title_RESULTS!$C$37,'Sheet7(F_23)'!E17:E41)+'Sheet7(F_23)'!E16 -> 0 | F44: =NPV(Title_RESULTS!$C$37,'Sheet7(F_23)'!F17:F41)+'Sheet7(F_23)'!F16 -> 13821.81631 | G44: =NPV(Title_RESULTS!$C$37,'Sheet7(F_23)'!G17:G41)+'Sheet7(F_23)'!G16 -> 756.753606 | H44: =NPV(Title_RESULTS!$C$37,'Sheet7(F_23)'!H17:H41)+'Sheet7(F_23)'!H16 -> 993.053762 | I44: =NPV(Title_RESULTS!$C$37,'Sheet7(F_23)'!I17:I41)+'Sheet7(F_23)'!I16 -> 2234.980237 | J44: =NPV(Title_RESULTS!$C$37,'Sheet7(F_23)'!J17:J41)+'Sheet7(F_23)'!J16 -> 0 | K44: =NPV(Title_RESULTS!$C$37,'Sheet7(F_23)'!K17:K41)+'Sheet7(F_23)'!K16 -> 3984.787605 | L44: =NPV(Title_RESULTS!$C$37,'Sheet7(F_23)'!L17:L41)+'Sheet7(F_23)'!L16 -> -9837.02871
A46: Discount Rate | C46: =+Title_RESULTS!C37 -> 0.0708 | D46: Benefit/Cost Ratio - [col (11)/col (6)]: | H46: =+K44/F44 -> 0.2882969585

Sheet Sheet8(F_24)
E1: PARTICIPANT COSTS AND BENEFITS | L1: PSC FORM CE 2.4
E2: PROGRAM: | F2: =+Input!C3 -> Retro-Commissioning | L2: Page 1 of 1
L3: =+Title_RESULTS!I4 -> 2019-05-14T07:54:57.350
A9: (1) | B9: (2) | C9: (3) | D9: (4) | E9: (5) | F9: (6) | G9: (7) | H9: (8) | I9: (9) | J9: (10) | K9: (11) | L9: (12)
B11: SAVINGS
B12: IN | G12: CUSTOMER | H12: CUSTOMER | L12: CUMULATIVE
B13: PARTICIPANTS | C13: TAX | D13: UTILITY | E13: OTHER | F13: TOTAL | G13: EQUIPMENT | H13: O & M | I13: OTHER | J13: TOTAL | K13: NET | L13: DISCOUNTED
B14: BILL | C14: CREDITS | D14: REBATES | E14: BENEFITS | F14: BENEFITS | G14: COSTS | H14: COSTS | I14: COSTS | J14: COSTS | K14: BENEFITS | L14: NET BENEFITS
A15: YEAR | B15: $(000) | C15: $(000) | D15: $(000) | E15: $(000) | F15: $(000) | G15: $(000) | H15: $(000) | I15: $(000) | J15: $(000) | K15: $(000) | L15: $(000)
A16: =+Title_RESULTS!$H$7 -> 2020 | B16: =IF(A16>=(Title_RESULTS!$H$7+Title_RESULTS!$C$17),0,(+'Sheet6(p_6)'!N16-'Sheet6(p_6)'!R16)) -> 415.5704969 | C16: =IF(A16>=(Title_RESULTS!$H$7+Title_RESULTS!$C$17),0,(IF(Partcipation!$B16=0,0,((Partcipation!$B16-Partcipation!$B15)*Title_RESULTS!$C$33*(1+Title_RESULTS!$C$35/100)^('Sheet8(F_24)'!$A16-Title_RESULTS!$H$7))/1000))) -> 0 | D16: =IF(A16>=(Title_RESULTS!$H$7+Title_RESULTS!$C$17),0,(+'Sheet6(p_6)'!$G16)) -> 0 | E16: =IF(A16>=(Title_RESULTS!$H$7+Title_RESULTS!$C$17),0,(IF(Title_RESULTS!$C$31<0,((Partcipation!$B15+(Partcipation!$B16-Partcipation!$B15)/2)*(ABS(Title_RESULTS!$C$31)*(1+Title_RESULTS!$C$32/100)^('Sheet6(p_6)'!$A16-Title_RESULTS!$H$7))/1000)+'f-11B'!$Q15,+'f-11B'!$Q15))) -> 0 | F16: =IF(A16>=(Title_RESULTS!$H$7+Title_RESULTS!$C$17),0,(SUM(B16:E16))) -> 415.5704969 | G16: =IF(A16>=(Title_RESULTS!$H$7+Title_RESULTS!$C$17),0,(+'Sheet6(p_6)'!$H16)) -> 4819.197737 | H16: =IF(A16>=(Title_RESULTS!$H$7+Title_RESULTS!$C$17),0,(+'Sheet6(p_6)'!$I16)) -> 0 | I16: =IF(A16>=(Title_RESULTS!$H$7+Title_RESULTS!$C$17),0,(+'f-11B'!$P15)) -> 0 | J16: =IF(A16>=(Title_RESULTS!$H$7+Title_RESULTS!$C$17),0,(SUM(G16:I16))) -> 4819.197737 | K16: =IF(A16>=(Title_RESULTS!$H$7+Title_RESULTS!$C$17),0,(+F16-J16)) -> -4403.62724 | L16: =IF(A16>=(Title_RESULTS!$H$7+Title_RESULTS!$C$17),0,(+$K16/((1+Title_RESULTS!$C$37)^('Sheet8(F_24)'!$A16-Title_RESULTS!$H$7)))) -> -4403.62724
A17: =+A16+1 -> 2021 | B17: =IF(A17>=(Title_RESULTS!$H$7+Title_RESULTS!$C$17),0,(+'Sheet6(p_6)'!N17-'Sheet6(p_6)'!R17)) -> 1270.016697 | C17: =IF(A17>=(Title_RESULTS!$H$7+Title_RESULTS!$C$17),0,(IF(Partcipation!$B17=0,0,((Partcipation!$B17-Partcipation!$B16)*Title_RESULTS!$C$33*(1+Title_RESULTS!$C$35/100)^('Sheet8(F_24)'!$A17-Title_RESULTS!$H$7))/1000))) -> 0 | D17: =IF(A17>=(Title_RESULTS!$H$7+Title_RESULTS!$C$17),0,(+'Sheet6(p_6)'!$G17)) -> 0 | E17: =IF(A17>=(Title_RESULTS!$H$7+Title_RESULTS!$C$17),0,(IF(Title_RESULTS!$C$31<0,((Partcipation!$B16+(Partcipation!$B17-Partcipation!$B16)/2)*(ABS(Title_RESULTS!$C$31)*(1+Title_RESULTS!$C$32/100)^('Sheet6(p_6)'!$A17-Title_RESULTS!$H$7))/1000)+'f-11B'!$Q16,+'f-11B'!$Q16))) -> 0 | F17: =IF(A17>=(Title_RESULTS!$H$7+Title_RESULTS!$C$17),0,(SUM(B17:E17))) -> 1270.016697 | G17: =IF(A17>=(Title_RESULTS!$H$7+Title_RESULTS!$C$17),0,(+'Sheet6(p_6)'!$H17)) -> 4930.039285 | H17: =IF(A17>=(Title_RESULTS!$H$7+Title_RESULTS!$C$17),0,(+'Sheet6(p_6)'!$I17)) -> 0 | I17: =IF(A17>=(Title_RESULTS!$H$7+Title_RESULTS!$C$17),0,(+'f-11B'!$P16)) -> 0 | J17: =IF(A17>=(Title_RESULTS!$H$7+Title_RESULTS!$C$17),0,(SUM(G17:I17))) -> 4930.039285 | K17: =IF(A17>=(Title_RESULTS!$H$7+Title_RESULTS!$C$17),0,(+F17-J17)) -> -3660.022587 | L17: =IF(A16>=(Title_RESULTS!$H$7+Title_RESULTS!$C$17),0,(+$K17/((1+Title_RESULTS!$C$37)^('Sheet8(F_24)'!$A17-Title_RESULTS!$H$7))+L16)) -> -7821.653563
A18: =+A17+1 -> 2022 | B18: =IF(A18>=(Title_RESULTS!$H$7+Title_RESULTS!$C$17),0,(+'Sheet6(p_6)'!N18-'Sheet6(p_6)'!R18)) -> 2151.369397 | C18: =IF(A18>=(Title_RESULTS!$H$7+Title_RESULTS!$C$17),0,(IF(Partcipation!$B18=0,0,((Partcipation!$B18-Partcipation!$B17)*Title_RESULTS!$C$33*(1+Title_RESULTS!$C$35/100)^('Sheet8(F_24)'!$A18-Title_RESULTS!$H$7))/1000))) -> 0 | D18: =IF(A18>=(Title_RESULTS!$H$7+Title_RESULTS!$C$17),0,(+'Sheet6(p_6)'!$G18)) -> 0 | E18: =IF(A18>=(Title_RESULTS!$H$7+Title_RESULTS!$C$17),0,(IF(Title_RESULTS!$C$31<0,((Partcipation!$B17+(Partcipation!$B18-Partcipation!$B17)/2)*(ABS(Title_RESULTS!$C$31)*(1+Title_RESULTS!$C$32/100)^('Sheet6(p_6)'!$A18-Title_RESULTS!$H$7))/1000)+'f-11B'!$Q17,+'f-11B'!$Q17))) -> 0 | F18: =IF(A18>=(Title_RESULTS!$H$7+Title_RESULTS!$C$17),0,(SUM(B18:E18))) -> 2151.369397 | G18: =IF(A18>=(Title_RESULTS!$H$7+Title_RESULTS!$C$17),0,(+'Sheet6(p_6)'!$H18)) -> 5043.430188 | H18: =IF(A18>=(Title_RESULTS!$H$7+Title_RESULTS!$C$17),0,(+'Sheet6(p_6)'!$I18)) -> 0 | I18: =IF(A18>=(Title_RESULTS!$H$7+Title_RESULTS!$C$17),0,(+'f-11B'!$P17)) -> 0 | J18: =IF(A18>=(Title_RESULTS!$H$7+Title_RESULTS!$C$17),0,(SUM(G18:I18))) -> 5043.430188 | K18: =IF(A18>=(Title_RESULTS!$H$7+Title_RESULTS!$C$17),0,(+F18-J18)) -> -2892.060791 | L18: =IF(A17>=(Title_RESULTS!$H$7+Title_RESULTS!$C$17),0,(+$K18/((1+Title_RESULTS!$C$37)^('Sheet8(F_24)'!$A18-Title_RESULTS!$H$7))+L17)) -> -10343.91844
A19: =+A18+1 -> 2023 | B19: =IF(A19>=(Title_RESULTS!$H$7+Title_RESULTS!$C$17),0,(+'Sheet6(p_6)'!N19-'Sheet6(p_6)'!R19)) -> 2596.062936 | C19: =IF(A19>=(Title_RESULTS!$H$7+Title_RESULTS!$C$17),0,(IF(Partcipation!$B19=0,0,((Partcipation!$B19-Partcipation!$B18)*Title_RESULTS!$C$33*(1+Title_RESULTS!$C$35/100)^('Sheet8(F_24)'!$A19-Title_RESULTS!$H$7))/1000))) -> 0 | D19: =IF(A19>=(Title_RESULTS!$H$7+Title_RESULTS!$C$17),0,(+'Sheet6(p_6)'!$G19)) -> 0 | E19: =IF(A19>=(Title_RESULTS!$H$7+Title_RESULTS!$C$17),0,(IF(Title_RESULTS!$C$31<0,((Partcipation!$B18+(Partcipation!$B19-Partcipation!$B18)/2)*(ABS(Title_RESULTS!$C$31)*(1+Title_RESULTS!$C$32/100)^('Sheet6(p_6)'!$A19-Title_RESULTS!$H$7))/1000)+'f-11B'!$Q18,+'f-11B'!$Q18))) -> 0 | F19: =IF(A19>=(Title_RESULTS!$H$7+Title_RESULTS!$C$17),0,(SUM(B19:E19))) -> 2596.062936 | G19: =IF(A19>=(Title_RESULTS!$H$7+Title_RESULTS!$C$17),0,(+'Sheet6(p_6)'!$H19)) -> 0 | H19: =IF(A19>=(Title_RESULTS!$H$7+Title_RESULTS!$C$17),0,(+'Sheet6(p_6)'!$I19)) -> 0 | I19: =IF(A19>=(Title_RESULTS!$H$7+Title_RESULTS!$C$17),0,(+'f-11B'!$P18)) -> 0 | J19: =IF(A19>=(Title_RESULTS!$H$7+Title_RESULTS!$C$17),0,(SUM(G19:I19))) -> 0 | K19: =IF(A19>=(Title_RESULTS!$H$7+Title_RESULTS!$C$17),0,(+F19-J19)) -> 2596.062936 | L19: =IF(A18>=(Title_RESULTS!$H$7+Title_RESULTS!$C$17),0,(+$K19/((1+Title_RESULTS!$C$37)^('Sheet8(F_24)'!$A19-Title_RESULTS!$H$7))+L18)) -> -8229.503938
A20: 2024 | B20: =IF(A20>=(Title_RESULTS!$H$7+Title_RESULTS!$C$17),0,(+'Sheet6(p_6)'!N20-'Sheet6(p_6)'!R20)) -> 2651.043635 | C20: =IF(A20>=(Title_RESULTS!$H$7+Title_RESULTS!$C$17),0,(IF(Partcipation!$B20=0,0,((Partcipation!$B20-Partcipation!$B19)*Title_RESULTS!$C$33*(1+Title_RESULTS!$C$35/100)^('Sheet8(F_24)'!$A20-Title_RESULTS!$H$7))/1000))) -> 0 | D20: =IF(A20>=(Title_RESULTS!$H$7+Title_RESULTS!$C$17),0,(+'Sheet6(p_6)'!$G20)) -> 0 | E20: =IF(A20>=(Title_RESULTS!$H$7+Title_RESULTS!$C$17),0,(IF(Title_RESULTS!$C$31<0,((Partcipation!$B19+(Partcipation!$B20-Partcipation!$B19)/2)*(ABS(Title_RESULTS!$C$31)*(1+Title_RESULTS!$C$32/100)^('Sheet6(p_6)'!$A20-Title_RESULTS!$H$7))/1000)+'f-11B'!$Q19,+'f-11B'!$Q19))) -> 0 | F20: =IF(A20>=(Title_RESULTS!$H$7+Title_RESULTS!$C$17),0,(SUM(B20:E20))) -> 2651.043635 | G20: =IF(A20>=(Title_RESULTS!$H$7+Title_RESULTS!$C$17),0,(+'Sheet6(p_6)'!$H20)) -> 0 | H20: =IF(A20>=(Title_RESULTS!$H$7+Title_RESULTS!$C$17),0,(+'Sheet6(p_6)'!$I20)) -> 0 | I20: =IF(A20>=(Title_RESULTS!$H$7+Title_RESULTS!$C$17),0,(+'f-11B'!$P19)) -> 0 | J20: =IF(A20>=(Title_RESULTS!$H$7+Title_RESULTS!$C$17),0,(SUM(G20:I20))) -> 0 | K20: =IF(A20>=(Title_RESULTS!$H$7+Title_RESULTS!$C$17),0,(+F20-J20)) -> 2651.043635 | L20: =IF(A19>=(Title_RESULTS!$H$7+Title_RESULTS!$C$17),0,(+$K20/((1+Title_RESULTS!$C$37)^('Sheet8(F_24)'!$A20-Title_RESULTS!$H$7))+L19)) -> -6213.072657
A21: 2025 | B21: =IF(A21>=(Title_RESULTS!$H$7+Title_RESULTS!$C$17),0,(+'Sheet6(p_6)'!N21-'Sheet6(p_6)'!R21)) -> 0 | C21: =IF(A21>=(Title_RESULTS!$H$7+Title_RESULTS!$C$17),0,(IF(Partcipation!$B21=0,0,((Partcipation!$B21-Partcipation!$B20)*Title_RESULTS!$C$33*(1+Title_RESULTS!$C$35/100)^('Sheet8(F_24)'!$A21-Title_RESULTS!$H$7))/1000))) -> 0 | D21: =IF(A21>=(Title_RESULTS!$H$7+Title_RESULTS!$C$17),0,(+'Sheet6(p_6)'!$G21)) -> 0 | E21: =IF(A21>=(Title_RESULTS!$H$7+Title_RESULTS!$C$17),0,(IF(Title_RESULTS!$C$31<0,((Partcipation!$B20+(Partcipation!$B21-Partcipation!$B20)/2)*(ABS(Title_RESULTS!$C$31)*(1+Title_RESULTS!$C$32/100)^('Sheet6(p_6)'!$A21-Title_RESULTS!$H$7))/1000)+'f-11B'!$Q20,+'f-11B'!$Q20))) -> 0 | F21: =IF(A21>=(Title_RESULTS!$H$7+Title_RESULTS!$C$17),0,(SUM(B21:E21))) -> 0 | G21: =IF(A21>=(Title_RESULTS!$H$7+Title_RESULTS!$C$17),0,(+'Sheet6(p_6)'!$H21)) -> 0 | H21: =IF(A21>=(Title_RESULTS!$H$7+Title_RESULTS!$C$17),0,(+'Sheet6(p_6)'!$I21)) -> 0 | I21: =IF(A21>=(Title_RESULTS!$H$7+Title_RESULTS!$C$17),0,(+'f-11B'!$P20)) -> 0 | J21: =IF(A21>=(Title_RESULTS!$H$7+Title_RESULTS!$C$17),0,(SUM(G21:I21))) -> 0 | K21: =IF(A21>=(Title_RESULTS!$H$7+Title_RESULTS!$C$17),0,(+F21-J21)) -> 0 | L21: =IF(A20>=(Title_RESULTS!$H$7+Title_RESULTS!$C$17),0,(+$K21/((1+Title_RESULTS!$C$37)^('Sheet8(F_24)'!$A21-Title_RESULTS!$H$7))+L20)) -> -6213.072657
A22: 2026 | B22: =IF(A22>=(Title_RESULTS!$H$7+Title_RESULTS!$C$17),0,(+'Sheet6(p_6)'!N22-'Sheet6(p_6)'!R22)) -> 0 | C22: =IF(A22>=(Title_RESULTS!$H$7+Title_RESULTS!$C$17),0,(IF(Partcipation!$B22=0,0,((Partcipation!$B22-Partcipation!$B21)*Title_RESULTS!$C$33*(1+Title_RESULTS!$C$35/100)^('Sheet8(F_24)'!$A22-Title_RESULTS!$H$7))/1000))) -> 0 | D22: =IF(A22>=(Title_RESULTS!$H$7+Title_RESULTS!$C$17),0,(+'Sheet6(p_6)'!$G22)) -> 0 | E22: =IF(A22>=(Title_RESULTS!$H$7+Title_RESULTS!$C$17),0,(IF(Title_RESULTS!$C$31<0,((Partcipation!$B21+(Partcipation!$B22-Partcipation!$B21)/2)*(ABS(Title_RESULTS!$C$31)*(1+Title_RESULTS!$C$32/100)^('Sheet6(p_6)'!$A22-Title_RESULTS!$H$7))/1000)+'f-11B'!$Q21,+'f-11B'!$Q21))) -> 0 | F22: =IF(A22>=(Title_RESULTS!$H$7+Title_RESULTS!$C$17),0,(SUM(B22:E22))) -> 0 | G22: =IF(A22>=(Title_RESULTS!$H$7+Title_RESULTS!$C$17),0,(+'Sheet6(p_6)'!$H22)) -> 0 | H22: =IF(A22>=(Title_RESULTS!$H$7+Title_RESULTS!$C$17),0,(+'Sheet6(p_6)'!$I22)) -> 0 | I22: =IF(A22>=(Title_RESULTS!$H$7+Title_RESULTS!$C$17),0,(+'f-11B'!$P21)) -> 0 | J22: =IF(A22>=(Title_RESULTS!$H$7+Title_RESULTS!$C$17),0,(SUM(G22:I22))) -> 0 | K22: =IF(A22>=(Title_RESULTS!$H$7+Title_RESULTS!$C$17),0,(+F22-J22)) -> 0 | L22: =IF(A21>=(Title_RESULTS!$H$7+Title_RESULTS!$C$17),0,(+$K22/((1+Title_RESULTS!$C$37)^('Sheet8(F_24)'!$A22-Title_RESULTS!$H$7))+L21)) -> 0
A23: 2027 | B23: =IF(A23>=(Title_RESULTS!$H$7+Title_RESULTS!$C$17),0,(+'Sheet6(p_6)'!N23-'Sheet6(p_6)'!R23)) -> 0 | C23: =IF(A23>=(Title_RESULTS!$H$7+Title_RESULTS!$C$17),0,(IF(Partcipation!$B23=0,0,((Partcipation!$B23-Partcipation!$B22)*Title_RESULTS!$C$33*(1+Title_RESULTS!$C$35/100)^('Sheet8(F_24)'!$A23-Title_RESULTS!$H$7))/1000))) -> 0 | D23: =IF(A23>=(Title_RESULTS!$H$7+Title_RESULTS!$C$17),0,(+'Sheet6(p_6)'!$G23)) -> 0 | E23: =IF(A23>=(Title_RESULTS!$H$7+Title_RESULTS!$C$17),0,(IF(Title_RESULTS!$C$31<0,((Partcipation!$B22+(Partcipation!$B23-Partcipation!$B22)/2)*(ABS(Title_RESULTS!$C$31)*(1+Title_RESULTS!$C$32/100)^('Sheet6(p_6)'!$A23-Title_RESULTS!$H$7))/1000)+'f-11B'!$Q22,+'f-11B'!$Q22))) -> 0 | F23: =IF(A23>=(Title_RESULTS!$H$7+Title_RESULTS!$C$17),0,(SUM(B23:E23))) -> 0 | G23: =IF(A23>=(Title_RESULTS!$H$7+Title_RESULTS!$C$17),0,(+'Sheet6(p_6)'!$H23)) -> 0 | H23: =IF(A23>=(Title_RESULTS!$H$7+Title_RESULTS!$C$17),0,(+'Sheet6(p_6)'!$I23)) -> 0 | I23: =IF(A23>=(Title_RESULTS!$H$7+Title_RESULTS!$C$17),0,(+'f-11B'!$P22)) -> 0 | J23: =IF(A23>=(Title_RESULTS!$H$7+Title_RESULTS!$C$17),0,(SUM(G23:I23))) -> 0 | K23: =IF(A23>=(Title_RESULTS!$H$7+Title_RESULTS!$C$17),0,(+F23-J23)) -> 0 | L23: =IF(A22>=(Title_RESULTS!$H$7+Title_RESULTS!$C$17),0,(+$K23/((1+Title_RESULTS!$C$37)^('Sheet8(F_24)'!$A23-Title_RESULTS!$H$7))+L22)) -> 0
A24: 2028 | B24: =IF(A24>=(Title_RESULTS!$H$7+Title_RESULTS!$C$17),0,(+'Sheet6(p_6)'!N24-'Sheet6(p_6)'!R24)) -> 0 | C24: =IF(A24>=(Title_RESULTS!$H$7+Title_RESULTS!$C$17),0,(IF(Partcipation!$B24=0,0,((Partcipation!$B24-Partcipation!$B23)*Title_RESULTS!$C$33*(1+Title_RESULTS!$C$35/100)^('Sheet8(F_24)'!$A24-Title_RESULTS!$H$7))/1000))) -> 0 | D24: =IF(A24>=(Title_RESULTS!$H$7+Title_RESULTS!$C$17),0,(+'Sheet6(p_6)'!$G24)) -> 0 | E24: =IF(A24>=(Title_RESULTS!$H$7+Title_RESULTS!$C$17),0,(IF(Title_RESULTS!$C$31<0,((Partcipation!$B23+(Partcipation!$B24-Partcipation!$B23)/2)*(ABS(Title_RESULTS!$C$31)*(1+Title_RESULTS!$C$32/100)^('Sheet6(p_6)'!$A24-Title_RESULTS!$H$7))/1000)+'f-11B'!$Q23,+'f-11B'!$Q23))) -> 0 | F24: =IF(A24>=(Title_RESULTS!$H$7+Title_RESULTS!$C$17),0,(SUM(B24:E24))) -> 0 | G24: =IF(A24>=(Title_RESULTS!$H$7+Title_RESULTS!$C$17),0,(+'Sheet6(p_6)'!$H24)) -> 0 | H24: =IF(A24>=(Title_RESULTS!$H$7+Title_RESULTS!$C$17),0,(+'Sheet6(p_6)'!$I24)) -> 0 | I24: =IF(A24>=(Title_RESULTS!$H$7+Title_RESULTS!$C$17),0,(+'f-11B'!$P23)) -> 0 | J24: =IF(A24>=(Title_RESULTS!$H$7+Title_RESULTS!$C$17),0,(SUM(G24:I24))) -> 0 | K24: =IF(A24>=(Title_RESULTS!$H$7+Title_RESULTS!$C$17),0,(+F24-J24)) -> 0 | L24: =IF(A23>=(Title_RESULTS!$H$7+Title_RESULTS!$C$17),0,(+$K24/((1+Title_RESULTS!$C$37)^('Sheet8(F_24)'!$A24-Title_RESULTS!$H$7))+L23)) -> 0
A25: 2029 | B25: =IF(A25>=(Title_RESULTS!$H$7+Title_RESULTS!$C$17),0,(+'Sheet6(p_6)'!N25-'Sheet6(p_6)'!R25)) -> 0 | C25: =IF(A25>=(Title_RESULTS!$H$7+Title_RESULTS!$C$17),0,(IF(Partcipation!$B25=0,0,((Partcipation!$B25-Partcipation!$B24)*Title_RESULTS!$C$33*(1+Title_RESULTS!$C$35/100)^('Sheet8(F_24)'!$A25-Title_RESULTS!$H$7))/1000))) -> 0 | D25: =IF(A25>=(Title_RESULTS!$H$7+Title_RESULTS!$C$17),0,(+'Sheet6(p_6)'!$G25)) -> 0 | E25: =IF(A25>=(Title_RESULTS!$H$7+Title_RESULTS!$C$17),0,(IF(Title_RESULTS!$C$31<0,((Partcipation!$B24+(Partcipation!$B25-Partcipation!$B24)/2)*(ABS(Title_RESULTS!$C$31)*(1+Title_RESULTS!$C$32/100)^('Sheet6(p_6)'!$A25-Title_RESULTS!$H$7))/1000)+'f-11B'!$Q24,+'f-11B'!$Q24))) -> 0 | F25: =IF(A25>=(Title_RESULTS!$H$7+Title_RESULTS!$C$17),0,(SUM(B25:E25))) -> 0 | G25: =IF(A25>=(Title_RESULTS!$H$7+Title_RESULTS!$C$17),0,(+'Sheet6(p_6)'!$H25)) -> 0 | H25: =IF(A25>=(Title_RESULTS!$H$7+Title_RESULTS!$C$17),0,(+'Sheet6(p_6)'!$I25)) -> 0 | I25: =IF(A25>=(Title_RESULTS!$H$7+Title_RESULTS!$C$17),0,(+'f-11B'!$P24)) -> 0 | J25: =IF(A25>=(Title_RESULTS!$H$7+Title_RESULTS!$C$17),0,(SUM(G25:I25))) -> 0 | K25: =IF(A25>=(Title_RESULTS!$H$7+Title_RESULTS!$C$17),0,(+F25-J25)) -> 0 | L25: =IF(A24>=(Title_RESULTS!$H$7+Title_RESULTS!$C$17),0,(+$K25/((1+Title_RESULTS!$C$37)^('Sheet8(F_24)'!$A25-Title_RESULTS!$H$7))+L24)) -> 0
A26: 2030 | B26: =IF(A26>=(Title_RESULTS!$H$7+Title_RESULTS!$C$17),0,(+'Sheet6(p_6)'!N26-'Sheet6(p_6)'!R26)) -> 0 | C26: =IF(A26>=(Title_RESULTS!$H$7+Title_RESULTS!$C$17),0,(IF(Partcipation!$B26=0,0,((Partcipation!$B26-Partcipation!$B25)*Title_RESULTS!$C$33*(1+Title_RESULTS!$C$35/100)^('Sheet8(F_24)'!$A26-Title_RESULTS!$H$7))/1000))) -> 0 | D26: =IF(A26>=(Title_RESULTS!$H$7+Title_RESULTS!$C$17),0,(+'Sheet6(p_6)'!$G26)) -> 0 | E26: =IF(A26>=(Title_RESULTS!$H$7+Title_RESULTS!$C$17),0,(IF(Title_RESULTS!$C$31<0,((Partcipation!$B25+(Partcipation!$B26-Partcipation!$B25)/2)*(ABS(Title_RESULTS!$C$31)*(1+Title_RESULTS!$C$32/100)^('Sheet6(p_6)'!$A26-Title_RESULTS!$H$7))/1000)+'f-11B'!$Q25,+'f-11B'!$Q25))) -> 0 | F26: =IF(A26>=(Title_RESULTS!$H$7+Title_RESULTS!$C$17),0,(SUM(B26:E26))) -> 0 | G26: =IF(A26>=(Title_RESULTS!$H$7+Title_RESULTS!$C$17),0,(+'Sheet6(p_6)'!$H26)) -> 0 | H26: =IF(A26>=(Title_RESULTS!$H$7+Title_RESULTS!$C$17),0,(+'Sheet6(p_6)'!$I26)) -> 0 | I26: =IF(A26>=(Title_RESULTS!$H$7+Title_RESULTS!$C$17),0,(+'f-11B'!$P25)) -> 0 | J26: =IF(A26>=(Title_RESULTS!$H$7+Title_RESULTS!$C$17),0,(SUM(G26:I26))) -> 0 | K26: =IF(A26>=(Title_RESULTS!$H$7+Title_RESULTS!$C$17),0,(+F26-J26)) -> 0 | L26: =IF(A25>=(Title_RESULTS!$H$7+Title_RESULTS!$C$17),0,(+$K26/((1+Title_RESULTS!$C$37)^('Sheet8(F_24)'!$A26-Title_RESULTS!$H$7))+L25)) -> 0
A27: 2031 | B27: =IF(A27>=(Title_RESULTS!$H$7+Title_RESULTS!$C$17),0,(+'Sheet6(p_6)'!N27-'Sheet6(p_6)'!R27)) -> 0 | C27: =IF(A27>=(Title_RESULTS!$H$7+Title_RESULTS!$C$17),0,(IF(Partcipation!$B27=0,0,((Partcipation!$B27-Partcipation!$B26)*Title_RESULTS!$C$33*(1+Title_RESULTS!$C$35/100)^('Sheet8(F_24)'!$A27-Title_RESULTS!$H$7))/1000))) -> 0 | D27: =IF(A27>=(Title_RESULTS!$H$7+Title_RESULTS!$C$17),0,(+'Sheet6(p_6)'!$G27)) -> 0 | E27: =IF(A27>=(Title_RESULTS!$H$7+Title_RESULTS!$C$17),0,(IF(Title_RESULTS!$C$31<0,((Partcipation!$B26+(Partcipation!$B27-Partcipation!$B26)/2)*(ABS(Title_RESULTS!$C$31)*(1+Title_RESULTS!$C$32/100)^('Sheet6(p_6)'!$A27-Title_RESULTS!$H$7))/1000)+'f-11B'!$Q26,+'f-11B'!$Q26))) -> 0 | F27: =IF(A27>=(Title_RESULTS!$H$7+Title_RESULTS!$C$17),0,(SUM(B27:E27))) -> 0 | G27: =IF(A27>=(Title_RESULTS!$H$7+Title_RESULTS!$C$17),0,(+'Sheet6(p_6)'!$H27)) -> 0 | H27: =IF(A27>=(Title_RESULTS!$H$7+Title_RESULTS!$C$17),0,(+'Sheet6(p_6)'!$I27)) -> 0 | I27: =IF(A27>=(Title_RESULTS!$H$7+Title_RESULTS!$C$17),0,(+'f-11B'!$P26)) -> 0 | J27: =IF(A27>=(Title_RESULTS!$H$7+Title_RESULTS!$C$17),0,(SUM(G27:I27))) -> 0 | K27: =IF(A27>=(Title_RESULTS!$H$7+Title_RESULTS!$C$17),0,(+F27-J27)) -> 0 | L27: =IF(A26>=(Title_RESULTS!$H$7+Title_RESULTS!$C$17),0,(+$K27/((1+Title_RESULTS!$C$37)^('Sheet8(F_24)'!$A27-Title_RESULTS!$H$7))+L26)) -> 0
A28: 2032 | B28: =IF(A28>=(Title_RESULTS!$H$7+Title_RESULTS!$C$17),0,(+'Sheet6(p_6)'!N28-'Sheet6(p_6)'!R28)) -> 0 | C28: =IF(A28>=(Title_RESULTS!$H$7+Title_RESULTS!$C$17),0,(IF(Partcipation!$B28=0,0,((Partcipation!$B28-Partcipation!$B27)*Title_RESULTS!$C$33*(1+Title_RESULTS!$C$35/100)^('Sheet8(F_24)'!$A28-Title_RESULTS!$H$7))/1000))) -> 0 | D28: =IF(A28>=(Title_RESULTS!$H$7+Title_RESULTS!$C$17),0,(+'Sheet6(p_6)'!$G28)) -> 0 | E28: =IF(A28>=(Title_RESULTS!$H$7+Title_RESULTS!$C$17),0,(IF(Title_RESULTS!$C$31<0,((Partcipation!$B27+(Partcipation!$B28-Partcipation!$B27)/2)*(ABS(Title_RESULTS!$C$31)*(1+Title_RESULTS!$C$32/100)^('Sheet6(p_6)'!$A28-Title_RESULTS!$H$7))/1000)+'f-11B'!$Q27,+'f-11B'!$Q27))) -> 0 | F28: =IF(A28>=(Title_RESULTS!$H$7+Title_RESULTS!$C$17),0,(SUM(B28:E28))) -> 0 | G28: =IF(A28>=(Title_RESULTS!$H$7+Title_RESULTS!$C$17),0,(+'Sheet6(p_6)'!$H28)) -> 0 | H28: =IF(A28>=(Title_RESULTS!$H$7+Title_RESULTS!$C$17),0,(+'Sheet6(p_6)'!$I28)) -> 0 | I28: =IF(A28>=(Title_RESULTS!$H$7+Title_RESULTS!$C$17),0,(+'f-11B'!$P27)) -> 0 | J28: =IF(A28>=(Title_RESULTS!$H$7+Title_RESULTS!$C$17),0,(SUM(G28:I28))) -> 0 | K28: =IF(A28>=(Title_RESULTS!$H$7+Title_RESULTS!$C$17),0,(+F28-J28)) -> 0 | L28: =IF(A27>=(Title_RESULTS!$H$7+Title_RESULTS!$C$17),0,(+$K28/((1+Title_RESULTS!$C$37)^('Sheet8(F_24)'!$A28-Title_RESULTS!$H$7))+L27)) -> 0
A29: 2033 | B29: =IF(A29>=(Title_RESULTS!$H$7+Title_RESULTS!$C$17),0,(+'Sheet6(p_6)'!N29-'Sheet6(p_6)'!R29)) -> 0 | C29: =IF(A29>=(Title_RESULTS!$H$7+Title_RESULTS!$C$17),0,(IF(Partcipation!$B29=0,0,((Partcipation!$B29-Partcipation!$B28)*Title_RESULTS!$C$33*(1+Title_RESULTS!$C$35/100)^('Sheet8(F_24)'!$A29-Title_RESULTS!$H$7))/1000))) -> 0 | D29: =IF(A29>=(Title_RESULTS!$H$7+Title_RESULTS!$C$17),0,(+'Sheet6(p_6)'!$G29)) -> 0 | E29: =IF(A29>=(Title_RESULTS!$H$7+Title_RESULTS!$C$17),0,(IF(Title_RESULTS!$C$31<0,((Partcipation!$B28+(Partcipation!$B29-Partcipation!$B28)/2)*(ABS(Title_RESULTS!$C$31)*(1+Title_RESULTS!$C$32/100)^('Sheet6(p_6)'!$A29-Title_RESULTS!$H$7))/1000)+'f-11B'!$Q28,+'f-11B'!$Q28))) -> 0 | F29: =IF(A29>=(Title_RESULTS!$H$7+Title_RESULTS!$C$17),0,(SUM(B29:E29))) -> 0 | G29: =IF(A29>=(Title_RESULTS!$H$7+Title_RESULTS!$C$17),0,(+'Sheet6(p_6)'!$H29)) -> 0 | H29: =IF(A29>=(Title_RESULTS!$H$7+Title_RESULTS!$C$17),0,(+'Sheet6(p_6)'!$I29)) -> 0 | I29: =IF(A29>=(Title_RESULTS!$H$7+Title_RESULTS!$C$17),0,(+'f-11B'!$P28)) -> 0 | J29: =IF(A29>=(Title_RESULTS!$H$7+Title_RESULTS!$C$17),0,(SUM(G29:I29))) -> 0 | K29: =IF(A29>=(Title_RESULTS!$H$7+Title_RESULTS!$C$17),0,(+F29-J29)) -> 0 | L29: =IF(A28>=(Title_RESULTS!$H$7+Title_RESULTS!$C$17),0,(+$K29/((1+Title_RESULTS!$C$37)^('Sheet8(F_24)'!$A29-Title_RESULTS!$H$7))+L28)) -> 0
A30: 2034 | B30: =IF(A30>=(Title_RESULTS!$H$7+Title_RESULTS!$C$17),0,(+'Sheet6(p_6)'!N30-'Sheet6(p_6)'!R30)) -> 0 | C30: =IF(A30>=(Title_RESULTS!$H$7+Title_RESULTS!$C$17),0,(IF(Partcipation!$B30=0,0,((Partcipation!$B30-Partcipation!$B29)*Title_RESULTS!$C$33*(1+Title_RESULTS!$C$35/100)^('Sheet8(F_24)'!$A30-Title_RESULTS!$H$7))/1000))) -> 0 | D30: =IF(A30>=(Title_RESULTS!$H$7+Title_RESULTS!$C$17),0,(+'Sheet6(p_6)'!$G30)) -> 0 | E30: =IF(A30>=(Title_RESULTS!$H$7+Title_RESULTS!$C$17),0,(IF(Title_RESULTS!$C$31<0,((Partcipation!$B29+(Partcipation!$B30-Partcipation!$B29)/2)*(ABS(Title_RESULTS!$C$31)*(1+Title_RESULTS!$C$32/100)^('Sheet6(p_6)'!$A30-Title_RESULTS!$H$7))/1000)+'f-11B'!$Q29,+'f-11B'!$Q29))) -> 0 | F30: =IF(A30>=(Title_RESULTS!$H$7+Title_RESULTS!$C$17),0,(SUM(B30:E30))) -> 0 | G30: =IF(A30>=(Title_RESULTS!$H$7+Title_RESULTS!$C$17),0,(+'Sheet6(p_6)'!$H30)) -> 0 | H30: =IF(A30>=(Title_RESULTS!$H$7+Title_RESULTS!$C$17),0,(+'Sheet6(p_6)'!$I30)) -> 0 | I30: =IF(A30>=(Title_RESULTS!$H$7+Title_RESULTS!$C$17),0,(+'f-11B'!$P29)) -> 0 | J30: =IF(A30>=(Title_RESULTS!$H$7+Title_RESULTS!$C$17),0,(SUM(G30:I30))) -> 0 | K30: =IF(A30>=(Title_RESULTS!$H$7+Title_RESULTS!$C$17),0,(+F30-J30)) -> 0 | L30: =IF(A29>=(Title_RESULTS!$H$7+Title_RESULTS!$C$17),0,(+$K30/((1+Title_RESULTS!$C$37)^('Sheet8(F_24)'!$A30-Title_RESULTS!$H$7))+L29)) -> 0
A31: 2035 | B31: =IF(A31>=(Title_RESULTS!$H$7+Title_RESULTS!$C$17),0,(+'Sheet6(p_6)'!N31-'Sheet6(p_6)'!R31)) -> 0 | C31: =IF(A31>=(Title_RESULTS!$H$7+Title_RESULTS!$C$17),0,(IF(Partcipation!$B31=0,0,((Partcipation!$B31-Partcipation!$B30)*Title_RESULTS!$C$33*(1+Title_RESULTS!$C$35/100)^('Sheet8(F_24)'!$A31-Title_RESULTS!$H$7))/1000))) -> 0 | D31: =IF(A31>=(Title_RESULTS!$H$7+Title_RESULTS!$C$17),0,(+'Sheet6(p_6)'!$G31)) -> 0 | E31: =IF(A31>=(Title_RESULTS!$H$7+Title_RESULTS!$C$17),0,(IF(Title_RESULTS!$C$31<0,((Partcipation!$B30+(Partcipation!$B31-Partcipation!$B30)/2)*(ABS(Title_RESULTS!$C$31)*(1+Title_RESULTS!$C$32/100)^('Sheet6(p_6)'!$A31-Title_RESULTS!$H$7))/1000)+'f-11B'!$Q30,+'f-11B'!$Q30))) -> 0 | F31: =IF(A31>=(Title_RESULTS!$H$7+Title_RESULTS!$C$17),0,(SUM(B31:E31))) -> 0 | G31: =IF(A31>=(Title_RESULTS!$H$7+Title_RESULTS!$C$17),0,(+'Sheet6(p_6)'!$H31)) -> 0 | H31: =IF(A31>=(Title_RESULTS!$H$7+Title_RESULTS!$C$17),0,(+'Sheet6(p_6)'!$I31)) -> 0 | I31: =IF(A31>=(Title_RESULTS!$H$7+Title_RESULTS!$C$17),0,(+'f-11B'!$P30)) -> 0 | J31: =IF(A31>=(Title_RESULTS!$H$7+Title_RESULTS!$C$17),0,(SUM(G31:I31))) -> 0 | K31: =IF(A31>=(Title_RESULTS!$H$7+Title_RESULTS!$C$17),0,(+F31-J31)) -> 0 | L31: =IF(A30>=(Title_RESULTS!$H$7+Title_RESULTS!$C$17),0,(+$K31/((1+Title_RESULTS!$C$37)^('Sheet8(F_24)'!$A31-Title_RESULTS!$H$7))+L30)) -> 0
A32: 2036 | B32: =IF(A32>=(Title_RESULTS!$H$7+Title_RESULTS!$C$17),0,(+'Sheet6(p_6)'!N32-'Sheet6(p_6)'!R32)) -> 0 | C32: =IF(A32>=(Title_RESULTS!$H$7+Title_RESULTS!$C$17),0,(IF(Partcipation!$B32=0,0,((Partcipation!$B32-Partcipation!$B31)*Title_RESULTS!$C$33*(1+Title_RESULTS!$C$35/100)^('Sheet8(F_24)'!$A32-Title_RESULTS!$H$7))/1000))) -> 0 | D32: =IF(A32>=(Title_RESULTS!$H$7+Title_RESULTS!$C$17),0,(+'Sheet6(p_6)'!$G32)) -> 0 | E32: =IF(A32>=(Title_RESULTS!$H$7+Title_RESULTS!$C$17),0,(IF(Title_RESULTS!$C$31<0,((Partcipation!$B31+(Partcipation!$B32-Partcipation!$B31)/2)*(ABS(Title_RESULTS!$C$31)*(1+Title_RESULTS!$C$32/100)^('Sheet6(p_6)'!$A32-Title_RESULTS!$H$7))/1000)+'f-11B'!$Q31,+'f-11B'!$Q31))) -> 0 | F32: =IF(A32>=(Title_RESULTS!$H$7+Title_RESULTS!$C$17),0,(SUM(B32:E32))) -> 0 | G32: =IF(A32>=(Title_RESULTS!$H$7+Title_RESULTS!$C$17),0,(+'Sheet6(p_6)'!$H32)) -> 0 | H32: =IF(A32>=(Title_RESULTS!$H$7+Title_RESULTS!$C$17),0,(+'Sheet6(p_6)'!$I32)) -> 0 | I32: =IF(A32>=(Title_RESULTS!$H$7+Title_RESULTS!$C$17),0,(+'f-11B'!$P31)) -> 0 | J32: =IF(A32>=(Title_RESULTS!$H$7+Title_RESULTS!$C$17),0,(SUM(G32:I32))) -> 0 | K32: =IF(A32>=(Title_RESULTS!$H$7+Title_RESULTS!$C$17),0,(+F32-J32)) -> 0 | L32: =IF(A31>=(Title_RESULTS!$H$7+Title_RESULTS!$C$17),0,(+$K32/((1+Title_RESULTS!$C$37)^('Sheet8(F_24)'!$A32-Title_RESULTS!$H$7))+L31)) -> 0
A33: 2037 | B33: =IF(A33>=(Title_RESULTS!$H$7+Title_RESULTS!$C$17),0,(+'Sheet6(p_6)'!N33-'Sheet6(p_6)'!R33)) -> 0 | C33: =IF(A33>=(Title_RESULTS!$H$7+Title_RESULTS!$C$17),0,(IF(Partcipation!$B33=0,0,((Partcipation!$B33-Partcipation!$B32)*Title_RESULTS!$C$33*(1+Title_RESULTS!$C$35/100)^('Sheet8(F_24)'!$A33-Title_RESULTS!$H$7))/1000))) -> 0 | D33: =IF(A33>=(Title_RESULTS!$H$7+Title_RESULTS!$C$17),0,(+'Sheet6(p_6)'!$G33)) -> 0 | E33: =IF(A33>=(Title_RESULTS!$H$7+Title_RESULTS!$C$17),0,(IF(Title_RESULTS!$C$31<0,((Partcipation!$B32+(Partcipation!$B33-Partcipation!$B32)/2)*(ABS(Title_RESULTS!$C$31)*(1+Title_RESULTS!$C$32/100)^('Sheet6(p_6)'!$A33-Title_RESULTS!$H$7))/1000)+'f-11B'!$Q32,+'f-11B'!$Q32))) -> 0 | F33: =IF(A33>=(Title_RESULTS!$H$7+Title_RESULTS!$C$17),0,(SUM(B33:E33))) -> 0 | G33: =IF(A33>=(Title_RESULTS!$H$7+Title_RESULTS!$C$17),0,(+'Sheet6(p_6)'!$H33)) -> 0 | H33: =IF(A33>=(Title_RESULTS!$H$7+Title_RESULTS!$C$17),0,(+'Sheet6(p_6)'!$I33)) -> 0 | I33: =IF(A33>=(Title_RESULTS!$H$7+Title_RESULTS!$C$17),0,(+'f-11B'!$P32)) -> 0 | J33: =IF(A33>=(Title_RESULTS!$H$7+Title_RESULTS!$C$17),0,(SUM(G33:I33))) -> 0 | K33: =IF(A33>=(Title_RESULTS!$H$7+Title_RESULTS!$C$17),0,(+F33-J33)) -> 0 | L33: =IF(A32>=(Title_RESULTS!$H$7+Title_RESULTS!$C$17),0,(+$K33/((1+Title_RESULTS!$C$37)^('Sheet8(F_24)'!$A33-Title_RESULTS!$H$7))+L32)) -> 0
A34: 2038 | B34: =IF(A34>=(Title_RESULTS!$H$7+Title_RESULTS!$C$17),0,(+'Sheet6(p_6)'!N34-'Sheet6(p_6)'!R34)) -> 0 | C34: =IF(A34>=(Title_RESULTS!$H$7+Title_RESULTS!$C$17),0,(IF(Partcipation!$B34=0,0,((Partcipation!$B34-Partcipation!$B33)*Title_RESULTS!$C$33*(1+Title_RESULTS!$C$35/100)^('Sheet8(F_24)'!$A34-Title_RESULTS!$H$7))/1000))) -> 0 | D34: =IF(A34>=(Title_RESULTS!$H$7+Title_RESULTS!$C$17),0,(+'Sheet6(p_6)'!$G34)) -> 0 | E34: =IF(A34>=(Title_RESULTS!$H$7+Title_RESULTS!$C$17),0,(IF(Title_RESULTS!$C$31<0,((Partcipation!$B33+(Partcipation!$B34-Partcipation!$B33)/2)*(ABS(Title_RESULTS!$C$31)*(1+Title_RESULTS!$C$32/100)^('Sheet6(p_6)'!$A34-Title_RESULTS!$H$7))/1000)+'f-11B'!$Q33,+'f-11B'!$Q33))) -> 0 | F34: =IF(A34>=(Title_RESULTS!$H$7+Title_RESULTS!$C$17),0,(SUM(B34:E34))) -> 0 | G34: =IF(A34>=(Title_RESULTS!$H$7+Title_RESULTS!$C$17),0,(+'Sheet6(p_6)'!$H34)) -> 0 | H34: =IF(A34>=(Title_RESULTS!$H$7+Title_RESULTS!$C$17),0,(+'Sheet6(p_6)'!$I34)) -> 0 | I34: =IF(A34>=(Title_RESULTS!$H$7+Title_RESULTS!$C$17),0,(+'f-11B'!$P33)) -> 0 | J34: =IF(A34>=(Title_RESULTS!$H$7+Title_RESULTS!$C$17),0,(SUM(G34:I34))) -> 0 | K34: =IF(A34>=(Title_RESULTS!$H$7+Title_RESULTS!$C$17),0,(+F34-J34)) -> 0 | L34: =IF(A33>=(Title_RESULTS!$H$7+Title_RESULTS!$C$17),0,(+$K34/((1+Title_RESULTS!$C$37)^('Sheet8(F_24)'!$A34-Title_RESULTS!$H$7))+L33)) -> 0
A35: 2039 | B35: =IF(A35>=(Title_RESULTS!$H$7+Title_RESULTS!$C$17),0,(+'Sheet6(p_6)'!N35-'Sheet6(p_6)'!R35)) -> 0 | C35: =IF(A35>=(Title_RESULTS!$H$7+Title_RESULTS!$C$17),0,(IF(Partcipation!$B35=0,0,((Partcipation!$B35-Partcipation!$B34)*Title_RESULTS!$C$33*(1+Title_RESULTS!$C$35/100)^('Sheet8(F_24)'!$A35-Title_RESULTS!$H$7))/1000))) -> 0 | D35: =IF(A35>=(Title_RESULTS!$H$7+Title_RESULTS!$C$17),0,(+'Sheet6(p_6)'!$G35)) -> 0 | E35: =IF(A35>=(Title_RESULTS!$H$7+Title_RESULTS!$C$17),0,(IF(Title_RESULTS!$C$31<0,((Partcipation!$B34+(Partcipation!$B35-Partcipation!$B34)/2)*(ABS(Title_RESULTS!$C$31)*(1+Title_RESULTS!$C$32/100)^('Sheet6(p_6)'!$A35-Title_RESULTS!$H$7))/1000)+'f-11B'!$Q34,+'f-11B'!$Q34))) -> 0 | F35: =IF(A35>=(Title_RESULTS!$H$7+Title_RESULTS!$C$17),0,(SUM(B35:E35))) -> 0 | G35: =IF(A35>=(Title_RESULTS!$H$7+Title_RESULTS!$C$17),0,(+'Sheet6(p_6)'!$H35)) -> 0 | H35: =IF(A35>=(Title_RESULTS!$H$7+Title_RESULTS!$C$17),0,(+'Sheet6(p_6)'!$I35)) -> 0 | I35: =IF(A35>=(Title_RESULTS!$H$7+Title_RESULTS!$C$17),0,(+'f-11B'!$P34)) -> 0 | J35: =IF(A35>=(Title_RESULTS!$H$7+Title_RESULTS!$C$17),0,(SUM(G35:I35))) -> 0 | K35: =IF(A35>=(Title_RESULTS!$H$7+Title_RESULTS!$C$17),0,(+F35-J35)) -> 0 | L35: =IF(A34>=(Title_RESULTS!$H$7+Title_RESULTS!$C$17),0,(+$K35/((1+Title_RESULTS!$C$37)^('Sheet8(F_24)'!$A35-Title_RESULTS!$H$7))+L34)) -> 0
A36: 2040 | B36: =IF(A36>=(Title_RESULTS!$H$7+Title_RESULTS!$C$17),0,(+'Sheet6(p_6)'!N36-'Sheet6(p_6)'!R36)) -> 0 | C36: =IF(A36>=(Title_RESULTS!$H$7+Title_RESULTS!$C$17),0,(IF(Partcipation!$B36=0,0,((Partcipation!$B36-Partcipation!$B35)*Title_RESULTS!$C$33*(1+Title_RESULTS!$C$35/100)^('Sheet8(F_24)'!$A36-Title_RESULTS!$H$7))/1000))) -> 0 | D36: =IF(A36>=(Title_RESULTS!$H$7+Title_RESULTS!$C$17),0,(+'Sheet6(p_6)'!$G36)) -> 0 | E36: =IF(A36>=(Title_RESULTS!$H$7+Title_RESULTS!$C$17),0,(IF(Title_RESULTS!$C$31<0,((Partcipation!$B35+(Partcipation!$B36-Partcipation!$B35)/2)*(ABS(Title_RESULTS!$C$31)*(1+Title_RESULTS!$C$32/100)^('Sheet6(p_6)'!$A36-Title_RESULTS!$H$7))/1000)+'f-11B'!$Q35,+'f-11B'!$Q35))) -> 0 | F36: =IF(A36>=(Title_RESULTS!$H$7+Title_RESULTS!$C$17),0,(SUM(B36:E36))) -> 0 | G36: =IF(A36>=(Title_RESULTS!$H$7+Title_RESULTS!$C$17),0,(+'Sheet6(p_6)'!$H36)) -> 0 | H36: =IF(A36>=(Title_RESULTS!$H$7+Title_RESULTS!$C$17),0,(+'Sheet6(p_6)'!$I36)) -> 0 | I36: =IF(A36>=(Title_RESULTS!$H$7+Title_RESULTS!$C$17),0,(+'f-11B'!$P35)) -> 0 | J36: =IF(A36>=(Title_RESULTS!$H$7+Title_RESULTS!$C$17),0,(SUM(G36:I36))) -> 0 | K36: =IF(A36>=(Title_RESULTS!$H$7+Title_RESULTS!$C$17),0,(+F36-J36)) -> 0 | L36: =IF(A35>=(Title_RESULTS!$H$7+Title_RESULTS!$C$17),0,(+$K36/((1+Title_RESULTS!$C$37)^('Sheet8(F_24)'!$A36-Title_RESULTS!$H$7))+L35)) -> 0
A37: 2041 | B37: =IF(A37>=(Title_RESULTS!$H$7+Title_RESULTS!$C$17),0,(+'Sheet6(p_6)'!N37-'Sheet6(p_6)'!R37)) -> 0 | C37: =IF(A37>=(Title_RESULTS!$H$7+Title_RESULTS!$C$17),0,(IF(Partcipation!$B37=0,0,((Partcipation!$B37-Partcipation!$B36)*Title_RESULTS!$C$33*(1+Title_RESULTS!$C$35/100)^('Sheet8(F_24)'!$A37-Title_RESULTS!$H$7))/1000))) -> 0 | D37: =IF(A37>=(Title_RESULTS!$H$7+Title_RESULTS!$C$17),0,(+'Sheet6(p_6)'!$G37)) -> 0 | E37: =IF(A37>=(Title_RESULTS!$H$7+Title_RESULTS!$C$17),0,(IF(Title_RESULTS!$C$31<0,((Partcipation!$B36+(Partcipation!$B37-Partcipation!$B36)/2)*(ABS(Title_RESULTS!$C$31)*(1+Title_RESULTS!$C$32/100)^('Sheet6(p_6)'!$A37-Title_RESULTS!$H$7))/1000)+'f-11B'!$Q36,+'f-11B'!$Q36))) -> 0 | F37: =IF(A37>=(Title_RESULTS!$H$7+Title_RESULTS!$C$17),0,(SUM(B37:E37))) -> 0 | G37: =IF(A37>=(Title_RESULTS!$H$7+Title_RESULTS!$C$17),0,(+'Sheet6(p_6)'!$H37)) -> 0 | H37: =IF(A37>=(Title_RESULTS!$H$7+Title_RESULTS!$C$17),0,(+'Sheet6(p_6)'!$I37)) -> 0 | I37: =IF(A37>=(Title_RESULTS!$H$7+Title_RESULTS!$C$17),0,(+'f-11B'!$P36)) -> 0 | J37: =IF(A37>=(Title_RESULTS!$H$7+Title_RESULTS!$C$17),0,(SUM(G37:I37))) -> 0 | K37: =IF(A37>=(Title_RESULTS!$H$7+Title_RESULTS!$C$17),0,(+F37-J37)) -> 0 | L37: =IF(A36>=(Title_RESULTS!$H$7+Title_RESULTS!$C$17),0,(+$K37/((1+Title_RESULTS!$C$37)^('Sheet8(F_24)'!$A37-Title_RESULTS!$H$7))+L36)) -> 0
A38: 2042 | B38: =IF(A38>=(Title_RESULTS!$H$7+Title_RESULTS!$C$17),0,(+'Sheet6(p_6)'!N38-'Sheet6(p_6)'!R38)) -> 0 | C38: =IF(A38>=(Title_RESULTS!$H$7+Title_RESULTS!$C$17),0,(IF(Partcipation!$B38=0,0,((Partcipation!$B38-Partcipation!$B37)*Title_RESULTS!$C$33*(1+Title_RESULTS!$C$35/100)^('Sheet8(F_24)'!$A38-Title_RESULTS!$H$7))/1000))) -> 0 | D38: =IF(A38>=(Title_RESULTS!$H$7+Title_RESULTS!$C$17),0,(+'Sheet6(p_6)'!$G38)) -> 0 | E38: =IF(A38>=(Title_RESULTS!$H$7+Title_RESULTS!$C$17),0,(IF(Title_RESULTS!$C$31<0,((Partcipation!$B37+(Partcipation!$B38-Partcipation!$B37)/2)*(ABS(Title_RESULTS!$C$31)*(1+Title_RESULTS!$C$32/100)^('Sheet6(p_6)'!$A38-Title_RESULTS!$H$7))/1000)+'f-11B'!$Q37,+'f-11B'!$Q37))) -> 0 | F38: =IF(A38>=(Title_RESULTS!$H$7+Title_RESULTS!$C$17),0,(SUM(B38:E38))) -> 0 | G38: =IF(A38>=(Title_RESULTS!$H$7+Title_RESULTS!$C$17),0,(+'Sheet6(p_6)'!$H38)) -> 0 | H38: =IF(A38>=(Title_RESULTS!$H$7+Title_RESULTS!$C$17),0,(+'Sheet6(p_6)'!$I38)) -> 0 | I38: =IF(A38>=(Title_RESULTS!$H$7+Title_RESULTS!$C$17),0,(+'f-11B'!$P37)) -> 0 | J38: =IF(A38>=(Title_RESULTS!$H$7+Title_RESULTS!$C$17),0,(SUM(G38:I38))) -> 0 | K38: =IF(A38>=(Title_RESULTS!$H$7+Title_RESULTS!$C$17),0,(+F38-J38)) -> 0 | L38: =IF(A37>=(Title_RESULTS!$H$7+Title_RESULTS!$C$17),0,(+$K38/((1+Title_RESULTS!$C$37)^('Sheet8(F_24)'!$A38-Title_RESULTS!$H$7))+L37)) -> 0
A39: 2043 | B39: =IF(A39>=(Title_RESULTS!$H$7+Title_RESULTS!$C$17),0,(+'Sheet6(p_6)'!N39-'Sheet6(p_6)'!R39)) -> 0 | C39: =IF(A39>=(Title_RESULTS!$H$7+Title_RESULTS!$C$17),0,(IF(Partcipation!$B39=0,0,((Partcipation!$B39-Partcipation!$B38)*Title_RESULTS!$C$33*(1+Title_RESULTS!$C$35/100)^('Sheet8(F_24)'!$A39-Title_RESULTS!$H$7))/1000))) -> 0 | D39: =IF(A39>=(Title_RESULTS!$H$7+Title_RESULTS!$C$17),0,(+'Sheet6(p_6)'!$G39)) -> 0 | E39: =IF(A39>=(Title_RESULTS!$H$7+Title_RESULTS!$C$17),0,(IF(Title_RESULTS!$C$31<0,((Partcipation!$B38+(Partcipation!$B39-Partcipation!$B38)/2)*(ABS(Title_RESULTS!$C$31)*(1+Title_RESULTS!$C$32/100)^('Sheet6(p_6)'!$A39-Title_RESULTS!$H$7))/1000)+'f-11B'!$Q38,+'f-11B'!$Q38))) -> 0 | F39: =IF(A39>=(Title_RESULTS!$H$7+Title_RESULTS!$C$17),0,(SUM(B39:E39))) -> 0 | G39: =IF(A39>=(Title_RESULTS!$H$7+Title_RESULTS!$C$17),0,(+'Sheet6(p_6)'!$H39)) -> 0 | H39: =IF(A39>=(Title_RESULTS!$H$7+Title_RESULTS!$C$17),0,(+'Sheet6(p_6)'!$I39)) -> 0 | I39: =IF(A39>=(Title_RESULTS!$H$7+Title_RESULTS!$C$17),0,(+'f-11B'!$P38)) -> 0 | J39: =IF(A39>=(Title_RESULTS!$H$7+Title_RESULTS!$C$17),0,(SUM(G39:I39))) -> 0 | K39: =IF(A39>=(Title_RESULTS!$H$7+Title_RESULTS!$C$17),0,(+F39-J39)) -> 0 | L39: =IF(A38>=(Title_RESULTS!$H$7+Title_RESULTS!$C$17),0,(+$K39/((1+Title_RESULTS!$C$37)^('Sheet8(F_24)'!$A39-Title_RESULTS!$H$7))+L38)) -> 0
A40: 2044 | B40: =IF(A40>=(Title_RESULTS!$H$7+Title_RESULTS!$C$17),0,(+'Sheet6(p_6)'!N40-'Sheet6(p_6)'!R40)) -> 0 | C40: =IF(A40>=(Title_RESULTS!$H$7+Title_RESULTS!$C$17),0,(IF(Partcipation!$B40=0,0,((Partcipation!$B40-Partcipation!$B39)*Title_RESULTS!$C$33*(1+Title_RESULTS!$C$35/100)^('Sheet8(F_24)'!$A40-Title_RESULTS!$H$7))/1000))) -> 0 | D40: =IF(A40>=(Title_RESULTS!$H$7+Title_RESULTS!$C$17),0,(+'Sheet6(p_6)'!$G40)) -> 0 | E40: =IF(A40>=(Title_RESULTS!$H$7+Title_RESULTS!$C$17),0,(IF(Title_RESULTS!$C$31<0,((Partcipation!$B39+(Partcipation!$B40-Partcipation!$B39)/2)*(ABS(Title_RESULTS!$C$31)*(1+Title_RESULTS!$C$32/100)^('Sheet6(p_6)'!$A40-Title_RESULTS!$H$7))/1000)+'f-11B'!$Q39,+'f-11B'!$Q39))) -> 0 | F40: =IF(A40>=(Title_RESULTS!$H$7+Title_RESULTS!$C$17),0,(SUM(B40:E40))) -> 0 | G40: =IF(A40>=(Title_RESULTS!$H$7+Title_RESULTS!$C$17),0,(+'Sheet6(p_6)'!$H40)) -> 0 | H40: =IF(A40>=(Title_RESULTS!$H$7+Title_RESULTS!$C$17),0,(+'Sheet6(p_6)'!$I40)) -> 0 | I40: =IF(A40>=(Title_RESULTS!$H$7+Title_RESULTS!$C$17),0,(+'f-11B'!$P39)) -> 0 | J40: =IF(A40>=(Title_RESULTS!$H$7+Title_RESULTS!$C$17),0,(SUM(G40:I40))) -> 0 | K40: =IF(A40>=(Title_RESULTS!$H$7+Title_RESULTS!$C$17),0,(+F40-J40)) -> 0 | L40: =IF(A39>=(Title_RESULTS!$H$7+Title_RESULTS!$C$17),0,(+$K40/((1+Title_RESULTS!$C$37)^('Sheet8(F_24)'!$A40-Title_RESULTS!$H$7))+L39)) -> 0
A42: NOMINAL | B42: =SUM(B16:B41) -> 9084.063162 | C42: 0 | D42: 0 | E42: 0 | F42: 9084.063162 | G42: 14792.66721 | H42: 0 | I42: 0 | J42: 14792.66721 | K42: -5708.604048
A44: NPV: | B44: =NPV(Title_RESULTS!$C$37,'Sheet8(F_24)'!B17:B41)+'Sheet8(F_24)'!B16 -> 7608.743657 | C44: =NPV(Title_RESULTS!$C$37,'Sheet8(F_24)'!C17:C41)+'Sheet8(F_24)'!C16 -> 0 | D44: =NPV(Title_RESULTS!$C$37,'Sheet8(F_24)'!D17:D41)+'Sheet8(F_24)'!D16 -> 0 | E44: =NPV(Title_RESULTS!$C$37,'Sheet8(F_24)'!E17:E41)+'Sheet8(F_24)'!E16 -> 0 | F44: =NPV(Title_RESULTS!$C$37,'Sheet8(F_24)'!F17:F41)+'Sheet8(F_24)'!F16 -> 7608.743657 | G44: =NPV(Title_RESULTS!$C$37,'Sheet8(F_24)'!G17:G41)+'Sheet8(F_24)'!G16 -> 13821.81631 | H44: =NPV(Title_RESULTS!$C$37,'Sheet8(F_24)'!H17:H41)+'Sheet8(F_24)'!H16 -> 0 | I44: =NPV(Title_RESULTS!$C$37,'Sheet8(F_24)'!I17:I41)+'Sheet8(F_24)'!I16 -> 0 | J44: =NPV(Title_RESULTS!$C$37,'Sheet8(F_24)'!J17:J41)+'Sheet8(F_24)'!J16 -> 13821.81631 | K44: =NPV(Title_RESULTS!$C$37,'Sheet8(F_24)'!K17:K41)+'Sheet8(F_24)'!K16 -> -6213.072657
A46: In service year of gen unit: | D46: =+Title_RESULTS!H8 -> 2023 | F46: =+F44/J44 -> 0.5504879738
A47: Discount rate: | D47: =+Title_RESULTS!C37 -> 0.0708

Sheet Sheet9(F_25)
F1: RATE IMPACT TEST | N1: PSC FORM CE 2.5
F2: PROGRAM: | G2: =+Input!C3 -> Retro-Commissioning | N2: Page 1 of 1
N3: =+Title_RESULTS!I4 -> 2019-05-14T07:54:57.350
A8: (1) | B8: (2) | C8: (3) | D8: (4) | E8: (5) | F8: (6) | G8: (7) | H8: (8) | I8: (9) | J8: (10) | K8: (11) | L8: (12) | M8: (13) | N8: (14)
H10: AVOIDED | M10: NET | N10: CUMULATIVE
B11: INCREASED | C11: UTILITY | H11: GEN UNIT | I11: AVOIDED | M11: BENEFITS | N11: DISCOUNTED
B12: SUPPLY | C12: PROGRAM | E12: REVENUE | F12: OTHER | G12: TOTAL | H12: UNIT & FUEL | I12: T & D | J12: REVENUE | K12: OTHER | L12: TOTAL | M12: TO ALL | N12: NET
B13: COSTS | C13: COSTS | D13: INCENTIVES | E13: LOSSES | F13: COSTS | G13: COSTS | H13: BENEFITS | I13: BENEFITS | J13: GAINS | K13: BENEFITS | L13: BENEFITS | M13: CUSTOMERS | N13: BENEFIT
A15: YEAR | B15: $(000) | C15: $(000) | D15: $(000) | E15: $(000) | F15: $(000) | G15: $(000) | H15: $(000) | I15: $(000) | J15: $(000) | K15: $(000) | L15: $(000) | M15: $(000) | N15: $(000)
A16: =+Title_RESULTS!H7 -> 2020 | B16: =IF(A16>=(Title_RESULTS!$H$7+Title_RESULTS!$C$17),0,(+'Sheet7(F_23)'!$B16)) -> 0 | C16: =IF(A16>=(Title_RESULTS!$H$7+Title_RESULTS!$C$17),0,(+'Sheet6(p_6)'!$D16)) -> 0 | D16: =IF(A16>=(Title_RESULTS!$H$7+Title_RESULTS!$C$17),0,(+'Sheet6(p_6)'!$G16)) -> 0 | E16: =+'Sheet6(p_6)'!M16 -> 319.4714707 | F16: =IF(A16>=(Title_RESULTS!$H$7+Title_RESULTS!$C$17),0,(+'f-11B'!$R15)) -> 0 | G16: =IF(A16>=(Title_RESULTS!$H$7+Title_RESULTS!$C$17),0,(SUM(B16:F16))) -> 319.4714707 | H16: =IF(A16>=(Title_RESULTS!$H$7+Title_RESULTS!$C$17),0,(+'Sheet3(F_21)'!$J16+'Sheet4(F_22)'!$H16)) -> 120.777226 | I16: =IF(A16>=(Title_RESULTS!$H$7+Title_RESULTS!$C$17),0,(+'Sheet4(F_22)'!$D16+'Sheet4(F_22)'!$G16)) -> 0 | J16: =IF(A16>=(Title_RESULTS!$H$7+Title_RESULTS!$C$17),0,(+'Sheet6(p_6)'!$R16)) -> 0 | K16: =IF(A16>=(Title_RESULTS!$H$7+Title_RESULTS!$C$17),0,(+'f-11B'!$S15)) -> 0 | L16: =IF(A16>=(Title_RESULTS!$H$7+Title_RESULTS!$C$17),0,(SUM(H16:K16))) -> 120.777226 | M16: =IF(A16>=(Title_RESULTS!$H$7+Title_RESULTS!$C$17),0,(+L16-G16)) -> -198.6942447 | N16: =IF(A16>=(Title_RESULTS!$H$7+Title_RESULTS!$C$17),0,(+$M16/((1+Title_RESULTS!$C$37)^('Sheet9(F_25)'!$A16-Title_RESULTS!$H$7)))) -> -198.6942447
A17: =+A16+1 -> 2021 | B17: =IF(A17>=(Title_RESULTS!$H$7+Title_RESULTS!$C$17),0,(+'Sheet7(F_23)'!$B17)) -> 0 | C17: =IF(A17>=(Title_RESULTS!$H$7+Title_RESULTS!$C$17),0,(+'Sheet6(p_6)'!$D17)) -> 0 | D17: =IF(A17>=(Title_RESULTS!$H$7+Title_RESULTS!$C$17),0,(+'Sheet6(p_6)'!$G17)) -> 0 | E17: =+'Sheet6(p_6)'!M17 -> 967.9985562 | F17: =IF(A17>=(Title_RESULTS!$H$7+Title_RESULTS!$C$17),0,(+'f-11B'!$R16)) -> 0 | G17: =IF(A17>=(Title_RESULTS!$H$7+Title_RESULTS!$C$17),0,(SUM(B17:F17))) -> 967.9985562 | H17: =IF(A17>=(Title_RESULTS!$H$7+Title_RESULTS!$C$17),0,(+'Sheet3(F_21)'!$J17+'Sheet4(F_22)'!$H17)) -> 359.3845254 | I17: =IF(A17>=(Title_RESULTS!$H$7+Title_RESULTS!$C$17),0,(+'Sheet4(F_22)'!$D17+'Sheet4(F_22)'!$G17)) -> 283.9172627 | J17: =IF(A17>=(Title_RESULTS!$H$7+Title_RESULTS!$C$17),0,(+'Sheet6(p_6)'!$R17)) -> 0 | K17: =IF(A17>=(Title_RESULTS!$H$7+Title_RESULTS!$C$17),0,(+'f-11B'!$S16)) -> 0 | L17: =IF(A17>=(Title_RESULTS!$H$7+Title_RESULTS!$C$17),0,(SUM(H17:K17))) -> 643.3017881 | M17: =IF(A17>=(Title_RESULTS!$H$7+Title_RESULTS!$C$17),0,(+L17-G17)) -> -324.6967681 | N17: =(IF(A16>=(Title_RESULTS!$H$7+Title_RESULTS!$C$17),0,(+$M17/((1+Title_RESULTS!$C$37)^('Sheet9(F_25)'!$A17-Title_RESULTS!$H$7))+N16))) -> -501.9224555
A18: =+A17+1 -> 2022 | B18: =IF(A18>=(Title_RESULTS!$H$7+Title_RESULTS!$C$17),0,(+'Sheet7(F_23)'!$B18)) -> 0 | C18: =IF(A18>=(Title_RESULTS!$H$7+Title_RESULTS!$C$17),0,(+'Sheet6(p_6)'!$D18)) -> 0 | D18: =IF(A18>=(Title_RESULTS!$H$7+Title_RESULTS!$C$17),0,(+'Sheet6(p_6)'!$G18)) -> 0 | E18: =+'Sheet6(p_6)'!M18 -> 1629.464236 | F18: =IF(A18>=(Title_RESULTS!$H$7+Title_RESULTS!$C$17),0,(+'f-11B'!$R17)) -> 0 | G18: =IF(A18>=(Title_RESULTS!$H$7+Title_RESULTS!$C$17),0,(SUM(B18:F18))) -> 1629.464236 | H18: =IF(A18>=(Title_RESULTS!$H$7+Title_RESULTS!$C$17),0,(+'Sheet3(F_21)'!$J18+'Sheet4(F_22)'!$H18)) -> 618.1814744 | I18: =IF(A18>=(Title_RESULTS!$H$7+Title_RESULTS!$C$17),0,(+'Sheet4(F_22)'!$D18+'Sheet4(F_22)'!$G18)) -> 290.731277 | J18: =IF(A18>=(Title_RESULTS!$H$7+Title_RESULTS!$C$17),0,(+'Sheet6(p_6)'!$R18)) -> 0 | K18: =IF(A18>=(Title_RESULTS!$H$7+Title_RESULTS!$C$17),0,(+'f-11B'!$S17)) -> 0 | L18: =IF(A18>=(Title_RESULTS!$H$7+Title_RESULTS!$C$17),0,(SUM(H18:K18))) -> 908.9127514 | M18: =IF(A18>=(Title_RESULTS!$H$7+Title_RESULTS!$C$17),0,(+L18-G18)) -> -720.5514848 | N18: =(IF(A17>=(Title_RESULTS!$H$7+Title_RESULTS!$C$17),0,(+$M18/((1+Title_RESULTS!$C$37)^('Sheet9(F_25)'!$A18-Title_RESULTS!$H$7))+N17))) -> -1130.339987
A19: =+A18+1 -> 2023 | B19: =IF(A19>=(Title_RESULTS!$H$7+Title_RESULTS!$C$17),0,(+'Sheet7(F_23)'!$B19)) -> 0 | C19: =IF(A19>=(Title_RESULTS!$H$7+Title_RESULTS!$C$17),0,(+'Sheet6(p_6)'!$D19)) -> 0 | D19: =IF(A19>=(Title_RESULTS!$H$7+Title_RESULTS!$C$17),0,(+'Sheet6(p_6)'!$G19)) -> 0 | E19: =+'Sheet6(p_6)'!M19 -> 1974.910654 | F19: =IF(A19>=(Title_RESULTS!$H$7+Title_RESULTS!$C$17),0,(+'f-11B'!$R18)) -> 0 | G19: =IF(A19>=(Title_RESULTS!$H$7+Title_RESULTS!$C$17),0,(SUM(B19:F19))) -> 1974.910654 | H19: =IF(A19>=(Title_RESULTS!$H$7+Title_RESULTS!$C$17),0,(+'Sheet3(F_21)'!$J19+'Sheet4(F_22)'!$H19)) -> 1246.593823 | I19: =IF(A19>=(Title_RESULTS!$H$7+Title_RESULTS!$C$17),0,(+'Sheet4(F_22)'!$D19+'Sheet4(F_22)'!$G19)) -> 297.7088277 | J19: =IF(A19>=(Title_RESULTS!$H$7+Title_RESULTS!$C$17),0,(+'Sheet6(p_6)'!$R19)) -> 0 | K19: =IF(A19>=(Title_RESULTS!$H$7+Title_RESULTS!$C$17),0,(+'f-11B'!$S18)) -> 0 | L19: =IF(A19>=(Title_RESULTS!$H$7+Title_RESULTS!$C$17),0,(SUM(H19:K19))) -> 1544.302651 | M19: =IF(A19>=(Title_RESULTS!$H$7+Title_RESULTS!$C$17),0,(+L19-G19)) -> -430.6080034 | N19: =(IF(A18>=(Title_RESULTS!$H$7+Title_RESULTS!$C$17),0,(+$M19/((1+Title_RESULTS!$C$37)^('Sheet9(F_25)'!$A19-Title_RESULTS!$H$7))+N18))) -> -1481.057142
A20: 2024 | B20: =IF(A20>=(Title_RESULTS!$H$7+Title_RESULTS!$C$17),0,(+'Sheet7(F_23)'!$B20)) -> 0 | C20: =IF(A20>=(Title_RESULTS!$H$7+Title_RESULTS!$C$17),0,(+'Sheet6(p_6)'!$D20)) -> 0 | D20: =IF(A20>=(Title_RESULTS!$H$7+Title_RESULTS!$C$17),0,(+'Sheet6(p_6)'!$G20)) -> 0 | E20: =+'Sheet6(p_6)'!M20 -> 1994.659761 | F20: =IF(A20>=(Title_RESULTS!$H$7+Title_RESULTS!$C$17),0,(+'f-11B'!$R19)) -> 0 | G20: =IF(A20>=(Title_RESULTS!$H$7+Title_RESULTS!$C$17),0,(SUM(B20:F20))) -> 1994.659761 | H20: =IF(A20>=(Title_RESULTS!$H$7+Title_RESULTS!$C$17),0,(+'Sheet3(F_21)'!$J20+'Sheet4(F_22)'!$H20)) -> 1289.588555 | I20: =IF(A20>=(Title_RESULTS!$H$7+Title_RESULTS!$C$17),0,(+'Sheet4(F_22)'!$D20+'Sheet4(F_22)'!$G20)) -> 304.8538395 | J20: =IF(A20>=(Title_RESULTS!$H$7+Title_RESULTS!$C$17),0,(+'Sheet6(p_6)'!$R20)) -> 0 | K20: =IF(A20>=(Title_RESULTS!$H$7+Title_RESULTS!$C$17),0,(+'f-11B'!$S19)) -> 0 | L20: =IF(A20>=(Title_RESULTS!$H$7+Title_RESULTS!$C$17),0,(SUM(H20:K20))) -> 1594.442394 | M20: =IF(A20>=(Title_RESULTS!$H$7+Title_RESULTS!$C$17),0,(+L20-G20)) -> -400.2173666 | N20: =(IF(A19>=(Title_RESULTS!$H$7+Title_RESULTS!$C$17),0,(+$M20/((1+Title_RESULTS!$C$37)^('Sheet9(F_25)'!$A20-Title_RESULTS!$H$7))+N19))) -> -1785.469641
A21: 2025 | B21: =IF(A21>=(Title_RESULTS!$H$7+Title_RESULTS!$C$17),0,(+'Sheet7(F_23)'!$B21)) -> 0 | C21: =IF(A21>=(Title_RESULTS!$H$7+Title_RESULTS!$C$17),0,(+'Sheet6(p_6)'!$D21)) -> 0 | D21: =IF(A21>=(Title_RESULTS!$H$7+Title_RESULTS!$C$17),0,(+'Sheet6(p_6)'!$G21)) -> 0 | E21: =+'Sheet6(p_6)'!M21 -> 2014.606358 | F21: =IF(A21>=(Title_RESULTS!$H$7+Title_RESULTS!$C$17),0,(+'f-11B'!$R20)) -> 0 | G21: =IF(A21>=(Title_RESULTS!$H$7+Title_RESULTS!$C$17),0,(SUM(B21:F21))) -> 0 | H21: =IF(A21>=(Title_RESULTS!$H$7+Title_RESULTS!$C$17),0,(+'Sheet3(F_21)'!$J21+'Sheet4(F_22)'!$H21)) -> 0 | I21: =IF(A21>=(Title_RESULTS!$H$7+Title_RESULTS!$C$17),0,(+'Sheet4(F_22)'!$D21+'Sheet4(F_22)'!$G21)) -> 0 | J21: =IF(A21>=(Title_RESULTS!$H$7+Title_RESULTS!$C$17),0,(+'Sheet6(p_6)'!$R21)) -> 0 | K21: =IF(A21>=(Title_RESULTS!$H$7+Title_RESULTS!$C$17),0,(+'f-11B'!$S20)) -> 0 | L21: =IF(A21>=(Title_RESULTS!$H$7+Title_RESULTS!$C$17),0,(SUM(H21:K21))) -> 0 | M21: =IF(A21>=(Title_RESULTS!$H$7+Title_RESULTS!$C$17),0,(+L21-G21)) -> 0 | N21: =(IF(A20>=(Title_RESULTS!$H$7+Title_RESULTS!$C$17),0,(+$M21/((1+Title_RESULTS!$C$37)^('Sheet9(F_25)'!$A21-Title_RESULTS!$H$7))+N20))) -> -1785.469641
A22: 2026 | B22: =IF(A22>=(Title_RESULTS!$H$7+Title_RESULTS!$C$17),0,(+'Sheet7(F_23)'!$B22)) -> 0 | C22: =IF(A22>=(Title_RESULTS!$H$7+Title_RESULTS!$C$17),0,(+'Sheet6(p_6)'!$D22)) -> 0 | D22: =IF(A22>=(Title_RESULTS!$H$7+Title_RESULTS!$C$17),0,(+'Sheet6(p_6)'!$G22)) -> 0 | E22: =+'Sheet6(p_6)'!M22 -> 2034.752422 | F22: =IF(A22>=(Title_RESULTS!$H$7+Title_RESULTS!$C$17),0,(+'f-11B'!$R21)) -> 0 | G22: =IF(A22>=(Title_RESULTS!$H$7+Title_RESULTS!$C$17),0,(SUM(B22:F22))) -> 0 | H22: =IF(A22>=(Title_RESULTS!$H$7+Title_RESULTS!$C$17),0,(+'Sheet3(F_21)'!$J22+'Sheet4(F_22)'!$H22)) -> 0 | I22: =IF(A22>=(Title_RESULTS!$H$7+Title_RESULTS!$C$17),0,(+'Sheet4(F_22)'!$D22+'Sheet4(F_22)'!$G22)) -> 0 | J22: =IF(A22>=(Title_RESULTS!$H$7+Title_RESULTS!$C$17),0,(+'Sheet6(p_6)'!$R22)) -> 0 | K22: =IF(A22>=(Title_RESULTS!$H$7+Title_RESULTS!$C$17),0,(+'f-11B'!$S21)) -> 0 | L22: =IF(A22>=(Title_RESULTS!$H$7+Title_RESULTS!$C$17),0,(SUM(H22:K22))) -> 0 | M22: =IF(A22>=(Title_RESULTS!$H$7+Title_RESULTS!$C$17),0,(+L22-G22)) -> 0 | N22: =(IF(A21>=(Title_RESULTS!$H$7+Title_RESULTS!$C$17),0,(+$M22/((1+Title_RESULTS!$C$37)^('Sheet9(F_25)'!$A22-Title_RESULTS!$H$7))+N21))) -> 0
A23: 2027 | B23: =IF(A23>=(Title_RESULTS!$H$7+Title_RESULTS!$C$17),0,(+'Sheet7(F_23)'!$B23)) -> 0 | C23: =IF(A23>=(Title_RESULTS!$H$7+Title_RESULTS!$C$17),0,(+'Sheet6(p_6)'!$D23)) -> 0 | D23: =IF(A23>=(Title_RESULTS!$H$7+Title_RESULTS!$C$17),0,(+'Sheet6(p_6)'!$G23)) -> 0 | E23: =+'Sheet6(p_6)'!M23 -> 2055.099946 | F23: =IF(A23>=(Title_RESULTS!$H$7+Title_RESULTS!$C$17),0,(+'f-11B'!$R22)) -> 0 | G23: =IF(A23>=(Title_RESULTS!$H$7+Title_RESULTS!$C$17),0,(SUM(B23:F23))) -> 0 | H23: =IF(A23>=(Title_RESULTS!$H$7+Title_RESULTS!$C$17),0,(+'Sheet3(F_21)'!$J23+'Sheet4(F_22)'!$H23)) -> 0 | I23: =IF(A23>=(Title_RESULTS!$H$7+Title_RESULTS!$C$17),0,(+'Sheet4(F_22)'!$D23+'Sheet4(F_22)'!$G23)) -> 0 | J23: =IF(A23>=(Title_RESULTS!$H$7+Title_RESULTS!$C$17),0,(+'Sheet6(p_6)'!$R23)) -> 0 | K23: =IF(A23>=(Title_RESULTS!$H$7+Title_RESULTS!$C$17),0,(+'f-11B'!$S22)) -> 0 | L23: =IF(A23>=(Title_RESULTS!$H$7+Title_RESULTS!$C$17),0,(SUM(H23:K23))) -> 0 | M23: =IF(A23>=(Title_RESULTS!$H$7+Title_RESULTS!$C$17),0,(+L23-G23)) -> 0 | N23: =(IF(A22>=(Title_RESULTS!$H$7+Title_RESULTS!$C$17),0,(+$M23/((1+Title_RESULTS!$C$37)^('Sheet9(F_25)'!$A23-Title_RESULTS!$H$7))+N22))) -> 0
A24: 2028 | B24: =IF(A24>=(Title_RESULTS!$H$7+Title_RESULTS!$C$17),0,(+'Sheet7(F_23)'!$B24)) -> 0 | C24: =IF(A24>=(Title_RESULTS!$H$7+Title_RESULTS!$C$17),0,(+'Sheet6(p_6)'!$D24)) -> 0 | D24: =IF(A24>=(Title_RESULTS!$H$7+Title_RESULTS!$C$17),0,(+'Sheet6(p_6)'!$G24)) -> 0 | E24: =+'Sheet6(p_6)'!M24 -> 2075.650946 | F24: =IF(A24>=(Title_RESULTS!$H$7+Title_RESULTS!$C$17),0,(+'f-11B'!$R23)) -> 0 | G24: =IF(A24>=(Title_RESULTS!$H$7+Title_RESULTS!$C$17),0,(SUM(B24:F24))) -> 0 | H24: =IF(A24>=(Title_RESULTS!$H$7+Title_RESULTS!$C$17),0,(+'Sheet3(F_21)'!$J24+'Sheet4(F_22)'!$H24)) -> 0 | I24: =IF(A24>=(Title_RESULTS!$H$7+Title_RESULTS!$C$17),0,(+'Sheet4(F_22)'!$D24+'Sheet4(F_22)'!$G24)) -> 0 | J24: =IF(A24>=(Title_RESULTS!$H$7+Title_RESULTS!$C$17),0,(+'Sheet6(p_6)'!$R24)) -> 0 | K24: =IF(A24>=(Title_RESULTS!$H$7+Title_RESULTS!$C$17),0,(+'f-11B'!$S23)) -> 0 | L24: =IF(A24>=(Title_RESULTS!$H$7+Title_RESULTS!$C$17),0,(SUM(H24:K24))) -> 0 | M24: =IF(A24>=(Title_RESULTS!$H$7+Title_RESULTS!$C$17),0,(+L24-G24)) -> 0 | N24: =(IF(A23>=(Title_RESULTS!$H$7+Title_RESULTS!$C$17),0,(+$M24/((1+Title_RESULTS!$C$37)^('Sheet9(F_25)'!$A24-Title_RESULTS!$H$7))+N23))) -> 0
A25: 2029 | B25: =IF(A25>=(Title_RESULTS!$H$7+Title_RESULTS!$C$17),0,(+'Sheet7(F_23)'!$B25)) -> 0 | C25: =IF(A25>=(Title_RESULTS!$H$7+Title_RESULTS!$C$17),0,(+'Sheet6(p_6)'!$D25)) -> 0 | D25: =IF(A25>=(Title_RESULTS!$H$7+Title_RESULTS!$C$17),0,(+'Sheet6(p_6)'!$G25)) -> 0 | E25: =+'Sheet6(p_6)'!M25 -> 2096.407455 | F25: =IF(A25>=(Title_RESULTS!$H$7+Title_RESULTS!$C$17),0,(+'f-11B'!$R24)) -> 0 | G25: =IF(A25>=(Title_RESULTS!$H$7+Title_RESULTS!$C$17),0,(SUM(B25:F25))) -> 0 | H25: =IF(A25>=(Title_RESULTS!$H$7+Title_RESULTS!$C$17),0,(+'Sheet3(F_21)'!$J25+'Sheet4(F_22)'!$H25)) -> 0 | I25: =IF(A25>=(Title_RESULTS!$H$7+Title_RESULTS!$C$17),0,(+'Sheet4(F_22)'!$D25+'Sheet4(F_22)'!$G25)) -> 0 | J25: =IF(A25>=(Title_RESULTS!$H$7+Title_RESULTS!$C$17),0,(+'Sheet6(p_6)'!$R25)) -> 0 | K25: =IF(A25>=(Title_RESULTS!$H$7+Title_RESULTS!$C$17),0,(+'f-11B'!$S24)) -> 0 | L25: =IF(A25>=(Title_RESULTS!$H$7+Title_RESULTS!$C$17),0,(SUM(H25:K25))) -> 0 | M25: =IF(A25>=(Title_RESULTS!$H$7+Title_RESULTS!$C$17),0,(+L25-G25)) -> 0 | N25: =(IF(A24>=(Title_RESULTS!$H$7+Title_RESULTS!$C$17),0,(+$M25/((1+Title_RESULTS!$C$37)^('Sheet9(F_25)'!$A25-Title_RESULTS!$H$7))+N24))) -> 0
A26: 2030 | B26: =IF(A26>=(Title_RESULTS!$H$7+Title_RESULTS!$C$17),0,(+'Sheet7(F_23)'!$B26)) -> 0 | C26: =IF(A26>=(Title_RESULTS!$H$7+Title_RESULTS!$C$17),0,(+'Sheet6(p_6)'!$D26)) -> 0 | D26: =IF(A26>=(Title_RESULTS!$H$7+Title_RESULTS!$C$17),0,(+'Sheet6(p_6)'!$G26)) -> 0 | E26: =+'Sheet6(p_6)'!M26 -> 2117.37153 | F26: =IF(A26>=(Title_RESULTS!$H$7+Title_RESULTS!$C$17),0,(+'f-11B'!$R25)) -> 0 | G26: =IF(A26>=(Title_RESULTS!$H$7+Title_RESULTS!$C$17),0,(SUM(B26:F26))) -> 0 | H26: =IF(A26>=(Title_RESULTS!$H$7+Title_RESULTS!$C$17),0,(+'Sheet3(F_21)'!$J26+'Sheet4(F_22)'!$H26)) -> 0 | I26: =IF(A26>=(Title_RESULTS!$H$7+Title_RESULTS!$C$17),0,(+'Sheet4(F_22)'!$D26+'Sheet4(F_22)'!$G26)) -> 0 | J26: =IF(A26>=(Title_RESULTS!$H$7+Title_RESULTS!$C$17),0,(+'Sheet6(p_6)'!$R26)) -> 0 | K26: =IF(A26>=(Title_RESULTS!$H$7+Title_RESULTS!$C$17),0,(+'f-11B'!$S25)) -> 0 | L26: =IF(A26>=(Title_RESULTS!$H$7+Title_RESULTS!$C$17),0,(SUM(H26:K26))) -> 0 | M26: =IF(A26>=(Title_RESULTS!$H$7+Title_RESULTS!$C$17),0,(+L26-G26)) -> 0 | N26: =(IF(A25>=(Title_RESULTS!$H$7+Title_RESULTS!$C$17),0,(+$M26/((1+Title_RESULTS!$C$37)^('Sheet9(F_25)'!$A26-Title_RESULTS!$H$7))+N25))) -> 0
A27: 2031 | B27: =IF(A27>=(Title_RESULTS!$H$7+Title_RESULTS!$C$17),0,(+'Sheet7(F_23)'!$B27)) -> 0 | C27: =IF(A27>=(Title_RESULTS!$H$7+Title_RESULTS!$C$17),0,(+'Sheet6(p_6)'!$D27)) -> 0 | D27: =IF(A27>=(Title_RESULTS!$H$7+Title_RESULTS!$C$17),0,(+'Sheet6(p_6)'!$G27)) -> 0 | E27: =+'Sheet6(p_6)'!M27 -> 2138.545245 | F27: =IF(A27>=(Title_RESULTS!$H$7+Title_RESULTS!$C$17),0,(+'f-11B'!$R26)) -> 0 | G27: =IF(A27>=(Title_RESULTS!$H$7+Title_RESULTS!$C$17),0,(SUM(B27:F27))) -> 0 | H27: =IF(A27>=(Title_RESULTS!$H$7+Title_RESULTS!$C$17),0,(+'Sheet3(F_21)'!$J27+'Sheet4(F_22)'!$H27)) -> 0 | I27: =IF(A27>=(Title_RESULTS!$H$7+Title_RESULTS!$C$17),0,(+'Sheet4(F_22)'!$D27+'Sheet4(F_22)'!$G27)) -> 0 | J27: =IF(A27>=(Title_RESULTS!$H$7+Title_RESULTS!$C$17),0,(+'Sheet6(p_6)'!$R27)) -> 0 | K27: =IF(A27>=(Title_RESULTS!$H$7+Title_RESULTS!$C$17),0,(+'f-11B'!$S26)) -> 0 | L27: =IF(A27>=(Title_RESULTS!$H$7+Title_RESULTS!$C$17),0,(SUM(H27:K27))) -> 0 | M27: =IF(A27>=(Title_RESULTS!$H$7+Title_RESULTS!$C$17),0,(+L27-G27)) -> 0 | N27: =(IF(A26>=(Title_RESULTS!$H$7+Title_RESULTS!$C$17),0,(+$M27/((1+Title_RESULTS!$C$37)^('Sheet9(F_25)'!$A27-Title_RESULTS!$H$7))+N26))) -> 0
A28: 2032 | B28: =IF(A28>=(Title_RESULTS!$H$7+Title_RESULTS!$C$17),0,(+'Sheet7(F_23)'!$B28)) -> 0 | C28: =IF(A28>=(Title_RESULTS!$H$7+Title_RESULTS!$C$17),0,(+'Sheet6(p_6)'!$D28)) -> 0 | D28: =IF(A28>=(Title_RESULTS!$H$7+Title_RESULTS!$C$17),0,(+'Sheet6(p_6)'!$G28)) -> 0 | E28: =+'Sheet6(p_6)'!M28 -> 2159.930698 | F28: =IF(A28>=(Title_RESULTS!$H$7+Title_RESULTS!$C$17),0,(+'f-11B'!$R27)) -> 0 | G28: =IF(A28>=(Title_RESULTS!$H$7+Title_RESULTS!$C$17),0,(SUM(B28:F28))) -> 0 | H28: =IF(A28>=(Title_RESULTS!$H$7+Title_RESULTS!$C$17),0,(+'Sheet3(F_21)'!$J28+'Sheet4(F_22)'!$H28)) -> 0 | I28: =IF(A28>=(Title_RESULTS!$H$7+Title_RESULTS!$C$17),0,(+'Sheet4(F_22)'!$D28+'Sheet4(F_22)'!$G28)) -> 0 | J28: =IF(A28>=(Title_RESULTS!$H$7+Title_RESULTS!$C$17),0,(+'Sheet6(p_6)'!$R28)) -> 0 | K28: =IF(A28>=(Title_RESULTS!$H$7+Title_RESULTS!$C$17),0,(+'f-11B'!$S27)) -> 0 | L28: =IF(A28>=(Title_RESULTS!$H$7+Title_RESULTS!$C$17),0,(SUM(H28:K28))) -> 0 | M28: =IF(A28>=(Title_RESULTS!$H$7+Title_RESULTS!$C$17),0,(+L28-G28)) -> 0 | N28: =(IF(A27>=(Title_RESULTS!$H$7+Title_RESULTS!$C$17),0,(+$M28/((1+Title_RESULTS!$C$37)^('Sheet9(F_25)'!$A28-Title_RESULTS!$H$7))+N27))) -> 0
A29: 2033 | B29: =IF(A29>=(Title_RESULTS!$H$7+Title_RESULTS!$C$17),0,(+'Sheet7(F_23)'!$B29)) -> 0 | C29: =IF(A29>=(Title_RESULTS!$H$7+Title_RESULTS!$C$17),0,(+'Sheet6(p_6)'!$D29)) -> 0 | D29: =IF(A29>=(Title_RESULTS!$H$7+Title_RESULTS!$C$17),0,(+'Sheet6(p_6)'!$G29)) -> 0 | E29: =+'Sheet6(p_6)'!M29 -> 2181.530004 | F29: =IF(A29>=(Title_RESULTS!$H$7+Title_RESULTS!$C$17),0,(+'f-11B'!$R28)) -> 0 | G29: =IF(A29>=(Title_RESULTS!$H$7+Title_RESULTS!$C$17),0,(SUM(B29:F29))) -> 0 | H29: =IF(A29>=(Title_RESULTS!$H$7+Title_RESULTS!$C$17),0,(+'Sheet3(F_21)'!$J29+'Sheet4(F_22)'!$H29)) -> 0 | I29: =IF(A29>=(Title_RESULTS!$H$7+Title_RESULTS!$C$17),0,(+'Sheet4(F_22)'!$D29+'Sheet4(F_22)'!$G29)) -> 0 | J29: =IF(A29>=(Title_RESULTS!$H$7+Title_RESULTS!$C$17),0,(+'Sheet6(p_6)'!$R29)) -> 0 | K29: =IF(A29>=(Title_RESULTS!$H$7+Title_RESULTS!$C$17),0,(+'f-11B'!$S28)) -> 0 | L29: =IF(A29>=(Title_RESULTS!$H$7+Title_RESULTS!$C$17),0,(SUM(H29:K29))) -> 0 | M29: =IF(A29>=(Title_RESULTS!$H$7+Title_RESULTS!$C$17),0,(+L29-G29)) -> 0 | N29: =(IF(A28>=(Title_RESULTS!$H$7+Title_RESULTS!$C$17),0,(+$M29/((1+Title_RESULTS!$C$37)^('Sheet9(F_25)'!$A29-Title_RESULTS!$H$7))+N28))) -> 0
A30: 2034 | B30: =IF(A30>=(Title_RESULTS!$H$7+Title_RESULTS!$C$17),0,(+'Sheet7(F_23)'!$B30)) -> 0 | C30: =IF(A30>=(Title_RESULTS!$H$7+Title_RESULTS!$C$17),0,(+'Sheet6(p_6)'!$D30)) -> 0 | D30: =IF(A30>=(Title_RESULTS!$H$7+Title_RESULTS!$C$17),0,(+'Sheet6(p_6)'!$G30)) -> 0 | E30: =+'Sheet6(p_6)'!M30 -> 2203.345305 | F30: =IF(A30>=(Title_RESULTS!$H$7+Title_RESULTS!$C$17),0,(+'f-11B'!$R29)) -> 0 | G30: =IF(A30>=(Title_RESULTS!$H$7+Title_RESULTS!$C$17),0,(SUM(B30:F30))) -> 0 | H30: =IF(A30>=(Title_RESULTS!$H$7+Title_RESULTS!$C$17),0,(+'Sheet3(F_21)'!$J30+'Sheet4(F_22)'!$H30)) -> 0 | I30: =IF(A30>=(Title_RESULTS!$H$7+Title_RESULTS!$C$17),0,(+'Sheet4(F_22)'!$D30+'Sheet4(F_22)'!$G30)) -> 0 | J30: =IF(A30>=(Title_RESULTS!$H$7+Title_RESULTS!$C$17),0,(+'Sheet6(p_6)'!$R30)) -> 0 | K30: =IF(A30>=(Title_RESULTS!$H$7+Title_RESULTS!$C$17),0,(+'f-11B'!$S29)) -> 0 | L30: =IF(A30>=(Title_RESULTS!$H$7+Title_RESULTS!$C$17),0,(SUM(H30:K30))) -> 0 | M30: =IF(A30>=(Title_RESULTS!$H$7+Title_RESULTS!$C$17),0,(+L30-G30)) -> 0 | N30: =(IF(A29>=(Title_RESULTS!$H$7+Title_RESULTS!$C$17),0,(+$M30/((1+Title_RESULTS!$C$37)^('Sheet9(F_25)'!$A30-Title_RESULTS!$H$7))+N29))) -> 0
A31: 2035 | B31: =IF(A31>=(Title_RESULTS!$H$7+Title_RESULTS!$C$17),0,(+'Sheet7(F_23)'!$B31)) -> 0 | C31: =IF(A31>=(Title_RESULTS!$H$7+Title_RESULTS!$C$17),0,(+'Sheet6(p_6)'!$D31)) -> 0 | D31: =IF(A31>=(Title_RESULTS!$H$7+Title_RESULTS!$C$17),0,(+'Sheet6(p_6)'!$G31)) -> 0 | E31: =+'Sheet6(p_6)'!M31 -> 2225.378758 | F31: =IF(A31>=(Title_RESULTS!$H$7+Title_RESULTS!$C$17),0,(+'f-11B'!$R30)) -> 0 | G31: =IF(A31>=(Title_RESULTS!$H$7+Title_RESULTS!$C$17),0,(SUM(B31:F31))) -> 0 | H31: =IF(A31>=(Title_RESULTS!$H$7+Title_RESULTS!$C$17),0,(+'Sheet3(F_21)'!$J31+'Sheet4(F_22)'!$H31)) -> 0 | I31: =IF(A31>=(Title_RESULTS!$H$7+Title_RESULTS!$C$17),0,(+'Sheet4(F_22)'!$D31+'Sheet4(F_22)'!$G31)) -> 0 | J31: =IF(A31>=(Title_RESULTS!$H$7+Title_RESULTS!$C$17),0,(+'Sheet6(p_6)'!$R31)) -> 0 | K31: =IF(A31>=(Title_RESULTS!$H$7+Title_RESULTS!$C$17),0,(+'f-11B'!$S30)) -> 0 | L31: =IF(A31>=(Title_RESULTS!$H$7+Title_RESULTS!$C$17),0,(SUM(H31:K31))) -> 0 | M31: =IF(A31>=(Title_RESULTS!$H$7+Title_RESULTS!$C$17),0,(+L31-G31)) -> 0 | N31: =(IF(A30>=(Title_RESULTS!$H$7+Title_RESULTS!$C$17),0,(+$M31/((1+Title_RESULTS!$C$37)^('Sheet9(F_25)'!$A31-Title_RESULTS!$H$7))+N30))) -> 0
A32: 2036 | B32: =IF(A32>=(Title_RESULTS!$H$7+Title_RESULTS!$C$17),0,(+'Sheet7(F_23)'!$B32)) -> 0 | C32: =IF(A32>=(Title_RESULTS!$H$7+Title_RESULTS!$C$17),0,(+'Sheet6(p_6)'!$D32)) -> 0 | D32: =IF(A32>=(Title_RESULTS!$H$7+Title_RESULTS!$C$17),0,(+'Sheet6(p_6)'!$G32)) -> 0 | E32: =+'Sheet6(p_6)'!M32 -> 2247.632545 | F32: =IF(A32>=(Title_RESULTS!$H$7+Title_RESULTS!$C$17),0,(+'f-11B'!$R31)) -> 0 | G32: =IF(A32>=(Title_RESULTS!$H$7+Title_RESULTS!$C$17),0,(SUM(B32:F32))) -> 0 | H32: =IF(A32>=(Title_RESULTS!$H$7+Title_RESULTS!$C$17),0,(+'Sheet3(F_21)'!$J32+'Sheet4(F_22)'!$H32)) -> 0 | I32: =IF(A32>=(Title_RESULTS!$H$7+Title_RESULTS!$C$17),0,(+'Sheet4(F_22)'!$D32+'Sheet4(F_22)'!$G32)) -> 0 | J32: =IF(A32>=(Title_RESULTS!$H$7+Title_RESULTS!$C$17),0,(+'Sheet6(p_6)'!$R32)) -> 0 | K32: =IF(A32>=(Title_RESULTS!$H$7+Title_RESULTS!$C$17),0,(+'f-11B'!$S31)) -> 0 | L32: =IF(A32>=(Title_RESULTS!$H$7+Title_RESULTS!$C$17),0,(SUM(H32:K32))) -> 0 | M32: =IF(A32>=(Title_RESULTS!$H$7+Title_RESULTS!$C$17),0,(+L32-G32)) -> 0 | N32: =(IF(A31>=(Title_RESULTS!$H$7+Title_RESULTS!$C$17),0,(+$M32/((1+Title_RESULTS!$C$37)^('Sheet9(F_25)'!$A32-Title_RESULTS!$H$7))+N31))) -> 0
A33: 2037 | B33: =IF(A33>=(Title_RESULTS!$H$7+Title_RESULTS!$C$17),0,(+'Sheet7(F_23)'!$B33)) -> 0 | C33: =IF(A33>=(Title_RESULTS!$H$7+Title_RESULTS!$C$17),0,(+'Sheet6(p_6)'!$D33)) -> 0 | D33: =IF(A33>=(Title_RESULTS!$H$7+Title_RESULTS!$C$17),0,(+'Sheet6(p_6)'!$G33)) -> 0 | E33: =+'Sheet6(p_6)'!M33 -> 2270.108871 | F33: =IF(A33>=(Title_RESULTS!$H$7+Title_RESULTS!$C$17),0,(+'f-11B'!$R32)) -> 0 | G33: =IF(A33>=(Title_RESULTS!$H$7+Title_RESULTS!$C$17),0,(SUM(B33:F33))) -> 0 | H33: =IF(A33>=(Title_RESULTS!$H$7+Title_RESULTS!$C$17),0,(+'Sheet3(F_21)'!$J33+'Sheet4(F_22)'!$H33)) -> 0 | I33: =IF(A33>=(Title_RESULTS!$H$7+Title_RESULTS!$C$17),0,(+'Sheet4(F_22)'!$D33+'Sheet4(F_22)'!$G33)) -> 0 | J33: =IF(A33>=(Title_RESULTS!$H$7+Title_RESULTS!$C$17),0,(+'Sheet6(p_6)'!$R33)) -> 0 | K33: =IF(A33>=(Title_RESULTS!$H$7+Title_RESULTS!$C$17),0,(+'f-11B'!$S32)) -> 0 | L33: =IF(A33>=(Title_RESULTS!$H$7+Title_RESULTS!$C$17),0,(SUM(H33:K33))) -> 0 | M33: =IF(A33>=(Title_RESULTS!$H$7+Title_RESULTS!$C$17),0,(+L33-G33)) -> 0 | N33: =(IF(A32>=(Title_RESULTS!$H$7+Title_RESULTS!$C$17),0,(+$M33/((1+Title_RESULTS!$C$37)^('Sheet9(F_25)'!$A33-Title_RESULTS!$H$7))+N32))) -> 0
A34: 2038 | B34: =IF(A34>=(Title_RESULTS!$H$7+Title_RESULTS!$C$17),0,(+'Sheet7(F_23)'!$B34)) -> 0 | C34: =IF(A34>=(Title_RESULTS!$H$7+Title_RESULTS!$C$17),0,(+'Sheet6(p_6)'!$D34)) -> 0 | D34: =IF(A34>=(Title_RESULTS!$H$7+Title_RESULTS!$C$17),0,(+'Sheet6(p_6)'!$G34)) -> 0 | E34: =+'Sheet6(p_6)'!M34 -> 2292.809959 | F34: =IF(A34>=(Title_RESULTS!$H$7+Title_RESULTS!$C$17),0,(+'f-11B'!$R33)) -> 0 | G34: =IF(A34>=(Title_RESULTS!$H$7+Title_RESULTS!$C$17),0,(SUM(B34:F34))) -> 0 | H34: =IF(A34>=(Title_RESULTS!$H$7+Title_RESULTS!$C$17),0,(+'Sheet3(F_21)'!$J34+'Sheet4(F_22)'!$H34)) -> 0 | I34: =IF(A34>=(Title_RESULTS!$H$7+Title_RESULTS!$C$17),0,(+'Sheet4(F_22)'!$D34+'Sheet4(F_22)'!$G34)) -> 0 | J34: =IF(A34>=(Title_RESULTS!$H$7+Title_RESULTS!$C$17),0,(+'Sheet6(p_6)'!$R34)) -> 0 | K34: =IF(A34>=(Title_RESULTS!$H$7+Title_RESULTS!$C$17),0,(+'f-11B'!$S33)) -> 0 | L34: =IF(A34>=(Title_RESULTS!$H$7+Title_RESULTS!$C$17),0,(SUM(H34:K34))) -> 0 | M34: =IF(A34>=(Title_RESULTS!$H$7+Title_RESULTS!$C$17),0,(+L34-G34)) -> 0 | N34: =(IF(A33>=(Title_RESULTS!$H$7+Title_RESULTS!$C$17),0,(+$M34/((1+Title_RESULTS!$C$37)^('Sheet9(F_25)'!$A34-Title_RESULTS!$H$7))+N33))) -> 0
A35: 2039 | B35: =IF(A35>=(Title_RESULTS!$H$7+Title_RESULTS!$C$17),0,(+'Sheet7(F_23)'!$B35)) -> 0 | C35: =IF(A35>=(Title_RESULTS!$H$7+Title_RESULTS!$C$17),0,(+'Sheet6(p_6)'!$D35)) -> 0 | D35: =IF(A35>=(Title_RESULTS!$H$7+Title_RESULTS!$C$17),0,(+'Sheet6(p_6)'!$G35)) -> 0 | E35: =+'Sheet6(p_6)'!M35 -> 2315.738059 | F35: =IF(A35>=(Title_RESULTS!$H$7+Title_RESULTS!$C$17),0,(+'f-11B'!$R34)) -> 0 | G35: =IF(A35>=(Title_RESULTS!$H$7+Title_RESULTS!$C$17),0,(SUM(B35:F35))) -> 0 | H35: =IF(A35>=(Title_RESULTS!$H$7+Title_RESULTS!$C$17),0,(+'Sheet3(F_21)'!$J35+'Sheet4(F_22)'!$H35)) -> 0 | I35: =IF(A35>=(Title_RESULTS!$H$7+Title_RESULTS!$C$17),0,(+'Sheet4(F_22)'!$D35+'Sheet4(F_22)'!$G35)) -> 0 | J35: =IF(A35>=(Title_RESULTS!$H$7+Title_RESULTS!$C$17),0,(+'Sheet6(p_6)'!$R35)) -> 0 | K35: =IF(A35>=(Title_RESULTS!$H$7+Title_RESULTS!$C$17),0,(+'f-11B'!$S34)) -> 0 | L35: =IF(A35>=(Title_RESULTS!$H$7+Title_RESULTS!$C$17),0,(SUM(H35:K35))) -> 0 | M35: =IF(A35>=(Title_RESULTS!$H$7+Title_RESULTS!$C$17),0,(+L35-G35)) -> 0 | N35: =(IF(A34>=(Title_RESULTS!$H$7+Title_RESULTS!$C$17),0,(+$M35/((1+Title_RESULTS!$C$37)^('Sheet9(F_25)'!$A35-Title_RESULTS!$H$7))+N34))) -> 0
A36: 2040 | B36: =IF(A36>=(Title_RESULTS!$H$7+Title_RESULTS!$C$17),0,(+'Sheet7(F_23)'!$B36)) -> 0 | C36: =IF(A36>=(Title_RESULTS!$H$7+Title_RESULTS!$C$17),0,(+'Sheet6(p_6)'!$D36)) -> 0 | D36: =IF(A36>=(Title_RESULTS!$H$7+Title_RESULTS!$C$17),0,(+'Sheet6(p_6)'!$G36)) -> 0 | E36: =+'Sheet6(p_6)'!M36 -> 2338.895439 | F36: =IF(A36>=(Title_RESULTS!$H$7+Title_RESULTS!$C$17),0,(+'f-11B'!$R35)) -> 0 | G36: =IF(A36>=(Title_RESULTS!$H$7+Title_RESULTS!$C$17),0,(SUM(B36:F36))) -> 0 | H36: =IF(A36>=(Title_RESULTS!$H$7+Title_RESULTS!$C$17),0,(+'Sheet3(F_21)'!$J36+'Sheet4(F_22)'!$H36)) -> 0 | I36: =IF(A36>=(Title_RESULTS!$H$7+Title_RESULTS!$C$17),0,(+'Sheet4(F_22)'!$D36+'Sheet4(F_22)'!$G36)) -> 0 | J36: =IF(A36>=(Title_RESULTS!$H$7+Title_RESULTS!$C$17),0,(+'Sheet6(p_6)'!$R36)) -> 0 | K36: =IF(A36>=(Title_RESULTS!$H$7+Title_RESULTS!$C$17),0,(+'f-11B'!$S35)) -> 0 | L36: =IF(A36>=(Title_RESULTS!$H$7+Title_RESULTS!$C$17),0,(SUM(H36:K36))) -> 0 | M36: =IF(A36>=(Title_RESULTS!$H$7+Title_RESULTS!$C$17),0,(+L36-G36)) -> 0 | N36: =(IF(A35>=(Title_RESULTS!$H$7+Title_RESULTS!$C$17),0,(+$M36/((1+Title_RESULTS!$C$37)^('Sheet9(F_25)'!$A36-Title_RESULTS!$H$7))+N35))) -> 0
A37: 2041 | B37: =IF(A37>=(Title_RESULTS!$H$7+Title_RESULTS!$C$17),0,(+'Sheet7(F_23)'!$B37)) -> 0 | C37: =IF(A37>=(Title_RESULTS!$H$7+Title_RESULTS!$C$17),0,(+'Sheet6(p_6)'!$D37)) -> 0 | D37: =IF(A37>=(Title_RESULTS!$H$7+Title_RESULTS!$C$17),0,(+'Sheet6(p_6)'!$G37)) -> 0 | E37: =+'Sheet6(p_6)'!M37 -> 2362.284394 | F37: =IF(A37>=(Title_RESULTS!$H$7+Title_RESULTS!$C$17),0,(+'f-11B'!$R36)) -> 0 | G37: =IF(A37>=(Title_RESULTS!$H$7+Title_RESULTS!$C$17),0,(SUM(B37:F37))) -> 0 | H37: =IF(A37>=(Title_RESULTS!$H$7+Title_RESULTS!$C$17),0,(+'Sheet3(F_21)'!$J37+'Sheet4(F_22)'!$H37)) -> 0 | I37: =IF(A37>=(Title_RESULTS!$H$7+Title_RESULTS!$C$17),0,(+'Sheet4(F_22)'!$D37+'Sheet4(F_22)'!$G37)) -> 0 | J37: =IF(A37>=(Title_RESULTS!$H$7+Title_RESULTS!$C$17),0,(+'Sheet6(p_6)'!$R37)) -> 0 | K37: =IF(A37>=(Title_RESULTS!$H$7+Title_RESULTS!$C$17),0,(+'f-11B'!$S36)) -> 0 | L37: =IF(A37>=(Title_RESULTS!$H$7+Title_RESULTS!$C$17),0,(SUM(H37:K37))) -> 0 | M37: =IF(A37>=(Title_RESULTS!$H$7+Title_RESULTS!$C$17),0,(+L37-G37)) -> 0 | N37: =(IF(A36>=(Title_RESULTS!$H$7+Title_RESULTS!$C$17),0,(+$M37/((1+Title_RESULTS!$C$37)^('Sheet9(F_25)'!$A37-Title_RESULTS!$H$7))+N36))) -> 0
A38: 2042 | B38: =IF(A38>=(Title_RESULTS!$H$7+Title_RESULTS!$C$17),0,(+'Sheet7(F_23)'!$B38)) -> 0 | C38: =IF(A38>=(Title_RESULTS!$H$7+Title_RESULTS!$C$17),0,(+'Sheet6(p_6)'!$D38)) -> 0 | D38: =IF(A38>=(Title_RESULTS!$H$7+Title_RESULTS!$C$17),0,(+'Sheet6(p_6)'!$G38)) -> 0 | E38: =+'Sheet6(p_6)'!M38 -> 2385.907238 | F38: =IF(A38>=(Title_RESULTS!$H$7+Title_RESULTS!$C$17),0,(+'f-11B'!$R37)) -> 0 | G38: =IF(A38>=(Title_RESULTS!$H$7+Title_RESULTS!$C$17),0,(SUM(B38:F38))) -> 0 | H38: =IF(A38>=(Title_RESULTS!$H$7+Title_RESULTS!$C$17),0,(+'Sheet3(F_21)'!$J38+'Sheet4(F_22)'!$H38)) -> 0 | I38: =IF(A38>=(Title_RESULTS!$H$7+Title_RESULTS!$C$17),0,(+'Sheet4(F_22)'!$D38+'Sheet4(F_22)'!$G38)) -> 0 | J38: =IF(A38>=(Title_RESULTS!$H$7+Title_RESULTS!$C$17),0,(+'Sheet6(p_6)'!$R38)) -> 0 | K38: =IF(A38>=(Title_RESULTS!$H$7+Title_RESULTS!$C$17),0,(+'f-11B'!$S37)) -> 0 | L38: =IF(A38>=(Title_RESULTS!$H$7+Title_RESULTS!$C$17),0,(SUM(H38:K38))) -> 0 | M38: =IF(A38>=(Title_RESULTS!$H$7+Title_RESULTS!$C$17),0,(+L38-G38)) -> 0 | N38: =(IF(A37>=(Title_RESULTS!$H$7+Title_RESULTS!$C$17),0,(+$M38/((1+Title_RESULTS!$C$37)^('Sheet9(F_25)'!$A38-Title_RESULTS!$H$7))+N37))) -> 0
A39: 2043 | B39: =IF(A39>=(Title_RESULTS!$H$7+Title_RESULTS!$C$17),0,(+'Sheet7(F_23)'!$B39)) -> 0 | C39: =IF(A39>=(Title_RESULTS!$H$7+Title_RESULTS!$C$17),0,(+'Sheet6(p_6)'!$D39)) -> 0 | D39: =IF(A39>=(Title_RESULTS!$H$7+Title_RESULTS!$C$17),0,(+'Sheet6(p_6)'!$G39)) -> 0 | E39: =+'Sheet6(p_6)'!M39 -> 2409.76631 | F39: =IF(A39>=(Title_RESULTS!$H$7+Title_RESULTS!$C$17),0,(+'f-11B'!$R38)) -> 0 | G39: =IF(A39>=(Title_RESULTS!$H$7+Title_RESULTS!$C$17),0,(SUM(B39:F39))) -> 0 | H39: =IF(A39>=(Title_RESULTS!$H$7+Title_RESULTS!$C$17),0,(+'Sheet3(F_21)'!$J39+'Sheet4(F_22)'!$H39)) -> 0 | I39: =IF(A39>=(Title_RESULTS!$H$7+Title_RESULTS!$C$17),0,(+'Sheet4(F_22)'!$D39+'Sheet4(F_22)'!$G39)) -> 0 | J39: =IF(A39>=(Title_RESULTS!$H$7+Title_RESULTS!$C$17),0,(+'Sheet6(p_6)'!$R39)) -> 0 | K39: =IF(A39>=(Title_RESULTS!$H$7+Title_RESULTS!$C$17),0,(+'f-11B'!$S38)) -> 0 | L39: =IF(A39>=(Title_RESULTS!$H$7+Title_RESULTS!$C$17),0,(SUM(H39:K39))) -> 0 | M39: =IF(A39>=(Title_RESULTS!$H$7+Title_RESULTS!$C$17),0,(+L39-G39)) -> 0 | N39: =(IF(A38>=(Title_RESULTS!$H$7+Title_RESULTS!$C$17),0,(+$M39/((1+Title_RESULTS!$C$37)^('Sheet9(F_25)'!$A39-Title_RESULTS!$H$7))+N38))) -> 0
A40: 2044 | B40: =IF(A40>=(Title_RESULTS!$H$7+Title_RESULTS!$C$17),0,(+'Sheet7(F_23)'!$B40)) -> 0 | C40: =IF(A40>=(Title_RESULTS!$H$7+Title_RESULTS!$C$17),0,(+'Sheet6(p_6)'!$D40)) -> 0 | D40: =IF(A40>=(Title_RESULTS!$H$7+Title_RESULTS!$C$17),0,(+'Sheet6(p_6)'!$G40)) -> 0 | E40: =+'Sheet6(p_6)'!M40 -> 2433.863973 | F40: =IF(A40>=(Title_RESULTS!$H$7+Title_RESULTS!$C$17),0,(+'f-11B'!$R39)) -> 0 | G40: =IF(A40>=(Title_RESULTS!$H$7+Title_RESULTS!$C$17),0,(SUM(B40:F40))) -> 0 | H40: =IF(A40>=(Title_RESULTS!$H$7+Title_RESULTS!$C$17),0,(+'Sheet3(F_21)'!$J40+'Sheet4(F_22)'!$H40)) -> 0 | I40: =IF(A40>=(Title_RESULTS!$H$7+Title_RESULTS!$C$17),0,(+'Sheet4(F_22)'!$D40+'Sheet4(F_22)'!$G40)) -> 0 | J40: =IF(A40>=(Title_RESULTS!$H$7+Title_RESULTS!$C$17),0,(+'Sheet6(p_6)'!$R40)) -> 0 | K40: =IF(A40>=(Title_RESULTS!$H$7+Title_RESULTS!$C$17),0,(+'f-11B'!$S39)) -> 0 | L40: =IF(A40>=(Title_RESULTS!$H$7+Title_RESULTS!$C$17),0,(SUM(H40:K40))) -> 0 | M40: =IF(A40>=(Title_RESULTS!$H$7+Title_RESULTS!$C$17),0,(+L40-G40)) -> 0 | N40: =(IF(A39>=(Title_RESULTS!$H$7+Title_RESULTS!$C$17),0,(+$M40/((1+Title_RESULTS!$C$37)^('Sheet9(F_25)'!$A40-Title_RESULTS!$H$7))+N39))) -> 0
A42: NOMINAL | B42: =SUM(B16:B41) -> 0 | C42: 0 | D42: 0 | E42: 51246.13013 | F42: 0 | G42: 6886.504678 | H42: 3634.525604 | I42: 1177.211207 | J42: 0 | K42: 0 | L42: 4811.736811 | M42: -2074.767868
A44: NPV: | B44: =NPV(Title_RESULTS!$C$37,'Sheet9(F_25)'!B17:B41)+'Sheet9(F_25)'!B16 -> 0 | C44: =NPV(Title_RESULTS!$C$37,'Sheet9(F_25)'!C17:C41)+'Sheet9(F_25)'!C16 -> 0 | D44: =NPV(Title_RESULTS!$C$37,'Sheet9(F_25)'!D17:D41)+'Sheet9(F_25)'!D16 -> 0 | E44: =NPV(Title_RESULTS!$C$37,'Sheet9(F_25)'!E17:E41)+'Sheet9(F_25)'!E16 -> 23144.18326 | F44: =NPV(Title_RESULTS!$C$37,'Sheet9(F_25)'!F17:F41)+'Sheet9(F_25)'!F16 -> 0 | G44: =NPV(Title_RESULTS!$C$37,'Sheet9(F_25)'!G17:G41)+'Sheet9(F_25)'!G16 -> 5770.257246 | H44: =NPV(Title_RESULTS!$C$37,'Sheet9(F_25)'!H17:H41)+'Sheet9(F_25)'!H16 -> 2991.733843 | I44: =NPV(Title_RESULTS!$C$37,'Sheet9(F_25)'!I17:I41)+'Sheet9(F_25)'!I16 -> 993.053762 | J44: =NPV(Title_RESULTS!$C$37,'Sheet9(F_25)'!J17:J41)+'Sheet9(F_25)'!J16 -> 0 | K44: =NPV(Title_RESULTS!$C$37,'Sheet9(F_25)'!K17:K41)+'Sheet9(F_25)'!K16 -> 0 | L44: =NPV(Title_RESULTS!$C$37,'Sheet9(F_25)'!L17:L41)+'Sheet9(F_25)'!L16 -> 3984.787605 | M44: =NPV(Title_RESULTS!$C$37,'Sheet9(F_25)'!M17:M41)+'Sheet9(F_25)'!M16 -> -1785.469641
A46: Discount rate: | D46: =+Title_RESULTS!C37 -> 0.0708 | F46: Benefit/Cost Ratio - [col (12)/col (7)]: | J46: =+L44/G44 -> 0.6905736495

Sheet Value of Defferal
A1: GEN: | I1: COMPUTATION OF CONSTRUCTION CASH FLOW AND PLANT | O1: Do Not Print
A2: COMPUTATION OF GENERATION COSTS & REV. REQUIREMENTS | I2: IN-SERVICE COSTS FOR AVOIDED TRANS & DIST PLANT
A3: IN-SERVICE AVOIDED GEN. PLANT ($000) = | E3: ='f-11B'!J29*'Sheet3(F_21)'!G5/1000 -> 3750.638537 | I3: -----------------------------------------------
A4: ------------------------------------------ | F4: GENERATION | I4: TRAN: | J4: Avoided Trans. = | L4: =(+Title_RESULTS!H11*'Sheet3(F_21)'!G5)/1000*(1+Title_RESULTS!H13/100)^(Title_RESULTS!H9-Title_RESULTS!H7) -> 218.7855872
E5: COMPUTATION OF VALUE DEFERRAL PAYMENTS | J5: Avoided Dist. = | L5: =(Title_RESULTS!$H$12*Title_RESULTS!$C$7*Partcipation!$C$26)/1000*(1+Title_RESULTS!H13/100)^(Title_RESULTS!H9-Title_RESULTS!H7) -> 1035.417097 | O5: TRANSMISSION & DIST.
N6: COMPUTATION OF VALUE DEFERRAL CREDITS
E7: ip= | F7: =+Title_RESULTS!$H$13/100 -> 0.024 | G7: Esc. rate | N7: ip= | O7: =+Title_RESULTS!$H$13/100 -> 0.024 | P7: Esc. rate
B8: Gen | E8: r= | F8: =+Title_RESULTS!$C$37 -> 0.0708 | G8: Disc rate | I8: TRAN | N8: r= | O8: =+Title_RESULTS!$C$37 -> 0.0708 | P8: Disc rate
B9: Offset Cost | C9: =IF(Title_RESULTS!$C$22=1,5,3) -> 5 | E9: l= | F9: =+Title_RESULTS!C18 -> 25 | G9: Econ life | I9: Offset Cost | K9: =IF(Title_RESULTS!$C$22=1,7,3) -> 7 | N9: l= | O9: =Title_RESULTS!C19 -> 25 | P9: Econ life
B10: Offset Factor | C10: =IF(Title_RESULTS!$C$22=1,4,2) -> 4 | E10: c= | F10: 1 | G10: Risk factor | I10: Offset Factor | K10: =IF(Title_RESULTS!$C$22=1,5,1) -> 5 | N10: c= | O10: 1 | P10: Risk factor
E12: k= | F12: =+Title_RESULTS!C20 -> 1.5213 | G12: K factor | I12: DIST | N12: k= | O12: =Title_RESULTS!C21 -> 1.5213 | P12: K factor
E13: Ratio= | F13: =+(1+F7)/(1+F8) -> 0.9562943594 | G13: calculated ratio | I13: Offset Cost | K13: =IF(Title_RESULTS!$C$22=1,8,4) -> 8 | N13: Ratio= | O13: =+(1+O7)/(1+O8) -> 0.9562943594 | P13: calculated ratio
I14: Offset Factor | K14: =IF(Title_RESULTS!$C$22=1,5,1) -> 5
E15: VALUE of DEFERRAL | N15: VALUE DEFERRAL STARTING
E16: Factor = | F16: =+F12*F10*((1-F13)/(1-F13^F9)) -> 0.09882230355 | N16: FACTOR = | O16: =+O12*O10*((1-O13)/(1-O13^O9)) -> 0.09882230355
F18: AVOIDED | K18: TRANS | L18: DIST | O18: AVOIDED | P18: AVOIDED
C19: CARRYING | D19: ANNUAL | E19: Value | F19: GEN. | J19: CARRYING | K19: ANNUAL | L19: ANNUAL | O19: TRANS. | P19: DIST
C20: CHARGE | D20: REV REQ | E20: of Def | F20: V OF D | J20: CHARGE | K20: REV REQ | L20: REV REQ | O20: V OF D | P20: V OF D
A21: N | B21: Year | C21: % | D21: COSTS(000) | E21: Factors | F21: ($000) | H21: N | I21: Year | J21: % | K21: COSTS(000) | L21: COSTS(000) | N21: Factors | O21: ($000) | P21: $(000)
A22: -- | B22: ---- | C22: ------ | D22: ------ | E22: ------ | F22: ----- | J22: ------ | K22: ------ | L22: ------
A23: 1 | B23: =+Title_RESULTS!H7 -> 2020 | C23: =IF(B23>=Title_RESULTS!$H$8,VLOOKUP(B23,'Revenue Requirements'!$B$9:$C$39,2),0) -> 0 | D23: =$E$3*C23 -> 0 | E23: 0 | F23: =$E$3*E23 -> 0 | H23: 1 | I23: =Title_RESULTS!H7 -> 2020 | J23: =IF(I23>=Title_RESULTS!$H$8,VLOOKUP(I23,'Revenue Requirements'!$B$9:$D$39,2),0) -> 0 | K23: =$L$4*J23 -> 0 | L23: =$L$5*J23 -> 0 | N23: 0 | O23: =$L$4*N23 -> 0 | P23: =N23*$L$5 -> 0
A24: 2 | B24: =+B23+1 -> 2021 | C24: =IF(B24>=Title_RESULTS!$H$8,VLOOKUP(B24,'Revenue Requirements'!$B$9:$C$39,2),0) -> 0 | D24: =$E$3*C24 -> 0 | E24: =IF(B24=Title_RESULTS!$H$8,$F$16,+E23*(1+$F$7)) -> 0 | F24: =$E$3*E24 -> 0 | H24: 2 | I24: =I23+1 -> 2021 | J24: =IF(I24>=Title_RESULTS!$H$8,VLOOKUP(I24,'Revenue Requirements'!$B$9:$D$39,2),0) -> 0 | K24: =$L$4*J24 -> 0 | L24: =$L$5*J24 -> 0 | N24: =IF(+B24=Title_RESULTS!$H$9,'Value of Defferal'!$O$16,+'Value of Defferal'!N23*(1+'Value of Defferal'!$F$7)) -> 0.09882230355 | O24: =$L$4*N24 -> 21.62089571 | P24: =N24*$L$5 -> 102.3223026
A25: 3 | B25: =+B24+1 -> 2022 | C25: =IF(B25>=Title_RESULTS!$H$8,VLOOKUP(B25,'Revenue Requirements'!$B$9:$C$39,2),0) -> 0 | D25: 0 | E25: =IF(B25=Title_RESULTS!$H$8,$F$16,+E24*(1+$F$7)) -> 0 | F25: 0 | H25: 3 | I25: =I24+1 -> 2022 | J25: =IF(I25>=Title_RESULTS!$H$8,VLOOKUP(I25,'Revenue Requirements'!$B$9:$D$39,2),0) -> 0 | K25: 0 | L25: 0 | N25: =IF(+B25=Title_RESULTS!$H$9,'Value of Defferal'!$O$16,+'Value of Defferal'!N24*(1+'Value of Defferal'!$F$7)) -> 0.1011940388 | O25: =$L$4*N25 -> 22.13979721 | P25: 104.7780379
A26: 4 | B26: 2023 | C26: =IF(B26>=Title_RESULTS!$H$8,VLOOKUP(B26,'Revenue Requirements'!$B$9:$C$39,2),0) -> 0.1375906623 | D26: 516.0528403 | E26: =IF(B26=Title_RESULTS!$H$8,$F$16,+E25*(1+$F$7)) -> 0.09882230355 | F26: 370.6467401 | H26: 4 | I26: 2023 | J26: =IF(I26>=Title_RESULTS!$H$8,VLOOKUP(I26,'Revenue Requirements'!$B$9:$D$39,2),0) -> 0.1375906623 | K26: 30.10285384 | L26: 142.4637241 | N26: =IF(+B26=Title_RESULTS!$H$9,'Value of Defferal'!$O$16,+'Value of Defferal'!N25*(1+'Value of Defferal'!$F$7)) -> 0.1036226958 | O26: 22.67115234 | P26: 107.2927108
A27: 5 | B27: 2024 | C27: =IF(B27>=Title_RESULTS!$H$8,VLOOKUP(B27,'Revenue Requirements'!$B$9:$C$39,2),0) -> 0.133527626 | D27: 500.8138597 | E27: =IF(B27=Title_RESULTS!$H$8,$F$16,+E26*(1+$F$7)) -> 0.1011940388 | F27: 379.5422618 | H27: 5 | I27: 2024 | J27: =IF(I27>=Title_RESULTS!$H$8,VLOOKUP(I27,'Revenue Requirements'!$B$9:$D$39,2),0) -> 0.133527626 | K27: 29.21392005 | L27: 138.2567868 | N27: =IF(+B27=Title_RESULTS!$H$9,'Value of Defferal'!$O$16,+'Value of Defferal'!N26*(1+'Value of Defferal'!$F$7)) -> 0.1061096405 | O27: 23.21526 | P27: 109.8677359
A28: 6 | B28: 2025 | C28: =IF(B28>=Title_RESULTS!$H$8,VLOOKUP(B28,'Revenue Requirements'!$B$9:$C$39,2),0) -> 0.1290420635 | D28: 483.9901363 | E28: =IF(B28=Title_RESULTS!$H$8,$F$16,+E27*(1+$F$7)) -> 0.1036226958 | F28: 388.6512761 | H28: 6 | I28: 2025 | J28: =IF(I28>=Title_RESULTS!$H$8,VLOOKUP(I28,'Revenue Requirements'!$B$9:$D$39,2),0) -> 0.1290420635 | K28: 28.23254363 | L28: 133.6123587 | N28: =IF(+B28=Title_RESULTS!$H$9,'Value of Defferal'!$O$16,+'Value of Defferal'!N27*(1+'Value of Defferal'!$F$7)) -> 0.1086562718 | O28: 23.77242624 | P28: 112.5045615
A29: 7 | B29: 2026 | C29: =IF(B29>=Title_RESULTS!$H$8,VLOOKUP(B29,'Revenue Requirements'!$B$9:$C$39,2),0) -> 0.1247713348 | D29: 467.9721765 | E29: =IF(B29=Title_RESULTS!$H$8,$F$16,+E28*(1+$F$7)) -> 0.1061096405 | F29: 397.9789067 | H29: 7 | I29: 2026 | J29: =IF(I29>=Title_RESULTS!$H$8,VLOOKUP(I29,'Revenue Requirements'!$B$9:$D$39,2),0) -> 0.1247713348 | K29: 27.29816974 | L29: 129.1903732 | N29: =IF(+B29=Title_RESULTS!$H$9,'Value of Defferal'!$O$16,+'Value of Defferal'!N28*(1+'Value of Defferal'!$F$7)) -> 0.1112640224 | O29: 24.34296447 | P29: 115.204671
A30: 8 | B30: 2027 | C30: =IF(B30>=Title_RESULTS!$H$8,VLOOKUP(B30,'Revenue Requirements'!$B$9:$C$39,2),0) -> 0.1206938968 | D30: 452.6791807 | E30: =IF(B30=Title_RESULTS!$H$8,$F$16,+E29*(1+$F$7)) -> 0.1086562718 | F30: 407.5304005 | H30: 8 | I30: 2027 | J30: =IF(I30>=Title_RESULTS!$H$8,VLOOKUP(I30,'Revenue Requirements'!$B$9:$D$39,2),0) -> 0.1206938968 | K30: 26.40608509 | L30: 124.9685243 | N30: =IF(+B30=Title_RESULTS!$H$9,'Value of Defferal'!$O$16,+'Value of Defferal'!N29*(1+'Value of Defferal'!$F$7)) -> 0.1139343589 | O30: 24.92719561 | P30: 117.9695831
A31: 9 | B31: 2028 | C31: =IF(B31>=Title_RESULTS!$H$8,VLOOKUP(B31,'Revenue Requirements'!$B$9:$C$39,2),0) -> 0.1167905873 | D31: 438.0392776 | E31: =IF(B31=Title_RESULTS!$H$8,$F$16,+E30*(1+$F$7)) -> 0.1112640224 | F31: 417.3111301 | H31: 9 | I31: 2028 | J31: =IF(I31>=Title_RESULTS!$H$8,VLOOKUP(I31,'Revenue Requirements'!$B$9:$D$39,2),0) -> 0.1167905873 | K31: 25.55209723 | L31: 120.9269708 | N31: =IF(+B31=Title_RESULTS!$H$9,'Value of Defferal'!$O$16,+'Value of Defferal'!N30*(1+'Value of Defferal'!$F$7)) -> 0.1166687835 | O31: 25.52544831 | P31: 120.8008531
A32: 10 | B32: 2029 | C32: =IF(B32>=Title_RESULTS!$H$8,VLOOKUP(B32,'Revenue Requirements'!$B$9:$C$39,2),0) -> 0.1130087987 | D32: 423.8551554 | E32: =IF(B32=Title_RESULTS!$H$8,$F$16,+E31*(1+$F$7)) -> 0.1139343589 | F32: 427.3265972 | H32: 10 | I32: 2029 | J32: =IF(I32>=Title_RESULTS!$H$8,VLOOKUP(I32,'Revenue Requirements'!$B$9:$D$39,2),0) -> 0.1130087987 | K32: 24.72469638 | L32: 117.0112422 | N32: =IF(+B32=Title_RESULTS!$H$9,'Value of Defferal'!$O$16,+'Value of Defferal'!N31*(1+'Value of Defferal'!$F$7)) -> 0.1194688343 | O32: 26.13805907 | P32: 123.7000736
A33: 11 | B33: 2030 | C33: =IF(B33>=Title_RESULTS!$H$8,VLOOKUP(B33,'Revenue Requirements'!$B$9:$C$39,2),0) -> 0.1092659301 | D33: 409.8170082 | E33: =IF(B33=Title_RESULTS!$H$8,$F$16,+E32*(1+$F$7)) -> 0.1166687835 | F33: 437.5824356 | H33: 11 | I33: 2030 | J33: =IF(I33>=Title_RESULTS!$H$8,VLOOKUP(I33,'Revenue Requirements'!$B$9:$D$39,2),0) -> 0.1092659301 | K33: 23.90581067 | L33: 113.1358121 | N33: =IF(+B33=Title_RESULTS!$H$9,'Value of Defferal'!$O$16,+'Value of Defferal'!N32*(1+'Value of Defferal'!$F$7)) -> 0.1223360863 | O33: 26.76537249 | P33: 126.6688754
